Workbook

Sheet BD 2019 (hidden)
A1: UNIDADE | B1: DE | C1: EMEB | D1: COMPL | E1: NOME | F1: CNPJ | G1: Processo Convênio | H1: Processo Convênio 2011 Pagamentos | I1: Processo Prestação de Contas | J1: Convênio nº | K1: Sequência | L1: Aditamento | M1: Início | N1: Término | O1: Endereço | P1: Bairro | Q1: Município | R1: CEP | S1: Telefone | T1: e-mail | U1: BANCO | V1: AGÊNCIA | W1: CONTA CORRENTE | X1: CONTA Poupança | Y1: DESPESAS DE PESSOAL | Z1: DESPESAS DE CONSUMO | AA1: EPI E EXAMES PERIÓDICOS | AB1: MATERIAIS DIDÁTICOS | AC1: MATERIAIS DE ESCRITÓRIO | AD1: MATERIAIS PARA BIBLIOTECA | AE1: MATERIAIS PARA EDUCAÇÃO FÍSICA E RECREAÇÃO | AF1: MATERIAIS DE LIMPEZA E HIGIENE/ ITENS DE CAMA E BANHO | AG1: ESTUDO DO MEIO | AH1: PEQUENAS DESPESAS COM MANUTENÇÃO DO IMÓVEL | AI1: PROGRAMA ESCOLA LINDA - CUSTEIO | AJ1: CONTABILIDADE | AK1: COMBUSTÍVEL PARA DESLOCAMENTOS À SE | AL1: LOCAÇÃO DO IMÓVEL | AM1: EDUCAÇÃO MAKER CUSTEIO | AN1: EDUCAÇÃO MAKER CAPITAL | AO1: BENS PERMANENTES | AP1: CUSTEIO VALOR TOTAL | AQ1: CAPITAL VALOR TOTAL | AR1: VALOR TOTAL DO PLANO DE TRABALHO | AS1: DESPESAS DE PESSOAL | AT1: DESPESAS DE CONSUMO | AU1: EPI E EXAMES PERIÓDICOS | AV1: MATERIAIS DIDÁTICOS | AW1: MATERIAIS DE ESCRITÓRIO | AX1: MATERIAIS PARA BIBLIOTECA | AY1: MATERIAIS PARA EDUCAÇÃO FÍSICA E RECREAÇÃO | AZ1: MATERIAIS DE LIMPEZA E HIGIENE/ ITENS DE CAMA E BANHO | BA1: ESTUDO DO MEIO | BB1: PEQUENAS DESPESAS COM MANUTENÇÃO DO IMÓVEL | BC1: PROGRAMA ESCOLA LINDA - CUSTEIO | BD1: CONTABILIDADE | BE1: COMBUSTÍVEL PARA DESLOCAMENTOS À SE | BF1: LOCAÇÃO DO IMÓVEL | BG1: EDUCAÇÃO MAKER CUSTEIO | BH1: EDUCAÇÃO MAKER CAPITAL | BI1: BENS PERMANENTES | BJ1: CUSTEIO VALOR TOTAL | BK1: CAPITAL VALOR TOTAL | BL1: VALOR TOTAL DO PLANO DE TRABALHO | BM1: DESPESAS DE PESSOAL | BN1: DESPESAS DE CONSUMO | BO1: EPI E EXAMES PERIÓDICOS | BP1: MATERIAIS DIDÁTICOS | BQ1: MATERIAIS DE ESCRITÓRIO | BR1: MATERIAIS PARA BIBLIOTECA | BS1: MATERIAIS PARA EDUCAÇÃO FÍSICA E RECREAÇÃO | BT1: MATERIAIS DE LIMPEZA E HIGIENE/ ITENS DE CAMA E BANHO | BU1: ESTUDO DO MEIO | BV1: PEQUENAS DESPESAS COM MANUTENÇÃO DO IMÓVEL | BW1: PROGRAMA ESCOLA LINDA - CUSTEIO | BX1: CONTABILIDADE | BY1: COMBUSTÍVEL PARA DESLOCAMENTOS À SE | BZ1: LOCAÇÃO DO IMÓVEL | CA1: EDUCAÇÃO MAKER CUSTEIO | CB1: EDUCAÇÃO MAKER CAPITAL | CC1: BENS PERMANENTES | CD1: CUSTEIO VALOR TOTAL | CE1: CAPITAL VALOR TOTAL | CF1: VALOR TOTAL DO PLANO DE TRABALHO | CG1: DESPESAS DE PESSOAL | CH1: DESPESAS DE CONSUMO | CI1: EPI E EXAMES PERIÓDICOS | CJ1: MATERIAIS DIDÁTICOS | CK1: MATERIAIS DE ESCRITÓRIO | CL1: MATERIAIS PARA BIBLIOTECA | CM1: MATERIAIS PARA EDUCAÇÃO FÍSICA E RECREAÇÃO | CN1: MATERIAIS DE LIMPEZA E HIGIENE/ ITENS DE CAMA E BANHO | CO1: ESTUDO DO MEIO | CP1: PEQUENAS DESPESAS COM MANUTENÇÃO DO IMÓVEL | CQ1: PROGRAMA ESCOLA LINDA - CUSTEIO | CR1: CONTABILIDADE | CS1: COMBUSTÍVEL PARA DESLOCAMENTOS À SE | CT1: LOCAÇÃO DO IMÓVEL | CU1: EDUCAÇÃO MAKER CUSTEIO | CV1: EDUCAÇÃO MAKER CAPITAL | CW1: BENS PERMANENTES | CX1: CUSTEIO VALOR TOTAL | CY1: CAPITAL VALOR TOTAL | CZ1: VALOR TOTAL DO PLANO DE TRABALHO | DA1: JANEIRO 2019 CUSTEIO | DB1: JANEIRO 2019 CAPITAL | DC1: JANEIRO 2019 TOTAL | DD1: FEVEREIRO 2019 CUSTEIO | DE1: FEVEREIRO 2019 CAPITAL | DF1: FEVEREIRO 2019 TOTAL | DG1: MARÇO 2019 CUSTEIO | DH1: MARÇO 2019 CAPITAL | DI1: MARÇO 2019 TOTAL | DJ1: ABRIL 2019 CUSTEIO | DK1: ABRIL 2019 CAPITAL | DL1: ABRIL 2019 TOTAL | DM1: MAIO 2019 CUSTEIO | DN1: MAIO 2019 CAPITAL | DO1: MAIO 2019 TOTAL | DP1: JUNHO 2019 CUSTEIO | DQ1: JUNHO 2019 CAPITAL | DR1: JUNHO 2019 TOTAL | DS1: JULHO 2019 CUSTEIO | DT1: JULHO 2019 CAPITAL | DU1: JULHO 2019 TOTAL | DV1: AGOSTO 2019 CUSTEIO | DW1: AGOSTO 2019 CAPITAL | DX1: AGOSTO 2019 TOTAL | DY1: SETEMBRO 2019 CUSTEIO | DZ1: SETEMBRO 2019 CAPITAL | EA1: SETEMBRO 2019 TOTAL | EB1: OUTUBRO 2019 CUSTEIO | EC1: OUTUBRO 2019 CAPITAL | ED1: OUTUBRO 2019 TOTAL | EE1: NOVEMBRO 2019 CUSTEIO | EF1: NOVEMBRO 2019 CAPITAL | EG1: NOVEMBRO 2019 TOTAL | EH1: DEZEMBRO 2019 CUSTEIO | EI1: DEZEMBRO 2019 CAPITAL | EJ1: DEZEMBRO 2019 TOTAL | EK1: EXERCÍCIO 2019 CUSTEIO | EL1: EXERCÍCIO 2019 CAPITAL | EM1: EXERCÍCIO 2019 TOTAL | EN1: 2019-01-01 | EO1: 2019-02-01 | EP1: 2019-03-01 | EQ1: 2019-04-01 | ER1: 2019-05-01 | ES1: 2019-06-01 | ET1: 2019-07-01 | EU1: 2019-08-01 | EV1: 2019-09-01 | EW1: 2019-10-01 | EX1: 2019-11-01 | EY1: 2019-12-01 | FA1: DESPESAS DE PESSOAL | FB1: DESPESAS DE CONSUMO | FC1: EPI E EXAMES PERIÓDICOS | FD1: MATERIAIS DIDÁTICOS | FE1: MATERIAIS DE ESCRITÓRIO | FF1: MATERIAIS PARA BIBLIOTECA | FG1: MATERIAIS PARA EDUCAÇÃO FÍSICA E RECREAÇÃO | FH1: MATERIAIS DE LIMPEZA E HIGIENE/ ITENS DE CAMA E BANHO | FI1: ESTUDO DO MEIO | FJ1: PEQUENAS DESPESAS COM MANUTENÇÃO DO IMÓVEL | FK1: PROGRAMA ESCOLA LINDA - CUSTEIO | FL1: CONTABILIDADE | FM1: COMBUSTÍVEL PARA DESLOCAMENTOS À SE | FN1: LOCAÇÃO DO IMÓVEL | FO1: EDUCAÇÃO MAKER CUSTEIO | FP1: EDUCAÇÃO MAKER CAPITAL | FQ1: BENS PERMANENTES | FR1: CUSTEIO VALOR TOTAL | FS1: CAPITAL VALOR TOTAL | FT1: VALOR TOTAL DO PLANO DE TRABALHO | FU1: DESPESAS DE PESSOAL | FV1: DESPESAS DE CONSUMO | FW1: EPI E EXAMES PERIÓDICOS | FX1: MATERIAIS DIDÁTICOS | FY1: MATERIAIS DE ESCRITÓRIO | FZ1: MATERIAIS PARA BIBLIOTECA | GA1: MATERIAIS PARA EDUCAÇÃO FÍSICA E RECREAÇÃO | GB1: MATERIAIS DE LIMPEZA E HIGIENE/ ITENS DE CAMA E BANHO | GC1: ESTUDO DO MEIO | GD1: PEQUENAS DESPESAS COM MANUTENÇÃO DO IMÓVEL | GE1: PROGRAMA ESCOLA LINDA - CUSTEIO | GF1: CONTABILIDADE | GG1: COMBUSTÍVEL PARA DESLOCAMENTOS À SE | GH1: LOCAÇÃO DO IMÓVEL | GI1: EDUCAÇÃO MAKER CUSTEIO | GJ1: EDUCAÇÃO MAKER CAPITAL | GK1: BENS PERMANENTES | GL1: CUSTEIO VALOR TOTAL | GM1: CAPITAL VALOR TOTAL | GN1: VALOR TOTAL DO PLANO DE TRABALHO | GO1: DESPESAS DE PESSOAL | GP1: DESPESAS DE CONSUMO | GQ1: EPI E EXAMES PERIÓDICOS | GR1: MATERIAIS DIDÁTICOS | GS1: MATERIAIS DE ESCRITÓRIO | GT1: MATERIAIS PARA BIBLIOTECA | GU1: MATERIAIS PARA EDUCAÇÃO FÍSICA E RECREAÇÃO | GV1: MATERIAIS DE LIMPEZA E HIGIENE/ ITENS DE CAMA E BANHO | GW1: ESTUDO DO MEIO | GX1: PEQUENAS DESPESAS COM MANUTENÇÃO DO IMÓVEL | GY1: PROGRAMA ESCOLA LINDA - CUSTEIO | GZ1: CONTABILIDADE | HA1: COMBUSTÍVEL PARA DESLOCAMENTOS À SE | HB1: LOCAÇÃO DO IMÓVEL | HC1: EDUCAÇÃO MAKER CUSTEIO | HD1: EDUCAÇÃO MAKER CAPITAL | HE1: BENS PERMANENTES | HF1: CUSTEIO VALOR TOTAL | HG1: CAPITAL VALOR TOTAL | HH1: VALOR TOTAL DO PLANO DE TRABALHO | HI1: DESPESAS DE PESSOAL | HJ1: DESPESAS DE CONSUMO | HK1: EPI E EXAMES PERIÓDICOS | HL1: MATERIAIS DIDÁTICOS | HM1: MATERIAIS DE ESCRITÓRIO | HN1: MATERIAIS PARA BIBLIOTECA | HO1: MATERIAIS PARA EDUCAÇÃO FÍSICA E RECREAÇÃO | HP1: MATERIAIS DE LIMPEZA E HIGIENE/ ITENS DE CAMA E BANHO | HQ1: ESTUDO DO MEIO | HR1: PEQUENAS DESPESAS COM MANUTENÇÃO DO IMÓVEL | HS1: PROGRAMA ESCOLA LINDA - CUSTEIO | HT1: CONTABILIDADE | HU1: COMBUSTÍVEL PARA DESLOCAMENTOS À SE | HV1: LOCAÇÃO DO IMÓVEL | HW1: EDUCAÇÃO MAKER CUSTEIO | HX1: EDUCAÇÃO MAKER CAPITAL | HY1: BENS PERMANENTES | HZ1: CUSTEIO VALOR TOTAL | IA1: CAPITAL VALOR TOTAL | IB1: VALOR TOTAL DO PLANO DE TRABALHO | IC1: DESPESAS DE PESSOAL | ID1: DESPESAS DE CONSUMO | IE1: EPI E EXAMES PERIÓDICOS | IF1: MATERIAIS DIDÁTICOS | IG1: MATERIAIS DE ESCRITÓRIO | IH1: MATERIAIS PARA BIBLIOTECA | II1: MATERIAIS PARA EDUCAÇÃO FÍSICA E RECREAÇÃO | IJ1: MATERIAIS DE LIMPEZA E HIGIENE/ ITENS DE CAMA E BANHO | IK1: ESTUDO DO MEIO | IL1: PEQUENAS DESPESAS COM MANUTENÇÃO DO IMÓVEL | IM1: PROGRAMA ESCOLA LINDA - CUSTEIO | IN1: CONTABILIDADE | IO1: COMBUSTÍVEL PARA DESLOCAMENTOS À SE | IP1: LOCAÇÃO DO IMÓVEL | IQ1: EDUCAÇÃO MAKER CUSTEIO | IR1: EDUCAÇÃO MAKER CAPITAL | IS1: BENS PERMANENTES | IT1: CUSTEIO VALOR TOTAL | IU1: CAPITAL VALOR TOTAL | IV1: VALOR TOTAL DO PLANO DE TRABALHO | IW1: DESPESAS DE PESSOAL | IX1: DESPESAS DE CONSUMO | IY1: EPI E EXAMES PERIÓDICOS | IZ1: MATERIAIS DIDÁTICOS | JA1: MATERIAIS DE ESCRITÓRIO | JB1: MATERIAIS PARA BIBLIOTECA | JC1: MATERIAIS PARA EDUCAÇÃO FÍSICA E RECREAÇÃO | JD1: MATERIAIS DE LIMPEZA E HIGIENE/ ITENS DE CAMA E BANHO | JE1: ESTUDO DO MEIO | JF1: PEQUENAS DESPESAS COM MANUTENÇÃO DO IMÓVEL | JG1: PROGRAMA ESCOLA LINDA - CUSTEIO | JH1: CONTABILIDADE | JI1: COMBUSTÍVEL PARA DESLOCAMENTOS À SE | JJ1: LOCAÇÃO DO IMÓVEL | JK1: EDUCAÇÃO MAKER CUSTEIO | JL1: EDUCAÇÃO MAKER CAPITAL | JM1: BENS PERMANENTES | JN1: CUSTEIO VALOR TOTAL | JO1: CAPITAL VALOR TOTAL | JP1: VALOR TOTAL DO PLANO DE TRABALHO | JQ1: DESPESAS DE PESSOAL | JR1: DESPESAS DE CONSUMO | JS1: EPI E EXAMES PERIÓDICOS | JT1: MATERIAIS DIDÁTICOS | JU1: MATERIAIS DE ESCRITÓRIO | JV1: MATERIAIS PARA BIBLIOTECA | JW1: MATERIAIS PARA EDUCAÇÃO FÍSICA E RECREAÇÃO | JX1: MATERIAIS DE LIMPEZA E HIGIENE/ ITENS DE CAMA E BANHO | JY1: ESTUDO DO MEIO | JZ1: PEQUENAS DESPESAS COM MANUTENÇÃO DO IMÓVEL | KA1: PROGRAMA ESCOLA LINDA - CUSTEIO | KB1: CONTABILIDADE | KC1: COMBUSTÍVEL PARA DESLOCAMENTOS À SE | KD1: LOCAÇÃO DO IMÓVEL | KE1: EDUCAÇÃO MAKER CUSTEIO | KF1: EDUCAÇÃO MAKER CAPITAL | KG1: BENS PERMANENTES | KH1: CUSTEIO VALOR TOTAL | KI1: CAPITAL VALOR TOTAL | KJ1: VALOR TOTAL DO PLANO DE TRABALHO | KK1: DESPESAS DE PESSOAL | KL1: DESPESAS DE CONSUMO | KM1: EPI E EXAMES PERIÓDICOS | KN1: MATERIAIS DIDÁTICOS | KO1: MATERIAIS DE ESCRITÓRIO | KP1: MATERIAIS PARA BIBLIOTECA | KQ1: MATERIAIS PARA EDUCAÇÃO FÍSICA E RECREAÇÃO | KR1: MATERIAIS DE LIMPEZA E HIGIENE/ ITENS DE CAMA E BANHO | KS1: ESTUDO DO MEIO | KT1: PEQUENAS DESPESAS COM MANUTENÇÃO DO IMÓVEL | KU1: PROGRAMA ESCOLA LINDA - CUSTEIO | KV1: CONTABILIDADE | KW1: COMBUSTÍVEL PARA DESLOCAMENTOS À SE | KX1: LOCAÇÃO DO IMÓVEL | KY1: EDUCAÇÃO MAKER CUSTEIO | KZ1: EDUCAÇÃO MAKER CAPITAL | LA1: BENS PERMANENTES | LB1: CUSTEIO VALOR TOTAL | LC1: CAPITAL VALOR TOTAL | LD1: VALOR TOTAL DO PLANO DE TRABALHO | LE1: DESPESAS DE PESSOAL | LF1: DESPESAS DE CONSUMO | LG1: EPI E EXAMES PERIÓDICOS | LH1: MATERIAIS DIDÁTICOS | LI1: MATERIAIS DE ESCRITÓRIO | LJ1: MATERIAIS PARA BIBLIOTECA | LK1: MATERIAIS PARA EDUCAÇÃO FÍSICA E RECREAÇÃO | LL1: MATERIAIS DE LIMPEZA E HIGIENE/ ITENS DE CAMA E BANHO | LM1: ESTUDO DO MEIO | LN1: PEQUENAS DESPESAS COM MANUTENÇÃO DO IMÓVEL | LO1: PROGRAMA ESCOLA LINDA - CUSTEIO | LP1: CONTABILIDADE | LQ1: COMBUSTÍVEL PARA DESLOCAMENTOS À SE | LR1: LOCAÇÃO DO IMÓVEL | LS1: EDUCAÇÃO MAKER CUSTEIO | LT1: EDUCAÇÃO MAKER CAPITAL | LU1: BENS PERMANENTES | LV1: CUSTEIO VALOR TOTAL | LW1: CAPITAL VALOR TOTAL | LX1: VALOR TOTAL DO PLANO DE TRABALHO | LY1: DESPESAS DE PESSOAL | LZ1: DESPESAS DE CONSUMO | MA1: EPI E EXAMES PERIÓDICOS | MB1: MATERIAIS DIDÁTICOS | MC1: MATERIAIS DE ESCRITÓRIO | MD1: MATERIAIS PARA BIBLIOTECA | ME1: MATERIAIS PARA EDUCAÇÃO FÍSICA E RECREAÇÃO | MF1: MATERIAIS DE LIMPEZA E HIGIENE/ ITENS DE CAMA E BANHO | MG1: ESTUDO DO MEIO | MH1: PEQUENAS DESPESAS COM MANUTENÇÃO DO IMÓVEL | MI1: PROGRAMA ESCOLA LINDA - CUSTEIO | MJ1: CONTABILIDADE | MK1: COMBUSTÍVEL PARA DESLOCAMENTOS À SE | ML1: LOCAÇÃO DO IMÓVEL | MM1: EDUCAÇÃO MAKER CUSTEIO | MN1: EDUCAÇÃO MAKER CAPITAL | MO1: BENS PERMANENTES | MP1: CUSTEIO VALOR TOTAL | MQ1: CAPITAL VALOR TOTAL | MR1: VALOR TOTAL DO PLANO DE TRABALHO | MS1: DESPESAS DE PESSOAL | MT1: DESPESAS DE CONSUMO | MU1: EPI E EXAMES PERIÓDICOS | MV1: MATERIAIS DIDÁTICOS | MW1: MATERIAIS DE ESCRITÓRIO | MX1: MATERIAIS PARA BIBLIOTECA | MY1: MATERIAIS PARA EDUCAÇÃO FÍSICA E RECREAÇÃO | MZ1: MATERIAIS DE LIMPEZA E HIGIENE/ ITENS DE CAMA E BANHO | NA1: ESTUDO DO MEIO | NB1: PEQUENAS DESPESAS COM MANUTENÇÃO DO IMÓVEL | NC1: PROGRAMA ESCOLA LINDA - CUSTEIO | ND1: CONTABILIDADE | NE1: COMBUSTÍVEL PARA DESLOCAMENTOS À SE | NF1: LOCAÇÃO DO IMÓVEL | NG1: EDUCAÇÃO MAKER CUSTEIO | NH1: EDUCAÇÃO MAKER CAPITAL | NI1: BENS PERMANENTES | NJ1: CUSTEIO VALOR TOTAL | NK1: CAPITAL VALOR TOTAL | NL1: VALOR TOTAL DO PLANO DE TRABALHO | NM1: DESPESAS DE PESSOAL | NN1: DESPESAS DE CONSUMO | NO1: EPI E EXAMES PERIÓDICOS | NP1: MATERIAIS DIDÁTICOS | NQ1: MATERIAIS DE ESCRITÓRIO | NR1: MATERIAIS PARA BIBLIOTECA | NS1: MATERIAIS PARA EDUCAÇÃO FÍSICA E RECREAÇÃO | NT1: MATERIAIS DE LIMPEZA E HIGIENE/ ITENS DE CAMA E BANHO | NU1: ESTUDO DO MEIO | NV1: PEQUENAS DESPESAS COM MANUTENÇÃO DO IMÓVEL | NW1: PROGRAMA ESCOLA LINDA - CUSTEIO | NX1: CONTABILIDADE | NY1: COMBUSTÍVEL PARA DESLOCAMENTOS À SE | NZ1: LOCAÇÃO DO IMÓVEL | OA1: EDUCAÇÃO MAKER CUSTEIO | OB1: EDUCAÇÃO MAKER CAPITAL | OC1: BENS PERMANENTES | OD1: CUSTEIO VALOR TOTAL | OE1: CAPITAL VALOR TOTAL | OF1: VALOR TOTAL DO PLANO DE TRABALHO | OG1: Termo nº | OH1: Data início | OI1: Data vigência | OJ1: Valor | OK1: TA nº | OL1: Sequência | OM1: Data início | ON1: Data vigência | OO1: Valor | OP1: TA nº | OQ1: Sequência | OR1: Data início | OS1: Data vigência | OT1: Valor | OU1: TA nº | OV1: Sequência | OW1: Data início | OX1: Data vigência | OY1: Valor | OZ1: TA nº | PA1: Sequência | PB1: Data início | PC1: Data vigência | PD1: Valor | PE1: TA nº | PF1: Sequência | PG1: Data início | PH1: Data vigência | PI1: Valor
A2: Aldeias Infantis SOS Brasil | F2: 35.797.364/0019-58 | G2: SB 058817/2016-12 | H2: SB 058710/2016-78 | I2: SB 076628/2018-67 | J2: 01/2017-SE | K2: Quarto | L2: 181/2019-SE | M2: 2019-01-01 | N2: 2019-12-31 | O2: Estrada Ernesto Zabeu, nº 200 | P2: Bairro Tatetos - Riacho Grande | Q2: S.B.Campo | R2: 09835-000 | S2: 4354-0272 | T2: maria.tracatto@aldeiasinfantis.org.br | U2: Banco do Brasil | V2: 6550-1 | W2: 30798-x | Y2: =FA2+FU2+GO2+HI2 -> 358061.31 | Z2: =FB2+FV2+GP2+HJ2 -> 6227.18 | AA2: =FC2+FW2+GQ2+HK2 -> 1800 | AB2: =FD2+FX2+GR2+HL2 -> 5400 | AC2: =FE2+FY2+GS2+HM2 -> 6000 | AD2: =FF2+FZ2+GT2+HN2 -> 4754.94 | AE2: =FG2+GA2+GU2+HO2 -> 6000 | AF2: =FH2+GB2+GV2+HP2 -> 13909.84 | AG2: =FI2+GC2+GW2+HQ2 -> 2000 | AH2: =FJ2+GD2+GX2+HR2 -> 3686 | AI2: =FK2+GE2+GY2+HS2 -> 15000 | AJ2: =FL2+GF2+GZ2+HT2 -> 3748 | AK2: =FM2+GG2+HA2+HU2 -> 600 | AL2: =FN2+GH2+HB2+HV2 -> 0 | AM2: =FO2+GI2+HC2+HW2 -> 3000 | AN2: =FP2+GJ2+HD2+HX2 -> 5000 | AO2: =FQ2+GK2+HE2+HY2 -> 14363 | AP2: =FR2+GL2+HF2+HZ2 -> 430187.27 | AQ2: =FS2+GM2+HG2+IA2 -> 19363 | AR2: =FT2+GN2+HH2+IB2 -> 449550.27 | AS2: =IC2+IW2+JQ2+KK2 -> 337612.52 | AT2: =ID2+IX2+JR2+KL2 -> 7500 | AU2: =IE2+IY2+JS2+KM2 -> 2400 | AV2: =IF2+IZ2+JT2+KN2 -> 2800 | AW2: =IG2+JA2+JU2+KO2 -> 4000 | AX2: =IH2+JB2+JV2+KP2 -> 1509.88 | AY2: =II2+JC2+JW2+KQ2 -> 2000 | AZ2: =IJ2+JD2+JX2+KR2 -> 11200 | BA2: =IK2+JE2+JY2+KS2 -> 2000 | BB2: =IL2+JF2+JZ2+KT2 -> 6000 | BC2: =IM2+JG2+KA2+KU2 -> 0 | BD2: =IN2+JH2+KB2+KV2 -> 3748 | BE2: =IO2+JI2+KC2+KW2 -> 600 | BF2: =IP2+JJ2+KD2+KX2 -> 0 | BG2: =IQ2+JK2+KE2+KY2 -> 0 | BH2: =IR2+JL2+KF2+KZ2 -> 0 | BI2: =IS2+JM2+KG2+LA2 -> 1626 | BJ2: =IT2+JN2+KH2+LB2 -> 381370.4 | BK2: =IU2+JO2+KI2+LC2 -> 1626 | BL2: =IV2+JP2+KJ2+LD2 -> 382996.4 | BM2: =LE2+LY2+MS2+NM2 -> 367616.38 | BN2: =LF2+LZ2+MT2+NN2 -> 7500 | BO2: =LG2+MA2+MU2+NO2 -> 2400 | BP2: =LH2+MB2+MV2+NP2 -> 2800 | BQ2: =LI2+MC2+MW2+NQ2 -> 4000 | BR2: =LJ2+MD2+MX2+NR2 -> 1509.88 | BS2: =LK2+ME2+MY2+NS2 -> 2000 | BT2: =LL2+MF2+MZ2+NT2 -> 11200 | BU2: =LM2+MG2+NA2+NU2 -> 2000 | BV2: =LN2+MH2+NB2+NV2 -> 6000 | BW2: =LO2+MI2+NC2+NW2 -> 0 | BX2: =LP2+MJ2+ND2+NX2 -> 3748 | BY2: =LQ2+MK2+NE2+NY2 -> 600 | BZ2: =LR2+ML2+NF2+NZ2 -> 0 | CA2: =LS2+MM2+NG2+OA2 -> 0 | CB2: =LT2+MN2+NH2+OB2 -> 0 | CC2: =LU2+MO2+NI2+OC2 -> 1626 | CD2: =LV2+MP2+NJ2+OD2 -> 411374.26 | CE2: =LW2+MQ2+NK2+OE2 -> 1626 | CF2: =LX2+MR2+NL2+OF2 -> 413000.26 | CG2: 1063290.21 | CH2: 21227.18 | CI2: 6600 | CJ2: 11000 | CK2: 14000 | CL2: 7774.7 | CM2: 10000 | CN2: 36309.84 | CO2: 6000 | CP2: 15686 | CQ2: 15000 | CR2: 11244 | CS2: 1800 | CT2: 0 | CU2: 3000 | CV2: 5000 | CW2: 17615 | CX2: 1222931.93 | CY2: 22615 | CZ2: 1245546.93 | DA2: 140752.97 | DB2: 13550 | DC2: 154302.97 | DD2: 95749.1 | DE2: 0 | DF2: 95749.1 | DG2: 95342.6 | DH2: 406.5 | DI2: 95749.1 | DJ2: 98342.6 | DK2: 5406.5 | DL2: 103749.1 | DM2: 95342.6 | DN2: 406.5 | DO2: 95749.1 | DP2: 95342.6 | DQ2: 406.5 | DR2: 95749.1 | DS2: 95342.6 | DT2: 406.5 | DU2: 95749.1 | DV2: 95342.6 | DW2: 406.5 | DX2: 95749.1 | DY2: 95342.6 | DZ2: 406.5 | EA2: 95749.1 | EB2: 95342.6 | EC2: 406.5 | ED2: 95749.1 | EE2: 95342.6 | EF2: 406.5 | EG2: 95749.1 | EH2: 125346.46 | EI2: 406.5 | EJ2: 125752.96 | EK2: 1222931.93 | EL2: 22615 | EM2: 1245546.93 | EN2: 2019-01-28 | EO2: 2019-02-28 | EP2: 2019-03-28 | EQ2: 2019-04-28 | ER2: 2019-05-28 | ES2: 2019-06-28 | ET2: 2019-07-28 | EU2: 2019-08-28 | EV2: 2019-09-28 | EW2: 2019-10-28 | EX2: 2019-11-28 | EY2: 2019-11-28 | FA2: 109629.46 | FB2: 1238.59 | FC2: 300 | FD2: 2000 | FE2: 2000 | FF2: 2000 | FG2: 2500 | FH2: 4154.92 | FI2: 500 | FJ2: 343 | FK2: 15000 | FL2: 937 | FM2: 150 | FN2: 0 | FO2: 0 | FP2: 0 | FQ2: 13550 | FR2: 140752.97 | FS2: 13550 | FT2: 154302.97 | FU2: 79625.59 | FV2: 1238.59 | FW2: 300 | FX2: 2000 | FY2: 2000 | FZ2: 2000 | GA2: 2500 | GB2: 4154.92 | GC2: 500 | GD2: 343 | GE2: 0 | GF2: 937 | GG2: 150 | GH2: 0 | GI2: 0 | GJ2: 0 | GK2: 0 | GL2: 95749.1 | GM2: 0 | GN2: 95749.1 | GO2: 84403.13 | GP2: 1875 | GQ2: 600 | GR2: 700 | GS2: 1000 | GT2: 377.47 | GU2: 500 | GV2: 2800 | GW2: 500 | GX2: 1500 | GY2: 0 | GZ2: 937 | HA2: 150 | HB2: 0 | HC2: 0 | HD2: 0 | HE2: 406.5 | HF2: 95342.6 | HG2: 406.5 | HH2: 95749.1 | HI2: 84403.13 | HJ2: 1875 | HK2: 600 | HL2: 700 | HM2: 1000 | HN2: 377.47 | HO2: 500 | HP2: 2800 | HQ2: 500 | HR2: 1500 | HS2: 0 | HT2: 937 | HU2: 150 | HV2: 0 | HW2: 3000 | HX2: 5000 | HY2: 406.5 | HZ2: 98342.6 | IA2: 5406.5 | IB2: 103749.1 | IC2: 84403.13 | ID2: 1875 | IE2: 600 | IF2: 700 | IG2: 1000 | IH2: 377.47 | II2: 500 | IJ2: 2800 | IK2: 500 | IL2: 1500 | IM2: 0 | IN2: 937 | IO2: 150 | IP2: 0 | IQ2: 0 | IR2: 0 | IS2: 406.5 | IT2: 95342.6 | IU2: 406.5 | IV2: 95749.1 | IW2: 84403.13 | IX2: 1875 | IY2: 600 | IZ2: 700 | JA2: 1000 | JB2: 377.47 | JC2: 500 | JD2: 2800 | JE2: 500 | JF2: 1500 | JG2: 0 | JH2: 937 | JI2: 150 | JJ2: 0 | JK2: 0 | JL2: 0 | JM2: 406.5 | JN2: 95342.6 | JO2: 406.5 | JP2: 95749.1 | JQ2: 84403.13 | JR2: 1875 | JS2: 600 | JT2: 700 | JU2: 1000 | JV2: 377.47 | JW2: 500 | JX2: 2800 | JY2: 500 | JZ2: 1500 | KA2: 0 | KB2: 937 | KC2: 150 | KD2: 0 | KE2: 0 | KF2: 0 | KG2: 406.5 | KH2: 95342.6 | KI2: 406.5 | KJ2: 95749.1 | KK2: 84403.13 | KL2: 1875 | KM2: 600 | KN2: 700 | KO2: 1000 | KP2: 377.47 | KQ2: 500 | KR2: 2800 | KS2: 500 | KT2: 1500 | KU2: 0 | KV2: 937 | KW2: 150 | KX2: 0 | KY2: 0 | KZ2: 0 | LA2: 406.5 | LB2: 95342.6 | LC2: 406.5 | LD2: 95749.1 | LE2: 84403.13 | LF2: 1875 | LG2: 600 | LH2: 700 | LI2: 1000 | LJ2: 377.47 | LK2: 500 | LL2: 2800 | LM2: 500 | LN2: 1500 | LO2: 0 | LP2: 937 | LQ2: 150 | LR2: 0 | LS2: 0 | LT2: 0 | LU2: 406.5 | LV2: 95342.6 | LW2: 406.5 | LX2: 95749.1 | LY2: 84403.13 | LZ2: 1875 | MA2: 600 | MB2: 700 | MC2: 1000 | MD2: 377.47 | ME2: 500 | MF2: 2800 | MG2: 500 | MH2: 1500 | MI2: 0 | MJ2: 937 | MK2: 150 | ML2: 0 | MM2: 0 | MN2: 0 | MO2: 406.5 | MP2: 95342.6 | MQ2: 406.5 | MR2: 95749.1 | MS2: 84403.13 | MT2: 1875 | MU2: 600 | MV2: 700 | MW2: 1000 | MX2: 377.47 | MY2: 500 | MZ2: 2800 | NA2: 500 | NB2: 1500 | NC2: 0 | ND2: 937 | NE2: 150 | NF2: 0 | NG2: 0 | NH2: 0 | NI2: 406.5 | NJ2: 95342.6 | NK2: 406.5 | NL2: 95749.1 | NM2: 114406.99 | NN2: 1875 | NO2: 600 | NP2: 700 | NQ2: 1000 | NR2: 377.47 | NS2: 500 | NT2: 2800 | NU2: 500 | NV2: 1500 | NW2: 0 | NX2: 937 | NY2: 150 | NZ2: 0 | OA2: 0 | OB2: 0 | OC2: 406.5 | OD2: 125346.46 | OE2: 406.5 | OF2: 125752.96 | OG2: 01/2017-SE | OH2: 2017-01-02 | OI2: 2017-12-31 | OJ2: 745380.5 | OK2: 169/2017-SE | OL2: Primeiro | OM2: 2017-06-06 | ON2: 2017-12-31 | OO2: 0 | OP2: 371/2017-SE | OQ2: Segundo | OR2: 2017-11-07 | OS2: 2017-12-31 | OT2: 8000 | OU2: 176/2018-SE | OV2: Terceiro | OW2: 2018-01-01 | OX2: 2018-12-31 | OY2: 803835.8 | OZ2: 181/2019-SE | PA2: Quarto | PB2: 2019-01-01 | PC2: 2019-12-31 | PD2: 1245546.93
A3: Assistência Social Beneficente de Resgate ao Amparo à Criança | F3: 00.513.882/0001-99 | G3: SB 058822/2016-43 | H3: SB 058712/2016-90 | I3: SB 076636/2018-71 | J3: 02/2017-SE | K3: Quarto | L3: 182/2019-SE | M3: 2019-01-01 | N3: 2019-12-31 | O3: Rua dos Macucos, nº 14 | P3: Parque dos Pássaros | Q3: S.B.Campo | R3: 09861-350 | S3: 4392-7492 | T3: assisbrac@assisbrac.org.br | U3: Caixa Econômica Federal | V3: 2700 | W3: 00000314-5 | Y3: 289188.28 | Z3: 20000.56 | AA3: 1000 | AB3: 4400 | AC3: 7000 | AD3: 1748 | AE3: 1600 | AF3: 10481.22 | AG3: 0 | AH3: 17000 | AI3: 15000 | AJ3: 4024 | AK3: 600 | AL3: 0 | AM3: 3000 | AN3: 5000 | AO3: 8820 | AP3: 375042.06 | AQ3: 13820 | AR3: 388862.06 | AS3: 267521.48 | AT3: 20000 | AU3: 0 | AV3: 4000 | AW3: 6000 | AX3: 1496 | AY3: 1200 | AZ3: 8962.44 | BA3: 0 | BB3: 14000 | BC3: 0 | BD3: 4024 | BE3: 600 | BF3: 0 | BG3: 0 | BH3: 0 | BI3: 0 | BJ3: 327803.92 | BK3: 0 | BL3: 327803.92 | BM3: 296759.61 | BN3: 20000 | BO3: 0 | BP3: 4000 | BQ3: 6000 | BR3: 1496 | BS3: 1200 | BT3: 8962.44 | BU3: 0 | BV3: 14000 | BW3: 0 | BX3: 4024 | BY3: 600 | BZ3: 0 | CA3: 0 | CB3: 0 | CC3: 0 | CD3: 357042.05 | CE3: 0 | CF3: 357042.05 | CG3: 853469.37 | CH3: 60000.56 | CI3: 1000 | CJ3: 12400 | CK3: 19000 | CL3: 4740 | CM3: 4000 | CN3: 28406.1 | CO3: 0 | CP3: 45000 | CQ3: 15000 | CR3: 12072 | CS3: 1800 | CT3: 0 | CU3: 3000 | CV3: 5000 | CW3: 8820 | CX3: 1059888.03 | CY3: 13820 | CZ3: 1073708.03 | DA3: 126189.12 | DB3: 8820 | DC3: 135009.12 | DD3: 81950.98 | DE3: 0 | DF3: 81950.98 | DG3: 81950.98 | DH3: 0 | DI3: 81950.98 | DJ3: 84950.98 | DK3: 5000 | DL3: 89950.98 | DM3: 81950.98 | DN3: 0 | DO3: 81950.98 | DP3: 81950.98 | DQ3: 0 | DR3: 81950.98 | DS3: 81950.98 | DT3: 0 | DU3: 81950.98 | DV3: 81950.98 | DW3: 0 | DX3: 81950.98 | DY3: 81950.98 | DZ3: 0 | EA3: 81950.98 | EB3: 81950.98 | EC3: 0 | ED3: 81950.98 | EE3: 81950.98 | EF3: 0 | EG3: 81950.98 | EH3: 111189.11 | EI3: 0 | EJ3: 111189.11 | EK3: 1059888.03 | EL3: 13820 | EM3: 1073708.03 | EN3: 2019-01-28 | EO3: 2019-02-28 | EP3: 2019-03-28 | EQ3: 2019-04-28 | ER3: 2019-05-28 | ES3: 2019-06-28 | ET3: 2019-07-28 | EU3: 2019-08-28 | EV3: 2019-09-28 | EW3: 2019-10-28 | EX3: 2019-11-28 | EY3: 2019-11-28 | FA3: 92332.84 | FB3: 5000.28 | FC3: 500 | FD3: 1200 | FE3: 2000 | FF3: 500 | FG3: 500 | FH3: 3000 | FI3: 0 | FJ3: 5000 | FK3: 15000 | FL3: 1006 | FM3: 150 | FN3: 0 | FO3: 0 | FP3: 0 | FQ3: 8820 | FR3: 126189.12 | FS3: 8820 | FT3: 135009.12 | FU3: 63094.7 | FV3: 5000.28 | FW3: 500 | FX3: 1200 | FY3: 2000 | FZ3: 500 | GA3: 500 | GB3: 3000 | GC3: 0 | GD3: 5000 | GE3: 0 | GF3: 1006 | GG3: 150 | GH3: 0 | GI3: 0 | GJ3: 0 | GK3: 0 | GL3: 81950.98 | GM3: 0 | GN3: 81950.98 | GO3: 66880.37 | GP3: 5000 | GQ3: 0 | GR3: 1000 | GS3: 1500 | GT3: 374 | GU3: 300 | GV3: 2240.61 | GW3: 0 | GX3: 3500 | GY3: 0 | GZ3: 1006 | HA3: 150 | HB3: 0 | HC3: 0 | HD3: 0 | HE3: 0 | HF3: 81950.98 | HG3: 0 | HH3: 81950.98 | HI3: 66880.37 | HJ3: 5000 | HK3: 0 | HL3: 1000 | HM3: 1500 | HN3: 374 | HO3: 300 | HP3: 2240.61 | HQ3: 0 | HR3: 3500 | HS3: 0 | HT3: 1006 | HU3: 150 | HV3: 0 | HW3: 3000 | HX3: 5000 | HY3: 0 | HZ3: 84950.98 | IA3: 5000 | IB3: 89950.98 | IC3: 66880.37 | ID3: 5000 | IE3: 0 | IF3: 1000 | IG3: 1500 | IH3: 374 | II3: 300 | IJ3: 2240.61 | IK3: 0 | IL3: 3500 | IM3: 0 | IN3: 1006 | IO3: 150 | IP3: 0 | IQ3: 0 | IR3: 0 | IS3: 0 | IT3: 81950.98 | IU3: 0 | IV3: 81950.98 | IW3: 66880.37 | IX3: 5000 | IY3: 0 | IZ3: 1000 | JA3: 1500 | JB3: 374 | JC3: 300 | JD3: 2240.61 | JE3: 0 | JF3: 3500 | JG3: 0 | JH3: 1006 | JI3: 150 | JJ3: 0 | JK3: 0 | JL3: 0 | JM3: 0 | JN3: 81950.98 | JO3: 0 | JP3: 81950.98 | JQ3: 66880.37 | JR3: 5000 | JS3: 0 | JT3: 1000 | JU3: 1500 | JV3: 374 | JW3: 300 | JX3: 2240.61 | JY3: 0 | JZ3: 3500 | KA3: 0 | KB3: 1006 | KC3: 150 | KD3: 0 | KE3: 0 | KF3: 0 | KG3: 0 | KH3: 81950.98 | KI3: 0 | KJ3: 81950.98 | KK3: 66880.37 | KL3: 5000 | KM3: 0 | KN3: 1000 | KO3: 1500 | KP3: 374 | KQ3: 300 | KR3: 2240.61 | KS3: 0 | KT3: 3500 | KU3: 0 | KV3: 1006 | KW3: 150 | KX3: 0 | KY3: 0 | KZ3: 0 | LA3: 0 | LB3: 81950.98 | LC3: 0 | LD3: 81950.98 | LE3: 66880.37 | LF3: 5000 | LG3: 0 | LH3: 1000 | LI3: 1500 | LJ3: 374 | LK3: 300 | LL3: 2240.61 | LM3: 0 | LN3: 3500 | LO3: 0 | LP3: 1006 | LQ3: 150 | LR3: 0 | LS3: 0 | LT3: 0 | LU3: 0 | LV3: 81950.98 | LW3: 0 | LX3: 81950.98 | LY3: 66880.37 | LZ3: 5000 | MA3: 0 | MB3: 1000 | MC3: 1500 | MD3: 374 | ME3: 300 | MF3: 2240.61 | MG3: 0 | MH3: 3500 | MI3: 0 | MJ3: 1006 | MK3: 150 | ML3: 0 | MM3: 0 | MN3: 0 | MO3: 0 | MP3: 81950.98 | MQ3: 0 | MR3: 81950.98 | MS3: 66880.37 | MT3: 5000 | MU3: 0 | MV3: 1000 | MW3: 1500 | MX3: 374 | MY3: 300 | MZ3: 2240.61 | NA3: 0 | NB3: 3500 | NC3: 0 | ND3: 1006 | NE3: 150 | NF3: 0 | NG3: 0 | NH3: 0 | NI3: 0 | NJ3: 81950.98 | NK3: 0 | NL3: 81950.98 | NM3: 96118.5 | NN3: 5000 | NO3: 0 | NP3: 1000 | NQ3: 1500 | NR3: 374 | NS3: 300 | NT3: 2240.61 | NU3: 0 | NV3: 3500 | NW3: 0 | NX3: 1006 | NY3: 150 | NZ3: 0 | OA3: 0 | OB3: 0 | OC3: 0 | OD3: 111189.11 | OE3: 0 | OF3: 111189.11 | OG3: 02/2017-SE | OH3: 2017-01-02 | OI3: 2017-12-31 | OJ3: 815343.02 | OK3: 170/2017-SE | OL3: Primeiro | OM3: 2017-06-06 | ON3: 2017-12-31 | OO3: 0 | OP3: 372/2017-SE | OQ3: Segundo | OR3: 2017-11-07 | OS3: 2017-12-31 | OT3: 8000 | OU3: 177/2018-SE | OV3: Terceiro | OW3: 2018-01-01 | OX3: 2018-12-31 | OY3: 858086.66 | OZ3: 182/2019-SE | PA3: Quarto | PB3: 2019-01-01 | PC3: 2019-12-31 | PD3: 1073708.03
A4: Associação Assistencial Edificando Vidas | F4: 30.329.974/0001-84 | G4: SB 023764/2019-12 | H4: SB 023767/2019-95 | I4: SB 023770/2019-04 | K4: - | L4: - | N4: 2019-12-31 | O4: Rua Ministro Edgard Costa, nº 201 | P4: Jardim do Lago | Q4: S.B.Campo | R4: 09840-530 | S4: 4472-3771/ 97442-5159/ 97065-7291/ 95921-5353 | T4: crecheeducacionalelelion@gmail.com | Y4: 0 | Z4: 0 | AA4: 0 | AB4: 0 | AC4: 0 | AD4: 0 | AE4: 0 | AF4: 0 | AG4: 0 | AH4: 0 | AI4: 0 | AJ4: 0 | AK4: 0 | AL4: 0 | AM4: 0 | AN4: 0 | AO4: 0 | AP4: 0 | AQ4: 0 | AR4: 0 | AS4: 0 | AT4: 0 | AU4: 0 | AV4: 0 | AW4: 0 | AX4: 0 | AY4: 0 | AZ4: 0 | BA4: 0 | BB4: 0 | BC4: 0 | BD4: 0 | BE4: 0 | BF4: 0 | BG4: 0 | BH4: 0 | BI4: 0 | BJ4: 0 | BK4: 0 | BL4: 0 | BM4: 0 | BN4: 0 | BO4: 0 | BP4: 0 | BQ4: 0 | BR4: 0 | BS4: 0 | BT4: 0 | BU4: 0 | BV4: 0 | BW4: 0 | BX4: 0 | BY4: 0 | BZ4: 0 | CA4: 0 | CB4: 0 | CC4: 0 | CD4: 0 | CE4: 0 | CF4: 0 | FA4: 0 | FB4: 0 | FC4: 0 | FD4: 0 | FE4: 0 | FF4: 0 | FG4: 0 | FH4: 0 | FI4: 0 | FJ4: 0 | FK4: 0 | FL4: 0 | FM4: 0 | FN4: 0 | FO4: 0 | FP4: 0 | FQ4: 0 | FR4: 0 | FS4: 0 | FT4: 0 | FU4: 0 | FV4: 0 | FW4: 0 | FX4: 0 | FY4: 0 | FZ4: 0 | GA4: 0 | GB4: 0 | GC4: 0 | GD4: 0 | GE4: 0 | GF4: 0 | GG4: 0 | GH4: 0 | GI4: 0 | GJ4: 0 | GK4: 0 | GL4: 0 | GM4: 0 | GN4: 0 | GO4: 0 | GP4: 0 | GQ4: 0 | GR4: 0 | GS4: 0 | GT4: 0 | GU4: 0 | GV4: 0 | GW4: 0 | GX4: 0 | GY4: 0 | GZ4: 0 | HA4: 0 | HB4: 0 | HC4: 0 | HD4: 0 | HE4: 0 | HF4: 0 | HG4: 0 | HH4: 0 | HI4: 0 | HJ4: 0 | HK4: 0 | HL4: 0 | HM4: 0 | HN4: 0 | HO4: 0 | HP4: 0 | HQ4: 0 | HR4: 0 | HS4: 0 | HT4: 0 | HU4: 0 | HV4: 0 | HW4: 0 | HX4: 0 | HY4: 0 | HZ4: 0 | IA4: 0 | IB4: 0 | IC4: 0 | ID4: 0 | IE4: 0 | IF4: 0 | IG4: 0 | IH4: 0 | II4: 0 | IJ4: 0 | IK4: 0 | IL4: 0 | IM4: 0 | IN4: 0 | IO4: 0 | IP4: 0 | IQ4: 0 | IR4: 0 | IS4: 0 | IT4: 0 | IU4: 0 | IV4: 0 | IW4: 0 | IX4: 0 | IY4: 0 | IZ4: 0 | JA4: 0 | JB4: 0 | JC4: 0 | JD4: 0 | JE4: 0 | JF4: 0 | JG4: 0 | JH4: 0 | JI4: 0 | JJ4: 0 | JK4: 0 | JL4: 0 | JM4: 0 | JN4: 0 | JO4: 0 | JP4: 0 | JQ4: 0 | JR4: 0 | JS4: 0 | JT4: 0 | JU4: 0 | JV4: 0 | JW4: 0 | JX4: 0 | JY4: 0 | JZ4: 0 | KA4: 0 | KB4: 0 | KC4: 0 | KD4: 0 | KE4: 0 | KF4: 0 | KG4: 0 | KH4: 0 | KI4: 0 | KJ4: 0 | KK4: 0 | KL4: 0 | KM4: 0 | KN4: 0 | KO4: 0 | KP4: 0 | KQ4: 0 | KR4: 0 | KS4: 0 | KT4: 0 | KU4: 0 | KV4: 0 | KW4: 0 | KX4: 0 | KY4: 0 | KZ4: 0 | LA4: 0 | LB4: 0 | LC4: 0 | LD4: 0 | LE4: 0 | LF4: 0 | LG4: 0 | LH4: 0 | LI4: 0 | LJ4: 0 | LK4: 0 | LL4: 0 | LM4: 0 | LN4: 0 | LO4: 0 | LP4: 0 | LQ4: 0 | LR4: 0 | LS4: 0 | LT4: 0 | LU4: 0 | LV4: 0 | LW4: 0 | LX4: 0 | LY4: 0 | LZ4: 0 | MA4: 0 | MB4: 0 | MC4: 0 | MD4: 0 | ME4: 0 | MF4: 0 | MG4: 0 | MH4: 0 | MI4: 0 | MJ4: 0 | MK4: 0 | ML4: 0 | MM4: 0 | MN4: 0 | MO4: 0 | MP4: 0 | MQ4: 0 | MR4: 0 | MS4: 0 | MT4: 0 | MU4: 0 | MV4: 0 | MW4: 0 | MX4: 0 | MY4: 0 | MZ4: 0 | NA4: 0 | NB4: 0 | NC4: 0 | ND4: 0 | NE4: 0 | NF4: 0 | NG4: 0 | NH4: 0 | NI4: 0 | NJ4: 0 | NK4: 0 | NL4: 0 | NM4: 0 | NN4: 0 | NO4: 0 | NP4: 0 | NQ4: 0 | NR4: 0 | NS4: 0 | NT4: 0 | NU4: 0 | NV4: 0 | NW4: 0 | NX4: 0 | NY4: 0 | NZ4: 0 | OA4: 0 | OB4: 0 | OC4: 0 | OD4: 0 | OE4: 0 | OF4: 0
A5: Associação Belenzinho de Assistência Social | F5: 06.022.136/0002-60 | G5: SB 058824/2016-65 | H5: SB 058713/2016-51 | I5: SB 076648/2018-29 | J5: 03/2017-SE | K5: Quarto | L5: 183/2019-SE | M5: 2019-01-01 | N5: 2019-12-31 | O5: Avenida Luiz Pequini, nº 1834 | P5: Parque São Bernardo - Vila Baeta Neves | Q5: S.B.Campo | R5: 09780-250 | S5: 4121-5470 | T5: abasbelenzinho@gmail.com | U5: Caixa Econômica Federal | V5: 2700 | W5: 00000324-2 | Y5: 289764.99 | Z5: 10772.88 | AA5: 1600 | AB5: 2100 | AC5: 742.5 | AD5: 2400 | AE5: 2100 | AF5: 4800 | AG5: 1500 | AH5: 2500 | AI5: 15000 | AJ5: 3816 | AK5: 0 | AL5: 0 | AM5: 3000 | AN5: 5000 | AO5: 13670 | AP5: 340096.37 | AQ5: 18670 | AR5: 358766.37 | AS5: 268137 | AT5: 8241.6 | AU5: 600 | AV5: 1400 | AW5: 685 | AX5: 1600 | AY5: 1600 | AZ5: 4400 | BA5: 800 | BB5: 1600 | BC5: 0 | BD5: 3816 | BE5: 0 | BF5: 0 | BG5: 0 | BH5: 0 | BI5: 0 | BJ5: 292879.6 | BK5: 0 | BL5: 292879.6 | BM5: 297353.76 | BN5: 8241.6 | BO5: 600 | BP5: 1400 | BQ5: 685 | BR5: 1600 | BS5: 1600 | BT5: 4400 | BU5: 800 | BV5: 1600 | BW5: 0 | BX5: 3816 | BY5: 0 | BZ5: 0 | CA5: 0 | CB5: 0 | CC5: 0 | CD5: 322096.36 | CE5: 0 | CF5: 322096.36 | CG5: 855255.75 | CH5: 27256.08 | CI5: 2800 | CJ5: 4900 | CK5: 2112.5 | CL5: 5600 | CM5: 5300 | CN5: 13600 | CO5: 3100 | CP5: 5700 | CQ5: 15000 | CR5: 11448 | CS5: 0 | CT5: 0 | CU5: 3000 | CV5: 5000 | CW5: 13670 | CX5: 955072.33 | CY5: 18670 | CZ5: 973742.33 | DA5: 117436.67 | DB5: 13670 | DC5: 131106.67 | DD5: 73219.9 | DE5: 0 | DF5: 73219.9 | DG5: 73219.9 | DH5: 0 | DI5: 73219.9 | DJ5: 76219.9 | DK5: 5000 | DL5: 81219.9 | DM5: 73219.9 | DN5: 0 | DO5: 73219.9 | DP5: 73219.9 | DQ5: 0 | DR5: 73219.9 | DS5: 73219.9 | DT5: 0 | DU5: 73219.9 | DV5: 73219.9 | DW5: 0 | DX5: 73219.9 | DY5: 73219.9 | DZ5: 0 | EA5: 73219.9 | EB5: 73219.9 | EC5: 0 | ED5: 73219.9 | EE5: 73219.9 | EF5: 0 | EG5: 73219.9 | EH5: 102436.66 | EI5: 0 | EJ5: 102436.66 | EK5: 955072.33 | EL5: 18670 | EM5: 973742.33 | EN5: 2019-01-28 | EO5: 2019-02-28 | EP5: 2019-03-28 | EQ5: 2019-04-28 | ER5: 2019-05-28 | ES5: 2019-06-28 | ET5: 2019-07-28 | EU5: 2019-08-28 | EV5: 2019-09-28 | EW5: 2019-10-28 | EX5: 2019-11-28 | EY5: 2019-11-28 | FA5: 92456.63 | FB5: 3326.04 | FC5: 650 | FD5: 700 | FE5: 200 | FF5: 800 | FG5: 650 | FH5: 1300 | FI5: 550 | FJ5: 850 | FK5: 15000 | FL5: 954 | FM5: 0 | FN5: 0 | FO5: 0 | FP5: 0 | FQ5: 13670 | FR5: 117436.67 | FS5: 13670 | FT5: 131106.67 | FU5: 63239.86 | FV5: 3326.04 | FW5: 650 | FX5: 700 | FY5: 200 | FZ5: 800 | GA5: 650 | GB5: 1300 | GC5: 550 | GD5: 850 | GE5: 0 | GF5: 954 | GG5: 0 | GH5: 0 | GI5: 0 | GJ5: 0 | GK5: 0 | GL5: 73219.9 | GM5: 0 | GN5: 73219.9 | GO5: 67034.25 | GP5: 2060.4 | GQ5: 150 | GR5: 350 | GS5: 171.25 | GT5: 400 | GU5: 400 | GV5: 1100 | GW5: 200 | GX5: 400 | GY5: 0 | GZ5: 954 | HA5: 0 | HB5: 0 | HC5: 0 | HD5: 0 | HE5: 0 | HF5: 73219.9 | HG5: 0 | HH5: 73219.9 | HI5: 67034.25 | HJ5: 2060.4 | HK5: 150 | HL5: 350 | HM5: 171.25 | HN5: 400 | HO5: 400 | HP5: 1100 | HQ5: 200 | HR5: 400 | HS5: 0 | HT5: 954 | HU5: 0 | HV5: 0 | HW5: 3000 | HX5: 5000 | HY5: 0 | HZ5: 76219.9 | IA5: 5000 | IB5: 81219.9 | IC5: 67034.25 | ID5: 2060.4 | IE5: 150 | IF5: 350 | IG5: 171.25 | IH5: 400 | II5: 400 | IJ5: 1100 | IK5: 200 | IL5: 400 | IM5: 0 | IN5: 954 | IO5: 0 | IP5: 0 | IQ5: 0 | IR5: 0 | IS5: 0 | IT5: 73219.9 | IU5: 0 | IV5: 73219.9 | IW5: 67034.25 | IX5: 2060.4 | IY5: 150 | IZ5: 350 | JA5: 171.25 | JB5: 400 | JC5: 400 | JD5: 1100 | JE5: 200 | JF5: 400 | JG5: 0 | JH5: 954 | JI5: 0 | JJ5: 0 | JK5: 0 | JL5: 0 | JM5: 0 | JN5: 73219.9 | JO5: 0 | JP5: 73219.9 | JQ5: 67034.25 | JR5: 2060.4 | JS5: 150 | JT5: 350 | JU5: 171.25 | JV5: 400 | JW5: 400 | JX5: 1100 | JY5: 200 | JZ5: 400 | KA5: 0 | KB5: 954 | KC5: 0 | KD5: 0 | KE5: 0 | KF5: 0 | KG5: 0 | KH5: 73219.9 | KI5: 0 | KJ5: 73219.9 | KK5: 67034.25 | KL5: 2060.4 | KM5: 150 | KN5: 350 | KO5: 171.25 | KP5: 400 | KQ5: 400 | KR5: 1100 | KS5: 200 | KT5: 400 | KU5: 0 | KV5: 954 | KW5: 0 | KX5: 0 | KY5: 0 | KZ5: 0 | LA5: 0 | LB5: 73219.9 | LC5: 0 | LD5: 73219.9 | LE5: 67034.25 | LF5: 2060.4 | LG5: 150 | LH5: 350 | LI5: 171.25 | LJ5: 400 | LK5: 400 | LL5: 1100 | LM5: 200 | LN5: 400 | LO5: 0 | LP5: 954 | LQ5: 0 | LR5: 0 | LS5: 0 | LT5: 0 | LU5: 0 | LV5: 73219.9 | LW5: 0 | LX5: 73219.9 | LY5: 67034.25 | LZ5: 2060.4 | MA5: 150 | MB5: 350 | MC5: 171.25 | MD5: 400 | ME5: 400 | MF5: 1100 | MG5: 200 | MH5: 400 | MI5: 0 | MJ5: 954 | MK5: 0 | ML5: 0 | MM5: 0 | MN5: 0 | MO5: 0 | MP5: 73219.9 | MQ5: 0 | MR5: 73219.9 | MS5: 67034.25 | MT5: 2060.4 | MU5: 150 | MV5: 350 | MW5: 171.25 | MX5: 400 | MY5: 400 | MZ5: 1100 | NA5: 200 | NB5: 400 | NC5: 0 | ND5: 954 | NE5: 0 | NF5: 0 | NG5: 0 | NH5: 0 | NI5: 0 | NJ5: 73219.9 | NK5: 0 | NL5: 73219.9 | NM5: 96251.01 | NN5: 2060.4 | NO5: 150 | NP5: 350 | NQ5: 171.25 | NR5: 400 | NS5: 400 | NT5: 1100 | NU5: 200 | NV5: 400 | NW5: 0 | NX5: 954 | NY5: 0 | NZ5: 0 | OA5: 0 | OB5: 0 | OC5: 0 | OD5: 102436.66 | OE5: 0 | OF5: 102436.66 | OG5: 03/2017-SE | OH5: 2017-01-02 | OI5: 2017-12-31 | OJ5: 836591.44 | OK5: 171/2017-SE | OL5: Primeiro | OM5: 2017-06-06 | ON5: 2017-12-31 | OO5: 0 | OP5: 373/2017-SE | OQ5: Segundo | OR5: 2017-11-07 | OS5: 2017-12-31 | OT5: 8000 | OU5: 178/2018-SE | OV5: Terceiro | OW5: 2018-01-01 | OX5: 2018-12-31 | OY5: 902876.44 | OZ5: 183/2019-SE | PA5: Quarto | PB5: 2019-01-01 | PC5: 2019-12-31 | PD5: 973742.33
A6: Associação Beneficente Shekinah I | F6: 69.253.813/0001-90 | G6: SB 076955/2018-33 | H6: SB 003769/2019-55 | I6: SB 076663/2018-86 | J6: 01/2019-SE | K6: - | L6: - | M6: 2019-02-05 | N6: 2019-12-31 | O6: Avenida Taboão, 3972 | P6: Taboão | Q6: S.B.Campo | R6: 09657-000 | S6: 4361-1569 e 2758-0778 | T6: ab-shekinah@ab-shekinah.org.br | U6: Banco do Brasil | V6: 1834-1 | W6: 1607-1 | Y6: 114262.36 | Z6: 5250 | AA6: 950 | AB6: 2500 | AC6: 600 | AD6: 7000 | AE6: 1400 | AF6: 3600 | AG6: 100 | AH6: 28599.41 | AI6: 15000 | AJ6: 0 | AK6: 300 | AL6: 0 | AM6: 3000 | AN6: 5000 | AO6: 15200 | AP6: 182561.77 | AQ6: 20200 | AR6: 202761.77 | AS6: 148662.32 | AT6: 8000 | AU6: 0 | AV6: 1000 | AW6: 200 | AX6: 2000 | AY6: 800 | AZ6: 4800 | BA6: 200 | BB6: 13971.28 | BC6: 0 | BD6: 0 | BE6: 600 | BF6: 0 | BG6: 0 | BH6: 0 | BI6: 0 | BJ6: 180233.6 | BK6: 0 | BL6: 180233.6 | BM6: 164991.53 | BN6: 8000 | BO6: 0 | BP6: 1000 | BQ6: 200 | BR6: 2000 | BS6: 800 | BT6: 4800 | BU6: 200 | BV6: 13971.28 | BW6: 0 | BX6: 0 | BY6: 600 | BZ6: 0 | CA6: 0 | CB6: 0 | CC6: 0 | CD6: 196562.81 | CE6: 0 | CF6: 196562.81 | CG6: 427916.21 | CH6: 21250 | CI6: 950 | CJ6: 4500 | CK6: 1000 | CL6: 11000 | CM6: 3000 | CN6: 13200 | CO6: 500 | CP6: 56541.97 | CQ6: 15000 | CR6: 0 | CS6: 1500 | CT6: 0 | CU6: 3000 | CV6: 5000 | CW6: 15200 | CX6: 559358.18 | CY6: 20200 | CZ6: 579558.18 | DA6: 36248.26 | DB6: 15200 | DC6: 51448.26 | DD6: 36867.49 | DE6: 0 | DF6: 36867.49 | DG6: 61387.62 | DH6: 0 | DI6: 61387.62 | DJ6: 48058.4 | DK6: 5000 | DL6: 53058.4 | DM6: 45058.4 | DN6: 0 | DO6: 45058.4 | DP6: 45058.4 | DQ6: 0 | DR6: 45058.4 | DS6: 45058.4 | DT6: 0 | DU6: 45058.4 | DV6: 45058.4 | DW6: 0 | DX6: 45058.4 | DY6: 45058.4 | DZ6: 0 | EA6: 45058.4 | EB6: 45058.4 | EC6: 0 | ED6: 45058.4 | EE6: 45058.4 | EF6: 0 | EG6: 45058.4 | EH6: 61387.61 | EI6: 0 | EJ6: 61387.61 | EK6: 559358.18 | EL6: 20200 | EM6: 579558.18 | FA6: 6229.06 | FB6: 250 | FC6: 0 | FD6: 0 | FE6: 0 | FF6: 0 | FG6: 0 | FH6: 0 | FI6: 0 | FJ6: 14769.2 | FK6: 15000 | FL6: 0 | FM6: 0 | FN6: 0 | FO6: 0 | FP6: 0 | FQ6: 15200 | FR6: 36248.26 | FS6: 15200 | FT6: 51448.26 | FU6: 17372.92 | FV6: 1000 | FW6: 950 | FX6: 2000 | FY6: 500 | FZ6: 6000 | GA6: 1000 | GB6: 1200 | GC6: 0 | GD6: 6844.57 | GE6: 0 | GF6: 0 | GG6: 0 | GH6: 0 | GI6: 0 | GJ6: 0 | GK6: 0 | GL6: 36867.49 | GM6: 0 | GN6: 36867.49 | GO6: 53494.8 | GP6: 2000 | GQ6: 0 | GR6: 250 | GS6: 50 | GT6: 500 | GU6: 200 | GV6: 1200 | GW6: 50 | GX6: 3492.82 | GY6: 0 | GZ6: 0 | HA6: 150 | HB6: 0 | HC6: 0 | HD6: 0 | HE6: 0 | HF6: 61387.62 | HG6: 0 | HH6: 61387.62 | HI6: 37165.58 | HJ6: 2000 | HK6: 0 | HL6: 250 | HM6: 50 | HN6: 500 | HO6: 200 | HP6: 1200 | HQ6: 50 | HR6: 3492.82 | HS6: 0 | HT6: 0 | HU6: 150 | HV6: 0 | HW6: 3000 | HX6: 5000 | HY6: 0 | HZ6: 48058.4 | IA6: 5000 | IB6: 53058.4 | IC6: 37165.58 | ID6: 2000 | IE6: 0 | IF6: 250 | IG6: 50 | IH6: 500 | II6: 200 | IJ6: 1200 | IK6: 50 | IL6: 3492.82 | IM6: 0 | IN6: 0 | IO6: 150 | IP6: 0 | IQ6: 0 | IR6: 0 | IS6: 0 | IT6: 45058.4 | IU6: 0 | IV6: 45058.4 | IW6: 37165.58 | IX6: 2000 | IY6: 0 | IZ6: 250 | JA6: 50 | JB6: 500 | JC6: 200 | JD6: 1200 | JE6: 50 | JF6: 3492.82 | JG6: 0 | JH6: 0 | JI6: 150 | JJ6: 0 | JK6: 0 | JL6: 0 | JM6: 0 | JN6: 45058.4 | JO6: 0 | JP6: 45058.4 | JQ6: 37165.58 | JR6: 2000 | JS6: 0 | JT6: 250 | JU6: 50 | JV6: 500 | JW6: 200 | JX6: 1200 | JY6: 50 | JZ6: 3492.82 | KA6: 0 | KB6: 0 | KC6: 150 | KD6: 0 | KE6: 0 | KF6: 0 | KG6: 0 | KH6: 45058.4 | KI6: 0 | KJ6: 45058.4 | KK6: 37165.58 | KL6: 2000 | KM6: 0 | KN6: 250 | KO6: 50 | KP6: 500 | KQ6: 200 | KR6: 1200 | KS6: 50 | KT6: 3492.82 | KU6: 0 | KV6: 0 | KW6: 150 | KX6: 0 | KY6: 0 | KZ6: 0 | LA6: 0 | LB6: 45058.4 | LC6: 0 | LD6: 45058.4 | LE6: 37165.58 | LF6: 2000 | LG6: 0 | LH6: 250 | LI6: 50 | LJ6: 500 | LK6: 200 | LL6: 1200 | LM6: 50 | LN6: 3492.82 | LO6: 0 | LP6: 0 | LQ6: 150 | LR6: 0 | LS6: 0 | LT6: 0 | LU6: 0 | LV6: 45058.4 | LW6: 0 | LX6: 45058.4 | LY6: 37165.58 | LZ6: 2000 | MA6: 0 | MB6: 250 | MC6: 50 | MD6: 500 | ME6: 200 | MF6: 1200 | MG6: 50 | MH6: 3492.82 | MI6: 0 | MJ6: 0 | MK6: 150 | ML6: 0 | MM6: 0 | MN6: 0 | MO6: 0 | MP6: 45058.4 | MQ6: 0 | MR6: 45058.4 | MS6: 37165.58 | MT6: 2000 | MU6: 0 | MV6: 250 | MW6: 50 | MX6: 500 | MY6: 200 | MZ6: 1200 | NA6: 50 | NB6: 3492.82 | NC6: 0 | ND6: 0 | NE6: 150 | NF6: 0 | NG6: 0 | NH6: 0 | NI6: 0 | NJ6: 45058.4 | NK6: 0 | NL6: 45058.4 | NM6: 53494.79 | NN6: 2000 | NO6: 0 | NP6: 250 | NQ6: 50 | NR6: 500 | NS6: 200 | NT6: 1200 | NU6: 50 | NV6: 3492.82 | NW6: 0 | NX6: 0 | NY6: 150 | NZ6: 0 | OA6: 0 | OB6: 0 | OC6: 0 | OD6: 61387.61 | OE6: 0 | OF6: 61387.61 | OG6: 01/2019-SE | OH6: 2019-02-05 | OI6: 2019-12-31 | OJ6: 579558.18
A7: Associação Beneficente Shekinah II | F7: 69.253.813/0003-51 | G7: SB 058827/2016-48 | H7: SB 058716/2016-34 | I7: SB 076656/2018-33 | J7: 04/2017-SE | K7: Quarto | L7: 184/2019-SE | M7: 2019-01-01 | N7: 2019-12-31 | O7: Rua Fábio da Silva Prado, nº 115 | P7: Vila Flórida | Q7: S.B.Campo | R7: 09661-000 | S7: 4361-1569 e 2758-0778 | T7: ab-shekinah@ab-shekinah.org.br | U7: Banco do Brasil | V7: 1834-1 | W7: 500018-1 | Y7: 133890.18 | Z7: 8000 | AA7: 500 | AB7: 1043.64 | AC7: 300 | AD7: 200 | AE7: 200 | AF7: 2839.32 | AG7: 900 | AH7: 0 | AI7: 15000 | AJ7: 4008 | AK7: 300 | AL7: 17656.36 | AM7: 3000 | AN7: 5000 | AO7: 9480 | AP7: 187837.5 | AQ7: 14480 | AR7: 202317.5 | AS7: 123897.28 | AT7: 8000 | AU7: 200 | AV7: 882.96 | AW7: 200 | AX7: 400 | AY7: 400 | AZ7: 3600 | BA7: 0 | BB7: 0 | BC7: 0 | BD7: 4008 | BE7: 600 | BF7: 17656.36 | BG7: 0 | BH7: 0 | BI7: 0 | BJ7: 159844.6 | BK7: 0 | BL7: 159844.6 | BM7: 137396.69 | BN7: 8000 | BO7: 200 | BP7: 882.96 | BQ7: 200 | BR7: 400 | BS7: 400 | BT7: 3600 | BU7: 0 | BV7: 0 | BW7: 0 | BX7: 4008 | BY7: 600 | BZ7: 17656.36 | CA7: 0 | CB7: 0 | CC7: 0 | CD7: 173344.01 | CE7: 0 | CF7: 173344.01 | CG7: 395184.15 | CH7: 24000 | CI7: 900 | CJ7: 2809.56 | CK7: 700 | CL7: 1000 | CM7: 1000 | CN7: 10039.32 | CO7: 900 | CP7: 0 | CQ7: 15000 | CR7: 12024 | CS7: 1500 | CT7: 52969.08 | CU7: 3000 | CV7: 5000 | CW7: 9480 | CX7: 521026.11 | CY7: 14480 | CZ7: 535506.11 | DA7: 66707.31 | DB7: 9480 | DC7: 76187.31 | DD7: 38207.89 | DE7: 0 | DF7: 38207.89 | DG7: 39961.15 | DH7: 0 | DI7: 39961.15 | DJ7: 42961.15 | DK7: 5000 | DL7: 47961.15 | DM7: 39961.15 | DN7: 0 | DO7: 39961.15 | DP7: 39961.15 | DQ7: 0 | DR7: 39961.15 | DS7: 39961.15 | DT7: 0 | DU7: 39961.15 | DV7: 39961.15 | DW7: 0 | DX7: 39961.15 | DY7: 39961.15 | DZ7: 0 | EA7: 39961.15 | EB7: 39961.15 | EC7: 0 | ED7: 39961.15 | EE7: 39961.15 | EF7: 0 | EG7: 39961.15 | EH7: 53460.56 | EI7: 0 | EJ7: 53460.56 | EK7: 521026.11 | EL7: 14480 | EM7: 535506.11 | EN7: 2019-01-28 | EO7: 2019-02-28 | EP7: 2019-03-28 | EQ7: 2019-04-28 | ER7: 2019-05-28 | ES7: 2019-06-28 | ET7: 2019-07-28 | EU7: 2019-08-28 | EV7: 2019-09-28 | EW7: 2019-10-28 | EX7: 2019-11-28 | EY7: 2019-11-28 | FA7: 42720.48 | FB7: 2000 | FC7: 200 | FD7: 301.08 | FE7: 100 | FF7: 0 | FG7: 0 | FH7: 519.66 | FI7: 450 | FJ7: 0 | FK7: 15000 | FL7: 1002 | FM7: 0 | FN7: 4414.09 | FO7: 0 | FP7: 0 | FQ7: 9480 | FR7: 66707.31 | FS7: 9480 | FT7: 76187.31 | FU7: 29221.06 | FV7: 2000 | FW7: 200 | FX7: 301.08 | FY7: 100 | FZ7: 0 | GA7: 0 | GB7: 519.66 | GC7: 450 | GD7: 0 | GE7: 0 | GF7: 1002 | GG7: 0 | GH7: 4414.09 | GI7: 0 | GJ7: 0 | GK7: 0 | GL7: 38207.89 | GM7: 0 | GN7: 38207.89 | GO7: 30974.32 | GP7: 2000 | GQ7: 50 | GR7: 220.74 | GS7: 50 | GT7: 100 | GU7: 100 | GV7: 900 | GW7: 0 | GX7: 0 | GY7: 0 | GZ7: 1002 | HA7: 150 | HB7: 4414.09 | HC7: 0 | HD7: 0 | HE7: 0 | HF7: 39961.15 | HG7: 0 | HH7: 39961.15 | HI7: 30974.32 | HJ7: 2000 | HK7: 50 | HL7: 220.74 | HM7: 50 | HN7: 100 | HO7: 100 | HP7: 900 | HQ7: 0 | HR7: 0 | HS7: 0 | HT7: 1002 | HU7: 150 | HV7: 4414.09 | HW7: 3000 | HX7: 5000 | HY7: 0 | HZ7: 42961.15 | IA7: 5000 | IB7: 47961.15 | IC7: 30974.32 | ID7: 2000 | IE7: 50 | IF7: 220.74 | IG7: 50 | IH7: 100 | II7: 100 | IJ7: 900 | IK7: 0 | IL7: 0 | IM7: 0 | IN7: 1002 | IO7: 150 | IP7: 4414.09 | IQ7: 0 | IR7: 0 | IS7: 0 | IT7: 39961.15 | IU7: 0 | IV7: 39961.15 | IW7: 30974.32 | IX7: 2000 | IY7: 50 | IZ7: 220.74 | JA7: 50 | JB7: 100 | JC7: 100 | JD7: 900 | JE7: 0 | JF7: 0 | JG7: 0 | JH7: 1002 | JI7: 150 | JJ7: 4414.09 | JK7: 0 | JL7: 0 | JM7: 0 | JN7: 39961.15 | JO7: 0 | JP7: 39961.15 | JQ7: 30974.32 | JR7: 2000 | JS7: 50 | JT7: 220.74 | JU7: 50 | JV7: 100 | JW7: 100 | JX7: 900 | JY7: 0 | JZ7: 0 | KA7: 0 | KB7: 1002 | KC7: 150 | KD7: 4414.09 | KE7: 0 | KF7: 0 | KG7: 0 | KH7: 39961.15 | KI7: 0 | KJ7: 39961.15 | KK7: 30974.32 | KL7: 2000 | KM7: 50 | KN7: 220.74 | KO7: 50 | KP7: 100 | KQ7: 100 | KR7: 900 | KS7: 0 | KT7: 0 | KU7: 0 | KV7: 1002 | KW7: 150 | KX7: 4414.09 | KY7: 0 | KZ7: 0 | LA7: 0 | LB7: 39961.15 | LC7: 0 | LD7: 39961.15 | LE7: 30974.32 | LF7: 2000 | LG7: 50 | LH7: 220.74 | LI7: 50 | LJ7: 100 | LK7: 100 | LL7: 900 | LM7: 0 | LN7: 0 | LO7: 0 | LP7: 1002 | LQ7: 150 | LR7: 4414.09 | LS7: 0 | LT7: 0 | LU7: 0 | LV7: 39961.15 | LW7: 0 | LX7: 39961.15 | LY7: 30974.32 | LZ7: 2000 | MA7: 50 | MB7: 220.74 | MC7: 50 | MD7: 100 | ME7: 100 | MF7: 900 | MG7: 0 | MH7: 0 | MI7: 0 | MJ7: 1002 | MK7: 150 | ML7: 4414.09 | MM7: 0 | MN7: 0 | MO7: 0 | MP7: 39961.15 | MQ7: 0 | MR7: 39961.15 | MS7: 30974.32 | MT7: 2000 | MU7: 50 | MV7: 220.74 | MW7: 50 | MX7: 100 | MY7: 100 | MZ7: 900 | NA7: 0 | NB7: 0 | NC7: 0 | ND7: 1002 | NE7: 150 | NF7: 4414.09 | NG7: 0 | NH7: 0 | NI7: 0 | NJ7: 39961.15 | NK7: 0 | NL7: 39961.15 | NM7: 44473.73 | NN7: 2000 | NO7: 50 | NP7: 220.74 | NQ7: 50 | NR7: 100 | NS7: 100 | NT7: 900 | NU7: 0 | NV7: 0 | NW7: 0 | NX7: 1002 | NY7: 150 | NZ7: 4414.09 | OA7: 0 | OB7: 0 | OC7: 0 | OD7: 53460.56 | OE7: 0 | OF7: 53460.56 | OG7: 04/2017-SE | OH7: 2017-01-02 | OI7: 2017-12-31 | OJ7: 440151.62 | OK7: 172/2017-SE | OL7: Primeiro | OM7: 2017-06-06 | ON7: 2017-12-31 | OO7: 0 | OP7: 374/2017-SE | OQ7: Segundo | OR7: 2017-11-07 | OS7: 2017-12-31 | OT7: 8000 | OU7: 179/2018-SE | OV7: Terceiro | OW7: 2018-01-01 | OX7: 2018-12-31 | OY7: 494320.34 | OZ7: 184/2019-SE | PA7: Quarto | PB7: 2019-01-01 | PC7: 2019-12-31 | PD7: 535506.11
A8: Associação de Promoção Humana e Resgate da Cidadania | F8: 04.422.261/0001-50 | G8: SB 058829/2016-60 | H8: SB 058717/2016-95 | I8: SB 076673/2018-12 | J8: 05/2017-SE | K8: Quarto | L8: 185/2019-SE | M8: 2019-01-01 | N8: 2019-12-31 | O8: Rua Padre Leo Commissari, 288 | P8: Jardim Silvina | Q8: S.B.Campo | R8: 09791-030 | S8: 4335.4853 e 4127.0866 | T8: crechemargarida@outlook.com | U8: Caixa Econômica Federal | V8: 1207 | W8: 00002922-2 | Y8: 202737.94 | Z8: 5800 | AA8: 600 | AB8: 2424.66 | AC8: 400 | AD8: 0 | AE8: 0 | AF8: 2436.66 | AG8: 0 | AH8: 0 | AI8: 15000 | AJ8: 3612 | AK8: 0 | AL8: 15000 | AM8: 3000 | AN8: 5000 | AO8: 8730 | AP8: 251011.26 | AQ8: 13730 | AR8: 264741.26 | AS8: 186798.4 | AT8: 6000 | AU8: 400 | AV8: 2849.32 | AW8: 0 | AX8: 0 | AY8: 0 | AZ8: 2000 | BA8: 0 | BB8: 0 | BC8: 0 | BD8: 4024 | BE8: 0 | BF8: 15000 | BG8: 0 | BH8: 0 | BI8: 0 | BJ8: 217071.72 | BK8: 0 | BL8: 217071.72 | BM8: 208024.69 | BN8: 6000 | BO8: 400 | BP8: 2849.32 | BQ8: 0 | BR8: 0 | BS8: 0 | BT8: 2000 | BU8: 0 | BV8: 0 | BW8: 0 | BX8: 4024 | BY8: 0 | BZ8: 15000 | CA8: 0 | CB8: 0 | CC8: 0 | CD8: 238298.01 | CE8: 0 | CF8: 238298.01 | CG8: 597561.03 | CH8: 17800 | CI8: 1400 | CJ8: 8123.3 | CK8: 400 | CL8: 0 | CM8: 0 | CN8: 6436.66 | CO8: 0 | CP8: 0 | CQ8: 15000 | CR8: 11660 | CS8: 0 | CT8: 45000 | CU8: 3000 | CV8: 5000 | CW8: 8730 | CX8: 706380.99 | CY8: 13730 | CZ8: 720110.99 | DA8: 87850.85 | DB8: 8730 | DC8: 96580.85 | DD8: 51624.55 | DE8: 0 | DF8: 51624.55 | DG8: 54267.93 | DH8: 0 | DI8: 54267.93 | DJ8: 57267.93 | DK8: 5000 | DL8: 62267.93 | DM8: 54267.93 | DN8: 0 | DO8: 54267.93 | DP8: 54267.93 | DQ8: 0 | DR8: 54267.93 | DS8: 54267.93 | DT8: 0 | DU8: 54267.93 | DV8: 54267.93 | DW8: 0 | DX8: 54267.93 | DY8: 54267.93 | DZ8: 0 | EA8: 54267.93 | EB8: 54267.93 | EC8: 0 | ED8: 54267.93 | EE8: 54267.93 | EF8: 0 | EG8: 54267.93 | EH8: 75494.22 | EI8: 0 | EJ8: 75494.22 | EK8: 706380.99 | EL8: 13730 | EM8: 720110.99 | EN8: 2019-01-28 | EO8: 2019-02-28 | EP8: 2019-03-28 | EQ8: 2019-04-28 | ER8: 2019-05-28 | ES8: 2019-06-28 | ET8: 2019-07-28 | EU8: 2019-08-28 | EV8: 2019-09-28 | EW8: 2019-10-28 | EX8: 2019-11-28 | EY8: 2019-11-28 | FA8: 65282.52 | FB8: 1400 | FC8: 200 | FD8: 500 | FE8: 200 | FF8: 0 | FG8: 0 | FH8: 718.33 | FI8: 0 | FJ8: 0 | FK8: 15000 | FL8: 800 | FM8: 0 | FN8: 3750 | FO8: 0 | FP8: 0 | FQ8: 8730 | FR8: 87850.85 | FS8: 8730 | FT8: 96580.85 | FU8: 44056.22 | FV8: 1400 | FW8: 200 | FX8: 500 | FY8: 200 | FZ8: 0 | GA8: 0 | GB8: 718.33 | GC8: 0 | GD8: 0 | GE8: 0 | GF8: 800 | GG8: 0 | GH8: 3750 | GI8: 0 | GJ8: 0 | GK8: 0 | GL8: 51624.55 | GM8: 0 | GN8: 51624.55 | GO8: 46699.6 | GP8: 1500 | GQ8: 100 | GR8: 712.33 | GS8: 0 | GT8: 0 | GU8: 0 | GV8: 500 | GW8: 0 | GX8: 0 | GY8: 0 | GZ8: 1006 | HA8: 0 | HB8: 3750 | HC8: 0 | HD8: 0 | HE8: 0 | HF8: 54267.93 | HG8: 0 | HH8: 54267.93 | HI8: 46699.6 | HJ8: 1500 | HK8: 100 | HL8: 712.33 | HM8: 0 | HN8: 0 | HO8: 0 | HP8: 500 | HQ8: 0 | HR8: 0 | HS8: 0 | HT8: 1006 | HU8: 0 | HV8: 3750 | HW8: 3000 | HX8: 5000 | HY8: 0 | HZ8: 57267.93 | IA8: 5000 | IB8: 62267.93 | IC8: 46699.6 | ID8: 1500 | IE8: 100 | IF8: 712.33 | IG8: 0 | IH8: 0 | II8: 0 | IJ8: 500 | IK8: 0 | IL8: 0 | IM8: 0 | IN8: 1006 | IO8: 0 | IP8: 3750 | IQ8: 0 | IR8: 0 | IS8: 0 | IT8: 54267.93 | IU8: 0 | IV8: 54267.93 | IW8: 46699.6 | IX8: 1500 | IY8: 100 | IZ8: 712.33 | JA8: 0 | JB8: 0 | JC8: 0 | JD8: 500 | JE8: 0 | JF8: 0 | JG8: 0 | JH8: 1006 | JI8: 0 | JJ8: 3750 | JK8: 0 | JL8: 0 | JM8: 0 | JN8: 54267.93 | JO8: 0 | JP8: 54267.93 | JQ8: 46699.6 | JR8: 1500 | JS8: 100 | JT8: 712.33 | JU8: 0 | JV8: 0 | JW8: 0 | JX8: 500 | JY8: 0 | JZ8: 0 | KA8: 0 | KB8: 1006 | KC8: 0 | KD8: 3750 | KE8: 0 | KF8: 0 | KG8: 0 | KH8: 54267.93 | KI8: 0 | KJ8: 54267.93 | KK8: 46699.6 | KL8: 1500 | KM8: 100 | KN8: 712.33 | KO8: 0 | KP8: 0 | KQ8: 0 | KR8: 500 | KS8: 0 | KT8: 0 | KU8: 0 | KV8: 1006 | KW8: 0 | KX8: 3750 | KY8: 0 | KZ8: 0 | LA8: 0 | LB8: 54267.93 | LC8: 0 | LD8: 54267.93 | LE8: 46699.6 | LF8: 1500 | LG8: 100 | LH8: 712.33 | LI8: 0 | LJ8: 0 | LK8: 0 | LL8: 500 | LM8: 0 | LN8: 0 | LO8: 0 | LP8: 1006 | LQ8: 0 | LR8: 3750 | LS8: 0 | LT8: 0 | LU8: 0 | LV8: 54267.93 | LW8: 0 | LX8: 54267.93 | LY8: 46699.6 | LZ8: 1500 | MA8: 100 | MB8: 712.33 | MC8: 0 | MD8: 0 | ME8: 0 | MF8: 500 | MG8: 0 | MH8: 0 | MI8: 0 | MJ8: 1006 | MK8: 0 | ML8: 3750 | MM8: 0 | MN8: 0 | MO8: 0 | MP8: 54267.93 | MQ8: 0 | MR8: 54267.93 | MS8: 46699.6 | MT8: 1500 | MU8: 100 | MV8: 712.33 | MW8: 0 | MX8: 0 | MY8: 0 | MZ8: 500 | NA8: 0 | NB8: 0 | NC8: 0 | ND8: 1006 | NE8: 0 | NF8: 3750 | NG8: 0 | NH8: 0 | NI8: 0 | NJ8: 54267.93 | NK8: 0 | NL8: 54267.93 | NM8: 67925.89 | NN8: 1500 | NO8: 100 | NP8: 712.33 | NQ8: 0 | NR8: 0 | NS8: 0 | NT8: 500 | NU8: 0 | NV8: 0 | NW8: 0 | NX8: 1006 | NY8: 0 | NZ8: 3750 | OA8: 0 | OB8: 0 | OC8: 0 | OD8: 75494.22 | OE8: 0 | OF8: 75494.22 | OG8: 05/2017-SE | OH8: 2017-01-02 | OI8: 2017-12-31 | OJ8: 549932.26 | OK8: 173/2017-SE | OL8: Primeiro | OM8: 2017-06-06 | ON8: 2017-12-31 | OO8: 0 | OP8: 375/2017-SE | OQ8: Segundo | OR8: 2017-11-07 | OS8: 2017-12-31 | OT8: 8000 | OU8: 180/2018-SE | OV8: Terceiro | OW8: 2018-01-01 | OX8: 2018-12-31 | OY8: 630727.3 | OZ8: 185/2019-SE | PA8: Quarto | PB8: 2019-01-01 | PC8: 2019-12-31 | PD8: 720110.99
A9: Associação Dehoniana Brasil Meridional | F9: 04.730.949/0013-31 | G9: SB 058830/2016-57 | H9: SB 058719/2016-17 | I9: SB 076683/2018-48 | J9: 06/2017-SE | K9: Quarto | L9: 186/2019-SE | M9: 2019-01-01 | N9: 2019-12-31 | O9: Estrada do Cocaia, nº 1238 | P9: Riacho Grande | Q9: S.B.Campo | R9: 09832-100 | S9: 4101-9500 | T9: crechedehon@hotmail.com | U9: Banco do Brasil | V9: 0427-8 | W9: 122.395-x | Y9: 153121.29 | Z9: 5600 | AA9: 1200 | AB9: 2000 | AC9: 4160 | AD9: 0 | AE9: 0 | AF9: 6294.82 | AG9: 0 | AH9: 0 | AI9: 15000 | AJ9: 0 | AK9: 600 | AL9: 9704.88 | AM9: 3000 | AN9: 5000 | AO9: 8420 | AP9: 200680.99 | AQ9: 13420 | AR9: 214100.99 | AS9: 141864.6 | AT9: 5600 | AU9: 800 | AV9: 1200 | AW9: 3120 | AX9: 0 | AY9: 0 | AZ9: 4519.8 | BA9: 0 | BB9: 0 | BC9: 0 | BD9: 0 | BE9: 600 | BF9: 9704.88 | BG9: 0 | BH9: 0 | BI9: 0 | BJ9: 167409.28 | BK9: 0 | BL9: 167409.28 | BM9: 157136.3 | BN9: 5600 | BO9: 800 | BP9: 1200 | BQ9: 3120 | BR9: 0 | BS9: 0 | BT9: 4519.8 | BU9: 0 | BV9: 0 | BW9: 0 | BX9: 0 | BY9: 600 | BZ9: 9704.88 | CA9: 0 | CB9: 0 | CC9: 0 | CD9: 182680.98 | CE9: 0 | CF9: 182680.98 | CG9: 452122.19 | CH9: 16800 | CI9: 2800 | CJ9: 4400 | CK9: 10400 | CL9: 0 | CM9: 0 | CN9: 15334.42 | CO9: 0 | CP9: 0 | CQ9: 15000 | CR9: 0 | CS9: 1800 | CT9: 29114.64 | CU9: 3000 | CV9: 5000 | CW9: 8420 | CX9: 550771.25 | CY9: 13420 | CZ9: 564191.25 | DA9: 72124.03 | DB9: 8420 | DC9: 80544.03 | DD9: 41852.32 | DE9: 0 | DF9: 41852.32 | DG9: 41852.32 | DH9: 0 | DI9: 41852.32 | DJ9: 44852.32 | DK9: 5000 | DL9: 49852.32 | DM9: 41852.32 | DN9: 0 | DO9: 41852.32 | DP9: 41852.32 | DQ9: 0 | DR9: 41852.32 | DS9: 41852.32 | DT9: 0 | DU9: 41852.32 | DV9: 41852.32 | DW9: 0 | DX9: 41852.32 | DY9: 41852.32 | DZ9: 0 | EA9: 41852.32 | EB9: 41852.32 | EC9: 0 | ED9: 41852.32 | EE9: 41852.32 | EF9: 0 | EG9: 41852.32 | EH9: 57124.02 | EI9: 0 | EJ9: 57124.02 | EK9: 550771.25 | EL9: 13420 | EM9: 564191.25 | EN9: 2019-01-28 | EO9: 2019-02-28 | EP9: 2019-03-28 | EQ9: 2019-04-28 | ER9: 2019-05-28 | ES9: 2019-06-28 | ET9: 2019-07-28 | EU9: 2019-08-28 | EV9: 2019-09-28 | EW9: 2019-10-28 | EX9: 2019-11-28 | EY9: 2019-11-28 | FA9: 48730.35 | FB9: 1400 | FC9: 400 | FD9: 700 | FE9: 1300 | FF9: 0 | FG9: 0 | FH9: 2017.46 | FI9: 0 | FJ9: 0 | FK9: 15000 | FL9: 0 | FM9: 150 | FN9: 2426.22 | FO9: 0 | FP9: 0 | FQ9: 8420 | FR9: 72124.03 | FS9: 8420 | FT9: 80544.03 | FU9: 33458.64 | FV9: 1400 | FW9: 400 | FX9: 700 | FY9: 1300 | FZ9: 0 | GA9: 0 | GB9: 2017.46 | GC9: 0 | GD9: 0 | GE9: 0 | GF9: 0 | GG9: 150 | GH9: 2426.22 | GI9: 0 | GJ9: 0 | GK9: 0 | GL9: 41852.32 | GM9: 0 | GN9: 41852.32 | GO9: 35466.15 | GP9: 1400 | GQ9: 200 | GR9: 300 | GS9: 780 | GT9: 0 | GU9: 0 | GV9: 1129.95 | GW9: 0 | GX9: 0 | GY9: 0 | GZ9: 0 | HA9: 150 | HB9: 2426.22 | HC9: 0 | HD9: 0 | HE9: 0 | HF9: 41852.32 | HG9: 0 | HH9: 41852.32 | HI9: 35466.15 | HJ9: 1400 | HK9: 200 | HL9: 300 | HM9: 780 | HN9: 0 | HO9: 0 | HP9: 1129.95 | HQ9: 0 | HR9: 0 | HS9: 0 | HT9: 0 | HU9: 150 | HV9: 2426.22 | HW9: 3000 | HX9: 5000 | HY9: 0 | HZ9: 44852.32 | IA9: 5000 | IB9: 49852.32 | IC9: 35466.15 | ID9: 1400 | IE9: 200 | IF9: 300 | IG9: 780 | IH9: 0 | II9: 0 | IJ9: 1129.95 | IK9: 0 | IL9: 0 | IM9: 0 | IN9: 0 | IO9: 150 | IP9: 2426.22 | IQ9: 0 | IR9: 0 | IS9: 0 | IT9: 41852.32 | IU9: 0 | IV9: 41852.32 | IW9: 35466.15 | IX9: 1400 | IY9: 200 | IZ9: 300 | JA9: 780 | JB9: 0 | JC9: 0 | JD9: 1129.95 | JE9: 0 | JF9: 0 | JG9: 0 | JH9: 0 | JI9: 150 | JJ9: 2426.22 | JK9: 0 | JL9: 0 | JM9: 0 | JN9: 41852.32 | JO9: 0 | JP9: 41852.32 | JQ9: 35466.15 | JR9: 1400 | JS9: 200 | JT9: 300 | JU9: 780 | JV9: 0 | JW9: 0 | JX9: 1129.95 | JY9: 0 | JZ9: 0 | KA9: 0 | KB9: 0 | KC9: 150 | KD9: 2426.22 | KE9: 0 | KF9: 0 | KG9: 0 | KH9: 41852.32 | KI9: 0 | KJ9: 41852.32 | KK9: 35466.15 | KL9: 1400 | KM9: 200 | KN9: 300 | KO9: 780 | KP9: 0 | KQ9: 0 | KR9: 1129.95 | KS9: 0 | KT9: 0 | KU9: 0 | KV9: 0 | KW9: 150 | KX9: 2426.22 | KY9: 0 | KZ9: 0 | LA9: 0 | LB9: 41852.32 | LC9: 0 | LD9: 41852.32 | LE9: 35466.15 | LF9: 1400 | LG9: 200 | LH9: 300 | LI9: 780 | LJ9: 0 | LK9: 0 | LL9: 1129.95 | LM9: 0 | LN9: 0 | LO9: 0 | LP9: 0 | LQ9: 150 | LR9: 2426.22 | LS9: 0 | LT9: 0 | LU9: 0 | LV9: 41852.32 | LW9: 0 | LX9: 41852.32 | LY9: 35466.15 | LZ9: 1400 | MA9: 200 | MB9: 300 | MC9: 780 | MD9: 0 | ME9: 0 | MF9: 1129.95 | MG9: 0 | MH9: 0 | MI9: 0 | MJ9: 0 | MK9: 150 | ML9: 2426.22 | MM9: 0 | MN9: 0 | MO9: 0 | MP9: 41852.32 | MQ9: 0 | MR9: 41852.32 | MS9: 35466.15 | MT9: 1400 | MU9: 200 | MV9: 300 | MW9: 780 | MX9: 0 | MY9: 0 | MZ9: 1129.95 | NA9: 0 | NB9: 0 | NC9: 0 | ND9: 0 | NE9: 150 | NF9: 2426.22 | NG9: 0 | NH9: 0 | NI9: 0 | NJ9: 41852.32 | NK9: 0 | NL9: 41852.32 | NM9: 50737.85 | NN9: 1400 | NO9: 200 | NP9: 300 | NQ9: 780 | NR9: 0 | NS9: 0 | NT9: 1129.95 | NU9: 0 | NV9: 0 | NW9: 0 | NX9: 0 | NY9: 150 | NZ9: 2426.22 | OA9: 0 | OB9: 0 | OC9: 0 | OD9: 57124.02 | OE9: 0 | OF9: 57124.02 | OG9: 06/2017-SE | OH9: 2017-01-02 | OI9: 2017-12-31 | OJ9: 484394.66 | OK9: 174/2017-SE | OL9: Primeiro | OM9: 2017-06-06 | ON9: 2017-12-31 | OO9: 0 | OP9: 376/2017-SE | OQ9: Segundo | OR9: 2017-11-07 | OS9: 2017-12-31 | OT9: 8000 | OU9: 181/2018-SE | OV9: Terceiro | OW9: 2018-01-01 | OX9: 2018-12-31 | OY9: 520934.62 | OZ9: 186/2019-SE | PA9: Quarto | PB9: 2019-01-01 | PC9: 2019-12-31 | PD9: 564191.25
A10: Associação Educativa Madre Vincenza | F10: 44.352.870/0001-03 | G10: SB 058868/2016-23 | H10: SB 058806/2016-25 | I10: SB 076691/2018-52 | J10: 19/2017-SE | K10: Quarto | L10: 187/2019-SE | M10: 2019-01-01 | N10: 2019-12-31 | O10: Rua Angatuba, nº 87 | P10: Baeta Neves | Q10: S.B.Campo | R10: 09751-190 | S10: 4125-6381 | T10: admmv@yahoo.com | U10: Caixa Econômica Federal | V10: 2901 | W10: 00001707-6 | Y10: 200002.91 | Z10: 20400 | AA10: 300 | AB10: 1400 | AC10: 1600 | AD10: 1540 | AE10: 1600 | AF10: 2680 | AG10: 1015.96 | AH10: 2200 | AI10: 15000 | AJ10: 3920 | AK10: 0 | AL10: 0 | AM10: 3000 | AN10: 5000 | AO10: 14750 | AP10: 254658.87 | AQ10: 19750 | AR10: 274408.87 | AS10: 184856.12 | AT10: 19200 | AU10: 200 | AV10: 1200 | AW10: 1200 | AX10: 1080 | AY10: 1200 | AZ10: 1600 | BA10: 24.2 | BB10: 1800 | BC10: 0 | BD10: 3920 | BE10: 0 | BF10: 0 | BG10: 0 | BH10: 0 | BI10: 0 | BJ10: 216280.32 | BK10: 0 | BL10: 216280.32 | BM10: 205234.66 | BN10: 19200 | BO10: 200 | BP10: 1200 | BQ10: 1200 | BR10: 1080 | BS10: 1200 | BT10: 1600 | BU10: 24.2 | BV10: 1800 | BW10: 0 | BX10: 3920 | BY10: 0 | BZ10: 0 | CA10: 0 | CB10: 0 | CC10: 0 | CD10: 236658.86 | CE10: 0 | CF10: 236658.86 | CG10: 590093.69 | CH10: 58800 | CI10: 700 | CJ10: 3800 | CK10: 4000 | CL10: 3700 | CM10: 4000 | CN10: 5880 | CO10: 1064.36 | CP10: 5800 | CQ10: 15000 | CR10: 11760 | CS10: 0 | CT10: 0 | CU10: 3000 | CV10: 5000 | CW10: 14750 | CX10: 707598.05 | CY10: 19750 | CZ10: 727348.05 | DA10: 89448.63 | DB10: 14750 | DC10: 104198.63 | DD10: 54070.08 | DE10: 0 | DF10: 54070.08 | DG10: 54070.08 | DH10: 0 | DI10: 54070.08 | DJ10: 57070.08 | DK10: 5000 | DL10: 62070.08 | DM10: 54070.08 | DN10: 0 | DO10: 54070.08 | DP10: 54070.08 | DQ10: 0 | DR10: 54070.08 | DS10: 54070.08 | DT10: 0 | DU10: 54070.08 | DV10: 54070.08 | DW10: 0 | DX10: 54070.08 | DY10: 54070.08 | DZ10: 0 | EA10: 54070.08 | EB10: 54070.08 | EC10: 0 | ED10: 54070.08 | EE10: 54070.08 | EF10: 0 | EG10: 54070.08 | EH10: 74448.62 | EI10: 0 | EJ10: 74448.62 | EK10: 707598.05 | EL10: 19750 | EM10: 727348.05 | EN10: 2019-01-28 | EO10: 2019-02-28 | EP10: 2019-03-28 | EQ10: 2019-04-28 | ER10: 2019-05-28 | ES10: 2019-06-28 | ET10: 2019-07-28 | EU10: 2019-08-28 | EV10: 2019-09-28 | EW10: 2019-10-28 | EX10: 2019-11-28 | EY10: 2019-11-28 | FA10: 63976.7 | FB10: 5400 | FC10: 100 | FD10: 400 | FE10: 500 | FF10: 500 | FG10: 500 | FH10: 940 | FI10: 501.93 | FJ10: 650 | FK10: 15000 | FL10: 980 | FM10: 0 | FN10: 0 | FO10: 0 | FP10: 0 | FQ10: 14750 | FR10: 89448.63 | FS10: 14750 | FT10: 104198.63 | FU10: 43598.15 | FV10: 5400 | FW10: 100 | FX10: 400 | FY10: 500 | FZ10: 500 | GA10: 500 | GB10: 940 | GC10: 501.93 | GD10: 650 | GE10: 0 | GF10: 980 | GG10: 0 | GH10: 0 | GI10: 0 | GJ10: 0 | GK10: 0 | GL10: 54070.08 | GM10: 0 | GN10: 54070.08 | GO10: 46214.03 | GP10: 4800 | GQ10: 50 | GR10: 300 | GS10: 300 | GT10: 270 | GU10: 300 | GV10: 400 | GW10: 6.05 | GX10: 450 | GY10: 0 | GZ10: 980 | HA10: 0 | HB10: 0 | HC10: 0 | HD10: 0 | HE10: 0 | HF10: 54070.08 | HG10: 0 | HH10: 54070.08 | HI10: 46214.03 | HJ10: 4800 | HK10: 50 | HL10: 300 | HM10: 300 | HN10: 270 | HO10: 300 | HP10: 400 | HQ10: 6.05 | HR10: 450 | HS10: 0 | HT10: 980 | HU10: 0 | HV10: 0 | HW10: 3000 | HX10: 5000 | HY10: 0 | HZ10: 57070.08 | IA10: 5000 | IB10: 62070.08 | IC10: 46214.03 | ID10: 4800 | IE10: 50 | IF10: 300 | IG10: 300 | IH10: 270 | II10: 300 | IJ10: 400 | IK10: 6.05 | IL10: 450 | IM10: 0 | IN10: 980 | IO10: 0 | IP10: 0 | IQ10: 0 | IR10: 0 | IS10: 0 | IT10: 54070.08 | IU10: 0 | IV10: 54070.08 | IW10: 46214.03 | IX10: 4800 | IY10: 50 | IZ10: 300 | JA10: 300 | JB10: 270 | JC10: 300 | JD10: 400 | JE10: 6.05 | JF10: 450 | JG10: 0 | JH10: 980 | JI10: 0 | JJ10: 0 | JK10: 0 | JL10: 0 | JM10: 0 | JN10: 54070.08 | JO10: 0 | JP10: 54070.08 | JQ10: 46214.03 | JR10: 4800 | JS10: 50 | JT10: 300 | JU10: 300 | JV10: 270 | JW10: 300 | JX10: 400 | JY10: 6.05 | JZ10: 450 | KA10: 0 | KB10: 980 | KC10: 0 | KD10: 0 | KE10: 0 | KF10: 0 | KG10: 0 | KH10: 54070.08 | KI10: 0 | KJ10: 54070.08 | KK10: 46214.03 | KL10: 4800 | KM10: 50 | KN10: 300 | KO10: 300 | KP10: 270 | KQ10: 300 | KR10: 400 | KS10: 6.05 | KT10: 450 | KU10: 0 | KV10: 980 | KW10: 0 | KX10: 0 | KY10: 0 | KZ10: 0 | LA10: 0 | LB10: 54070.08 | LC10: 0 | LD10: 54070.08 | LE10: 46214.03 | LF10: 4800 | LG10: 50 | LH10: 300 | LI10: 300 | LJ10: 270 | LK10: 300 | LL10: 400 | LM10: 6.05 | LN10: 450 | LO10: 0 | LP10: 980 | LQ10: 0 | LR10: 0 | LS10: 0 | LT10: 0 | LU10: 0 | LV10: 54070.08 | LW10: 0 | LX10: 54070.08 | LY10: 46214.03 | LZ10: 4800 | MA10: 50 | MB10: 300 | MC10: 300 | MD10: 270 | ME10: 300 | MF10: 400 | MG10: 6.05 | MH10: 450 | MI10: 0 | MJ10: 980 | MK10: 0 | ML10: 0 | MM10: 0 | MN10: 0 | MO10: 0 | MP10: 54070.08 | MQ10: 0 | MR10: 54070.08 | MS10: 46214.03 | MT10: 4800 | MU10: 50 | MV10: 300 | MW10: 300 | MX10: 270 | MY10: 300 | MZ10: 400 | NA10: 6.05 | NB10: 450 | NC10: 0 | ND10: 980 | NE10: 0 | NF10: 0 | NG10: 0 | NH10: 0 | NI10: 0 | NJ10: 54070.08 | NK10: 0 | NL10: 54070.08 | NM10: 66592.57 | NN10: 4800 | NO10: 50 | NP10: 300 | NQ10: 300 | NR10: 270 | NS10: 300 | NT10: 400 | NU10: 6.05 | NV10: 450 | NW10: 0 | NX10: 980 | NY10: 0 | NZ10: 0 | OA10: 0 | OB10: 0 | OC10: 0 | OD10: 74448.62 | OE10: 0 | OF10: 74448.62 | OG10: 19/2017-SE | OH10: 2017-01-02 | OI10: 2017-12-31 | OJ10: 589049.26 | OK10: 187/2017-SE | OL10: Primeiro | OM10: 2017-06-06 | ON10: 2017-12-31 | OO10: 0 | OP10: 389/2017-SE | OQ10: Segundo | OR10: 2017-11-07 | OS10: 2017-12-31 | OT10: 8000 | OU10: 182/2018-SE | OV10: Terceiro | OW10: 2018-01-01 | OX10: 2018-12-31 | OY10: 655091.96 | OZ10: 187/2019-SE | PA10: Quarto | PB10: 2019-01-01 | PC10: 2019-12-31 | PD10: 727348.05
A11: Associação Presbiteriana de Assistência Social | F11: 47.282.991/0001-06 | G11: SB 058837/2016-74 | H11: SB 058781/2016-41 | I11: SB 076693/2018-74 | J11: 08/2017-SE | K11: Quarto | L11: 188/2019-SE | M11: 2019-01-01 | N11: 2019-12-31 | O11: Rua Marques de Barbacena, nº 40 | P11: Jardim Silvina | Q11: S.B.Campo | R11: 09791-120 | S11: 4335-5791 / 4335-8956 / 4335-8429 | T11: aspas.betel@uol.com.br | U11: Banco do Brasil | V11: 6550-1 | W11: 30710-6 | Y11: 288901.12 | Z11: 22000 | AA11: 2800 | AB11: 4719.12 | AC11: 6400 | AD11: 3000 | AE11: 10702.6 | AF11: 9000 | AG11: 2000 | AH11: 12000 | AI11: 15000 | AJ11: 3816 | AK11: 0 | AL11: 0 | AM11: 3000 | AN11: 5000 | AO11: 7450 | AP11: 383338.84 | AQ11: 12450 | AR11: 395788.84 | AS11: 269116.8 | AT11: 20000 | AU11: 1600 | AV11: 4000 | AW11: 6000 | AX11: 2000 | AY11: 9405.2 | AZ11: 8000 | BA11: 2000 | BB11: 12000 | BC11: 0 | BD11: 3816 | BE11: 0 | BF11: 0 | BG11: 0 | BH11: 0 | BI11: 0 | BJ11: 337938 | BK11: 0 | BL11: 337938 | BM11: 296517.63 | BN11: 20000 | BO11: 1600 | BP11: 4000 | BQ11: 6000 | BR11: 2000 | BS11: 9405.2 | BT11: 8000 | BU11: 2000 | BV11: 12000 | BW11: 0 | BX11: 3816 | BY11: 0 | BZ11: 0 | CA11: 0 | CB11: 0 | CC11: 0 | CD11: 365338.83 | CE11: 0 | CF11: 365338.83 | CG11: 854535.55 | CH11: 62000 | CI11: 6000 | CJ11: 12719.12 | CK11: 18400 | CL11: 7000 | CM11: 29513 | CN11: 25000 | CO11: 6000 | CP11: 36000 | CQ11: 15000 | CR11: 11448 | CS11: 0 | CT11: 0 | CU11: 3000 | CV11: 5000 | CW11: 7450 | CX11: 1086615.67 | CY11: 12450 | CZ11: 1099065.67 | DA11: 126885.34 | DB11: 7450 | DC11: 134335.34 | DD11: 84484.5 | DE11: 0 | DF11: 84484.5 | DG11: 84484.5 | DH11: 0 | DI11: 84484.5 | DJ11: 87484.5 | DK11: 5000 | DL11: 92484.5 | DM11: 84484.5 | DN11: 0 | DO11: 84484.5 | DP11: 84484.5 | DQ11: 0 | DR11: 84484.5 | DS11: 84484.5 | DT11: 0 | DU11: 84484.5 | DV11: 84484.5 | DW11: 0 | DX11: 84484.5 | DY11: 84484.5 | DZ11: 0 | EA11: 84484.5 | EB11: 84484.5 | EC11: 0 | ED11: 84484.5 | EE11: 84484.5 | EF11: 0 | EG11: 84484.5 | EH11: 111885.33 | EI11: 0 | EJ11: 111885.33 | EK11: 1086615.67 | EL11: 12450 | EM11: 1099065.67 | EN11: 2019-01-28 | EO11: 2019-02-28 | EP11: 2019-03-28 | EQ11: 2019-04-28 | ER11: 2019-05-28 | ES11: 2019-06-28 | ET11: 2019-07-28 | EU11: 2019-08-28 | EV11: 2019-09-28 | EW11: 2019-10-28 | EX11: 2019-11-28 | EY11: 2019-11-28 | FA11: 90871.78 | FB11: 6000 | FC11: 1000 | FD11: 1359.56 | FE11: 1700 | FF11: 1000 | FG11: 3000 | FH11: 2500 | FI11: 500 | FJ11: 3000 | FK11: 15000 | FL11: 954 | FM11: 0 | FN11: 0 | FO11: 0 | FP11: 0 | FQ11: 7450 | FR11: 126885.34 | FS11: 7450 | FT11: 134335.34 | FU11: 63470.94 | FV11: 6000 | FW11: 1000 | FX11: 1359.56 | FY11: 1700 | FZ11: 1000 | GA11: 3000 | GB11: 2500 | GC11: 500 | GD11: 3000 | GE11: 0 | GF11: 954 | GG11: 0 | GH11: 0 | GI11: 0 | GJ11: 0 | GK11: 0 | GL11: 84484.5 | GM11: 0 | GN11: 84484.5 | GO11: 67279.2 | GP11: 5000 | GQ11: 400 | GR11: 1000 | GS11: 1500 | GT11: 500 | GU11: 2351.3 | GV11: 2000 | GW11: 500 | GX11: 3000 | GY11: 0 | GZ11: 954 | HA11: 0 | HB11: 0 | HC11: 0 | HD11: 0 | HE11: 0 | HF11: 84484.5 | HG11: 0 | HH11: 84484.5 | HI11: 67279.2 | HJ11: 5000 | HK11: 400 | HL11: 1000 | HM11: 1500 | HN11: 500 | HO11: 2351.3 | HP11: 2000 | HQ11: 500 | HR11: 3000 | HS11: 0 | HT11: 954 | HU11: 0 | HV11: 0 | HW11: 3000 | HX11: 5000 | HY11: 0 | HZ11: 87484.5 | IA11: 5000 | IB11: 92484.5 | IC11: 67279.2 | ID11: 5000 | IE11: 400 | IF11: 1000 | IG11: 1500 | IH11: 500 | II11: 2351.3 | IJ11: 2000 | IK11: 500 | IL11: 3000 | IM11: 0 | IN11: 954 | IO11: 0 | IP11: 0 | IQ11: 0 | IR11: 0 | IS11: 0 | IT11: 84484.5 | IU11: 0 | IV11: 84484.5 | IW11: 67279.2 | IX11: 5000 | IY11: 400 | IZ11: 1000 | JA11: 1500 | JB11: 500 | JC11: 2351.3 | JD11: 2000 | JE11: 500 | JF11: 3000 | JG11: 0 | JH11: 954 | JI11: 0 | JJ11: 0 | JK11: 0 | JL11: 0 | JM11: 0 | JN11: 84484.5 | JO11: 0 | JP11: 84484.5 | JQ11: 67279.2 | JR11: 5000 | JS11: 400 | JT11: 1000 | JU11: 1500 | JV11: 500 | JW11: 2351.3 | JX11: 2000 | JY11: 500 | JZ11: 3000 | KA11: 0 | KB11: 954 | KC11: 0 | KD11: 0 | KE11: 0 | KF11: 0 | KG11: 0 | KH11: 84484.5 | KI11: 0 | KJ11: 84484.5 | KK11: 67279.2 | KL11: 5000 | KM11: 400 | KN11: 1000 | KO11: 1500 | KP11: 500 | KQ11: 2351.3 | KR11: 2000 | KS11: 500 | KT11: 3000 | KU11: 0 | KV11: 954 | KW11: 0 | KX11: 0 | KY11: 0 | KZ11: 0 | LA11: 0 | LB11: 84484.5 | LC11: 0 | LD11: 84484.5 | LE11: 67279.2 | LF11: 5000 | LG11: 400 | LH11: 1000 | LI11: 1500 | LJ11: 500 | LK11: 2351.3 | LL11: 2000 | LM11: 500 | LN11: 3000 | LO11: 0 | LP11: 954 | LQ11: 0 | LR11: 0 | LS11: 0 | LT11: 0 | LU11: 0 | LV11: 84484.5 | LW11: 0 | LX11: 84484.5 | LY11: 67279.2 | LZ11: 5000 | MA11: 400 | MB11: 1000 | MC11: 1500 | MD11: 500 | ME11: 2351.3 | MF11: 2000 | MG11: 500 | MH11: 3000 | MI11: 0 | MJ11: 954 | MK11: 0 | ML11: 0 | MM11: 0 | MN11: 0 | MO11: 0 | MP11: 84484.5 | MQ11: 0 | MR11: 84484.5 | MS11: 67279.2 | MT11: 5000 | MU11: 400 | MV11: 1000 | MW11: 1500 | MX11: 500 | MY11: 2351.3 | MZ11: 2000 | NA11: 500 | NB11: 3000 | NC11: 0 | ND11: 954 | NE11: 0 | NF11: 0 | NG11: 0 | NH11: 0 | NI11: 0 | NJ11: 84484.5 | NK11: 0 | NL11: 84484.5 | NM11: 94680.03 | NN11: 5000 | NO11: 400 | NP11: 1000 | NQ11: 1500 | NR11: 500 | NS11: 2351.3 | NT11: 2000 | NU11: 500 | NV11: 3000 | NW11: 0 | NX11: 954 | NY11: 0 | NZ11: 0 | OA11: 0 | OB11: 0 | OC11: 0 | OD11: 111885.33 | OE11: 0 | OF11: 111885.33 | OG11: 08/2017-SE | OH11: 2017-01-02 | OI11: 2017-12-31 | OJ11: 916853.66 | OK11: 176/2017-SE | OL11: Primeiro | OM11: 2017-06-06 | ON11: 2017-12-31 | OO11: 0 | OP11: 378/2017-SE | OQ11: Segundo | OR11: 2017-11-07 | OS11: 2017-12-31 | OT11: 8000 | OU11: 183/2018-SE | OV11: Terceiro | OW11: 2018-01-01 | OX11: 2018-12-31 | OY11: 1004368.68 | OZ11: 188/2019-SE | PA11: Quarto | PB11: 2019-01-01 | PC11: 2019-12-31 | PD11: 1099065.67
A12: Congregação de São João Batista | F12: 17.257.510/0007-37 | G12: SB 058844/2016-27 | H12: SB 058788/2016-68 | I12: SB 076700/2018-44 | J12: 09/2017-SE | K12: Quinto | L12: 189/2019-SE | M12: 2019-01-01 | N12: 2019-12-31 | O12: Rua Dr. José Ória, nº 444 | P12: Planalto | Q12: S.B.Campo | R12: 09890-030 | S12: 4341-6006 | T12: ccmeninojesus@uol.com.br | U12: Caixa Econômica Federal | V12: 3118 | W12: 00001410-3 | Y12: 241809.52 | Z12: 7727.06 | AA12: 3600 | AB12: 1400 | AC12: 1200 | AD12: 400 | AE12: 800 | AF12: 5000 | AG12: 2500 | AH12: 2600 | AI12: 15000 | AJ12: 0 | AK12: 400 | AL12: 0 | AM12: 3000 | AN12: 5000 | AO12: 14480 | AP12: 285436.58 | AQ12: 19480 | AR12: 304916.58 | AS12: 222873.64 | AT12: 10119.32 | AU12: 1200 | AV12: 1200 | AW12: 800 | AX12: 0 | AY12: 0 | AZ12: 4000 | BA12: 0 | BB12: 1600 | BC12: 0 | BD12: 0 | BE12: 400 | BF12: 0 | BG12: 0 | BH12: 0 | BI12: 0 | BJ12: 242192.96 | BK12: 0 | BL12: 242192.96 | BM12: 248117.25 | BN12: 10119.32 | BO12: 1200 | BP12: 1200 | BQ12: 800 | BR12: 0 | BS12: 0 | BT12: 4000 | BU12: 0 | BV12: 1600 | BW12: 0 | BX12: 0 | BY12: 400 | BZ12: 0 | CA12: 0 | CB12: 0 | CC12: 0 | CD12: 267436.57 | CE12: 0 | CF12: 267436.57 | CG12: 712800.41 | CH12: 27965.7 | CI12: 6000 | CJ12: 3800 | CK12: 2800 | CL12: 400 | CM12: 800 | CN12: 13000 | CO12: 2500 | CP12: 5800 | CQ12: 15000 | CR12: 0 | CS12: 1200 | CT12: 0 | CU12: 3000 | CV12: 5000 | CW12: 14480 | CX12: 795066.11 | CY12: 19480 | CZ12: 814546.11 | DA12: 100791.86 | DB12: 14480 | DC12: 115271.86 | DD12: 60548.24 | DE12: 0 | DF12: 60548.24 | DG12: 60548.24 | DH12: 0 | DI12: 60548.24 | DJ12: 63548.24 | DK12: 5000 | DL12: 68548.24 | DM12: 60548.24 | DN12: 0 | DO12: 60548.24 | DP12: 60548.24 | DQ12: 0 | DR12: 60548.24 | DS12: 60548.24 | DT12: 0 | DU12: 60548.24 | DV12: 60548.24 | DW12: 0 | DX12: 60548.24 | DY12: 60548.24 | DZ12: 0 | EA12: 60548.24 | EB12: 60548.24 | EC12: 0 | ED12: 60548.24 | EE12: 60548.24 | EF12: 0 | EG12: 60548.24 | EH12: 85791.85 | EI12: 0 | EJ12: 85791.85 | EK12: 795066.11 | EL12: 19480 | EM12: 814546.11 | EN12: 2019-01-28 | EO12: 2019-02-28 | EP12: 2019-03-28 | EQ12: 2019-04-28 | ER12: 2019-05-28 | ES12: 2019-06-28 | ET12: 2019-07-28 | EU12: 2019-08-28 | EV12: 2019-09-28 | EW12: 2019-10-28 | EX12: 2019-11-28 | EY12: 2019-11-28 | FA12: 77808.16 | FB12: 1333.7 | FC12: 1500 | FD12: 400 | FE12: 400 | FF12: 200 | FG12: 400 | FH12: 1500 | FI12: 1250 | FJ12: 900 | FK12: 15000 | FL12: 0 | FM12: 100 | FN12: 0 | FO12: 0 | FP12: 0 | FQ12: 14480 | FR12: 100791.86 | FS12: 14480 | FT12: 115271.86 | FU12: 52564.54 | FV12: 1333.7 | FW12: 1500 | FX12: 400 | FY12: 400 | FZ12: 200 | GA12: 400 | GB12: 1500 | GC12: 1250 | GD12: 900 | GE12: 0 | GF12: 0 | GG12: 100 | GH12: 0 | GI12: 0 | GJ12: 0 | GK12: 0 | GL12: 60548.24 | GM12: 0 | GN12: 60548.24 | GO12: 55718.41 | GP12: 2529.83 | GQ12: 300 | GR12: 300 | GS12: 200 | GT12: 0 | GU12: 0 | GV12: 1000 | GW12: 0 | GX12: 400 | GY12: 0 | GZ12: 0 | HA12: 100 | HB12: 0 | HC12: 0 | HD12: 0 | HE12: 0 | HF12: 60548.24 | HG12: 0 | HH12: 60548.24 | HI12: 55718.41 | HJ12: 2529.83 | HK12: 300 | HL12: 300 | HM12: 200 | HN12: 0 | HO12: 0 | HP12: 1000 | HQ12: 0 | HR12: 400 | HS12: 0 | HT12: 0 | HU12: 100 | HV12: 0 | HW12: 3000 | HX12: 5000 | HY12: 0 | HZ12: 63548.24 | IA12: 5000 | IB12: 68548.24 | IC12: 55718.41 | ID12: 2529.83 | IE12: 300 | IF12: 300 | IG12: 200 | IH12: 0 | II12: 0 | IJ12: 1000 | IK12: 0 | IL12: 400 | IM12: 0 | IN12: 0 | IO12: 100 | IP12: 0 | IQ12: 0 | IR12: 0 | IS12: 0 | IT12: 60548.24 | IU12: 0 | IV12: 60548.24 | IW12: 55718.41 | IX12: 2529.83 | IY12: 300 | IZ12: 300 | JA12: 200 | JB12: 0 | JC12: 0 | JD12: 1000 | JE12: 0 | JF12: 400 | JG12: 0 | JH12: 0 | JI12: 100 | JJ12: 0 | JK12: 0 | JL12: 0 | JM12: 0 | JN12: 60548.24 | JO12: 0 | JP12: 60548.24 | JQ12: 55718.41 | JR12: 2529.83 | JS12: 300 | JT12: 300 | JU12: 200 | JV12: 0 | JW12: 0 | JX12: 1000 | JY12: 0 | JZ12: 400 | KA12: 0 | KB12: 0 | KC12: 100 | KD12: 0 | KE12: 0 | KF12: 0 | KG12: 0 | KH12: 60548.24 | KI12: 0 | KJ12: 60548.24 | KK12: 55718.41 | KL12: 2529.83 | KM12: 300 | KN12: 300 | KO12: 200 | KP12: 0 | KQ12: 0 | KR12: 1000 | KS12: 0 | KT12: 400 | KU12: 0 | KV12: 0 | KW12: 100 | KX12: 0 | KY12: 0 | KZ12: 0 | LA12: 0 | LB12: 60548.24 | LC12: 0 | LD12: 60548.24 | LE12: 55718.41 | LF12: 2529.83 | LG12: 300 | LH12: 300 | LI12: 200 | LJ12: 0 | LK12: 0 | LL12: 1000 | LM12: 0 | LN12: 400 | LO12: 0 | LP12: 0 | LQ12: 100 | LR12: 0 | LS12: 0 | LT12: 0 | LU12: 0 | LV12: 60548.24 | LW12: 0 | LX12: 60548.24 | LY12: 55718.41 | LZ12: 2529.83 | MA12: 300 | MB12: 300 | MC12: 200 | MD12: 0 | ME12: 0 | MF12: 1000 | MG12: 0 | MH12: 400 | MI12: 0 | MJ12: 0 | MK12: 100 | ML12: 0 | MM12: 0 | MN12: 0 | MO12: 0 | MP12: 60548.24 | MQ12: 0 | MR12: 60548.24 | MS12: 55718.41 | MT12: 2529.83 | MU12: 300 | MV12: 300 | MW12: 200 | MX12: 0 | MY12: 0 | MZ12: 1000 | NA12: 0 | NB12: 400 | NC12: 0 | ND12: 0 | NE12: 100 | NF12: 0 | NG12: 0 | NH12: 0 | NI12: 0 | NJ12: 60548.24 | NK12: 0 | NL12: 60548.24 | NM12: 80962.02 | NN12: 2529.83 | NO12: 300 | NP12: 300 | NQ12: 200 | NR12: 0 | NS12: 0 | NT12: 1000 | NU12: 0 | NV12: 400 | NW12: 0 | NX12: 0 | NY12: 100 | NZ12: 0 | OA12: 0 | OB12: 0 | OC12: 0 | OD12: 85791.85 | OE12: 0 | OF12: 85791.85 | OG12: 09/2017-SE | OH12: 2017-01-02 | OI12: 2017-12-31 | OJ12: 474161.51 | OK12: 177/2017-SE | OL12: Primeiro | OM12: 2017-06-06 | ON12: 2017-12-31 | OO12: 0 | OP12: 379/2017-SE | OQ12: Segundo | OR12: 2017-11-07 | OS12: 2017-12-31 | OT12: 8000 | OU12: 392/2017-SE | OV12: Terceiro | OW12: 2017-12-22 | OX12: 2017-12-31 | OY12: 3555.41 | OZ12: 184/2018-SE | PA12: Quarto | PB12: 2018-01-01 | PC12: 2018-12-31 | PD12: 731908.08 | PE12: 189/2019-SE | PF12: Quinto | PG12: 2019-01-01 | PH12: 2019-12-31 | PI12: 814546.11
A13: Creche Jesus de Nazareth I | F13: 00.444.286/0001-02 | G13: SB 058846/2016-49 | H13: SB 058789/2016-29 | I13: SB 076702/2018-66 | J13: 10/2017-SE | K13: Quarto | L13: 190/2019-SE | M13: 2019-01-01 | N13: 2019-12-31 | O13: Rua Rita Mendes de Oliveira, nº 419 | P13: Jardim das Orquídeas | Q13: S.B.Campo | R13: 09854-310 | S13: 4358-3006 e 4358-2298 | T13: crechejesusdenazarethum@gmail.com | U13: Banco do Brasil | V13: 1561-x | W13: 42564-8 | Y13: 231869.18 | Z13: 18000 | AA13: 3800 | AB13: 3400 | AC13: 2800.3 | AD13: 3170.3 | AE13: 3626.84 | AF13: 3400 | AG13: 2000 | AH13: 600 | AI13: 15000 | AJ13: 3748 | AK13: 300 | AL13: 0 | AM13: 3000 | AN13: 5000 | AO13: 10900 | AP13: 294714.62 | AQ13: 15900 | AR13: 310614.62 | AS13: 213524.76 | AT13: 18000 | AU13: 3600 | AV13: 2800 | AW13: 1600.6 | AX13: 1200 | AY13: 4053.68 | AZ13: 2800 | BA13: 400 | BB13: 400 | BC13: 0 | BD13: 3748 | BE13: 200 | BF13: 0 | BG13: 0 | BH13: 0 | BI13: 0 | BJ13: 252327.04 | BK13: 0 | BL13: 252327.04 | BM13: 237912.34 | BN13: 18000 | BO13: 3600 | BP13: 2800 | BQ13: 1600.6 | BR13: 1200 | BS13: 4053.68 | BT13: 2800 | BU13: 400 | BV13: 400 | BW13: 0 | BX13: 3748 | BY13: 200 | BZ13: 0 | CA13: 0 | CB13: 0 | CC13: 0 | CD13: 276714.62 | CE13: 0 | CF13: 276714.62 | CG13: 683306.28 | CH13: 54000 | CI13: 11000 | CJ13: 9000 | CK13: 6001.5 | CL13: 5570.3 | CM13: 11734.2 | CN13: 9000 | CO13: 2800 | CP13: 1400 | CQ13: 15000 | CR13: 11244 | CS13: 700 | CT13: 0 | CU13: 3000 | CV13: 5000 | CW13: 10900 | CX13: 823756.28 | CY13: 15900 | CZ13: 839656.28 | DA13: 102469.34 | DB13: 10900 | DC13: 113369.34 | DD13: 63081.76 | DE13: 0 | DF13: 63081.76 | DG13: 63081.76 | DH13: 0 | DI13: 63081.76 | DJ13: 66081.76 | DK13: 5000 | DL13: 71081.76 | DM13: 63081.76 | DN13: 0 | DO13: 63081.76 | DP13: 63081.76 | DQ13: 0 | DR13: 63081.76 | DS13: 63081.76 | DT13: 0 | DU13: 63081.76 | DV13: 63081.76 | DW13: 0 | DX13: 63081.76 | DY13: 63081.76 | DZ13: 0 | EA13: 63081.76 | EB13: 63081.76 | EC13: 0 | ED13: 63081.76 | EE13: 63081.76 | EF13: 0 | EG13: 63081.76 | EH13: 87469.34 | EI13: 0 | EJ13: 87469.34 | EK13: 823756.28 | EL13: 15900 | EM13: 839656.28 | EN13: 2019-01-28 | EO13: 2019-02-28 | EP13: 2019-03-28 | EQ13: 2019-04-28 | ER13: 2019-05-28 | ES13: 2019-06-28 | ET13: 2019-07-28 | EU13: 2019-08-28 | EV13: 2019-09-28 | EW13: 2019-10-28 | EX13: 2019-11-28 | EY13: 2019-11-28 | FA13: 74747.19 | FB13: 4500 | FC13: 1000 | FD13: 1000 | FE13: 1000 | FF13: 1285.15 | FG13: 800 | FH13: 1000 | FI13: 900 | FJ13: 200 | FK13: 15000 | FL13: 937 | FM13: 100 | FN13: 0 | FO13: 0 | FP13: 0 | FQ13: 10900 | FR13: 102469.34 | FS13: 10900 | FT13: 113369.34 | FU13: 50359.61 | FV13: 4500 | FW13: 1000 | FX13: 1000 | FY13: 1000 | FZ13: 1285.15 | GA13: 800 | GB13: 1000 | GC13: 900 | GD13: 200 | GE13: 0 | GF13: 937 | GG13: 100 | GH13: 0 | GI13: 0 | GJ13: 0 | GK13: 0 | GL13: 63081.76 | GM13: 0 | GN13: 63081.76 | GO13: 53381.19 | GP13: 4500 | GQ13: 900 | GR13: 700 | GS13: 400.15 | GT13: 300 | GU13: 1013.42 | GV13: 700 | GW13: 100 | GX13: 100 | GY13: 0 | GZ13: 937 | HA13: 50 | HB13: 0 | HC13: 0 | HD13: 0 | HE13: 0 | HF13: 63081.76 | HG13: 0 | HH13: 63081.76 | HI13: 53381.19 | HJ13: 4500 | HK13: 900 | HL13: 700 | HM13: 400.15 | HN13: 300 | HO13: 1013.42 | HP13: 700 | HQ13: 100 | HR13: 100 | HS13: 0 | HT13: 937 | HU13: 50 | HV13: 0 | HW13: 3000 | HX13: 5000 | HY13: 0 | HZ13: 66081.76 | IA13: 5000 | IB13: 71081.76 | IC13: 53381.19 | ID13: 4500 | IE13: 900 | IF13: 700 | IG13: 400.15 | IH13: 300 | II13: 1013.42 | IJ13: 700 | IK13: 100 | IL13: 100 | IM13: 0 | IN13: 937 | IO13: 50 | IP13: 0 | IQ13: 0 | IR13: 0 | IS13: 0 | IT13: 63081.76 | IU13: 0 | IV13: 63081.76 | IW13: 53381.19 | IX13: 4500 | IY13: 900 | IZ13: 700 | JA13: 400.15 | JB13: 300 | JC13: 1013.42 | JD13: 700 | JE13: 100 | JF13: 100 | JG13: 0 | JH13: 937 | JI13: 50 | JJ13: 0 | JK13: 0 | JL13: 0 | JM13: 0 | JN13: 63081.76 | JO13: 0 | JP13: 63081.76 | JQ13: 53381.19 | JR13: 4500 | JS13: 900 | JT13: 700 | JU13: 400.15 | JV13: 300 | JW13: 1013.42 | JX13: 700 | JY13: 100 | JZ13: 100 | KA13: 0 | KB13: 937 | KC13: 50 | KD13: 0 | KE13: 0 | KF13: 0 | KG13: 0 | KH13: 63081.76 | KI13: 0 | KJ13: 63081.76 | KK13: 53381.19 | KL13: 4500 | KM13: 900 | KN13: 700 | KO13: 400.15 | KP13: 300 | KQ13: 1013.42 | KR13: 700 | KS13: 100 | KT13: 100 | KU13: 0 | KV13: 937 | KW13: 50 | KX13: 0 | KY13: 0 | KZ13: 0 | LA13: 0 | LB13: 63081.76 | LC13: 0 | LD13: 63081.76 | LE13: 53381.19 | LF13: 4500 | LG13: 900 | LH13: 700 | LI13: 400.15 | LJ13: 300 | LK13: 1013.42 | LL13: 700 | LM13: 100 | LN13: 100 | LO13: 0 | LP13: 937 | LQ13: 50 | LR13: 0 | LS13: 0 | LT13: 0 | LU13: 0 | LV13: 63081.76 | LW13: 0 | LX13: 63081.76 | LY13: 53381.19 | LZ13: 4500 | MA13: 900 | MB13: 700 | MC13: 400.15 | MD13: 300 | ME13: 1013.42 | MF13: 700 | MG13: 100 | MH13: 100 | MI13: 0 | MJ13: 937 | MK13: 50 | ML13: 0 | MM13: 0 | MN13: 0 | MO13: 0 | MP13: 63081.76 | MQ13: 0 | MR13: 63081.76 | MS13: 53381.19 | MT13: 4500 | MU13: 900 | MV13: 700 | MW13: 400.15 | MX13: 300 | MY13: 1013.42 | MZ13: 700 | NA13: 100 | NB13: 100 | NC13: 0 | ND13: 937 | NE13: 50 | NF13: 0 | NG13: 0 | NH13: 0 | NI13: 0 | NJ13: 63081.76 | NK13: 0 | NL13: 63081.76 | NM13: 77768.77 | NN13: 4500 | NO13: 900 | NP13: 700 | NQ13: 400.15 | NR13: 300 | NS13: 1013.42 | NT13: 700 | NU13: 100 | NV13: 100 | NW13: 0 | NX13: 937 | NY13: 50 | NZ13: 0 | OA13: 0 | OB13: 0 | OC13: 0 | OD13: 87469.34 | OE13: 0 | OF13: 87469.34 | OG13: 10/2017-SE | OH13: 2017-01-02 | OI13: 2017-12-31 | OJ13: 711688.98 | OK13: 178/2017-SE | OL13: Primeiro | OM13: 2017-06-06 | ON13: 2017-12-31 | OO13: 0 | OP13: 380/2017-SE | OQ13: Segundo | OR13: 2017-11-07 | OS13: 2017-12-31 | OT13: 8000 | OU13: 185/2018-SE | OV13: Terceiro | OW13: 2018-01-01 | OX13: 2018-12-31 | OY13: 770970.08 | OZ13: 190/2019-SE | PA13: Quarto | PB13: 2019-01-01 | PC13: 2019-12-31 | PD13: 839656.28
A14: Creche Jesus de Nazareth II | F14: 00.444.286/0002-85 | G14: SB 058849/2016-22 | H14: SB 058791/2016-77 | I14: SB 076706/2018-00 | J14: 11/2017-SE | K14: Quarto | L14: 191/2019-SE | M14: 2019-01-01 | N14: 2019-12-31 | O14: Rua Elizabeth Lobo Garcia, 1315 | P14: Jardim Las Palmas | Q14: S.B.Campo | R14: 09850-130 | S14: 4357-9481 | T14: crechenazarethdois@gmail.com | U14: Banco do Brasil | V14: 1561-x | W14: 42566-4 | Y14: 317395 | Z14: 20000 | AA14: 5000 | AB14: 7000 | AC14: 3600 | AD14: 5000 | AE14: 6174.34 | AF14: 6200 | AG14: 2200 | AH14: 1859.16 | AI14: 15000 | AJ14: 3748 | AK14: 600 | AL14: 0 | AM14: 3000 | AN14: 5000 | AO14: 11000 | AP14: 396776.5 | AQ14: 16000 | AR14: 412776.5 | AS14: 292730.6 | AT14: 18800 | AU14: 4000 | AV14: 4000 | AW14: 3200 | AX14: 4000 | AY14: 7148.68 | AZ14: 6000 | BA14: 400 | BB14: 1200 | BC14: 0 | BD14: 3748 | BE14: 600 | BF14: 0 | BG14: 0 | BH14: 0 | BI14: 0 | BJ14: 345827.28 | BK14: 0 | BL14: 345827.28 | BM14: 325679.81 | BN14: 18800 | BO14: 4000 | BP14: 4000 | BQ14: 3200 | BR14: 4000 | BS14: 7148.68 | BT14: 6000 | BU14: 400 | BV14: 1200 | BW14: 0 | BX14: 3748 | BY14: 600 | BZ14: 0 | CA14: 0 | CB14: 0 | CC14: 0 | CD14: 378776.49 | CE14: 0 | CF14: 378776.49 | CG14: 935805.41 | CH14: 57600 | CI14: 13000 | CJ14: 15000 | CK14: 10000 | CL14: 13000 | CM14: 20471.7 | CN14: 18200 | CO14: 3000 | CP14: 4259.16 | CQ14: 15000 | CR14: 11244 | CS14: 1800 | CT14: 0 | CU14: 3000 | CV14: 5000 | CW14: 11000 | CX14: 1121380.27 | CY14: 16000 | CZ14: 1137380.27 | DA14: 134406.04 | DB14: 11000 | DC14: 145406.04 | DD14: 86456.82 | DE14: 0 | DF14: 86456.82 | DG14: 86456.82 | DH14: 0 | DI14: 86456.82 | DJ14: 89456.82 | DK14: 5000 | DL14: 94456.82 | DM14: 86456.82 | DN14: 0 | DO14: 86456.82 | DP14: 86456.82 | DQ14: 0 | DR14: 86456.82 | DS14: 86456.82 | DT14: 0 | DU14: 86456.82 | DV14: 86456.82 | DW14: 0 | DX14: 86456.82 | DY14: 86456.82 | DZ14: 0 | EA14: 86456.82 | EB14: 86456.82 | EC14: 0 | ED14: 86456.82 | EE14: 86456.82 | EF14: 0 | EG14: 86456.82 | EH14: 119406.03 | EI14: 0 | EJ14: 119406.03 | EK14: 1121380.27 | EL14: 16000 | EM14: 1137380.27 | EN14: 2019-01-28 | EO14: 2019-02-28 | EP14: 2019-03-28 | EQ14: 2019-04-28 | ER14: 2019-05-28 | ES14: 2019-06-28 | ET14: 2019-07-28 | EU14: 2019-08-28 | EV14: 2019-09-28 | EW14: 2019-10-28 | EX14: 2019-11-28 | EY14: 2019-11-28 | FA14: 101989.46 | FB14: 5300 | FC14: 1500 | FD14: 2500 | FE14: 1000 | FF14: 1500 | FG14: 1300 | FH14: 1600 | FI14: 1000 | FJ14: 629.58 | FK14: 15000 | FL14: 937 | FM14: 150 | FN14: 0 | FO14: 0 | FP14: 0 | FQ14: 11000 | FR14: 134406.04 | FS14: 11000 | FT14: 145406.04 | FU14: 69040.24 | FV14: 5300 | FW14: 1500 | FX14: 2500 | FY14: 1000 | FZ14: 1500 | GA14: 1300 | GB14: 1600 | GC14: 1000 | GD14: 629.58 | GE14: 0 | GF14: 937 | GG14: 150 | GH14: 0 | GI14: 0 | GJ14: 0 | GK14: 0 | GL14: 86456.82 | GM14: 0 | GN14: 86456.82 | GO14: 73182.65 | GP14: 4700 | GQ14: 1000 | GR14: 1000 | GS14: 800 | GT14: 1000 | GU14: 1787.17 | GV14: 1500 | GW14: 100 | GX14: 300 | GY14: 0 | GZ14: 937 | HA14: 150 | HB14: 0 | HC14: 0 | HD14: 0 | HE14: 0 | HF14: 86456.82 | HG14: 0 | HH14: 86456.82 | HI14: 73182.65 | HJ14: 4700 | HK14: 1000 | HL14: 1000 | HM14: 800 | HN14: 1000 | HO14: 1787.17 | HP14: 1500 | HQ14: 100 | HR14: 300 | HS14: 0 | HT14: 937 | HU14: 150 | HV14: 0 | HW14: 3000 | HX14: 5000 | HY14: 0 | HZ14: 89456.82 | IA14: 5000 | IB14: 94456.82 | IC14: 73182.65 | ID14: 4700 | IE14: 1000 | IF14: 1000 | IG14: 800 | IH14: 1000 | II14: 1787.17 | IJ14: 1500 | IK14: 100 | IL14: 300 | IM14: 0 | IN14: 937 | IO14: 150 | IP14: 0 | IQ14: 0 | IR14: 0 | IS14: 0 | IT14: 86456.82 | IU14: 0 | IV14: 86456.82 | IW14: 73182.65 | IX14: 4700 | IY14: 1000 | IZ14: 1000 | JA14: 800 | JB14: 1000 | JC14: 1787.17 | JD14: 1500 | JE14: 100 | JF14: 300 | JG14: 0 | JH14: 937 | JI14: 150 | JJ14: 0 | JK14: 0 | JL14: 0 | JM14: 0 | JN14: 86456.82 | JO14: 0 | JP14: 86456.82 | JQ14: 73182.65 | JR14: 4700 | JS14: 1000 | JT14: 1000 | JU14: 800 | JV14: 1000 | JW14: 1787.17 | JX14: 1500 | JY14: 100 | JZ14: 300 | KA14: 0 | KB14: 937 | KC14: 150 | KD14: 0 | KE14: 0 | KF14: 0 | KG14: 0 | KH14: 86456.82 | KI14: 0 | KJ14: 86456.82 | KK14: 73182.65 | KL14: 4700 | KM14: 1000 | KN14: 1000 | KO14: 800 | KP14: 1000 | KQ14: 1787.17 | KR14: 1500 | KS14: 100 | KT14: 300 | KU14: 0 | KV14: 937 | KW14: 150 | KX14: 0 | KY14: 0 | KZ14: 0 | LA14: 0 | LB14: 86456.82 | LC14: 0 | LD14: 86456.82 | LE14: 73182.65 | LF14: 4700 | LG14: 1000 | LH14: 1000 | LI14: 800 | LJ14: 1000 | LK14: 1787.17 | LL14: 1500 | LM14: 100 | LN14: 300 | LO14: 0 | LP14: 937 | LQ14: 150 | LR14: 0 | LS14: 0 | LT14: 0 | LU14: 0 | LV14: 86456.82 | LW14: 0 | LX14: 86456.82 | LY14: 73182.65 | LZ14: 4700 | MA14: 1000 | MB14: 1000 | MC14: 800 | MD14: 1000 | ME14: 1787.17 | MF14: 1500 | MG14: 100 | MH14: 300 | MI14: 0 | MJ14: 937 | MK14: 150 | ML14: 0 | MM14: 0 | MN14: 0 | MO14: 0 | MP14: 86456.82 | MQ14: 0 | MR14: 86456.82 | MS14: 73182.65 | MT14: 4700 | MU14: 1000 | MV14: 1000 | MW14: 800 | MX14: 1000 | MY14: 1787.17 | MZ14: 1500 | NA14: 100 | NB14: 300 | NC14: 0 | ND14: 937 | NE14: 150 | NF14: 0 | NG14: 0 | NH14: 0 | NI14: 0 | NJ14: 86456.82 | NK14: 0 | NL14: 86456.82 | NM14: 106131.86 | NN14: 4700 | NO14: 1000 | NP14: 1000 | NQ14: 800 | NR14: 1000 | NS14: 1787.17 | NT14: 1500 | NU14: 100 | NV14: 300 | NW14: 0 | NX14: 937 | NY14: 150 | NZ14: 0 | OA14: 0 | OB14: 0 | OC14: 0 | OD14: 119406.03 | OE14: 0 | OF14: 119406.03 | OG14: 11/2017-SE | OH14: 2017-01-02 | OI14: 2017-12-31 | OJ14: 954440.98 | OK14: 179/2017-SE | OL14: Primeiro | OM14: 2017-06-06 | ON14: 2017-12-31 | OO14: 0 | OP14: 381/2017-SE | OQ14: Segundo | OR14: 2017-11-07 | OS14: 2017-12-31 | OT14: 8000 | OU14: 186/2018-SE | OV14: Terceiro | OW14: 2018-01-01 | OX14: 2018-12-31 | OY14: 1061061.78 | OZ14: 191/2019-SE | PA14: Quarto | PB14: 2019-01-01 | PC14: 2019-12-31 | PD14: 1137380.27
A15: Creche Jesus de Nazareth III | F15: 00.444.286/0003-66 | G15: SB 058850/2016-19 | H15: SB 058792/2016-38 | I15: SB 076719/2018-19 | J15: 12/2017-SE | K15: Quarto | L15: 192/2019-SE | M15: 2019-01-01 | N15: 2019-12-31 | O15: Rua Dom Oscar Romero, 114 | P15: Jardim das Orquídeas | Q15: S.B.Campo | R15: 09854-350 | S15: 4357-7335 | T15: crechejesusdenazarethtres@yahoo.com.br | U15: Banco do Brasil | V15: 1561-x | W15: 42567-2 | Y15: 180462.8 | Z15: 14000 | AA15: 5000 | AB15: 7000 | AC15: 3869.76 | AD15: 5000 | AE15: 6971.96 | AF15: 5400 | AG15: 1400 | AH15: 2000 | AI15: 15000 | AJ15: 3748 | AK15: 600 | AL15: 22582.84 | AM15: 3000 | AN15: 5000 | AO15: 9680 | AP15: 276035.36 | AQ15: 14680 | AR15: 290715.36 | AS15: 165988.4 | AT15: 12000 | AU15: 2000 | AV15: 6000 | AW15: 1600 | AX15: 6000 | AY15: 10343.92 | AZ15: 4800 | BA15: 1200 | BB15: 2000 | BC15: 0 | BD15: 3748 | BE15: 600 | BF15: 22582.84 | BG15: 0 | BH15: 0 | BI15: 0 | BJ15: 238863.16 | BK15: 0 | BL15: 238863.16 | BM15: 185160.59 | BN15: 12000 | BO15: 2000 | BP15: 6000 | BQ15: 1600 | BR15: 6000 | BS15: 10343.92 | BT15: 4800 | BU15: 1200 | BV15: 2000 | BW15: 0 | BX15: 3748 | BY15: 600 | BZ15: 22582.84 | CA15: 0 | CB15: 0 | CC15: 0 | CD15: 258035.35 | CE15: 0 | CF15: 258035.35 | CG15: 531611.79 | CH15: 38000 | CI15: 9000 | CJ15: 19000 | CK15: 7069.76 | CL15: 17000 | CM15: 27659.8 | CN15: 15000 | CO15: 3800 | CP15: 6000 | CQ15: 15000 | CR15: 11244 | CS15: 1800 | CT15: 67748.52 | CU15: 3000 | CV15: 5000 | CW15: 9680 | CX15: 772933.87 | CY15: 14680 | CZ15: 787613.87 | DA15: 93887.99 | DB15: 9680 | DC15: 103567.99 | DD15: 59715.79 | DE15: 0 | DF15: 59715.79 | DG15: 59715.79 | DH15: 0 | DI15: 59715.79 | DJ15: 62715.79 | DK15: 5000 | DL15: 67715.79 | DM15: 59715.79 | DN15: 0 | DO15: 59715.79 | DP15: 59715.79 | DQ15: 0 | DR15: 59715.79 | DS15: 59715.79 | DT15: 0 | DU15: 59715.79 | DV15: 59715.79 | DW15: 0 | DX15: 59715.79 | DY15: 59715.79 | DZ15: 0 | EA15: 59715.79 | EB15: 59715.79 | EC15: 0 | ED15: 59715.79 | EE15: 59715.79 | EF15: 0 | EG15: 59715.79 | EH15: 78887.98 | EI15: 0 | EJ15: 78887.98 | EK15: 772933.87 | EL15: 14680 | EM15: 787613.87 | EN15: 2019-01-28 | EO15: 2019-02-28 | EP15: 2019-03-28 | EQ15: 2019-04-28 | ER15: 2019-05-28 | ES15: 2019-06-28 | ET15: 2019-07-28 | EU15: 2019-08-28 | EV15: 2019-09-28 | EW15: 2019-10-28 | EX15: 2019-11-28 | EY15: 2019-11-28 | FA15: 58320.4 | FB15: 4000 | FC15: 2000 | FD15: 2000 | FE15: 1534.88 | FF15: 1000 | FG15: 900 | FH15: 1500 | FI15: 400 | FJ15: 500 | FK15: 15000 | FL15: 937 | FM15: 150 | FN15: 5645.71 | FO15: 0 | FP15: 0 | FQ15: 9680 | FR15: 93887.99 | FS15: 9680 | FT15: 103567.99 | FU15: 39148.2 | FV15: 4000 | FW15: 2000 | FX15: 2000 | FY15: 1534.88 | FZ15: 1000 | GA15: 900 | GB15: 1500 | GC15: 400 | GD15: 500 | GE15: 0 | GF15: 937 | GG15: 150 | GH15: 5645.71 | GI15: 0 | GJ15: 0 | GK15: 0 | GL15: 59715.79 | GM15: 0 | GN15: 59715.79 | GO15: 41497.1 | GP15: 3000 | GQ15: 500 | GR15: 1500 | GS15: 400 | GT15: 1500 | GU15: 2585.98 | GV15: 1200 | GW15: 300 | GX15: 500 | GY15: 0 | GZ15: 937 | HA15: 150 | HB15: 5645.71 | HC15: 0 | HD15: 0 | HE15: 0 | HF15: 59715.79 | HG15: 0 | HH15: 59715.79 | HI15: 41497.1 | HJ15: 3000 | HK15: 500 | HL15: 1500 | HM15: 400 | HN15: 1500 | HO15: 2585.98 | HP15: 1200 | HQ15: 300 | HR15: 500 | HS15: 0 | HT15: 937 | HU15: 150 | HV15: 5645.71 | HW15: 3000 | HX15: 5000 | HY15: 0 | HZ15: 62715.79 | IA15: 5000 | IB15: 67715.79 | IC15: 41497.1 | ID15: 3000 | IE15: 500 | IF15: 1500 | IG15: 400 | IH15: 1500 | II15: 2585.98 | IJ15: 1200 | IK15: 300 | IL15: 500 | IM15: 0 | IN15: 937 | IO15: 150 | IP15: 5645.71 | IQ15: 0 | IR15: 0 | IS15: 0 | IT15: 59715.79 | IU15: 0 | IV15: 59715.79 | IW15: 41497.1 | IX15: 3000 | IY15: 500 | IZ15: 1500 | JA15: 400 | JB15: 1500 | JC15: 2585.98 | JD15: 1200 | JE15: 300 | JF15: 500 | JG15: 0 | JH15: 937 | JI15: 150 | JJ15: 5645.71 | JK15: 0 | JL15: 0 | JM15: 0 | JN15: 59715.79 | JO15: 0 | JP15: 59715.79 | JQ15: 41497.1 | JR15: 3000 | JS15: 500 | JT15: 1500 | JU15: 400 | JV15: 1500 | JW15: 2585.98 | JX15: 1200 | JY15: 300 | JZ15: 500 | KA15: 0 | KB15: 937 | KC15: 150 | KD15: 5645.71 | KE15: 0 | KF15: 0 | KG15: 0 | KH15: 59715.79 | KI15: 0 | KJ15: 59715.79 | KK15: 41497.1 | KL15: 3000 | KM15: 500 | KN15: 1500 | KO15: 400 | KP15: 1500 | KQ15: 2585.98 | KR15: 1200 | KS15: 300 | KT15: 500 | KU15: 0 | KV15: 937 | KW15: 150 | KX15: 5645.71 | KY15: 0 | KZ15: 0 | LA15: 0 | LB15: 59715.79 | LC15: 0 | LD15: 59715.79 | LE15: 41497.1 | LF15: 3000 | LG15: 500 | LH15: 1500 | LI15: 400 | LJ15: 1500 | LK15: 2585.98 | LL15: 1200 | LM15: 300 | LN15: 500 | LO15: 0 | LP15: 937 | LQ15: 150 | LR15: 5645.71 | LS15: 0 | LT15: 0 | LU15: 0 | LV15: 59715.79 | LW15: 0 | LX15: 59715.79 | LY15: 41497.1 | LZ15: 3000 | MA15: 500 | MB15: 1500 | MC15: 400 | MD15: 1500 | ME15: 2585.98 | MF15: 1200 | MG15: 300 | MH15: 500 | MI15: 0 | MJ15: 937 | MK15: 150 | ML15: 5645.71 | MM15: 0 | MN15: 0 | MO15: 0 | MP15: 59715.79 | MQ15: 0 | MR15: 59715.79 | MS15: 41497.1 | MT15: 3000 | MU15: 500 | MV15: 1500 | MW15: 400 | MX15: 1500 | MY15: 2585.98 | MZ15: 1200 | NA15: 300 | NB15: 500 | NC15: 0 | ND15: 937 | NE15: 150 | NF15: 5645.71 | NG15: 0 | NH15: 0 | NI15: 0 | NJ15: 59715.79 | NK15: 0 | NL15: 59715.79 | NM15: 60669.29 | NN15: 3000 | NO15: 500 | NP15: 1500 | NQ15: 400 | NR15: 1500 | NS15: 2585.98 | NT15: 1200 | NU15: 300 | NV15: 500 | NW15: 0 | NX15: 937 | NY15: 150 | NZ15: 5645.71 | OA15: 0 | OB15: 0 | OC15: 0 | OD15: 78887.98 | OE15: 0 | OF15: 78887.98 | OG15: 12/2017-SE | OH15: 2017-01-02 | OI15: 2017-12-31 | OJ15: 626548.28 | OK15: 180/2017-SE | OL15: Primeiro | OM15: 2017-06-06 | ON15: 2017-12-31 | OO15: 0 | OP15: 382/2017-SE | OQ15: Segundo | OR15: 2017-11-07 | OS15: 2017-12-31 | OT15: 8000 | OU15: 187/2018-SE | OV15: Terceiro | OW15: 2018-01-01 | OX15: 2018-12-31 | OY15: 690463.94 | OZ15: 192/2019-SE | PA15: Quarto | PB15: 2019-01-01 | PC15: 2019-12-31 | PD15: 787613.87
A16: Espaço Solidário Associação Assistencial | F16: 03.048.749/0006-01 | G16: SB 023745/2019-11 | H16: SB 023747/2019-33 | I16: SB 023757/2019-69 | N16: 2019-12-31 | O16: - | P16: - | Q16: - | R16: - | S16: - | T16: - | Y16: 0 | Z16: 0 | AA16: 0 | AB16: 0 | AC16: 0 | AD16: 0 | AE16: 0 | AF16: 0 | AG16: 0 | AH16: 0 | AI16: 0 | AJ16: 0 | AK16: 0 | AL16: 0 | AM16: 0 | AN16: 0 | AO16: 0 | AP16: 0 | AQ16: 0 | AR16: 0 | AS16: 0 | AT16: 0 | AU16: 0 | AV16: 0 | AW16: 0 | AX16: 0 | AY16: 0 | AZ16: 0 | BA16: 0 | BB16: 0 | BC16: 0 | BD16: 0 | BE16: 0 | BF16: 0 | BG16: 0 | BH16: 0 | BI16: 0 | BJ16: 0 | BK16: 0 | BL16: 0 | BM16: 0 | BN16: 0 | BO16: 0 | BP16: 0 | BQ16: 0 | BR16: 0 | BS16: 0 | BT16: 0 | BU16: 0 | BV16: 0 | BW16: 0 | BX16: 0 | BY16: 0 | BZ16: 0 | CA16: 0 | CB16: 0 | CC16: 0 | CD16: 0 | CE16: 0 | CF16: 0 | FA16: 0 | FB16: 0 | FC16: 0 | FD16: 0 | FE16: 0 | FF16: 0 | FG16: 0 | FH16: 0 | FI16: 0 | FJ16: 0 | FK16: 0 | FL16: 0 | FM16: 0 | FN16: 0 | FO16: 0 | FP16: 0 | FQ16: 0 | FR16: 0 | FS16: 0 | FT16: 0 | FU16: 0 | FV16: 0 | FW16: 0 | FX16: 0 | FY16: 0 | FZ16: 0 | GA16: 0 | GB16: 0 | GC16: 0 | GD16: 0 | GE16: 0 | GF16: 0 | GG16: 0 | GH16: 0 | GI16: 0 | GJ16: 0 | GK16: 0 | GL16: 0 | GM16: 0 | GN16: 0 | GO16: 0 | GP16: 0 | GQ16: 0 | GR16: 0 | GS16: 0 | GT16: 0 | GU16: 0 | GV16: 0 | GW16: 0 | GX16: 0 | GY16: 0 | GZ16: 0 | HA16: 0 | HB16: 0 | HC16: 0 | HD16: 0 | HE16: 0 | HF16: 0 | HG16: 0 | HH16: 0 | HI16: 0 | HJ16: 0 | HK16: 0 | HL16: 0 | HM16: 0 | HN16: 0 | HO16: 0 | HP16: 0 | HQ16: 0 | HR16: 0 | HS16: 0 | HT16: 0 | HU16: 0 | HV16: 0 | HW16: 0 | HX16: 0 | HY16: 0 | HZ16: 0 | IA16: 0 | IB16: 0 | IC16: 0 | ID16: 0 | IE16: 0 | IF16: 0 | IG16: 0 | IH16: 0 | II16: 0 | IJ16: 0 | IK16: 0 | IL16: 0 | IM16: 0 | IN16: 0 | IO16: 0 | IP16: 0 | IQ16: 0 | IR16: 0 | IS16: 0 | IT16: 0 | IU16: 0 | IV16: 0 | IW16: 0 | IX16: 0 | IY16: 0 | IZ16: 0 | JA16: 0 | JB16: 0 | JC16: 0 | JD16: 0 | JE16: 0 | JF16: 0 | JG16: 0 | JH16: 0 | JI16: 0 | JJ16: 0 | JK16: 0 | JL16: 0 | JM16: 0 | JN16: 0 | JO16: 0 | JP16: 0 | JQ16: 0 | JR16: 0 | JS16: 0 | JT16: 0 | JU16: 0 | JV16: 0 | JW16: 0 | JX16: 0 | JY16: 0 | JZ16: 0 | KA16: 0 | KB16: 0 | KC16: 0 | KD16: 0 | KE16: 0 | KF16: 0 | KG16: 0 | KH16: 0 | KI16: 0 | KJ16: 0 | KK16: 0 | KL16: 0 | KM16: 0 | KN16: 0 | KO16: 0 | KP16: 0 | KQ16: 0 | KR16: 0 | KS16: 0 | KT16: 0 | KU16: 0 | KV16: 0 | KW16: 0 | KX16: 0 | KY16: 0 | KZ16: 0 | LA16: 0 | LB16: 0 | LC16: 0 | LD16: 0 | LE16: 0 | LF16: 0 | LG16: 0 | LH16: 0 | LI16: 0 | LJ16: 0 | LK16: 0 | LL16: 0 | LM16: 0 | LN16: 0 | LO16: 0 | LP16: 0 | LQ16: 0 | LR16: 0 | LS16: 0 | LT16: 0 | LU16: 0 | LV16: 0 | LW16: 0 | LX16: 0 | LY16: 0 | LZ16: 0 | MA16: 0 | MB16: 0 | MC16: 0 | MD16: 0 | ME16: 0 | MF16: 0 | MG16: 0 | MH16: 0 | MI16: 0 | MJ16: 0 | MK16: 0 | ML16: 0 | MM16: 0 | MN16: 0 | MO16: 0 | MP16: 0 | MQ16: 0 | MR16: 0 | MS16: 0 | MT16: 0 | MU16: 0 | MV16: 0 | MW16: 0 | MX16: 0 | MY16: 0 | MZ16: 0 | NA16: 0 | NB16: 0 | NC16: 0 | ND16: 0 | NE16: 0 | NF16: 0 | NG16: 0 | NH16: 0 | NI16: 0 | NJ16: 0 | NK16: 0 | NL16: 0 | NM16: 0 | NN16: 0 | NO16: 0 | NP16: 0 | NQ16: 0 | NR16: 0 | NS16: 0 | NT16: 0 | NU16: 0 | NV16: 0 | NW16: 0 | NX16: 0 | NY16: 0 | NZ16: 0 | OA16: 0 | OB16: 0 | OC16: 0 | OD16: 0 | OE16: 0 | OF16: 0
A17: Fraterno Associação Assistencial I | F17: 55.038.905/0001-42 | G17: SB 075444/2017-54 | H17: SB 075441/2017-71 | I17: SB 076732/2018-54 | J17: 01/2018-SE | K17: Primeiro | L17: 193/2019-SE | M17: 2019-01-01 | N17: 2019-12-31 | O17: Rua Sétimo Guazelli, nº 99 | P17: Jardim Trieste | Q17: S.B.Campo | R17: 09760-600 | S17: 4330-1712 | T17: crechefraterno@gmail.com | U17: Caixa Econômica Federal | V17: 0346 | W17: 3823-3 | Y17: 383535.29 | Z17: 26000 | AA17: 2000 | AB17: 3800 | AC17: 3800 | AD17: 2230.04 | AE17: 1480 | AF17: 8200 | AG17: 520 | AH17: 10640 | AI17: 15000 | AJ17: 4008 | AK17: 600 | AL17: 0 | AM17: 3000 | AN17: 5000 | AO17: 11410 | AP17: 464813.33 | AQ17: 16410 | AR17: 481223.33 | AS17: 354534.48 | AT17: 24000 | AU17: 1600 | AV17: 2480 | AW17: 2480 | AX17: 1356.04 | AY17: 960 | AZ17: 6800 | BA17: 480 | BB17: 8480 | BC17: 0 | BD17: 4008 | BE17: 600 | BF17: 0 | BG17: 0 | BH17: 0 | BI17: 0 | BJ17: 407778.52 | BK17: 0 | BL17: 407778.52 | BM17: 393569.29 | BN17: 24000 | BO17: 1600 | BP17: 2480 | BQ17: 2480 | BR17: 1356.04 | BS17: 960 | BT17: 6800 | BU17: 480 | BV17: 8480 | BW17: 0 | BX17: 4008 | BY17: 600 | BZ17: 0 | CA17: 0 | CB17: 0 | CC17: 0 | CD17: 446813.33 | CE17: 0 | CF17: 446813.33 | CG17: 1131639.06 | CH17: 74000 | CI17: 5200 | CJ17: 8760 | CK17: 8760 | CL17: 4942.12 | CM17: 3400 | CN17: 21800 | CO17: 1480 | CP17: 27600 | CQ17: 15000 | CR17: 12024 | CS17: 1800 | CT17: 0 | CU17: 3000 | CV17: 5000 | CW17: 11410 | CX17: 1319405.18 | CY17: 16410 | CZ17: 1335815.18 | DA17: 155979.44 | DB17: 11410 | DC17: 167389.44 | DD17: 101944.63 | DE17: 0 | DF17: 101944.63 | DG17: 101944.63 | DH17: 0 | DI17: 101944.63 | DJ17: 104944.63 | DK17: 5000 | DL17: 109944.63 | DM17: 101944.63 | DN17: 0 | DO17: 101944.63 | DP17: 101944.63 | DQ17: 0 | DR17: 101944.63 | DS17: 101944.63 | DT17: 0 | DU17: 101944.63 | DV17: 101944.63 | DW17: 0 | DX17: 101944.63 | DY17: 101944.63 | DZ17: 0 | EA17: 101944.63 | EB17: 101944.63 | EC17: 0 | ED17: 101944.63 | EE17: 101944.63 | EF17: 0 | EG17: 101944.63 | EH17: 140979.44 | EI17: 0 | EJ17: 140979.44 | EK17: 1319405.18 | EL17: 16410 | EM17: 1335815.18 | EN17: 2019-01-28 | EO17: 2019-02-28 | EP17: 2019-03-28 | EQ17: 2019-04-28 | ER17: 2019-05-28 | ES17: 2019-06-28 | ET17: 2019-07-28 | EU17: 2019-08-28 | EV17: 2019-09-28 | EW17: 2019-10-28 | EX17: 2019-11-28 | EY17: 2019-11-28 | FA17: 122651.43 | FB17: 7000 | FC17: 600 | FD17: 1280 | FE17: 1280 | FF17: 776.01 | FG17: 500 | FH17: 2400 | FI17: 140 | FJ17: 3200 | FK17: 15000 | FL17: 1002 | FM17: 150 | FN17: 0 | FO17: 0 | FP17: 0 | FQ17: 11410 | FR17: 155979.44 | FS17: 11410 | FT17: 167389.44 | FU17: 83616.62 | FV17: 7000 | FW17: 600 | FX17: 1280 | FY17: 1280 | FZ17: 776.01 | GA17: 500 | GB17: 2400 | GC17: 140 | GD17: 3200 | GE17: 0 | GF17: 1002 | GG17: 150 | GH17: 0 | GI17: 0 | GJ17: 0 | GK17: 0 | GL17: 101944.63 | GM17: 0 | GN17: 101944.63 | GO17: 88633.62 | GP17: 6000 | GQ17: 400 | GR17: 620 | GS17: 620 | GT17: 339.01 | GU17: 240 | GV17: 1700 | GW17: 120 | GX17: 2120 | GY17: 0 | GZ17: 1002 | HA17: 150 | HB17: 0 | HC17: 0 | HD17: 0 | HE17: 0 | HF17: 101944.63 | HG17: 0 | HH17: 101944.63 | HI17: 88633.62 | HJ17: 6000 | HK17: 400 | HL17: 620 | HM17: 620 | HN17: 339.01 | HO17: 240 | HP17: 1700 | HQ17: 120 | HR17: 2120 | HS17: 0 | HT17: 1002 | HU17: 150 | HV17: 0 | HW17: 3000 | HX17: 5000 | HY17: 0 | HZ17: 104944.63 | IA17: 5000 | IB17: 109944.63 | IC17: 88633.62 | ID17: 6000 | IE17: 400 | IF17: 620 | IG17: 620 | IH17: 339.01 | II17: 240 | IJ17: 1700 | IK17: 120 | IL17: 2120 | IM17: 0 | IN17: 1002 | IO17: 150 | IP17: 0 | IQ17: 0 | IR17: 0 | IS17: 0 | IT17: 101944.63 | IU17: 0 | IV17: 101944.63 | IW17: 88633.62 | IX17: 6000 | IY17: 400 | IZ17: 620 | JA17: 620 | JB17: 339.01 | JC17: 240 | JD17: 1700 | JE17: 120 | JF17: 2120 | JG17: 0 | JH17: 1002 | JI17: 150 | JJ17: 0 | JK17: 0 | JL17: 0 | JM17: 0 | JN17: 101944.63 | JO17: 0 | JP17: 101944.63 | JQ17: 88633.62 | JR17: 6000 | JS17: 400 | JT17: 620 | JU17: 620 | JV17: 339.01 | JW17: 240 | JX17: 1700 | JY17: 120 | JZ17: 2120 | KA17: 0 | KB17: 1002 | KC17: 150 | KD17: 0 | KE17: 0 | KF17: 0 | KG17: 0 | KH17: 101944.63 | KI17: 0 | KJ17: 101944.63 | KK17: 88633.62 | KL17: 6000 | KM17: 400 | KN17: 620 | KO17: 620 | KP17: 339.01 | KQ17: 240 | KR17: 1700 | KS17: 120 | KT17: 2120 | KU17: 0 | KV17: 1002 | KW17: 150 | KX17: 0 | KY17: 0 | KZ17: 0 | LA17: 0 | LB17: 101944.63 | LC17: 0 | LD17: 101944.63 | LE17: 88633.62 | LF17: 6000 | LG17: 400 | LH17: 620 | LI17: 620 | LJ17: 339.01 | LK17: 240 | LL17: 1700 | LM17: 120 | LN17: 2120 | LO17: 0 | LP17: 1002 | LQ17: 150 | LR17: 0 | LS17: 0 | LT17: 0 | LU17: 0 | LV17: 101944.63 | LW17: 0 | LX17: 101944.63 | LY17: 88633.62 | LZ17: 6000 | MA17: 400 | MB17: 620 | MC17: 620 | MD17: 339.01 | ME17: 240 | MF17: 1700 | MG17: 120 | MH17: 2120 | MI17: 0 | MJ17: 1002 | MK17: 150 | ML17: 0 | MM17: 0 | MN17: 0 | MO17: 0 | MP17: 101944.63 | MQ17: 0 | MR17: 101944.63 | MS17: 88633.62 | MT17: 6000 | MU17: 400 | MV17: 620 | MW17: 620 | MX17: 339.01 | MY17: 240 | MZ17: 1700 | NA17: 120 | NB17: 2120 | NC17: 0 | ND17: 1002 | NE17: 150 | NF17: 0 | NG17: 0 | NH17: 0 | NI17: 0 | NJ17: 101944.63 | NK17: 0 | NL17: 101944.63 | NM17: 127668.43 | NN17: 6000 | NO17: 400 | NP17: 620 | NQ17: 620 | NR17: 339.01 | NS17: 240 | NT17: 1700 | NU17: 120 | NV17: 2120 | NW17: 0 | NX17: 1002 | NY17: 150 | NZ17: 0 | OA17: 0 | OB17: 0 | OC17: 0 | OD17: 140979.44 | OE17: 0 | OF17: 140979.44 | OG17: 01/2018-SE | OH17: 2018-01-01 | OI17: 2018-12-31 | OJ17: 1249756.64 | OK17: 193/2019-SE | OL17: Primeiro | OM17: 2019-01-01 | ON17: 2019-12-31 | OO17: 1335815.18
A18: Fraterno Associação Assistencial II | F18: 55.038.905/0002-23 | G18: SB 058851/2016-70 | H18: SB 058793/2016-99 | I18: SB 076861/2018-08 | J18: 13/2017-SE | K18: Quinto | L18: 194/2019-SE | M18: 2019-01-01 | N18: 2019-12-31 | O18: Estrada dos Alvarengas, 1422 | P18: Bairro Campestre | Q18: S.B.Campo | R18: 09850-550 | S18: 4342-3000 / 2356-0340 | T18: crechefraterno2@gmail.com | U18: Caixa Econômica Federal | V18: 4037 | W18: 00002401-2 | Y18: 340721.68 | Z18: 20000 | AA18: 5200 | AB18: 5600 | AC18: 12394.96 | AD18: 463.14 | AE18: 500 | AF18: 9300 | AG18: 2070.36 | AH18: 21000 | AI18: 15000 | AJ18: 4008 | AK18: 600 | AL18: 66000 | AM18: 3000 | AN18: 5000 | AO18: 13420 | AP18: 505858.14 | AQ18: 18420 | AR18: 524278.14 | AS18: 315289.04 | AT18: 20000 | AU18: 4000 | AV18: 2000 | AW18: 11989.92 | AX18: 400 | AY18: 600 | AZ18: 6600 | BA18: 2015.28 | BB18: 20000 | BC18: 0 | BD18: 4008 | BE18: 600 | BF18: 66000 | BG18: 0 | BH18: 0 | BI18: 0 | BJ18: 453502.24 | BK18: 0 | BL18: 453502.24 | BM18: 349644.94 | BN18: 20000 | BO18: 4000 | BP18: 2000 | BQ18: 11989.92 | BR18: 400 | BS18: 600 | BT18: 6600 | BU18: 2015.28 | BV18: 20000 | BW18: 0 | BX18: 4008 | BY18: 600 | BZ18: 66000 | CA18: 0 | CB18: 0 | CC18: 0 | CD18: 487858.14 | CE18: 0 | CF18: 487858.14 | CG18: 1005655.66 | CH18: 60000 | CI18: 13200 | CJ18: 9600 | CK18: 36374.8 | CL18: 1263.14 | CM18: 1700 | CN18: 22500 | CO18: 6100.92 | CP18: 61000 | CQ18: 15000 | CR18: 12024 | CS18: 1800 | CT18: 198000 | CU18: 3000 | CV18: 5000 | CW18: 13420 | CX18: 1447218.52 | CY18: 18420 | CZ18: 1465638.52 | DA18: 162731.46 | DB18: 13420 | DC18: 176151.46 | DD18: 113375.56 | DE18: 0 | DF18: 113375.56 | DG18: 113375.56 | DH18: 0 | DI18: 113375.56 | DJ18: 116375.56 | DK18: 5000 | DL18: 121375.56 | DM18: 113375.56 | DN18: 0 | DO18: 113375.56 | DP18: 113375.56 | DQ18: 0 | DR18: 113375.56 | DS18: 113375.56 | DT18: 0 | DU18: 113375.56 | DV18: 113375.56 | DW18: 0 | DX18: 113375.56 | DY18: 113375.56 | DZ18: 0 | EA18: 113375.56 | EB18: 113375.56 | EC18: 0 | ED18: 113375.56 | EE18: 113375.56 | EF18: 0 | EG18: 113375.56 | EH18: 147731.46 | EI18: 0 | EJ18: 147731.46 | EK18: 1447218.52 | EL18: 18420 | EM18: 1465638.52 | EN18: 2019-01-28 | EO18: 2019-02-28 | EP18: 2019-03-28 | EQ18: 2019-04-28 | ER18: 2019-05-28 | ES18: 2019-06-28 | ET18: 2019-07-28 | EU18: 2019-08-28 | EV18: 2019-09-28 | EW18: 2019-10-28 | EX18: 2019-11-28 | EY18: 2019-11-28 | FA18: 108716.53 | FB18: 5000 | FC18: 1600 | FD18: 2300 | FE18: 3200 | FF18: 131.57 | FG18: 100 | FH18: 3000 | FI18: 531.36 | FJ18: 5500 | FK18: 15000 | FL18: 1002 | FM18: 150 | FN18: 16500 | FO18: 0 | FP18: 0 | FQ18: 13420 | FR18: 162731.46 | FS18: 13420 | FT18: 176151.46 | FU18: 74360.63 | FV18: 5000 | FW18: 1600 | FX18: 2300 | FY18: 3200 | FZ18: 131.57 | GA18: 100 | GB18: 3000 | GC18: 531.36 | GD18: 5500 | GE18: 0 | GF18: 1002 | GG18: 150 | GH18: 16500 | GI18: 0 | GJ18: 0 | GK18: 0 | GL18: 113375.56 | GM18: 0 | GN18: 113375.56 | GO18: 78822.26 | GP18: 5000 | GQ18: 1000 | GR18: 500 | GS18: 2997.48 | GT18: 100 | GU18: 150 | GV18: 1650 | GW18: 503.82 | GX18: 5000 | GY18: 0 | GZ18: 1002 | HA18: 150 | HB18: 16500 | HC18: 0 | HD18: 0 | HE18: 0 | HF18: 113375.56 | HG18: 0 | HH18: 113375.56 | HI18: 78822.26 | HJ18: 5000 | HK18: 1000 | HL18: 500 | HM18: 2997.48 | HN18: 100 | HO18: 150 | HP18: 1650 | HQ18: 503.82 | HR18: 5000 | HS18: 0 | HT18: 1002 | HU18: 150 | HV18: 16500 | HW18: 3000 | HX18: 5000 | HY18: 0 | HZ18: 116375.56 | IA18: 5000 | IB18: 121375.56 | IC18: 78822.26 | ID18: 5000 | IE18: 1000 | IF18: 500 | IG18: 2997.48 | IH18: 100 | II18: 150 | IJ18: 1650 | IK18: 503.82 | IL18: 5000 | IM18: 0 | IN18: 1002 | IO18: 150 | IP18: 16500 | IQ18: 0 | IR18: 0 | IS18: 0 | IT18: 113375.56 | IU18: 0 | IV18: 113375.56 | IW18: 78822.26 | IX18: 5000 | IY18: 1000 | IZ18: 500 | JA18: 2997.48 | JB18: 100 | JC18: 150 | JD18: 1650 | JE18: 503.82 | JF18: 5000 | JG18: 0 | JH18: 1002 | JI18: 150 | JJ18: 16500 | JK18: 0 | JL18: 0 | JM18: 0 | JN18: 113375.56 | JO18: 0 | JP18: 113375.56 | JQ18: 78822.26 | JR18: 5000 | JS18: 1000 | JT18: 500 | JU18: 2997.48 | JV18: 100 | JW18: 150 | JX18: 1650 | JY18: 503.82 | JZ18: 5000 | KA18: 0 | KB18: 1002 | KC18: 150 | KD18: 16500 | KE18: 0 | KF18: 0 | KG18: 0 | KH18: 113375.56 | KI18: 0 | KJ18: 113375.56 | KK18: 78822.26 | KL18: 5000 | KM18: 1000 | KN18: 500 | KO18: 2997.48 | KP18: 100 | KQ18: 150 | KR18: 1650 | KS18: 503.82 | KT18: 5000 | KU18: 0 | KV18: 1002 | KW18: 150 | KX18: 16500 | KY18: 0 | KZ18: 0 | LA18: 0 | LB18: 113375.56 | LC18: 0 | LD18: 113375.56 | LE18: 78822.26 | LF18: 5000 | LG18: 1000 | LH18: 500 | LI18: 2997.48 | LJ18: 100 | LK18: 150 | LL18: 1650 | LM18: 503.82 | LN18: 5000 | LO18: 0 | LP18: 1002 | LQ18: 150 | LR18: 16500 | LS18: 0 | LT18: 0 | LU18: 0 | LV18: 113375.56 | LW18: 0 | LX18: 113375.56 | LY18: 78822.26 | LZ18: 5000 | MA18: 1000 | MB18: 500 | MC18: 2997.48 | MD18: 100 | ME18: 150 | MF18: 1650 | MG18: 503.82 | MH18: 5000 | MI18: 0 | MJ18: 1002 | MK18: 150 | ML18: 16500 | MM18: 0 | MN18: 0 | MO18: 0 | MP18: 113375.56 | MQ18: 0 | MR18: 113375.56 | MS18: 78822.26 | MT18: 5000 | MU18: 1000 | MV18: 500 | MW18: 2997.48 | MX18: 100 | MY18: 150 | MZ18: 1650 | NA18: 503.82 | NB18: 5000 | NC18: 0 | ND18: 1002 | NE18: 150 | NF18: 16500 | NG18: 0 | NH18: 0 | NI18: 0 | NJ18: 113375.56 | NK18: 0 | NL18: 113375.56 | NM18: 113178.16 | NN18: 5000 | NO18: 1000 | NP18: 500 | NQ18: 2997.48 | NR18: 100 | NS18: 150 | NT18: 1650 | NU18: 503.82 | NV18: 5000 | NW18: 0 | NX18: 1002 | NY18: 150 | NZ18: 16500 | OA18: 0 | OB18: 0 | OC18: 0 | OD18: 147731.46 | OE18: 0 | OF18: 147731.46 | OG18: 13/2017-SE | OH18: 2017-01-02 | OI18: 2017-12-31 | OJ18: 922191.97 | OK18: 181/2017-SE | OL18: Primeiro | OM18: 2017-06-06 | ON18: 2017-12-31 | OO18: 0 | OP18: 383/2017-SE | OQ18: Segundo | OR18: 2017-11-07 | OS18: 2017-12-31 | OT18: 8000 | OU18: 393/2017-SE | OV18: Terceiro | OW18: 2017-12-21 | OX18: 2017-12-31 | OY18: 13907.07 | OZ18: 188/2018-SE | PA18: Quarto | PB18: 2018-01-01 | PC18: 2018-12-31 | PD18: 1186097.15 | PE18: 194/2019-SE | PF18: Quinto | PG18: 2019-01-01 | PH18: 2019-12-31 | PI18: 1465638.52
A19: Instituição Assistencial e Educacional Jardim de Esperança | F19: 02.732.586/0001-04 | G19: SB 058854/2016-53 | H19: SB 058794/2016-50 | I19: SB 076882/2018-21 | J19: 14/2017-SE | K19: Quarto | L19: 195/2019-SE | M19: 2019-01-01 | N19: 2019-12-31 | O19: Rua Eugênia Sá Vitale, nº 1120 | P19: Taboão | Q19: S.B.Campo | R19: 09665-000 | S19: 4173-3230 | T19: jardimdeesperanca@jardimdeesperanca.org.br | U19: Caixa Econômica Federal | V19: 2203 | W19: 00000927-3 | Y19: 236042.28 | Z19: 8350 | AA19: 500 | AB19: 668 | AC19: 668 | AD19: 334 | AE19: 334 | AF19: 2340 | AG19: 13289.76 | AH19: 0 | AI19: 15000 | AJ19: 4024 | AK19: 600 | AL19: 0 | AM19: 3000 | AN19: 5000 | AO19: 9760 | AP19: 285150.04 | AQ19: 14760 | AR19: 299910.04 | AS19: 218388.4 | AT19: 6700 | AU19: 400 | AV19: 536 | AW19: 536 | AX19: 268 | AY19: 268 | AZ19: 1880 | BA19: 9714.96 | BB19: 0 | BC19: 0 | BD19: 4024 | BE19: 600 | BF19: 0 | BG19: 0 | BH19: 0 | BI19: 0 | BJ19: 243315.36 | BK19: 0 | BL19: 243315.36 | BM19: 242223.08 | BN19: 6700 | BO19: 400 | BP19: 536 | BQ19: 536 | BR19: 268 | BS19: 268 | BT19: 1880 | BU19: 9714.96 | BV19: 0 | BW19: 0 | BX19: 4024 | BY19: 600 | BZ19: 0 | CA19: 0 | CB19: 0 | CC19: 0 | CD19: 267150.04 | CE19: 0 | CF19: 267150.04 | CG19: 696653.76 | CH19: 21750 | CI19: 1300 | CJ19: 1740 | CK19: 1740 | CL19: 870 | CM19: 870 | CN19: 6100 | CO19: 32719.68 | CP19: 0 | CQ19: 15000 | CR19: 12072 | CS19: 1800 | CT19: 0 | CU19: 3000 | CV19: 5000 | CW19: 9760 | CX19: 795615.44 | CY19: 14760 | CZ19: 810375.44 | DA19: 99663.52 | DB19: 9760 | DC19: 109423.52 | DD19: 60828.84 | DE19: 0 | DF19: 60828.84 | DG19: 60828.84 | DH19: 0 | DI19: 60828.84 | DJ19: 63828.84 | DK19: 5000 | DL19: 68828.84 | DM19: 60828.84 | DN19: 0 | DO19: 60828.84 | DP19: 60828.84 | DQ19: 0 | DR19: 60828.84 | DS19: 60828.84 | DT19: 0 | DU19: 60828.84 | DV19: 60828.84 | DW19: 0 | DX19: 60828.84 | DY19: 60828.84 | DZ19: 0 | EA19: 60828.84 | EB19: 60828.84 | EC19: 0 | ED19: 60828.84 | EE19: 60828.84 | EF19: 0 | EG19: 60828.84 | EH19: 84663.52 | EI19: 0 | EJ19: 84663.52 | EK19: 795615.44 | EL19: 14760 | EM19: 810375.44 | EN19: 2019-01-28 | EO19: 2019-02-28 | EP19: 2019-03-28 | EQ19: 2019-04-28 | ER19: 2019-05-28 | ES19: 2019-06-28 | ET19: 2019-07-28 | EU19: 2019-08-28 | EV19: 2019-09-28 | EW19: 2019-10-28 | EX19: 2019-11-28 | EY19: 2019-11-28 | FA19: 75341.38 | FB19: 2500 | FC19: 150 | FD19: 200 | FE19: 200 | FF19: 100 | FG19: 100 | FH19: 700 | FI19: 4216.14 | FJ19: 0 | FK19: 15000 | FL19: 1006 | FM19: 150 | FN19: 0 | FO19: 0 | FP19: 0 | FQ19: 9760 | FR19: 99663.52 | FS19: 9760 | FT19: 109423.52 | FU19: 51506.7 | FV19: 2500 | FW19: 150 | FX19: 200 | FY19: 200 | FZ19: 100 | GA19: 100 | GB19: 700 | GC19: 4216.14 | GD19: 0 | GE19: 0 | GF19: 1006 | GG19: 150 | GH19: 0 | GI19: 0 | GJ19: 0 | GK19: 0 | GL19: 60828.84 | GM19: 0 | GN19: 60828.84 | GO19: 54597.1 | GP19: 1675 | GQ19: 100 | GR19: 134 | GS19: 134 | GT19: 67 | GU19: 67 | GV19: 470 | GW19: 2428.74 | GX19: 0 | GY19: 0 | GZ19: 1006 | HA19: 150 | HB19: 0 | HC19: 0 | HD19: 0 | HE19: 0 | HF19: 60828.84 | HG19: 0 | HH19: 60828.84 | HI19: 54597.1 | HJ19: 1675 | HK19: 100 | HL19: 134 | HM19: 134 | HN19: 67 | HO19: 67 | HP19: 470 | HQ19: 2428.74 | HR19: 0 | HS19: 0 | HT19: 1006 | HU19: 150 | HV19: 0 | HW19: 3000 | HX19: 5000 | HY19: 0 | HZ19: 63828.84 | IA19: 5000 | IB19: 68828.84 | IC19: 54597.1 | ID19: 1675 | IE19: 100 | IF19: 134 | IG19: 134 | IH19: 67 | II19: 67 | IJ19: 470 | IK19: 2428.74 | IL19: 0 | IM19: 0 | IN19: 1006 | IO19: 150 | IP19: 0 | IQ19: 0 | IR19: 0 | IS19: 0 | IT19: 60828.84 | IU19: 0 | IV19: 60828.84 | IW19: 54597.1 | IX19: 1675 | IY19: 100 | IZ19: 134 | JA19: 134 | JB19: 67 | JC19: 67 | JD19: 470 | JE19: 2428.74 | JF19: 0 | JG19: 0 | JH19: 1006 | JI19: 150 | JJ19: 0 | JK19: 0 | JL19: 0 | JM19: 0 | JN19: 60828.84 | JO19: 0 | JP19: 60828.84 | JQ19: 54597.1 | JR19: 1675 | JS19: 100 | JT19: 134 | JU19: 134 | JV19: 67 | JW19: 67 | JX19: 470 | JY19: 2428.74 | JZ19: 0 | KA19: 0 | KB19: 1006 | KC19: 150 | KD19: 0 | KE19: 0 | KF19: 0 | KG19: 0 | KH19: 60828.84 | KI19: 0 | KJ19: 60828.84 | KK19: 54597.1 | KL19: 1675 | KM19: 100 | KN19: 134 | KO19: 134 | KP19: 67 | KQ19: 67 | KR19: 470 | KS19: 2428.74 | KT19: 0 | KU19: 0 | KV19: 1006 | KW19: 150 | KX19: 0 | KY19: 0 | KZ19: 0 | LA19: 0 | LB19: 60828.84 | LC19: 0 | LD19: 60828.84 | LE19: 54597.1 | LF19: 1675 | LG19: 100 | LH19: 134 | LI19: 134 | LJ19: 67 | LK19: 67 | LL19: 470 | LM19: 2428.74 | LN19: 0 | LO19: 0 | LP19: 1006 | LQ19: 150 | LR19: 0 | LS19: 0 | LT19: 0 | LU19: 0 | LV19: 60828.84 | LW19: 0 | LX19: 60828.84 | LY19: 54597.1 | LZ19: 1675 | MA19: 100 | MB19: 134 | MC19: 134 | MD19: 67 | ME19: 67 | MF19: 470 | MG19: 2428.74 | MH19: 0 | MI19: 0 | MJ19: 1006 | MK19: 150 | ML19: 0 | MM19: 0 | MN19: 0 | MO19: 0 | MP19: 60828.84 | MQ19: 0 | MR19: 60828.84 | MS19: 54597.1 | MT19: 1675 | MU19: 100 | MV19: 134 | MW19: 134 | MX19: 67 | MY19: 67 | MZ19: 470 | NA19: 2428.74 | NB19: 0 | NC19: 0 | ND19: 1006 | NE19: 150 | NF19: 0 | NG19: 0 | NH19: 0 | NI19: 0 | NJ19: 60828.84 | NK19: 0 | NL19: 60828.84 | NM19: 78431.78 | NN19: 1675 | NO19: 100 | NP19: 134 | NQ19: 134 | NR19: 67 | NS19: 67 | NT19: 470 | NU19: 2428.74 | NV19: 0 | NW19: 0 | NX19: 1006 | NY19: 150 | NZ19: 0 | OA19: 0 | OB19: 0 | OC19: 0 | OD19: 84663.52 | OE19: 0 | OF19: 84663.52 | OG19: 14/2017-SE | OH19: 2017-01-02 | OI19: 2017-12-31 | OJ19: 699376.22 | OK19: 182/2017-SE | OL19: Primeiro | OM19: 2017-06-06 | ON19: 2017-12-31 | OO19: 0 | OP19: 384/2017-SE | OQ19: Segundo | OR19: 2017-11-07 | OS19: 2017-12-31 | OT19: 8000 | OU19: 189/2018-SE | OV19: Terceiro | OW19: 2018-01-01 | OX19: 2018-12-31 | OY19: 763691.48 | OZ19: 195/2019-SE | PA19: Quarto | PB19: 2019-01-01 | PC19: 2019-12-31 | PD19: 810375.44
A20: Instituto Dom Décio Pereira I | F20: 02.588.425/0002-70 | G20: SB 058860/2016-45 | H20: SB 058797/2016-33 | I20: SB 076888/2018-87 | J20: 15/2017-SE | K20: Quarto | L20: 196/2019-SE | M20: 2019-01-01 | N20: 2019-12-31 | O20: Av. General Barreto de Menezes, 366 | P20: Jd. Silvina | Q20: S.B.Campo | R20: 09791-150 | S20: 4338-3737 | T20: diretoriadomdecio@gmail.com;domdeciosbc@gmail.com | U20: Banco do Brasil | V20: 3131-3 | W20: 22433-2 | Y20: 178820.51 | Z20: 5200 | AA20: 1900 | AB20: 2800 | AC20: 1760 | AD20: 2548.94 | AE20: 1000 | AF20: 3440 | AG20: 1432.72 | AH20: 1800 | AI20: 15000 | AJ20: 4000 | AK20: 300 | AL20: 28037.12 | AM20: 3000 | AN20: 5000 | AO20: 8240 | AP20: 251039.29 | AQ20: 13240 | AR20: 264279.29 | AS20: 165494.48 | AT20: 4000 | AU20: 1200 | AV20: 2000 | AW20: 1120 | AX20: 2297.88 | AY20: 1200 | AZ20: 2880 | BA20: 400 | BB20: 2400 | BC20: 0 | BD20: 4000 | BE20: 0 | BF20: 28037.12 | BG20: 0 | BH20: 0 | BI20: 0 | BJ20: 215029.48 | BK20: 0 | BL20: 215029.48 | BM20: 183504.29 | BN20: 4000 | BO20: 1200 | BP20: 2000 | BQ20: 1120 | BR20: 2297.88 | BS20: 1200 | BT20: 2880 | BU20: 400 | BV20: 2400 | BW20: 0 | BX20: 4000 | BY20: 0 | BZ20: 28037.12 | CA20: 0 | CB20: 0 | CC20: 0 | CD20: 233039.29 | CE20: 0 | CF20: 233039.29 | CG20: 527819.28 | CH20: 13200 | CI20: 4300 | CJ20: 6800 | CK20: 4000 | CL20: 7144.7 | CM20: 3400 | CN20: 9200 | CO20: 2232.72 | CP20: 6600 | CQ20: 15000 | CR20: 12000 | CS20: 300 | CT20: 84111.36 | CU20: 3000 | CV20: 5000 | CW20: 8240 | CX20: 699108.06 | CY20: 13240 | CZ20: 712348.06 | DA20: 86767.18 | DB20: 8240 | DC20: 95007.18 | DD20: 53757.37 | DE20: 0 | DF20: 53757.37 | DG20: 53757.37 | DH20: 0 | DI20: 53757.37 | DJ20: 56757.37 | DK20: 5000 | DL20: 61757.37 | DM20: 53757.37 | DN20: 0 | DO20: 53757.37 | DP20: 53757.37 | DQ20: 0 | DR20: 53757.37 | DS20: 53757.37 | DT20: 0 | DU20: 53757.37 | DV20: 53757.37 | DW20: 0 | DX20: 53757.37 | DY20: 53757.37 | DZ20: 0 | EA20: 53757.37 | EB20: 53757.37 | EC20: 0 | ED20: 53757.37 | EE20: 53757.37 | EF20: 0 | EG20: 53757.37 | EH20: 71767.18 | EI20: 0 | EJ20: 71767.18 | EK20: 699108.06 | EL20: 13240 | EM20: 712348.06 | EN20: 2019-01-28 | EO20: 2019-02-28 | EP20: 2019-03-28 | EQ20: 2019-04-28 | ER20: 2019-05-28 | ES20: 2019-06-28 | ET20: 2019-07-28 | EU20: 2019-08-28 | EV20: 2019-09-28 | EW20: 2019-10-28 | EX20: 2019-11-28 | EY20: 2019-11-28 | FA20: 57041.54 | FB20: 1600 | FC20: 650 | FD20: 900 | FE20: 600 | FF20: 700 | FG20: 200 | FH20: 1000 | FI20: 616.36 | FJ20: 300 | FK20: 15000 | FL20: 1000 | FM20: 150 | FN20: 7009.28 | FO20: 0 | FP20: 0 | FQ20: 8240 | FR20: 86767.18 | FS20: 8240 | FT20: 95007.18 | FU20: 39031.73 | FV20: 1600 | FW20: 650 | FX20: 900 | FY20: 600 | FZ20: 700 | GA20: 200 | GB20: 1000 | GC20: 616.36 | GD20: 300 | GE20: 0 | GF20: 1000 | GG20: 150 | GH20: 7009.28 | GI20: 0 | GJ20: 0 | GK20: 0 | GL20: 53757.37 | GM20: 0 | GN20: 53757.37 | GO20: 41373.62 | GP20: 1000 | GQ20: 300 | GR20: 500 | GS20: 280 | GT20: 574.47 | GU20: 300 | GV20: 720 | GW20: 100 | GX20: 600 | GY20: 0 | GZ20: 1000 | HA20: 0 | HB20: 7009.28 | HC20: 0 | HD20: 0 | HE20: 0 | HF20: 53757.37 | HG20: 0 | HH20: 53757.37 | HI20: 41373.62 | HJ20: 1000 | HK20: 300 | HL20: 500 | HM20: 280 | HN20: 574.47 | HO20: 300 | HP20: 720 | HQ20: 100 | HR20: 600 | HS20: 0 | HT20: 1000 | HU20: 0 | HV20: 7009.28 | HW20: 3000 | HX20: 5000 | HY20: 0 | HZ20: 56757.37 | IA20: 5000 | IB20: 61757.37 | IC20: 41373.62 | ID20: 1000 | IE20: 300 | IF20: 500 | IG20: 280 | IH20: 574.47 | II20: 300 | IJ20: 720 | IK20: 100 | IL20: 600 | IM20: 0 | IN20: 1000 | IO20: 0 | IP20: 7009.28 | IQ20: 0 | IR20: 0 | IS20: 0 | IT20: 53757.37 | IU20: 0 | IV20: 53757.37 | IW20: 41373.62 | IX20: 1000 | IY20: 300 | IZ20: 500 | JA20: 280 | JB20: 574.47 | JC20: 300 | JD20: 720 | JE20: 100 | JF20: 600 | JG20: 0 | JH20: 1000 | JI20: 0 | JJ20: 7009.28 | JK20: 0 | JL20: 0 | JM20: 0 | JN20: 53757.37 | JO20: 0 | JP20: 53757.37 | JQ20: 41373.62 | JR20: 1000 | JS20: 300 | JT20: 500 | JU20: 280 | JV20: 574.47 | JW20: 300 | JX20: 720 | JY20: 100 | JZ20: 600 | KA20: 0 | KB20: 1000 | KC20: 0 | KD20: 7009.28 | KE20: 0 | KF20: 0 | KG20: 0 | KH20: 53757.37 | KI20: 0 | KJ20: 53757.37 | KK20: 41373.62 | KL20: 1000 | KM20: 300 | KN20: 500 | KO20: 280 | KP20: 574.47 | KQ20: 300 | KR20: 720 | KS20: 100 | KT20: 600 | KU20: 0 | KV20: 1000 | KW20: 0 | KX20: 7009.28 | KY20: 0 | KZ20: 0 | LA20: 0 | LB20: 53757.37 | LC20: 0 | LD20: 53757.37 | LE20: 41373.62 | LF20: 1000 | LG20: 300 | LH20: 500 | LI20: 280 | LJ20: 574.47 | LK20: 300 | LL20: 720 | LM20: 100 | LN20: 600 | LO20: 0 | LP20: 1000 | LQ20: 0 | LR20: 7009.28 | LS20: 0 | LT20: 0 | LU20: 0 | LV20: 53757.37 | LW20: 0 | LX20: 53757.37 | LY20: 41373.62 | LZ20: 1000 | MA20: 300 | MB20: 500 | MC20: 280 | MD20: 574.47 | ME20: 300 | MF20: 720 | MG20: 100 | MH20: 600 | MI20: 0 | MJ20: 1000 | MK20: 0 | ML20: 7009.28 | MM20: 0 | MN20: 0 | MO20: 0 | MP20: 53757.37 | MQ20: 0 | MR20: 53757.37 | MS20: 41373.62 | MT20: 1000 | MU20: 300 | MV20: 500 | MW20: 280 | MX20: 574.47 | MY20: 300 | MZ20: 720 | NA20: 100 | NB20: 600 | NC20: 0 | ND20: 1000 | NE20: 0 | NF20: 7009.28 | NG20: 0 | NH20: 0 | NI20: 0 | NJ20: 53757.37 | NK20: 0 | NL20: 53757.37 | NM20: 59383.43 | NN20: 1000 | NO20: 300 | NP20: 500 | NQ20: 280 | NR20: 574.47 | NS20: 300 | NT20: 720 | NU20: 100 | NV20: 600 | NW20: 0 | NX20: 1000 | NY20: 0 | NZ20: 7009.28 | OA20: 0 | OB20: 0 | OC20: 0 | OD20: 71767.18 | OE20: 0 | OF20: 71767.18 | OG20: 15/2017-SE | OH20: 2017-01-02 | OI20: 2017-12-31 | OJ20: 597373.4 | OK20: 183/2017-SE | OL20: Primeiro | OM20: 2017-06-06 | ON20: 2017-12-31 | OO20: 0 | OP20: 385/2017-SE | OQ20: Segundo | OR20: 2017-11-07 | OS20: 2017-12-31 | OT20: 8000 | OU20: 190/2018-SE | OV20: Terceiro | OW20: 2018-01-01 | OX20: 2018-12-31 | OY20: 661728.44 | OZ20: 196/2019-SE | PA20: Quarto | PB20: 2019-01-01 | PC20: 2019-12-31 | PD20: 712348.06
A21: Instituto Dom Décio Pereira II | F21: 02.588.425/0003-50 | G21: SB 058863/2016-28 | H21: SB 058799/2016-55 | I21: SB 076909/2018-27 | J21: 16/2017-SE | K21: Quinto | L21: 197/2019-SE | M21: 2019-01-01 | N21: 2019-12-31 | O21: R. João Saldanha, 662 | P21: Pq. Los Angeles | Q21: S.B.Campo | R21: 09842-200 | S21: 4342-1770 | T21: domdeciosbc2@gmail.com | U21: Banco do Brasil | V21: 3131-3 | W21: 22434-0 | Y21: 147912.43 | Z21: 6800 | AA21: 2000 | AB21: 1800 | AC21: 1229.92 | AD21: 1000 | AE21: 1000 | AF21: 1200 | AG21: 699.9 | AH21: 600 | AI21: 15000 | AJ21: 4000 | AK21: 0 | AL21: 13386 | AM21: 3000 | AN21: 5000 | AO21: 10320 | AP21: 199628.25 | AQ21: 15320 | AR21: 214948.25 | AS21: 136738.72 | AT21: 6400 | AU21: 1600 | AV21: 1200 | AW21: 859.84 | AX21: 400 | AY21: 400 | AZ21: 800 | BA21: 400 | BB21: 400 | BC21: 0 | BD21: 4000 | BE21: 0 | BF21: 13386 | BG21: 0 | BH21: 0 | BI21: 0 | BJ21: 166584.56 | BK21: 0 | BL21: 166584.56 | BM21: 151782.41 | BN21: 6400 | BO21: 1600 | BP21: 1200 | BQ21: 859.84 | BR21: 400 | BS21: 400 | BT21: 800 | BU21: 400 | BV21: 400 | BW21: 0 | BX21: 4000 | BY21: 0 | BZ21: 13386 | CA21: 0 | CB21: 0 | CC21: 0 | CD21: 181628.25 | CE21: 0 | CF21: 181628.25 | CG21: 436433.56 | CH21: 19600 | CI21: 5200 | CJ21: 4200 | CK21: 2949.6 | CL21: 1800 | CM21: 1800 | CN21: 2800 | CO21: 1499.9 | CP21: 1400 | CQ21: 15000 | CR21: 12000 | CS21: 0 | CT21: 40158 | CU21: 3000 | CV21: 5000 | CW21: 10320 | CX21: 547841.06 | CY21: 15320 | CZ21: 563161.06 | DA21: 71689.83 | DB21: 10320 | DC21: 82009.83 | DD21: 41646.14 | DE21: 0 | DF21: 41646.14 | DG21: 41646.14 | DH21: 0 | DI21: 41646.14 | DJ21: 44646.14 | DK21: 5000 | DL21: 49646.14 | DM21: 41646.14 | DN21: 0 | DO21: 41646.14 | DP21: 41646.14 | DQ21: 0 | DR21: 41646.14 | DS21: 41646.14 | DT21: 0 | DU21: 41646.14 | DV21: 41646.14 | DW21: 0 | DX21: 41646.14 | DY21: 41646.14 | DZ21: 0 | EA21: 41646.14 | EB21: 41646.14 | EC21: 0 | ED21: 41646.14 | EE21: 41646.14 | EF21: 0 | EG21: 41646.14 | EH21: 56689.83 | EI21: 0 | EJ21: 56689.83 | EK21: 547841.06 | EL21: 15320 | EM21: 563161.06 | EN21: 2019-01-28 | EO21: 2019-02-28 | EP21: 2019-03-28 | EQ21: 2019-04-28 | ER21: 2019-05-28 | ES21: 2019-06-28 | ET21: 2019-07-28 | EU21: 2019-08-28 | EV21: 2019-09-28 | EW21: 2019-10-28 | EX21: 2019-11-28 | EY21: 2019-11-28 | FA21: 47293.38 | FB21: 1800 | FC21: 600 | FD21: 600 | FE21: 400 | FF21: 400 | FG21: 400 | FH21: 400 | FI21: 249.95 | FJ21: 200 | FK21: 15000 | FL21: 1000 | FM21: 0 | FN21: 3346.5 | FO21: 0 | FP21: 0 | FQ21: 10320 | FR21: 71689.83 | FS21: 10320 | FT21: 82009.83 | FU21: 32249.69 | FV21: 1800 | FW21: 600 | FX21: 600 | FY21: 400 | FZ21: 400 | GA21: 400 | GB21: 400 | GC21: 249.95 | GD21: 200 | GE21: 0 | GF21: 1000 | GG21: 0 | GH21: 3346.5 | GI21: 0 | GJ21: 0 | GK21: 0 | GL21: 41646.14 | GM21: 0 | GN21: 41646.14 | GO21: 34184.68 | GP21: 1600 | GQ21: 400 | GR21: 300 | GS21: 214.96 | GT21: 100 | GU21: 100 | GV21: 200 | GW21: 100 | GX21: 100 | GY21: 0 | GZ21: 1000 | HA21: 0 | HB21: 3346.5 | HC21: 0 | HD21: 0 | HE21: 0 | HF21: 41646.14 | HG21: 0 | HH21: 41646.14 | HI21: 34184.68 | HJ21: 1600 | HK21: 400 | HL21: 300 | HM21: 214.96 | HN21: 100 | HO21: 100 | HP21: 200 | HQ21: 100 | HR21: 100 | HS21: 0 | HT21: 1000 | HU21: 0 | HV21: 3346.5 | HW21: 3000 | HX21: 5000 | HY21: 0 | HZ21: 44646.14 | IA21: 5000 | IB21: 49646.14 | IC21: 34184.68 | ID21: 1600 | IE21: 400 | IF21: 300 | IG21: 214.96 | IH21: 100 | II21: 100 | IJ21: 200 | IK21: 100 | IL21: 100 | IM21: 0 | IN21: 1000 | IO21: 0 | IP21: 3346.5 | IQ21: 0 | IR21: 0 | IS21: 0 | IT21: 41646.14 | IU21: 0 | IV21: 41646.14 | IW21: 34184.68 | IX21: 1600 | IY21: 400 | IZ21: 300 | JA21: 214.96 | JB21: 100 | JC21: 100 | JD21: 200 | JE21: 100 | JF21: 100 | JG21: 0 | JH21: 1000 | JI21: 0 | JJ21: 3346.5 | JK21: 0 | JL21: 0 | JM21: 0 | JN21: 41646.14 | JO21: 0 | JP21: 41646.14 | JQ21: 34184.68 | JR21: 1600 | JS21: 400 | JT21: 300 | JU21: 214.96 | JV21: 100 | JW21: 100 | JX21: 200 | JY21: 100 | JZ21: 100 | KA21: 0 | KB21: 1000 | KC21: 0 | KD21: 3346.5 | KE21: 0 | KF21: 0 | KG21: 0 | KH21: 41646.14 | KI21: 0 | KJ21: 41646.14 | KK21: 34184.68 | KL21: 1600 | KM21: 400 | KN21: 300 | KO21: 214.96 | KP21: 100 | KQ21: 100 | KR21: 200 | KS21: 100 | KT21: 100 | KU21: 0 | KV21: 1000 | KW21: 0 | KX21: 3346.5 | KY21: 0 | KZ21: 0 | LA21: 0 | LB21: 41646.14 | LC21: 0 | LD21: 41646.14 | LE21: 34184.68 | LF21: 1600 | LG21: 400 | LH21: 300 | LI21: 214.96 | LJ21: 100 | LK21: 100 | LL21: 200 | LM21: 100 | LN21: 100 | LO21: 0 | LP21: 1000 | LQ21: 0 | LR21: 3346.5 | LS21: 0 | LT21: 0 | LU21: 0 | LV21: 41646.14 | LW21: 0 | LX21: 41646.14 | LY21: 34184.68 | LZ21: 1600 | MA21: 400 | MB21: 300 | MC21: 214.96 | MD21: 100 | ME21: 100 | MF21: 200 | MG21: 100 | MH21: 100 | MI21: 0 | MJ21: 1000 | MK21: 0 | ML21: 3346.5 | MM21: 0 | MN21: 0 | MO21: 0 | MP21: 41646.14 | MQ21: 0 | MR21: 41646.14 | MS21: 34184.68 | MT21: 1600 | MU21: 400 | MV21: 300 | MW21: 214.96 | MX21: 100 | MY21: 100 | MZ21: 200 | NA21: 100 | NB21: 100 | NC21: 0 | ND21: 1000 | NE21: 0 | NF21: 3346.5 | NG21: 0 | NH21: 0 | NI21: 0 | NJ21: 41646.14 | NK21: 0 | NL21: 41646.14 | NM21: 49228.37 | NN21: 1600 | NO21: 400 | NP21: 300 | NQ21: 214.96 | NR21: 100 | NS21: 100 | NT21: 200 | NU21: 100 | NV21: 100 | NW21: 0 | NX21: 1000 | NY21: 0 | NZ21: 3346.5 | OA21: 0 | OB21: 0 | OC21: 0 | OD21: 56689.83 | OE21: 0 | OF21: 56689.83 | OG21: 16/2017-SE | OH21: 2017-01-02 | OI21: 2017-12-31 | OJ21: 499228.92 | OK21: 184/2017-SE | OL21: Primeiro | OM21: 2017-06-06 | ON21: 2017-12-31 | OO21: 0 | OP21: 386/2017-SE | OQ21: Segundo | OR21: 2017-11-07 | OS21: 2017-12-31 | OT21: 8000 | OU21: 394/2017-SE | OV21: Terceiro | OW21: 2017-12-22 | OX21: 2017-12-31 | OY21: 2344.2 | OZ21: 191/2018-SE | PA21: Quarto | PB21: 2018-01-01 | PC21: 2018-12-31 | PD21: 520484.12 | PE21: 197/2019-SE | PF21: Quinto | PG21: 2019-01-01 | PH21: 2019-12-31 | PI21: 563161.06
A22: Instituto Dom Décio Pereira III | F22: 02.588.425/0007-84 | G22: SB 023697/2019-66 | H22: SB 023706/2019-58 | I22: SB 023711/2019-89 | N22: 2019-12-31 | O22: Rua Sétimo Guazzelli, nº 113 | P22: Baeta Neves | Q22: S.B.Campo | R22: 09760-600 | S22: 4338-3737 / 4342-1770 | T22: diretoriadomdecio@gmail.com;domdeciosbc@gmail.com | Y22: 0 | Z22: 0 | AA22: 0 | AB22: 0 | AC22: 0 | AD22: 0 | AE22: 0 | AF22: 0 | AG22: 0 | AH22: 0 | AI22: 0 | AJ22: 0 | AK22: 0 | AL22: 0 | AM22: 0 | AN22: 0 | AO22: 0 | AP22: 0 | AQ22: 0 | AR22: 0 | AS22: 0 | AT22: 0 | AU22: 0 | AV22: 0 | AW22: 0 | AX22: 0 | AY22: 0 | AZ22: 0 | BA22: 0 | BB22: 0 | BC22: 0 | BD22: 0 | BE22: 0 | BF22: 0 | BG22: 0 | BH22: 0 | BI22: 0 | BJ22: 0 | BK22: 0 | BL22: 0 | BM22: 0 | BN22: 0 | BO22: 0 | BP22: 0 | BQ22: 0 | BR22: 0 | BS22: 0 | BT22: 0 | BU22: 0 | BV22: 0 | BW22: 0 | BX22: 0 | BY22: 0 | BZ22: 0 | CA22: 0 | CB22: 0 | CC22: 0 | CD22: 0 | CE22: 0 | CF22: 0 | FA22: 0 | FB22: 0 | FC22: 0 | FD22: 0 | FE22: 0 | FF22: 0 | FG22: 0 | FH22: 0 | FI22: 0 | FJ22: 0 | FK22: 0 | FL22: 0 | FM22: 0 | FN22: 0 | FO22: 0 | FP22: 0 | FQ22: 0 | FR22: 0 | FS22: 0 | FT22: 0 | FU22: 0 | FV22: 0 | FW22: 0 | FX22: 0 | FY22: 0 | FZ22: 0 | GA22: 0 | GB22: 0 | GC22: 0 | GD22: 0 | GE22: 0 | GF22: 0 | GG22: 0 | GH22: 0 | GI22: 0 | GJ22: 0 | GK22: 0 | GL22: 0 | GM22: 0 | GN22: 0 | GO22: 0 | GP22: 0 | GQ22: 0 | GR22: 0 | GS22: 0 | GT22: 0 | GU22: 0 | GV22: 0 | GW22: 0 | GX22: 0 | GY22: 0 | GZ22: 0 | HA22: 0 | HB22: 0 | HC22: 0 | HD22: 0 | HE22: 0 | HF22: 0 | HG22: 0 | HH22: 0 | HI22: 0 | HJ22: 0 | HK22: 0 | HL22: 0 | HM22: 0 | HN22: 0 | HO22: 0 | HP22: 0 | HQ22: 0 | HR22: 0 | HS22: 0 | HT22: 0 | HU22: 0 | HV22: 0 | HW22: 0 | HX22: 0 | HY22: 0 | HZ22: 0 | IA22: 0 | IB22: 0 | IC22: 0 | ID22: 0 | IE22: 0 | IF22: 0 | IG22: 0 | IH22: 0 | II22: 0 | IJ22: 0 | IK22: 0 | IL22: 0 | IM22: 0 | IN22: 0 | IO22: 0 | IP22: 0 | IQ22: 0 | IR22: 0 | IS22: 0 | IT22: 0 | IU22: 0 | IV22: 0 | IW22: 0 | IX22: 0 | IY22: 0 | IZ22: 0 | JA22: 0 | JB22: 0 | JC22: 0 | JD22: 0 | JE22: 0 | JF22: 0 | JG22: 0 | JH22: 0 | JI22: 0 | JJ22: 0 | JK22: 0 | JL22: 0 | JM22: 0 | JN22: 0 | JO22: 0 | JP22: 0 | JQ22: 0 | JR22: 0 | JS22: 0 | JT22: 0 | JU22: 0 | JV22: 0 | JW22: 0 | JX22: 0 | JY22: 0 | JZ22: 0 | KA22: 0 | KB22: 0 | KC22: 0 | KD22: 0 | KE22: 0 | KF22: 0 | KG22: 0 | KH22: 0 | KI22: 0 | KJ22: 0 | KK22: 0 | KL22: 0 | KM22: 0 | KN22: 0 | KO22: 0 | KP22: 0 | KQ22: 0 | KR22: 0 | KS22: 0 | KT22: 0 | KU22: 0 | KV22: 0 | KW22: 0 | KX22: 0 | KY22: 0 | KZ22: 0 | LA22: 0 | LB22: 0 | LC22: 0 | LD22: 0 | LE22: 0 | LF22: 0 | LG22: 0 | LH22: 0 | LI22: 0 | LJ22: 0 | LK22: 0 | LL22: 0 | LM22: 0 | LN22: 0 | LO22: 0 | LP22: 0 | LQ22: 0 | LR22: 0 | LS22: 0 | LT22: 0 | LU22: 0 | LV22: 0 | LW22: 0 | LX22: 0 | LY22: 0 | LZ22: 0 | MA22: 0 | MB22: 0 | MC22: 0 | MD22: 0 | ME22: 0 | MF22: 0 | MG22: 0 | MH22: 0 | MI22: 0 | MJ22: 0 | MK22: 0 | ML22: 0 | MM22: 0 | MN22: 0 | MO22: 0 | MP22: 0 | MQ22: 0 | MR22: 0 | MS22: 0 | MT22: 0 | MU22: 0 | MV22: 0 | MW22: 0 | MX22: 0 | MY22: 0 | MZ22: 0 | NA22: 0 | NB22: 0 | NC22: 0 | ND22: 0 | NE22: 0 | NF22: 0 | NG22: 0 | NH22: 0 | NI22: 0 | NJ22: 0 | NK22: 0 | NL22: 0 | NM22: 0 | NN22: 0 | NO22: 0 | NP22: 0 | NQ22: 0 | NR22: 0 | NS22: 0 | NT22: 0 | NU22: 0 | NV22: 0 | NW22: 0 | NX22: 0 | NY22: 0 | NZ22: 0 | OA22: 0 | OB22: 0 | OC22: 0 | OD22: 0 | OE22: 0 | OF22: 0
A23: Lar da Criança Emmanuel | F23: 59.122.721/0001-17 | G23: SB 058864/2016-89 | H23: SB 058800/2016-69 | I23: SB 076920/2018-40 | J23: 17/2017-SE | K23: Terceiro | L23: 198/2019-SE | M23: 2019-01-01 | N23: 2019-12-31 | O23: Avenida Humberto de Alencar Castelo Branco, nº 2955 | P23: Alves Dias | Q23: S.B.Campo | R23: 09851-000 | S23: 4109-8938 | T23: lardacriancaemmanuel@terra.com.br | U23: Banco do Brasil | V23: 0427-8 | W23: 61627-3 | Y23: 383558.55 | Z23: 24000 | AA23: 5200 | AB23: 12000 | AC23: 8600 | AD23: 7326.1 | AE23: 5800 | AF23: 12000 | AG23: 0 | AH23: 12532.1 | AI23: 15000 | AJ23: 3816 | AK23: 0 | AL23: 0 | AM23: 3000 | AN23: 5000 | AO23: 6800 | AP23: 492832.75 | AQ23: 11800 | AR23: 504632.75 | AS23: 353545.36 | AT23: 24000 | AU23: 4000 | AV23: 12000 | AW23: 5200 | AX23: 6652.2 | AY23: 3600 | AZ23: 10000 | BA23: 0 | BB23: 12000 | BC23: 0 | BD23: 3816 | BE23: 0 | BF23: 0 | BG23: 0 | BH23: 0 | BI23: 0 | BJ23: 434813.56 | BK23: 0 | BL23: 434813.56 | BM23: 393564.54 | BN23: 24000 | BO23: 4000 | BP23: 12000 | BQ23: 5200 | BR23: 6652.2 | BS23: 3600 | BT23: 10000 | BU23: 0 | BV23: 12000 | BW23: 0 | BX23: 3816 | BY23: 0 | BZ23: 0 | CA23: 0 | CB23: 0 | CC23: 0 | CD23: 474832.74 | CE23: 0 | CF23: 474832.74 | CG23: 1130668.45 | CH23: 72000 | CI23: 13200 | CJ23: 36000 | CK23: 19000 | CL23: 20630.5 | CM23: 13000 | CN23: 32000 | CO23: 0 | CP23: 36532.1 | CQ23: 15000 | CR23: 11448 | CS23: 0 | CT23: 0 | CU23: 3000 | CV23: 5000 | CW23: 6800 | CX23: 1402479.05 | CY23: 11800 | CZ23: 1414279.05 | DA23: 163722.58 | DB23: 6800 | DC23: 170522.58 | DD23: 108703.39 | DE23: 0 | DF23: 108703.39 | DG23: 108703.39 | DH23: 0 | DI23: 108703.39 | DJ23: 111703.39 | DK23: 5000 | DL23: 116703.39 | DM23: 108703.39 | DN23: 0 | DO23: 108703.39 | DP23: 108703.39 | DQ23: 0 | DR23: 108703.39 | DS23: 108703.39 | DT23: 0 | DU23: 108703.39 | DV23: 108703.39 | DW23: 0 | DX23: 108703.39 | DY23: 108703.39 | DZ23: 0 | EA23: 108703.39 | EB23: 108703.39 | EC23: 0 | ED23: 108703.39 | EE23: 108703.39 | EF23: 0 | EG23: 108703.39 | EH23: 148722.57 | EI23: 0 | EJ23: 148722.57 | EK23: 1402479.05 | EL23: 11800 | EM23: 1414279.05 | EN23: 2019-01-28 | EO23: 2019-02-28 | EP23: 2019-03-28 | EQ23: 2019-04-28 | ER23: 2019-05-28 | ES23: 2019-06-28 | ET23: 2019-07-28 | EU23: 2019-08-28 | EV23: 2019-09-28 | EW23: 2019-10-28 | EX23: 2019-11-28 | EY23: 2019-11-28 | FA23: 123402.53 | FB23: 6000 | FC23: 1600 | FD23: 3000 | FE23: 3000 | FF23: 2000 | FG23: 2000 | FH23: 3500 | FI23: 0 | FJ23: 3266.05 | FK23: 15000 | FL23: 954 | FM23: 0 | FN23: 0 | FO23: 0 | FP23: 0 | FQ23: 6800 | FR23: 163722.58 | FS23: 6800 | FT23: 170522.58 | FU23: 83383.34 | FV23: 6000 | FW23: 1600 | FX23: 3000 | FY23: 3000 | FZ23: 2000 | GA23: 2000 | GB23: 3500 | GC23: 0 | GD23: 3266.05 | GE23: 0 | GF23: 954 | GG23: 0 | GH23: 0 | GI23: 0 | GJ23: 0 | GK23: 0 | GL23: 108703.39 | GM23: 0 | GN23: 108703.39 | GO23: 88386.34 | GP23: 6000 | GQ23: 1000 | GR23: 3000 | GS23: 1300 | GT23: 1663.05 | GU23: 900 | GV23: 2500 | GW23: 0 | GX23: 3000 | GY23: 0 | GZ23: 954 | HA23: 0 | HB23: 0 | HC23: 0 | HD23: 0 | HE23: 0 | HF23: 108703.39 | HG23: 0 | HH23: 108703.39 | HI23: 88386.34 | HJ23: 6000 | HK23: 1000 | HL23: 3000 | HM23: 1300 | HN23: 1663.05 | HO23: 900 | HP23: 2500 | HQ23: 0 | HR23: 3000 | HS23: 0 | HT23: 954 | HU23: 0 | HV23: 0 | HW23: 3000 | HX23: 5000 | HY23: 0 | HZ23: 111703.39 | IA23: 5000 | IB23: 116703.39 | IC23: 88386.34 | ID23: 6000 | IE23: 1000 | IF23: 3000 | IG23: 1300 | IH23: 1663.05 | II23: 900 | IJ23: 2500 | IK23: 0 | IL23: 3000 | IM23: 0 | IN23: 954 | IO23: 0 | IP23: 0 | IQ23: 0 | IR23: 0 | IS23: 0 | IT23: 108703.39 | IU23: 0 | IV23: 108703.39 | IW23: 88386.34 | IX23: 6000 | IY23: 1000 | IZ23: 3000 | JA23: 1300 | JB23: 1663.05 | JC23: 900 | JD23: 2500 | JE23: 0 | JF23: 3000 | JG23: 0 | JH23: 954 | JI23: 0 | JJ23: 0 | JK23: 0 | JL23: 0 | JM23: 0 | JN23: 108703.39 | JO23: 0 | JP23: 108703.39 | JQ23: 88386.34 | JR23: 6000 | JS23: 1000 | JT23: 3000 | JU23: 1300 | JV23: 1663.05 | JW23: 900 | JX23: 2500 | JY23: 0 | JZ23: 3000 | KA23: 0 | KB23: 954 | KC23: 0 | KD23: 0 | KE23: 0 | KF23: 0 | KG23: 0 | KH23: 108703.39 | KI23: 0 | KJ23: 108703.39 | KK23: 88386.34 | KL23: 6000 | KM23: 1000 | KN23: 3000 | KO23: 1300 | KP23: 1663.05 | KQ23: 900 | KR23: 2500 | KS23: 0 | KT23: 3000 | KU23: 0 | KV23: 954 | KW23: 0 | KX23: 0 | KY23: 0 | KZ23: 0 | LA23: 0 | LB23: 108703.39 | LC23: 0 | LD23: 108703.39 | LE23: 88386.34 | LF23: 6000 | LG23: 1000 | LH23: 3000 | LI23: 1300 | LJ23: 1663.05 | LK23: 900 | LL23: 2500 | LM23: 0 | LN23: 3000 | LO23: 0 | LP23: 954 | LQ23: 0 | LR23: 0 | LS23: 0 | LT23: 0 | LU23: 0 | LV23: 108703.39 | LW23: 0 | LX23: 108703.39 | LY23: 88386.34 | LZ23: 6000 | MA23: 1000 | MB23: 3000 | MC23: 1300 | MD23: 1663.05 | ME23: 900 | MF23: 2500 | MG23: 0 | MH23: 3000 | MI23: 0 | MJ23: 954 | MK23: 0 | ML23: 0 | MM23: 0 | MN23: 0 | MO23: 0 | MP23: 108703.39 | MQ23: 0 | MR23: 108703.39 | MS23: 88386.34 | MT23: 6000 | MU23: 1000 | MV23: 3000 | MW23: 1300 | MX23: 1663.05 | MY23: 900 | MZ23: 2500 | NA23: 0 | NB23: 3000 | NC23: 0 | ND23: 954 | NE23: 0 | NF23: 0 | NG23: 0 | NH23: 0 | NI23: 0 | NJ23: 108703.39 | NK23: 0 | NL23: 108703.39 | NM23: 128405.52 | NN23: 6000 | NO23: 1000 | NP23: 3000 | NQ23: 1300 | NR23: 1663.05 | NS23: 900 | NT23: 2500 | NU23: 0 | NV23: 3000 | NW23: 0 | NX23: 954 | NY23: 0 | NZ23: 0 | OA23: 0 | OB23: 0 | OC23: 0 | OD23: 148722.57 | OE23: 0 | OF23: 148722.57 | OG23: 17/2017-SE | OH23: 2017-01-02 | OI23: 2017-12-31 | OJ23: 1166816.14 | OK23: 185/2017-SE | OL23: Primeiro | OM23: 2017-06-06 | ON23: 2017-12-31 | OO23: 0 | OP23: 192/2018-SE | OQ23: Segundo | OR23: 2018-01-01 | OS23: 2018-12-31 | OT23: 1289988.62 | OU23: 198/2019-SE | OV23: Terceiro | OW23: 2019-01-01 | OX23: 2019-12-31 | OY23: 1414279.05
A24: Lar Escola Jêsue Frantz | F24: 55.062.111/0001-14 | G24: SB 058866/2016-01 | H24: SB 058802/2016-81 | I24: SB 076941/2018-63 | J24: 18/2017-SE | K24: Quarto | L24: 199/2019-SE | M24: 2019-01-01 | N24: 2019-12-31 | O24: Rua Camargo, 184 | P24: Paulicéia | Q24: S.B.Campo | R24: 09682-100 | S24: 4178-4422 | T24: raee@lejf.org.br | U24: Banco do Brasil | V24: 3131-3 | W24: 117.810-5 | Y24: 194846.52 | Z24: 9600 | AA24: 900 | AB24: 4569.72 | AC24: 2600 | AD24: 2500 | AE24: 3000 | AF24: 3200 | AG24: 2200 | AH24: 3073.02 | AI24: 15000 | AJ24: 3816 | AK24: 600 | AL24: 0 | AM24: 3000 | AN24: 5000 | AO24: 24600 | AP24: 248905.26 | AQ24: 29600 | AR24: 278505.26 | AS24: 178896.36 | AT24: 11200 | AU24: 400 | AV24: 3699.64 | AW24: 2000 | AX24: 2600 | AY24: 2600 | AZ24: 3200 | BA24: 400 | BB24: 2000 | BC24: 0 | BD24: 3816 | BE24: 600 | BF24: 0 | BG24: 0 | BH24: 0 | BI24: 13880 | BJ24: 211412 | BK24: 13880 | BL24: 225292 | BM24: 199909.62 | BN24: 11200 | BO24: 400 | BP24: 3699.64 | BQ24: 2000 | BR24: 2600 | BS24: 2600 | BT24: 3200 | BU24: 400 | BV24: 2000 | BW24: 0 | BX24: 3816 | BY24: 600 | BZ24: 0 | CA24: 0 | CB24: 0 | CC24: 13880 | CD24: 232425.26 | CE24: 13880 | CF24: 246305.26 | CG24: 573652.5 | CH24: 32000 | CI24: 1700 | CJ24: 11969 | CK24: 6600 | CL24: 7700 | CM24: 8200 | CN24: 9600 | CO24: 3000 | CP24: 7073.02 | CQ24: 15000 | CR24: 11448 | CS24: 1800 | CT24: 0 | CU24: 3000 | CV24: 5000 | CW24: 52360 | CX24: 692742.52 | CY24: 57360 | CZ24: 750102.52 | DA24: 88106.26 | DB24: 13430 | DC24: 101536.26 | DD24: 52093 | DE24: 4230 | DF24: 56323 | DG24: 52853 | DH24: 3470 | DI24: 56323 | DJ24: 55853 | DK24: 8470 | DL24: 64323 | DM24: 52853 | DN24: 3470 | DO24: 56323 | DP24: 52853 | DQ24: 3470 | DR24: 56323 | DS24: 52853 | DT24: 3470 | DU24: 56323 | DV24: 52853 | DW24: 3470 | DX24: 56323 | DY24: 52853 | DZ24: 3470 | EA24: 56323 | EB24: 52853 | EC24: 3470 | ED24: 56323 | EE24: 52853 | EF24: 3470 | EG24: 56323 | EH24: 73866.26 | EI24: 3470 | EJ24: 77336.26 | EK24: 692742.52 | EL24: 57360 | EM24: 750102.52 | EN24: 2019-01-28 | EO24: 2019-02-28 | EP24: 2019-03-28 | EQ24: 2019-04-28 | ER24: 2019-05-28 | ES24: 2019-06-28 | ET24: 2019-07-28 | EU24: 2019-08-28 | EV24: 2019-09-28 | EW24: 2019-10-28 | EX24: 2019-11-28 | EY24: 2019-11-28 | FA24: 63205.8 | FB24: 2000 | FC24: 350 | FD24: 1359.95 | FE24: 800 | FF24: 600 | FG24: 850 | FH24: 800 | FI24: 1000 | FJ24: 1036.51 | FK24: 15000 | FL24: 954 | FM24: 150 | FN24: 0 | FO24: 0 | FP24: 0 | FQ24: 13430 | FR24: 88106.26 | FS24: 13430 | FT24: 101536.26 | FU24: 42192.54 | FV24: 2000 | FW24: 350 | FX24: 1359.95 | FY24: 800 | FZ24: 600 | GA24: 850 | GB24: 800 | GC24: 1000 | GD24: 1036.51 | GE24: 0 | GF24: 954 | GG24: 150 | GH24: 0 | GI24: 0 | GJ24: 0 | GK24: 4230 | GL24: 52093 | GM24: 4230 | GN24: 56323 | GO24: 44724.09 | GP24: 2800 | GQ24: 100 | GR24: 924.91 | GS24: 500 | GT24: 650 | GU24: 650 | GV24: 800 | GW24: 100 | GX24: 500 | GY24: 0 | GZ24: 954 | HA24: 150 | HB24: 0 | HC24: 0 | HD24: 0 | HE24: 3470 | HF24: 52853 | HG24: 3470 | HH24: 56323 | HI24: 44724.09 | HJ24: 2800 | HK24: 100 | HL24: 924.91 | HM24: 500 | HN24: 650 | HO24: 650 | HP24: 800 | HQ24: 100 | HR24: 500 | HS24: 0 | HT24: 954 | HU24: 150 | HV24: 0 | HW24: 3000 | HX24: 5000 | HY24: 3470 | HZ24: 55853 | IA24: 8470 | IB24: 64323 | IC24: 44724.09 | ID24: 2800 | IE24: 100 | IF24: 924.91 | IG24: 500 | IH24: 650 | II24: 650 | IJ24: 800 | IK24: 100 | IL24: 500 | IM24: 0 | IN24: 954 | IO24: 150 | IP24: 0 | IQ24: 0 | IR24: 0 | IS24: 3470 | IT24: 52853 | IU24: 3470 | IV24: 56323 | IW24: 44724.09 | IX24: 2800 | IY24: 100 | IZ24: 924.91 | JA24: 500 | JB24: 650 | JC24: 650 | JD24: 800 | JE24: 100 | JF24: 500 | JG24: 0 | JH24: 954 | JI24: 150 | JJ24: 0 | JK24: 0 | JL24: 0 | JM24: 3470 | JN24: 52853 | JO24: 3470 | JP24: 56323 | JQ24: 44724.09 | JR24: 2800 | JS24: 100 | JT24: 924.91 | JU24: 500 | JV24: 650 | JW24: 650 | JX24: 800 | JY24: 100 | JZ24: 500 | KA24: 0 | KB24: 954 | KC24: 150 | KD24: 0 | KE24: 0 | KF24: 0 | KG24: 3470 | KH24: 52853 | KI24: 3470 | KJ24: 56323 | KK24: 44724.09 | KL24: 2800 | KM24: 100 | KN24: 924.91 | KO24: 500 | KP24: 650 | KQ24: 650 | KR24: 800 | KS24: 100 | KT24: 500 | KU24: 0 | KV24: 954 | KW24: 150 | KX24: 0 | KY24: 0 | KZ24: 0 | LA24: 3470 | LB24: 52853 | LC24: 3470 | LD24: 56323 | LE24: 44724.09 | LF24: 2800 | LG24: 100 | LH24: 924.91 | LI24: 500 | LJ24: 650 | LK24: 650 | LL24: 800 | LM24: 100 | LN24: 500 | LO24: 0 | LP24: 954 | LQ24: 150 | LR24: 0 | LS24: 0 | LT24: 0 | LU24: 3470 | LV24: 52853 | LW24: 3470 | LX24: 56323 | LY24: 44724.09 | LZ24: 2800 | MA24: 100 | MB24: 924.91 | MC24: 500 | MD24: 650 | ME24: 650 | MF24: 800 | MG24: 100 | MH24: 500 | MI24: 0 | MJ24: 954 | MK24: 150 | ML24: 0 | MM24: 0 | MN24: 0 | MO24: 3470 | MP24: 52853 | MQ24: 3470 | MR24: 56323 | MS24: 44724.09 | MT24: 2800 | MU24: 100 | MV24: 924.91 | MW24: 500 | MX24: 650 | MY24: 650 | MZ24: 800 | NA24: 100 | NB24: 500 | NC24: 0 | ND24: 954 | NE24: 150 | NF24: 0 | NG24: 0 | NH24: 0 | NI24: 3470 | NJ24: 52853 | NK24: 3470 | NL24: 56323 | NM24: 65737.35 | NN24: 2800 | NO24: 100 | NP24: 924.91 | NQ24: 500 | NR24: 650 | NS24: 650 | NT24: 800 | NU24: 100 | NV24: 500 | NW24: 0 | NX24: 954 | NY24: 150 | NZ24: 0 | OA24: 0 | OB24: 0 | OC24: 3470 | OD24: 73866.26 | OE24: 3470 | OF24: 77336.26 | OG24: 18/2017-SE | OH24: 2017-01-02 | OI24: 2017-12-31 | OJ24: 511063.88 | OK24: 186/2017-SE | OL24: Primeiro | OM24: 2017-06-06 | ON24: 2017-12-31 | OO24: 0 | OP24: 388/2017-SE | OQ24: Segundo | OR24: 2017-11-07 | OS24: 2017-12-31 | OT24: 8000 | OU24: 193/2018-SE | OV24: Terceiro | OW24: 2018-01-01 | OX24: 2018-12-31 | OY24: 572135.82 | OZ24: 199/2019-SE | PA24: Quarto | PB24: 2019-01-01 | PC24: 2019-12-31 | PD24: 750102.52
A25: Lar Escola Jêsue Frantz II | F25: 55.062.111/0008-90 | G25: SB 076958/2018-16 | H25: SB 003772/2019-64 | I25: SB 076944/2018-46 | J25: 02/2019-SE | K25: - | L25: - | M25: 2019-01-17 | N25: 2019-12-31 | O25: Rua Benedito Luiz Rodrigues, nº 864 | P25: Jardim Palermo | Q25: S.B.Campo | R25: 09780-420 | S25: 4178-4422 | U25: Banco do Brasil | V25: 3131-3 | W25: 121.706-2 | Y25: 194964.53 | Z25: 8000 | AA25: 800 | AB25: 3788.5 | AC25: 2900 | AD25: 2825.22 | AE25: 3809.86 | AF25: 3200 | AG25: 2200 | AH25: 4000 | AI25: 15000 | AJ25: 3816 | AK25: 600 | AL25: 11280 | AM25: 3000 | AN25: 5000 | AO25: 30960 | AP25: 260184.11 | AQ25: 35960 | AR25: 296144.11 | AS25: 179019 | AT25: 8000 | AU25: 400 | AV25: 3577 | AW25: 2600 | AX25: 2600 | AY25: 3200 | AZ25: 3200 | BA25: 400 | BB25: 4000 | BC25: 0 | BD25: 3816 | BE25: 600 | BF25: 11280 | BG25: 0 | BH25: 0 | BI25: 13880 | BJ25: 222692 | BK25: 13880 | BL25: 236572 | BM25: 200031.1 | BN25: 8000 | BO25: 400 | BP25: 3577 | BQ25: 2600 | BR25: 2600 | BS25: 3200 | BT25: 3200 | BU25: 400 | BV25: 4000 | BW25: 0 | BX25: 3816 | BY25: 600 | BZ25: 11280 | CA25: 0 | CB25: 0 | CC25: 13880 | CD25: 243704.1 | CE25: 13880 | CF25: 257584.1 | CG25: 574014.63 | CH25: 24000 | CI25: 1600 | CJ25: 10942.5 | CK25: 8100 | CL25: 8025.22 | CM25: 10209.86 | CN25: 9600 | CO25: 3000 | CP25: 12000 | CQ25: 15000 | CR25: 11448 | CS25: 1800 | CT25: 33840 | CU25: 3000 | CV25: 5000 | CW25: 58720 | CX25: 726580.21 | CY25: 63720 | CZ25: 790300.21 | DA25: 90925.11 | DB25: 19790 | DC25: 110715.11 | DD25: 54913 | DE25: 4230 | DF25: 59143 | DG25: 55673 | DH25: 3470 | DI25: 59143 | DJ25: 58673 | DK25: 8470 | DL25: 67143 | DM25: 55673 | DN25: 3470 | DO25: 59143 | DP25: 55673 | DQ25: 3470 | DR25: 59143 | DS25: 55673 | DT25: 3470 | DU25: 59143 | DV25: 55673 | DW25: 3470 | DX25: 59143 | DY25: 55673 | DZ25: 3470 | EA25: 59143 | EB25: 55673 | EC25: 3470 | ED25: 59143 | EE25: 55673 | EF25: 3470 | EG25: 59143 | EH25: 76685.1 | EI25: 3470 | EJ25: 80155.1 | EK25: 726580.21 | EL25: 63720 | EM25: 790300.21 | FA25: 63233.57 | FB25: 2000 | FC25: 300 | FD25: 1000 | FE25: 800 | FF25: 762.61 | FG25: 1104.93 | FH25: 800 | FI25: 1000 | FJ25: 1000 | FK25: 15000 | FL25: 954 | FM25: 150 | FN25: 2820 | FO25: 0 | FP25: 0 | FQ25: 19790 | FR25: 90925.11 | FS25: 19790 | FT25: 110715.11 | FU25: 42221.46 | FV25: 2000 | FW25: 300 | FX25: 1000 | FY25: 800 | FZ25: 762.61 | GA25: 1104.93 | GB25: 800 | GC25: 1000 | GD25: 1000 | GE25: 0 | GF25: 954 | GG25: 150 | GH25: 2820 | GI25: 0 | GJ25: 0 | GK25: 4230 | GL25: 54913 | GM25: 4230 | GN25: 59143 | GO25: 44754.75 | GP25: 2000 | GQ25: 100 | GR25: 894.25 | GS25: 650 | GT25: 650 | GU25: 800 | GV25: 800 | GW25: 100 | GX25: 1000 | GY25: 0 | GZ25: 954 | HA25: 150 | HB25: 2820 | HC25: 0 | HD25: 0 | HE25: 3470 | HF25: 55673 | HG25: 3470 | HH25: 59143 | HI25: 44754.75 | HJ25: 2000 | HK25: 100 | HL25: 894.25 | HM25: 650 | HN25: 650 | HO25: 800 | HP25: 800 | HQ25: 100 | HR25: 1000 | HS25: 0 | HT25: 954 | HU25: 150 | HV25: 2820 | HW25: 3000 | HX25: 5000 | HY25: 3470 | HZ25: 58673 | IA25: 8470 | IB25: 67143 | IC25: 44754.75 | ID25: 2000 | IE25: 100 | IF25: 894.25 | IG25: 650 | IH25: 650 | II25: 800 | IJ25: 800 | IK25: 100 | IL25: 1000 | IM25: 0 | IN25: 954 | IO25: 150 | IP25: 2820 | IQ25: 0 | IR25: 0 | IS25: 3470 | IT25: 55673 | IU25: 3470 | IV25: 59143 | IW25: 44754.75 | IX25: 2000 | IY25: 100 | IZ25: 894.25 | JA25: 650 | JB25: 650 | JC25: 800 | JD25: 800 | JE25: 100 | JF25: 1000 | JG25: 0 | JH25: 954 | JI25: 150 | JJ25: 2820 | JK25: 0 | JL25: 0 | JM25: 3470 | JN25: 55673 | JO25: 3470 | JP25: 59143 | JQ25: 44754.75 | JR25: 2000 | JS25: 100 | JT25: 894.25 | JU25: 650 | JV25: 650 | JW25: 800 | JX25: 800 | JY25: 100 | JZ25: 1000 | KA25: 0 | KB25: 954 | KC25: 150 | KD25: 2820 | KE25: 0 | KF25: 0 | KG25: 3470 | KH25: 55673 | KI25: 3470 | KJ25: 59143 | KK25: 44754.75 | KL25: 2000 | KM25: 100 | KN25: 894.25 | KO25: 650 | KP25: 650 | KQ25: 800 | KR25: 800 | KS25: 100 | KT25: 1000 | KU25: 0 | KV25: 954 | KW25: 150 | KX25: 2820 | KY25: 0 | KZ25: 0 | LA25: 3470 | LB25: 55673 | LC25: 3470 | LD25: 59143 | LE25: 44754.75 | LF25: 2000 | LG25: 100 | LH25: 894.25 | LI25: 650 | LJ25: 650 | LK25: 800 | LL25: 800 | LM25: 100 | LN25: 1000 | LO25: 0 | LP25: 954 | LQ25: 150 | LR25: 2820 | LS25: 0 | LT25: 0 | LU25: 3470 | LV25: 55673 | LW25: 3470 | LX25: 59143 | LY25: 44754.75 | LZ25: 2000 | MA25: 100 | MB25: 894.25 | MC25: 650 | MD25: 650 | ME25: 800 | MF25: 800 | MG25: 100 | MH25: 1000 | MI25: 0 | MJ25: 954 | MK25: 150 | ML25: 2820 | MM25: 0 | MN25: 0 | MO25: 3470 | MP25: 55673 | MQ25: 3470 | MR25: 59143 | MS25: 44754.75 | MT25: 2000 | MU25: 100 | MV25: 894.25 | MW25: 650 | MX25: 650 | MY25: 800 | MZ25: 800 | NA25: 100 | NB25: 1000 | NC25: 0 | ND25: 954 | NE25: 150 | NF25: 2820 | NG25: 0 | NH25: 0 | NI25: 3470 | NJ25: 55673 | NK25: 3470 | NL25: 59143 | NM25: 65766.85 | NN25: 2000 | NO25: 100 | NP25: 894.25 | NQ25: 650 | NR25: 650 | NS25: 800 | NT25: 800 | NU25: 100 | NV25: 1000 | NW25: 0 | NX25: 954 | NY25: 150 | NZ25: 2820 | OA25: 0 | OB25: 0 | OC25: 3470 | OD25: 76685.1 | OE25: 3470 | OF25: 80155.1 | OG25: 02/2019-SE | OH25: 2019-01-17 | OI25: 2019-12-31 | OJ25: 790300.21
A26: Lar Escola Jêsue Frantz III | F26: 55.062.111/0009-71 | G26: SB 008940/2019-48 | H26: SB 008968/2019-88 | I26: SB 008981/2019-23 | J26: 04/2019-SE | K26: - | L26: - | M26: 2019-02-25 | N26: 2019-12-31 | O26: Rua Tiradentes, nº 398 | P26: Santra Terezinha | Q26: S.B.Campo | R26: 09780-000 | S26: 4178-4422 | U26: Banco do Brasil | V26: 3131-3 | W26: 107002-9 | Y26: 131145.15 | Z26: 4200 | AA26: 400 | AB26: 2500 | AC26: 1700 | AD26: 1700 | AE26: 2600 | AF26: 15340 | AG26: 200 | AH26: 2178.14 | AI26: 15000 | AJ26: 1908 | AK26: 300 | AL26: 14106.84 | AM26: 0 | AN26: 0 | AO26: 19000 | AP26: 193278.13 | AQ26: 19000 | AR26: 212278.13 | AS26: 189784.32 | AT26: 8000 | AU26: 800 | AV26: 5000 | AW26: 3400 | AX26: 3400 | AY26: 5200 | AZ26: 3800 | BA26: 400 | BB26: 4356.28 | BC26: 0 | BD26: 3816 | BE26: 600 | BF26: 18809.12 | BG26: 3000 | BH26: 5000 | BI26: 8000 | BJ26: 250365.72 | BK26: 13000 | BL26: 263365.72 | BM26: 212018.84 | BN26: 8000 | BO26: 800 | BP26: 5000 | BQ26: 3400 | BR26: 3400 | BS26: 5200 | BT26: 3800 | BU26: 400 | BV26: 4356.28 | BW26: 0 | BX26: 3816 | BY26: 600 | BZ26: 18809.12 | CA26: 0 | CB26: 0 | CC26: 8000 | CD26: 269600.24 | CE26: 8000 | CF26: 277600.24 | CG26: 532948.31 | CH26: 20200 | CI26: 2000 | CJ26: 12500 | CK26: 8500 | CL26: 8500 | CM26: 13000 | CN26: 22940 | CO26: 1000 | CP26: 10890.7 | CQ26: 15000 | CR26: 9540 | CS26: 1500 | CT26: 51725.08 | CU26: 3000 | CV26: 5000 | CW26: 35000 | CX26: 713244.09 | CY26: 40000 | CZ26: 753244.09 | DA26: 0 | DB26: 0 | DC26: 0 | DD26: 47360.75 | DE26: 15000 | DF26: 62360.75 | DG26: 84075.95 | DH26: 2000 | DI26: 86075.95 | DJ26: 61841.43 | DK26: 2000 | DL26: 63841.43 | DM26: 64841.43 | DN26: 7000 | DO26: 71841.43 | DP26: 61841.43 | DQ26: 2000 | DR26: 63841.43 | DS26: 61841.43 | DT26: 2000 | DU26: 63841.43 | DV26: 61841.43 | DW26: 2000 | DX26: 63841.43 | DY26: 61841.43 | DZ26: 2000 | EA26: 63841.43 | EB26: 61841.43 | EC26: 2000 | ED26: 63841.43 | EE26: 61841.43 | EF26: 2000 | EG26: 63841.43 | EH26: 84075.95 | EI26: 2000 | EJ26: 86075.95 | EK26: 713244.09 | EL26: 40000 | EM26: 753244.09 | FA26: 0 | FB26: 0 | FC26: 0 | FD26: 0 | FE26: 0 | FF26: 0 | FG26: 0 | FH26: 0 | FI26: 0 | FJ26: 0 | FK26: 0 | FL26: 0 | FM26: 0 | FN26: 0 | FO26: 0 | FP26: 0 | FQ26: 0 | FR26: 0 | FS26: 0 | FT26: 0 | FU26: 14018.47 | FV26: 200 | FW26: 0 | FX26: 0 | FY26: 0 | FZ26: 0 | GA26: 0 | GB26: 13440 | GC26: 0 | GD26: 0 | GE26: 15000 | GF26: 0 | GG26: 0 | GH26: 4702.28 | GI26: 0 | GJ26: 0 | GK26: 15000 | GL26: 47360.75 | GM26: 15000 | GN26: 62360.75 | GO26: 69680.6 | GP26: 2000 | GQ26: 200 | GR26: 1250 | GS26: 850 | GT26: 850 | GU26: 1300 | GV26: 950 | GW26: 100 | GX26: 1089.07 | GY26: 0 | GZ26: 954 | HA26: 150 | HB26: 4702.28 | HC26: 0 | HD26: 0 | HE26: 2000 | HF26: 84075.95 | HG26: 2000 | HH26: 86075.95 | HI26: 47446.08 | HJ26: 2000 | HK26: 200 | HL26: 1250 | HM26: 850 | HN26: 850 | HO26: 1300 | HP26: 950 | HQ26: 100 | HR26: 1089.07 | HS26: 0 | HT26: 954 | HU26: 150 | HV26: 4702.28 | HW26: 0 | HX26: 0 | HY26: 2000 | HZ26: 61841.43 | IA26: 2000 | IB26: 63841.43 | IC26: 47446.08 | ID26: 2000 | IE26: 200 | IF26: 1250 | IG26: 850 | IH26: 850 | II26: 1300 | IJ26: 950 | IK26: 100 | IL26: 1089.07 | IM26: 0 | IN26: 954 | IO26: 150 | IP26: 4702.28 | IQ26: 3000 | IR26: 5000 | IS26: 2000 | IT26: 64841.43 | IU26: 7000 | IV26: 71841.43 | IW26: 47446.08 | IX26: 2000 | IY26: 200 | IZ26: 1250 | JA26: 850 | JB26: 850 | JC26: 1300 | JD26: 950 | JE26: 100 | JF26: 1089.07 | JG26: 0 | JH26: 954 | JI26: 150 | JJ26: 4702.28 | JK26: 0 | JL26: 0 | JM26: 2000 | JN26: 61841.43 | JO26: 2000 | JP26: 63841.43 | JQ26: 47446.08 | JR26: 2000 | JS26: 200 | JT26: 1250 | JU26: 850 | JV26: 850 | JW26: 1300 | JX26: 950 | JY26: 100 | JZ26: 1089.07 | KA26: 0 | KB26: 954 | KC26: 150 | KD26: 4702.28 | KE26: 0 | KF26: 0 | KG26: 2000 | KH26: 61841.43 | KI26: 2000 | KJ26: 63841.43 | KK26: 47446.08 | KL26: 2000 | KM26: 200 | KN26: 1250 | KO26: 850 | KP26: 850 | KQ26: 1300 | KR26: 950 | KS26: 100 | KT26: 1089.07 | KU26: 0 | KV26: 954 | KW26: 150 | KX26: 4702.28 | KY26: 0 | KZ26: 0 | LA26: 2000 | LB26: 61841.43 | LC26: 2000 | LD26: 63841.43 | LE26: 47446.08 | LF26: 2000 | LG26: 200 | LH26: 1250 | LI26: 850 | LJ26: 850 | LK26: 1300 | LL26: 950 | LM26: 100 | LN26: 1089.07 | LO26: 0 | LP26: 954 | LQ26: 150 | LR26: 4702.28 | LS26: 0 | LT26: 0 | LU26: 2000 | LV26: 61841.43 | LW26: 2000 | LX26: 63841.43 | LY26: 47446.08 | LZ26: 2000 | MA26: 200 | MB26: 1250 | MC26: 850 | MD26: 850 | ME26: 1300 | MF26: 950 | MG26: 100 | MH26: 1089.07 | MI26: 0 | MJ26: 954 | MK26: 150 | ML26: 4702.28 | MM26: 0 | MN26: 0 | MO26: 2000 | MP26: 61841.43 | MQ26: 2000 | MR26: 63841.43 | MS26: 47446.08 | MT26: 2000 | MU26: 200 | MV26: 1250 | MW26: 850 | MX26: 850 | MY26: 1300 | MZ26: 950 | NA26: 100 | NB26: 1089.07 | NC26: 0 | ND26: 954 | NE26: 150 | NF26: 4702.28 | NG26: 0 | NH26: 0 | NI26: 2000 | NJ26: 61841.43 | NK26: 2000 | NL26: 63841.43 | NM26: 69680.6 | NN26: 2000 | NO26: 200 | NP26: 1250 | NQ26: 850 | NR26: 850 | NS26: 1300 | NT26: 950 | NU26: 100 | NV26: 1089.07 | NW26: 0 | NX26: 954 | NY26: 150 | NZ26: 4702.28 | OA26: 0 | OB26: 0 | OC26: 2000 | OD26: 84075.95 | OE26: 2000 | OF26: 86075.95 | OG26: 04/2019-SE | OH26: 2019-02-25 | OI26: 2019-12-31 | OJ26: 753244.09
A27: Lar Maria Amélia Associação Assistencial | F27: 44.379.667/0001-12 | G27: SB 058869/2016-84 | H27: SB 058808/2016-47 | I27: SB 076947/2018-29 | J27: 20/2017-SE | K27: Terceiro | L27: 200/2019-SE | M27: 2019-01-01 | N27: 2019-12-31 | O27: Avenida Humberto de Alencar Castelo Branco, nº 2295 | P27: Jardim Belita | Q27: S.B.Campo | R27: 09850-300 | S27: 4343-4848 e 2356-6308 | T27: crechelarmariaamelia@gmail.com | U27: Banco do Brasil | V27: 1561-x | W27: 42479-x | Y27: 401864.3 | Z27: 32026.32 | AA27: 1748.52 | AB27: 3700 | AC27: 1939.6 | AD27: 2000 | AE27: 9280.08 | AF27: 10000 | AG27: 2100 | AH27: 3200 | AI27: 15000 | AJ27: 3960 | AK27: 0 | AL27: 0 | AM27: 3000 | AN27: 5000 | AO27: 7290 | AP27: 489818.82 | AQ27: 12290 | AR27: 502108.82 | AS27: 374334.48 | AT27: 14000 | AU27: 2400 | AV27: 5000 | AW27: 2400 | AX27: 2800 | AY27: 10560.16 | AZ27: 12000 | BA27: 2200 | BB27: 4000 | BC27: 0 | BD27: 4000 | BE27: 0 | BF27: 0 | BG27: 0 | BH27: 0 | BI27: 0 | BJ27: 433694.64 | BK27: 0 | BL27: 433694.64 | BM27: 412458.66 | BN27: 14000 | BO27: 2400 | BP27: 5000 | BQ27: 2400 | BR27: 2800 | BS27: 10560.16 | BT27: 12000 | BU27: 2200 | BV27: 4000 | BW27: 0 | BX27: 4000 | BY27: 0 | BZ27: 0 | CA27: 0 | CB27: 0 | CC27: 0 | CD27: 471818.82 | CE27: 0 | CF27: 471818.82 | CG27: 1188657.44 | CH27: 60026.32 | CI27: 6548.52 | CJ27: 13700 | CK27: 6739.6 | CL27: 7600 | CM27: 30400.4 | CN27: 34000 | CO27: 6500 | CP27: 11200 | CQ27: 15000 | CR27: 11960 | CS27: 0 | CT27: 0 | CU27: 3000 | CV27: 5000 | CW27: 7290 | CX27: 1395332.28 | CY27: 12290 | CZ27: 1407622.28 | DA27: 161547.84 | DB27: 7290 | DC27: 168837.84 | DD27: 108423.66 | DE27: 0 | DF27: 108423.66 | DG27: 108423.66 | DH27: 0 | DI27: 108423.66 | DJ27: 111423.66 | DK27: 5000 | DL27: 116423.66 | DM27: 108423.66 | DN27: 0 | DO27: 108423.66 | DP27: 108423.66 | DQ27: 0 | DR27: 108423.66 | DS27: 108423.66 | DT27: 0 | DU27: 108423.66 | DV27: 108423.66 | DW27: 0 | DX27: 108423.66 | DY27: 108423.66 | DZ27: 0 | EA27: 108423.66 | EB27: 108423.66 | EC27: 0 | ED27: 108423.66 | EE27: 108423.66 | EF27: 0 | EG27: 108423.66 | EH27: 146547.84 | EI27: 0 | EJ27: 146547.84 | EK27: 1395332.28 | EL27: 12290 | EM27: 1407622.28 | EN27: 2019-01-28 | EO27: 2019-02-28 | EP27: 2019-03-28 | EQ27: 2019-04-28 | ER27: 2019-05-28 | ES27: 2019-06-28 | ET27: 2019-07-28 | EU27: 2019-08-28 | EV27: 2019-09-28 | EW27: 2019-10-28 | EX27: 2019-11-28 | EY27: 2019-11-28 | FA27: 126410.62 | FB27: 12513.16 | FC27: 274.26 | FD27: 600 | FE27: 369.8 | FF27: 300 | FG27: 2000 | FH27: 2000 | FI27: 500 | FJ27: 600 | FK27: 15000 | FL27: 980 | FM27: 0 | FN27: 0 | FO27: 0 | FP27: 0 | FQ27: 7290 | FR27: 161547.84 | FS27: 7290 | FT27: 168837.84 | FU27: 88286.44 | FV27: 12513.16 | FW27: 274.26 | FX27: 600 | FY27: 369.8 | FZ27: 300 | GA27: 2000 | GB27: 2000 | GC27: 500 | GD27: 600 | GE27: 0 | GF27: 980 | GG27: 0 | GH27: 0 | GI27: 0 | GJ27: 0 | GK27: 0 | GL27: 108423.66 | GM27: 0 | GN27: 108423.66 | GO27: 93583.62 | GP27: 3500 | GQ27: 600 | GR27: 1250 | GS27: 600 | GT27: 700 | GU27: 2640.04 | GV27: 3000 | GW27: 550 | GX27: 1000 | GY27: 0 | GZ27: 1000 | HA27: 0 | HB27: 0 | HC27: 0 | HD27: 0 | HE27: 0 | HF27: 108423.66 | HG27: 0 | HH27: 108423.66 | HI27: 93583.62 | HJ27: 3500 | HK27: 600 | HL27: 1250 | HM27: 600 | HN27: 700 | HO27: 2640.04 | HP27: 3000 | HQ27: 550 | HR27: 1000 | HS27: 0 | HT27: 1000 | HU27: 0 | HV27: 0 | HW27: 3000 | HX27: 5000 | HY27: 0 | HZ27: 111423.66 | IA27: 5000 | IB27: 116423.66 | IC27: 93583.62 | ID27: 3500 | IE27: 600 | IF27: 1250 | IG27: 600 | IH27: 700 | II27: 2640.04 | IJ27: 3000 | IK27: 550 | IL27: 1000 | IM27: 0 | IN27: 1000 | IO27: 0 | IP27: 0 | IQ27: 0 | IR27: 0 | IS27: 0 | IT27: 108423.66 | IU27: 0 | IV27: 108423.66 | IW27: 93583.62 | IX27: 3500 | IY27: 600 | IZ27: 1250 | JA27: 600 | JB27: 700 | JC27: 2640.04 | JD27: 3000 | JE27: 550 | JF27: 1000 | JG27: 0 | JH27: 1000 | JI27: 0 | JJ27: 0 | JK27: 0 | JL27: 0 | JM27: 0 | JN27: 108423.66 | JO27: 0 | JP27: 108423.66 | JQ27: 93583.62 | JR27: 3500 | JS27: 600 | JT27: 1250 | JU27: 600 | JV27: 700 | JW27: 2640.04 | JX27: 3000 | JY27: 550 | JZ27: 1000 | KA27: 0 | KB27: 1000 | KC27: 0 | KD27: 0 | KE27: 0 | KF27: 0 | KG27: 0 | KH27: 108423.66 | KI27: 0 | KJ27: 108423.66 | KK27: 93583.62 | KL27: 3500 | KM27: 600 | KN27: 1250 | KO27: 600 | KP27: 700 | KQ27: 2640.04 | KR27: 3000 | KS27: 550 | KT27: 1000 | KU27: 0 | KV27: 1000 | KW27: 0 | KX27: 0 | KY27: 0 | KZ27: 0 | LA27: 0 | LB27: 108423.66 | LC27: 0 | LD27: 108423.66 | LE27: 93583.62 | LF27: 3500 | LG27: 600 | LH27: 1250 | LI27: 600 | LJ27: 700 | LK27: 2640.04 | LL27: 3000 | LM27: 550 | LN27: 1000 | LO27: 0 | LP27: 1000 | LQ27: 0 | LR27: 0 | LS27: 0 | LT27: 0 | LU27: 0 | LV27: 108423.66 | LW27: 0 | LX27: 108423.66 | LY27: 93583.62 | LZ27: 3500 | MA27: 600 | MB27: 1250 | MC27: 600 | MD27: 700 | ME27: 2640.04 | MF27: 3000 | MG27: 550 | MH27: 1000 | MI27: 0 | MJ27: 1000 | MK27: 0 | ML27: 0 | MM27: 0 | MN27: 0 | MO27: 0 | MP27: 108423.66 | MQ27: 0 | MR27: 108423.66 | MS27: 93583.62 | MT27: 3500 | MU27: 600 | MV27: 1250 | MW27: 600 | MX27: 700 | MY27: 2640.04 | MZ27: 3000 | NA27: 550 | NB27: 1000 | NC27: 0 | ND27: 1000 | NE27: 0 | NF27: 0 | NG27: 0 | NH27: 0 | NI27: 0 | NJ27: 108423.66 | NK27: 0 | NL27: 108423.66 | NM27: 131707.8 | NN27: 3500 | NO27: 600 | NP27: 1250 | NQ27: 600 | NR27: 700 | NS27: 2640.04 | NT27: 3000 | NU27: 550 | NV27: 1000 | NW27: 0 | NX27: 1000 | NY27: 0 | NZ27: 0 | OA27: 0 | OB27: 0 | OC27: 0 | OD27: 146547.84 | OE27: 0 | OF27: 146547.84 | OG27: 20/2017-SE | OH27: 2017-01-02 | OI27: 2017-12-31 | OJ27: 1160226.6 | OK27: 188/2017-SE | OL27: Primeiro | OM27: 2017-06-06 | ON27: 2017-12-31 | OO27: 0 | OP27: 194/2018-SE | OQ27: Segundo | OR27: 2018-01-01 | OS27: 2018-12-31 | OT27: 1281783.3 | OU27: 200/2019-SE | OV27: Terceiro | OW27: 2019-01-01 | OX27: 2019-12-31 | OY27: 1407622.28
A28: Obras Sociais São Pedro Apóstolo | F28: 43.322.189/0001-41 | G28: SB 058870/2016-71 | H28: SB 058809/2016-08 | I28: SB 076951/2018-99 | J28: 21/2017-SE | K28: Quarto | L28: 201/2019-SE | M28: 2019-01-01 | N28: 2019-12-31 | O28: Rua Ana Maria, nº 123 | P28: Taboão | Q28: S.B.Campo | R28: 09669-060 | S28: 4178-3736 | T28: osspasaojose@hotmail.com | U28: Banco do Brasil | V28: 1834-1 | W28: 4270-6 | Y28: 147631.99 | Z28: 9000 | AA28: 3800 | AB28: 1400 | AC28: 7600 | AD28: 1400 | AE28: 700 | AF28: 7800 | AG28: 1034.28 | AH28: 11089.82 | AI28: 15000 | AJ28: 3816 | AK28: 600 | AL28: 0 | AM28: 3000 | AN28: 5000 | AO28: 11600 | AP28: 213872.09 | AQ28: 16600 | AR28: 230472.09 | AS28: 135837.96 | AT28: 8000 | AU28: 3600 | AV28: 800 | AW28: 7200 | AX28: 1200 | AY28: 600 | AZ28: 7600 | BA28: 800 | BB28: 10179.64 | BC28: 0 | BD28: 3816 | BE28: 600 | BF28: 0 | BG28: 0 | BH28: 0 | BI28: 0 | BJ28: 180233.6 | BK28: 0 | BL28: 180233.6 | BM28: 151476.44 | BN28: 8000 | BO28: 3600 | BP28: 800 | BQ28: 7200 | BR28: 1200 | BS28: 600 | BT28: 7600 | BU28: 800 | BV28: 10179.64 | BW28: 0 | BX28: 3816 | BY28: 600 | BZ28: 0 | CA28: 0 | CB28: 0 | CC28: 0 | CD28: 195872.08 | CE28: 0 | CF28: 195872.08 | CG28: 434946.39 | CH28: 25000 | CI28: 11000 | CJ28: 3000 | CK28: 22000 | CL28: 3800 | CM28: 1900 | CN28: 23000 | CO28: 2634.28 | CP28: 31449.1 | CQ28: 15000 | CR28: 11448 | CS28: 1800 | CT28: 0 | CU28: 3000 | CV28: 5000 | CW28: 11600 | CX28: 589977.77 | CY28: 16600 | CZ28: 606577.77 | DA28: 75696.89 | DB28: 11600 | DC28: 87296.89 | DD28: 45058.4 | DE28: 0 | DF28: 45058.4 | DG28: 45058.4 | DH28: 0 | DI28: 45058.4 | DJ28: 48058.4 | DK28: 5000 | DL28: 53058.4 | DM28: 45058.4 | DN28: 0 | DO28: 45058.4 | DP28: 45058.4 | DQ28: 0 | DR28: 45058.4 | DS28: 45058.4 | DT28: 0 | DU28: 45058.4 | DV28: 45058.4 | DW28: 0 | DX28: 45058.4 | DY28: 45058.4 | DZ28: 0 | EA28: 45058.4 | EB28: 45058.4 | EC28: 0 | ED28: 45058.4 | EE28: 45058.4 | EF28: 0 | EG28: 45058.4 | EH28: 60696.88 | EI28: 0 | EJ28: 60696.88 | EK28: 589977.77 | EL28: 16600 | EM28: 606577.77 | EN28: 2019-01-28 | EO28: 2019-02-28 | EP28: 2019-03-28 | EQ28: 2019-04-28 | ER28: 2019-05-28 | ES28: 2019-06-28 | ET28: 2019-07-28 | EU28: 2019-08-28 | EV28: 2019-09-28 | EW28: 2019-10-28 | EX28: 2019-11-28 | EY28: 2019-11-28 | FA28: 47675.75 | FB28: 2500 | FC28: 1000 | FD28: 500 | FE28: 2000 | FF28: 400 | FG28: 200 | FH28: 2000 | FI28: 317.14 | FJ28: 3000 | FK28: 15000 | FL28: 954 | FM28: 150 | FN28: 0 | FO28: 0 | FP28: 0 | FQ28: 11600 | FR28: 75696.89 | FS28: 11600 | FT28: 87296.89 | FU28: 32037.26 | FV28: 2500 | FW28: 1000 | FX28: 500 | FY28: 2000 | FZ28: 400 | GA28: 200 | GB28: 2000 | GC28: 317.14 | GD28: 3000 | GE28: 0 | GF28: 954 | GG28: 150 | GH28: 0 | GI28: 0 | GJ28: 0 | GK28: 0 | GL28: 45058.4 | GM28: 0 | GN28: 45058.4 | GO28: 33959.49 | GP28: 2000 | GQ28: 900 | GR28: 200 | GS28: 1800 | GT28: 300 | GU28: 150 | GV28: 1900 | GW28: 200 | GX28: 2544.91 | GY28: 0 | GZ28: 954 | HA28: 150 | HB28: 0 | HC28: 0 | HD28: 0 | HE28: 0 | HF28: 45058.4 | HG28: 0 | HH28: 45058.4 | HI28: 33959.49 | HJ28: 2000 | HK28: 900 | HL28: 200 | HM28: 1800 | HN28: 300 | HO28: 150 | HP28: 1900 | HQ28: 200 | HR28: 2544.91 | HS28: 0 | HT28: 954 | HU28: 150 | HV28: 0 | HW28: 3000 | HX28: 5000 | HY28: 0 | HZ28: 48058.4 | IA28: 5000 | IB28: 53058.4 | IC28: 33959.49 | ID28: 2000 | IE28: 900 | IF28: 200 | IG28: 1800 | IH28: 300 | II28: 150 | IJ28: 1900 | IK28: 200 | IL28: 2544.91 | IM28: 0 | IN28: 954 | IO28: 150 | IP28: 0 | IQ28: 0 | IR28: 0 | IS28: 0 | IT28: 45058.4 | IU28: 0 | IV28: 45058.4 | IW28: 33959.49 | IX28: 2000 | IY28: 900 | IZ28: 200 | JA28: 1800 | JB28: 300 | JC28: 150 | JD28: 1900 | JE28: 200 | JF28: 2544.91 | JG28: 0 | JH28: 954 | JI28: 150 | JJ28: 0 | JK28: 0 | JL28: 0 | JM28: 0 | JN28: 45058.4 | JO28: 0 | JP28: 45058.4 | JQ28: 33959.49 | JR28: 2000 | JS28: 900 | JT28: 200 | JU28: 1800 | JV28: 300 | JW28: 150 | JX28: 1900 | JY28: 200 | JZ28: 2544.91 | KA28: 0 | KB28: 954 | KC28: 150 | KD28: 0 | KE28: 0 | KF28: 0 | KG28: 0 | KH28: 45058.4 | KI28: 0 | KJ28: 45058.4 | KK28: 33959.49 | KL28: 2000 | KM28: 900 | KN28: 200 | KO28: 1800 | KP28: 300 | KQ28: 150 | KR28: 1900 | KS28: 200 | KT28: 2544.91 | KU28: 0 | KV28: 954 | KW28: 150 | KX28: 0 | KY28: 0 | KZ28: 0 | LA28: 0 | LB28: 45058.4 | LC28: 0 | LD28: 45058.4 | LE28: 33959.49 | LF28: 2000 | LG28: 900 | LH28: 200 | LI28: 1800 | LJ28: 300 | LK28: 150 | LL28: 1900 | LM28: 200 | LN28: 2544.91 | LO28: 0 | LP28: 954 | LQ28: 150 | LR28: 0 | LS28: 0 | LT28: 0 | LU28: 0 | LV28: 45058.4 | LW28: 0 | LX28: 45058.4 | LY28: 33959.49 | LZ28: 2000 | MA28: 900 | MB28: 200 | MC28: 1800 | MD28: 300 | ME28: 150 | MF28: 1900 | MG28: 200 | MH28: 2544.91 | MI28: 0 | MJ28: 954 | MK28: 150 | ML28: 0 | MM28: 0 | MN28: 0 | MO28: 0 | MP28: 45058.4 | MQ28: 0 | MR28: 45058.4 | MS28: 33959.49 | MT28: 2000 | MU28: 900 | MV28: 200 | MW28: 1800 | MX28: 300 | MY28: 150 | MZ28: 1900 | NA28: 200 | NB28: 2544.91 | NC28: 0 | ND28: 954 | NE28: 150 | NF28: 0 | NG28: 0 | NH28: 0 | NI28: 0 | NJ28: 45058.4 | NK28: 0 | NL28: 45058.4 | NM28: 49597.97 | NN28: 2000 | NO28: 900 | NP28: 200 | NQ28: 1800 | NR28: 300 | NS28: 150 | NT28: 1900 | NU28: 200 | NV28: 2544.91 | NW28: 0 | NX28: 954 | NY28: 150 | NZ28: 0 | OA28: 0 | OB28: 0 | OC28: 0 | OD28: 60696.88 | OE28: 0 | OF28: 60696.88 | OG28: 21/2017-SE | OH28: 2017-01-02 | OI28: 2017-12-31 | OJ28: 475673.12 | OK28: 189/2017-SE | OL28: Primeiro | OM28: 2017-06-06 | ON28: 2017-12-31 | OO28: 0 | OP28: 390/2017-SE | OQ28: Segundo | OR28: 2017-11-07 | OS28: 2017-12-31 | OT28: 8000 | OU28: 195/2018-SE | OV28: Terceiro | OW28: 2018-01-01 | OX28: 2018-12-31 | OY28: 529893.86 | OZ28: 201/2019-SE | PA28: Quarto | PB28: 2019-01-01 | PC28: 2019-12-31 | PD28: 606577.77
A29: Sociedade "Fraternitas" de São Bernardo do Campo | F29: 05.634.011/0001-47 | G29: SB 058871/2016-32 | H29: SB 058811/2016-56 | I29: SB 076954/2018-72 | J29: 22/2017-SE | K29: Quarto | L29: 202/2019-SE | M29: 2019-01-01 | N29: 2019-12-31 | O29: Rua Giacinto Tognato, nº 293 | P29: Baeta Neves | Q29: S.B.Campo | R29: 09760-370 | S29: 4337-5995 | T29: fraternitas@terra.com.br | U29: Caixa Econômica Federal | V29: 2901 | W29: 00001789-0 | Y29: 252722.17 | Z29: 7600 | AA29: 400 | AB29: 2800 | AC29: 2592.04 | AD29: 1700 | AE29: 800 | AF29: 3093.98 | AG29: 700 | AH29: 2100 | AI29: 15000 | AJ29: 4008 | AK29: 0 | AL29: 0 | AM29: 3000 | AN29: 5000 | AO29: 10150 | AP29: 296516.19 | AQ29: 15150 | AR29: 311666.19 | AS29: 233131.08 | AT29: 7600 | AU29: 200 | AV29: 1600 | AW29: 1600 | AX29: 1000 | AY29: 400 | AZ29: 2187.96 | BA29: 200 | BB29: 400 | BC29: 0 | BD29: 4008 | BE29: 0 | BF29: 0 | BG29: 0 | BH29: 0 | BI29: 0 | BJ29: 252327.04 | BK29: 0 | BL29: 252327.04 | BM29: 259320.23 | BN29: 7600 | BO29: 200 | BP29: 1600 | BQ29: 1600 | BR29: 1000 | BS29: 400 | BT29: 2187.96 | BU29: 200 | BV29: 400 | BW29: 0 | BX29: 4008 | BY29: 0 | BZ29: 0 | CA29: 0 | CB29: 0 | CC29: 0 | CD29: 278516.19 | CE29: 0 | CF29: 278516.19 | CG29: 745173.48 | CH29: 22800 | CI29: 800 | CJ29: 6000 | CK29: 5792.04 | CL29: 3700 | CM29: 1600 | CN29: 7469.9 | CO29: 1100 | CP29: 2900 | CQ29: 15000 | CR29: 12024 | CS29: 0 | CT29: 0 | CU29: 3000 | CV29: 5000 | CW29: 10150 | CX29: 827359.42 | CY29: 15150 | CZ29: 842509.42 | DA29: 104270.91 | DB29: 10150 | DC29: 114420.91 | DD29: 63081.76 | DE29: 0 | DF29: 63081.76 | DG29: 63081.76 | DH29: 0 | DI29: 63081.76 | DJ29: 66081.76 | DK29: 5000 | DL29: 71081.76 | DM29: 63081.76 | DN29: 0 | DO29: 63081.76 | DP29: 63081.76 | DQ29: 0 | DR29: 63081.76 | DS29: 63081.76 | DT29: 0 | DU29: 63081.76 | DV29: 63081.76 | DW29: 0 | DX29: 63081.76 | DY29: 63081.76 | DZ29: 0 | EA29: 63081.76 | EB29: 63081.76 | EC29: 0 | ED29: 63081.76 | EE29: 63081.76 | EF29: 0 | EG29: 63081.76 | EH29: 89270.91 | EI29: 0 | EJ29: 89270.91 | EK29: 827359.42 | EL29: 15150 | EM29: 842509.42 | EN29: 2019-01-28 | EO29: 2019-02-28 | EP29: 2019-03-28 | EQ29: 2019-04-28 | ER29: 2019-05-28 | ES29: 2019-06-28 | ET29: 2019-07-28 | EU29: 2019-08-28 | EV29: 2019-09-28 | EW29: 2019-10-28 | EX29: 2019-11-28 | EY29: 2019-11-28 | FA29: 81172.89 | FB29: 1900 | FC29: 150 | FD29: 1000 | FE29: 896.02 | FF29: 600 | FG29: 300 | FH29: 1000 | FI29: 300 | FJ29: 950 | FK29: 15000 | FL29: 1002 | FM29: 0 | FN29: 0 | FO29: 0 | FP29: 0 | FQ29: 10150 | FR29: 104270.91 | FS29: 10150 | FT29: 114420.91 | FU29: 54983.74 | FV29: 1900 | FW29: 150 | FX29: 1000 | FY29: 896.02 | FZ29: 600 | GA29: 300 | GB29: 1000 | GC29: 300 | GD29: 950 | GE29: 0 | GF29: 1002 | GG29: 0 | GH29: 0 | GI29: 0 | GJ29: 0 | GK29: 0 | GL29: 63081.76 | GM29: 0 | GN29: 63081.76 | GO29: 58282.77 | GP29: 1900 | GQ29: 50 | GR29: 400 | GS29: 400 | GT29: 250 | GU29: 100 | GV29: 546.99 | GW29: 50 | GX29: 100 | GY29: 0 | GZ29: 1002 | HA29: 0 | HB29: 0 | HC29: 0 | HD29: 0 | HE29: 0 | HF29: 63081.76 | HG29: 0 | HH29: 63081.76 | HI29: 58282.77 | HJ29: 1900 | HK29: 50 | HL29: 400 | HM29: 400 | HN29: 250 | HO29: 100 | HP29: 546.99 | HQ29: 50 | HR29: 100 | HS29: 0 | HT29: 1002 | HU29: 0 | HV29: 0 | HW29: 3000 | HX29: 5000 | HY29: 0 | HZ29: 66081.76 | IA29: 5000 | IB29: 71081.76 | IC29: 58282.77 | ID29: 1900 | IE29: 50 | IF29: 400 | IG29: 400 | IH29: 250 | II29: 100 | IJ29: 546.99 | IK29: 50 | IL29: 100 | IM29: 0 | IN29: 1002 | IO29: 0 | IP29: 0 | IQ29: 0 | IR29: 0 | IS29: 0 | IT29: 63081.76 | IU29: 0 | IV29: 63081.76 | IW29: 58282.77 | IX29: 1900 | IY29: 50 | IZ29: 400 | JA29: 400 | JB29: 250 | JC29: 100 | JD29: 546.99 | JE29: 50 | JF29: 100 | JG29: 0 | JH29: 1002 | JI29: 0 | JJ29: 0 | JK29: 0 | JL29: 0 | JM29: 0 | JN29: 63081.76 | JO29: 0 | JP29: 63081.76 | JQ29: 58282.77 | JR29: 1900 | JS29: 50 | JT29: 400 | JU29: 400 | JV29: 250 | JW29: 100 | JX29: 546.99 | JY29: 50 | JZ29: 100 | KA29: 0 | KB29: 1002 | KC29: 0 | KD29: 0 | KE29: 0 | KF29: 0 | KG29: 0 | KH29: 63081.76 | KI29: 0 | KJ29: 63081.76 | KK29: 58282.77 | KL29: 1900 | KM29: 50 | KN29: 400 | KO29: 400 | KP29: 250 | KQ29: 100 | KR29: 546.99 | KS29: 50 | KT29: 100 | KU29: 0 | KV29: 1002 | KW29: 0 | KX29: 0 | KY29: 0 | KZ29: 0 | LA29: 0 | LB29: 63081.76 | LC29: 0 | LD29: 63081.76 | LE29: 58282.77 | LF29: 1900 | LG29: 50 | LH29: 400 | LI29: 400 | LJ29: 250 | LK29: 100 | LL29: 546.99 | LM29: 50 | LN29: 100 | LO29: 0 | LP29: 1002 | LQ29: 0 | LR29: 0 | LS29: 0 | LT29: 0 | LU29: 0 | LV29: 63081.76 | LW29: 0 | LX29: 63081.76 | LY29: 58282.77 | LZ29: 1900 | MA29: 50 | MB29: 400 | MC29: 400 | MD29: 250 | ME29: 100 | MF29: 546.99 | MG29: 50 | MH29: 100 | MI29: 0 | MJ29: 1002 | MK29: 0 | ML29: 0 | MM29: 0 | MN29: 0 | MO29: 0 | MP29: 63081.76 | MQ29: 0 | MR29: 63081.76 | MS29: 58282.77 | MT29: 1900 | MU29: 50 | MV29: 400 | MW29: 400 | MX29: 250 | MY29: 100 | MZ29: 546.99 | NA29: 50 | NB29: 100 | NC29: 0 | ND29: 1002 | NE29: 0 | NF29: 0 | NG29: 0 | NH29: 0 | NI29: 0 | NJ29: 63081.76 | NK29: 0 | NL29: 63081.76 | NM29: 84471.92 | NN29: 1900 | NO29: 50 | NP29: 400 | NQ29: 400 | NR29: 250 | NS29: 100 | NT29: 546.99 | NU29: 50 | NV29: 100 | NW29: 0 | NX29: 1002 | NY29: 0 | NZ29: 0 | OA29: 0 | OB29: 0 | OC29: 0 | OD29: 89270.91 | OE29: 0 | OF29: 89270.91 | OG29: 22/2017-SE | OH29: 2017-01-02 | OI29: 2017-12-31 | OJ29: 716361.66 | OK29: 190/2017-SE | OL29: Primeiro | OM29: 2017-06-06 | ON29: 2017-12-31 | OO29: 0 | OP29: 391/2017-SE | OQ29: Segundo | OR29: 2017-11-07 | OS29: 2017-12-31 | OT29: 8000 | OU29: 196/2018-SE | OV29: Terceiro | OW29: 2018-01-01 | OX29: 2018-12-31 | OY29: 786441.68 | OZ29: 202/2019-SE | PA29: Quarto | PB29: 2019-01-01 | PC29: 2019-12-31 | PD29: 842509.42
Y30: =FA30+FU30+GO30+HI30 -> 5995232.28 | Z30: =FB30+FV30+GP30+HJ30 -> 324554 | AA30: =FC30+FW30+GQ30+HK30 -> 52998.52 | AB30: =FD30+FX30+GR30+HL30 -> 90213.64 | AC30: =FE30+FY30+GS30+HM30 -> 86457.08 | AD30: =FF30+FZ30+GT30+HN30 -> 60240.68 | AE30: =FG30+GA30+GU30+HO30 -> 71479.68 | AF30: =FH30+GB30+GV30+HP30 -> 155155.84 | AG30: =FI30+GC30+GW30+HQ30 -> 42062.98 | AH30: =FJ30+GD30+GX30+HR30 -> 145257.65 | AI30: =FK30+GE30+GY30+HS30 -> 375000 | AJ30: =FL30+GF30+GZ30+HT30 -> 83368 | AK30: =FM30+GG30+HA30+HU30 -> 8500 | AL30: =FN30+GH30+HB30+HV30 -> 197754.04 | AM30: =FO30+GI30+HC30+HW30 -> 72000 | AN30: =FP30+GJ30+HD30+HX30 -> 120000 | AO30: =FQ30+GK30+HE30+HY30 -> 310493 | AP30: =FR30+GL30+HF30+HZ30 -> 7760274.39 | AQ30: =FS30+GM30+HG30+IA30 -> 430493 | AR30: =FT30+GN30+HH30+IB30 -> 8190767.39 | AS30: =IC30+IW30+JQ30+KK30 -> 5658577.6 | AT30: =ID30+IX30+JR30+KL30 -> 303360.92 | AU30: =IE30+IY30+JS30+KM30 -> 37600 | AV30: =IF30+IZ30+JT30+KN30 -> 73224.92 | AW30: =IG30+JA30+JU30+KO30 -> 69991.36 | AX30: =IH30+JB30+JV30+KP30 -> 46260 | AY30: =II30+JC30+JW30+KQ30 -> 67739.64 | AZ30: =IJ30+JD30+JX30+KR30 -> 127630.2 | BA30: =IK30+JE30+JY30+KS30 -> 24434.44 | BB30: =IL30+JF30+JZ30+KT30 -> 122787.2 | BC30: =IM30+JG30+KA30+KU30 -> 0 | BD30: =IN30+JH30+KB30+KV30 -> 85728 | BE30: =IO30+JI30+KC30+KW30 -> 9000 | BF30: =IP30+JJ30+KD30+KX30 -> 202456.32 | BG30: =IQ30+JK30+KE30+KY30 -> 3000 | BH30: =IR30+JL30+KF30+KZ30 -> 5000 | BI30: =IS30+JM30+KG30+LA30 -> 37386 | BJ30: =IT30+JN30+KH30+LB30 -> 6831790.6 | BK30: =IU30+JO30+KI30+LC30 -> 42386 | BL30: =IV30+JP30+KJ30+LD30 -> 6874176.6 | BM30: =LE30+LY30+MS30+NM30 -> 6277404.68 | BN30: =LF30+LZ30+MT30+NN30 -> 303360.92 | BO30: =LG30+MA30+MU30+NO30 -> 37600 | BP30: =LH30+MB30+MV30+NP30 -> 73224.92 | BQ30: =LI30+MC30+MW30+NQ30 -> 69991.36 | BR30: =LJ30+MD30+MX30+NR30 -> 46260 | BS30: =LK30+ME30+MY30+NS30 -> 67739.64 | BT30: =LL30+MF30+MZ30+NT30 -> 127630.2 | BU30: =LM30+MG30+NA30+NU30 -> 24434.44 | BV30: =LN30+MH30+NB30+NV30 -> 122787.2 | BW30: =LO30+MI30+NC30+NW30 -> 0 | BX30: =LP30+MJ30+ND30+NX30 -> 85728 | BY30: =LQ30+MK30+NE30+NY30 -> 9000 | BZ30: =LR30+ML30+NF30+NZ30 -> 202456.32 | CA30: =LS30+MM30+NG30+OA30 -> 0 | CB30: =LT30+MN30+NH30+OB30 -> 0 | CC30: =LU30+MO30+NI30+OC30 -> 37386 | CD30: =LV30+MP30+NJ30+OD30 -> 7447617.68 | CE30: =LW30+MQ30+NK30+OE30 -> 37386 | CF30: =LX30+MR30+NL30+OF30 -> 7485003.68 | CG30: 17931214.56 | CH30: 931275.84 | CI30: 128198.52 | CJ30: 236663.48 | CK30: 226439.8 | CL30: 152760.68 | CM30: 206958.96 | CN30: 410416.24 | CO30: 90931.86 | CP30: 390832.05 | CQ30: 375000 | CR30: 254824 | CS30: 26500 | CT30: 602666.68 | CU30: 75000 | CV30: 125000 | CW30: 385265 | CX30: 22039682.67 | CY30: 510265 | CZ30: 22549947.67 | DA30: 2556299.43 | DB30: 268340 | DC30: 2824639.43 | DD30: 1679015.92 | DE30: 23460 | DF30: 1702475.92 | DG30: 1745761.39 | DH30: 9346.5 | DI30: 1755107.89 | DJ30: 1779197.65 | DK30: 129346.5 | DL30: 1908544.15 | DM30: 1710197.65 | DN30: 14346.5 | DO30: 1724544.15 | DP30: 1707197.65 | DQ30: 9346.5 | DR30: 1716544.15 | DS30: 1707197.65 | DT30: 9346.5 | DU30: 1716544.15 | DV30: 1707197.65 | DW30: 9346.5 | DX30: 1716544.15 | DY30: 1707197.65 | DZ30: 9346.5 | EA30: 1716544.15 | EB30: 1707197.65 | EC30: 9346.5 | ED30: 1716544.15 | EE30: 1707197.65 | EF30: 9346.5 | EG30: 1716544.15 | EH30: 2326024.73 | EI30: 9346.5 | EJ30: 2335371.23 | EK30: 22039682.67 | EL30: 510265 | EM30: 22549947.67 | FA30: 1841240.45 | FB30: 85961.77 | FC30: 16624.26 | FD30: 25800.59 | FE30: 25480.7 | FF30: 15555.34 | FG30: 18304.93 | FH30: 38350.37 | FI30: 14922.88 | FJ30: 45894.34 | FK30: 360000 | FL30: 20252 | FM30: 2000 | FN30: 45911.8 | FO30: 0 | FP30: 0 | FQ30: 268340 | FR30: 2556299.43 | FS30: 268340 | FT30: 2824639.43 | FU30: 1286139.29 | FV30: 86911.77 | FW30: 17574.26 | FX30: 27800.59 | FY30: 25980.7 | FZ30: 21555.34 | GA30: 19304.93 | GB30: 52990.37 | GC30: 14922.88 | GD30: 37969.71 | GE30: 15000 | GF30: 20252 | GG30: 2000 | GH30: 50614.08 | GI30: 0 | GJ30: 0 | GK30: 23460 | GL30: 1679015.92 | GM30: 23460 | GN30: 1702475.92 | GO30: 1453208.14 | GP30: 75840.23 | GQ30: 9400 | GR30: 18306.23 | GS30: 17497.84 | GT30: 11565 | GU30: 16934.91 | GV30: 31907.55 | GW30: 6108.61 | GX30: 30696.8 | GY30: 0 | GZ30: 21432 | HA30: 2250 | HB30: 50614.08 | HC30: 0 | HD30: 0 | HE30: 9346.5 | HF30: 1745761.39 | HG30: 9346.5 | HH30: 1755107.89 | HI30: 1414644.4 | HJ30: 75840.23 | HK30: 9400 | HL30: 18306.23 | HM30: 17497.84 | HN30: 11565 | HO30: 16934.91 | HP30: 31907.55 | HQ30: 6108.61 | HR30: 30696.8 | HS30: 0 | HT30: 21432 | HU30: 2250 | HV30: 50614.08 | HW30: 72000 | HX30: 120000 | HY30: 9346.5 | HZ30: 1779197.65 | IA30: 129346.5 | IB30: 1908544.15 | IC30: 1414644.4 | ID30: 75840.23 | IE30: 9400 | IF30: 18306.23 | IG30: 17497.84 | IH30: 11565 | II30: 16934.91 | IJ30: 31907.55 | IK30: 6108.61 | IL30: 30696.8 | IM30: 0 | IN30: 21432 | IO30: 2250 | IP30: 50614.08 | IQ30: 3000 | IR30: 5000 | IS30: 9346.5 | IT30: 1710197.65 | IU30: 14346.5 | IV30: 1724544.15 | IW30: 1414644.4 | IX30: 75840.23 | IY30: 9400 | IZ30: 18306.23 | JA30: 17497.84 | JB30: 11565 | JC30: 16934.91 | JD30: 31907.55 | JE30: 6108.61 | JF30: 30696.8 | JG30: 0 | JH30: 21432 | JI30: 2250 | JJ30: 50614.08 | JK30: 0 | JL30: 0 | JM30: 9346.5 | JN30: 1707197.65 | JO30: 9346.5 | JP30: 1716544.15 | JQ30: 1414644.4 | JR30: 75840.23 | JS30: 9400 | JT30: 18306.23 | JU30: 17497.84 | JV30: 11565 | JW30: 16934.91 | JX30: 31907.55 | JY30: 6108.61 | JZ30: 30696.8 | KA30: 0 | KB30: 21432 | KC30: 2250 | KD30: 50614.08 | KE30: 0 | KF30: 0 | KG30: 9346.5 | KH30: 1707197.65 | KI30: 9346.5 | KJ30: 1716544.15 | KK30: 1414644.4 | KL30: 75840.23 | KM30: 9400 | KN30: 18306.23 | KO30: 17497.84 | KP30: 11565 | KQ30: 16934.91 | KR30: 31907.55 | KS30: 6108.61 | KT30: 30696.8 | KU30: 0 | KV30: 21432 | KW30: 2250 | KX30: 50614.08 | KY30: 0 | KZ30: 0 | LA30: 9346.5 | LB30: 1707197.65 | LC30: 9346.5 | LD30: 1716544.15 | LE30: 1414644.4 | LF30: 75840.23 | LG30: 9400 | LH30: 18306.23 | LI30: 17497.84 | LJ30: 11565 | LK30: 16934.91 | LL30: 31907.55 | LM30: 6108.61 | LN30: 30696.8 | LO30: 0 | LP30: 21432 | LQ30: 2250 | LR30: 50614.08 | LS30: 0 | LT30: 0 | LU30: 9346.5 | LV30: 1707197.65 | LW30: 9346.5 | LX30: 1716544.15 | LY30: 1414644.4 | LZ30: 75840.23 | MA30: 9400 | MB30: 18306.23 | MC30: 17497.84 | MD30: 11565 | ME30: 16934.91 | MF30: 31907.55 | MG30: 6108.61 | MH30: 30696.8 | MI30: 0 | MJ30: 21432 | MK30: 2250 | ML30: 50614.08 | MM30: 0 | MN30: 0 | MO30: 9346.5 | MP30: 1707197.65 | MQ30: 9346.5 | MR30: 1716544.15 | MS30: 1414644.4 | MT30: 75840.23 | MU30: 9400 | MV30: 18306.23 | MW30: 17497.84 | MX30: 11565 | MY30: 16934.91 | MZ30: 31907.55 | NA30: 6108.61 | NB30: 30696.8 | NC30: 0 | ND30: 21432 | NE30: 2250 | NF30: 50614.08 | NG30: 0 | NH30: 0 | NI30: 9346.5 | NJ30: 1707197.65 | NK30: 9346.5 | NL30: 1716544.15 | NM30: 2033471.48 | NN30: 75840.23 | NO30: 9400 | NP30: 18306.23 | NQ30: 17497.84 | NR30: 11565 | NS30: 16934.91 | NT30: 31907.55 | NU30: 6108.61 | NV30: 30696.8 | NW30: 0 | NX30: 21432 | NY30: 2250 | NZ30: 50614.08 | OA30: 0 | OB30: 0 | OC30: 9346.5 | OD30: 2326024.73 | OE30: 9346.5 | OF30: 2335371.23
FA31: Janeiro | FB31: Janeiro | FC31: Janeiro | FD31: Janeiro | FE31: Janeiro | FF31: Janeiro | FG31: Janeiro | FH31: Janeiro | FI31: Janeiro | FJ31: Janeiro | FK31: Janeiro | FL31: Janeiro | FM31: Janeiro | FN31: Janeiro | FO31: Janeiro | FP31: Janeiro | FQ31: Janeiro | FR31: Janeiro | FS31: Janeiro | FT31: Janeiro | FU31: Fevereiro | FV31: Fevereiro | FW31: Fevereiro | FX31: Fevereiro | FY31: Fevereiro | FZ31: Fevereiro | GA31: Fevereiro | GB31: Fevereiro | GC31: Fevereiro | GD31: Fevereiro | GE31: Fevereiro | GF31: Fevereiro | GG31: Fevereiro | GH31: Fevereiro | GI31: Fevereiro | GJ31: Fevereiro | GK31: Fevereiro | GL31: Fevereiro | GM31: Fevereiro | GN31: Fevereiro | GO31: Março | GP31: Março | GQ31: Março | GR31: Março | GS31: Março | GT31: Março | GU31: Março | GV31: Março | GW31: Março | GX31: Março | GY31: Março | GZ31: Março | HA31: Março | HB31: Março | HC31: Março | HD31: Março | HE31: Março | HF31: Março | HG31: Março | HH31: Março | HI31: Abril | HJ31: Abril | HK31: Abril | HL31: Abril | HM31: Abril | HN31: Abril | HO31: Abril | HP31: Abril | HQ31: Abril | HR31: Abril | HS31: Abril | HT31: Abril | HU31: Abril | HV31: Abril | HW31: Abril | HX31: Abril | HY31: Abril | HZ31: Abril | IA31: Abril | IB31: Abril | IC31: Maio | ID31: Maio | IE31: Maio | IF31: Maio | IG31: Maio | IH31: Maio | II31: Maio | IJ31: Maio | IK31: Maio | IL31: Maio | IM31: Maio | IN31: Maio | IO31: Maio | IP31: Maio | IQ31: Maio | IR31: Maio | IS31: Maio | IT31: Maio | IU31: Maio | IV31: Maio | IW31: Junho | IX31: Junho | IY31: Junho | IZ31: Junho | JA31: Junho | JB31: Junho | JC31: Junho | JD31: Junho | JE31: Junho | JF31: Junho | JG31: Junho | JH31: Junho | JI31: Junho | JJ31: Junho | JK31: Junho | JL31: Junho | JM31: Junho | JN31: Junho | JO31: Junho | JP31: Junho | JQ31: Julho | JR31: Julho | JS31: Julho | JT31: Julho | JU31: Julho | JV31: Julho | JW31: Julho | JX31: Julho | JY31: Julho | JZ31: Julho | KA31: Julho | KB31: Julho | KC31: Julho | KD31: Julho | KE31: Julho | KF31: Julho | KG31: Julho | KH31: Julho | KI31: Julho | KJ31: Julho | KK31: Agosto | KL31: Agosto | KM31: Agosto | KN31: Agosto | KO31: Agosto | KP31: Agosto | KQ31: Agosto | KR31: Agosto | KS31: Agosto | KT31: Agosto | KU31: Agosto | KV31: Agosto | KW31: Agosto | KX31: Agosto | KY31: Agosto | KZ31: Agosto | LA31: Agosto | LB31: Agosto | LC31: Agosto | LD31: Agosto | LE31: Setembro | LF31: Setembro | LG31: Setembro | LH31: Setembro | LI31: Setembro | LJ31: Setembro | LK31: Setembro | LL31: Setembro | LM31: Setembro | LN31: Setembro | LO31: Setembro | LP31: Setembro | LQ31: Setembro | LR31: Setembro | LS31: Setembro | LT31: Setembro | LU31: Setembro | LV31: Setembro | LW31: Setembro | LX31: Setembro | LY31: Outubro | LZ31: Outubro | MA31: Outubro | MB31: Outubro | MC31: Outubro | MD31: Outubro | ME31: Outubro | MF31: Outubro | MG31: Outubro | MH31: Outubro | MI31: Outubro | MJ31: Outubro | MK31: Outubro | ML31: Outubro | MM31: Outubro | MN31: Outubro | MO31: Outubro | MP31: Outubro | MQ31: Outubro | MR31: Outubro | MS31: Novembro | MT31: Novembro | MU31: Novembro | MV31: Novembro | MW31: Novembro | MX31: Novembro | MY31: Novembro | MZ31: Novembro | NA31: Novembro | NB31: Novembro | NC31: Novembro | ND31: Novembro | NE31: Novembro | NF31: Novembro | NG31: Novembro | NH31: Novembro | NI31: Novembro | NJ31: Novembro | NK31: Novembro | NL31: Novembro | NM31: Dezembro | NN31: Dezembro | NO31: Dezembro | NP31: Dezembro | NQ31: Dezembro | NR31: Dezembro | NS31: Dezembro | NT31: Dezembro | NU31: Dezembro | NV31: Dezembro | NW31: Dezembro | NX31: Dezembro | NY31: Dezembro | NZ31: Dezembro | OA31: Dezembro | OB31: Dezembro | OC31: Dezembro | OD31: Dezembro | OE31: Dezembro | OF31: Dezembro
Y32: 1º quadri | Z32: 1º quadri | AA32: 1º quadri | AB32: 1º quadri | AC32: 1º quadri | AD32: 1º quadri | AE32: 1º quadri | AF32: 1º quadri | AG32: 1º quadri | AH32: 1º quadri | AI32: 1º quadri | AJ32: 1º quadri | AK32: 1º quadri | AL32: 1º quadri | AM32: 1º quadri | AN32: 1º quadri | AO32: 1º quadri | AP32: 1º quadri | AQ32: 1º quadri | AR32: 1º quadri | AS32: 2º quadri | AT32: 2º quadri | AU32: 2º quadri | AV32: 2º quadri | AW32: 2º quadri | AX32: 2º quadri | AY32: 2º quadri | AZ32: 2º quadri | BA32: 2º quadri | BB32: 2º quadri | BC32: 2º quadri | BD32: 2º quadri | BE32: 2º quadri | BF32: 2º quadri | BG32: 2º quadri | BH32: 2º quadri | BI32: 2º quadri | BJ32: 2º quadri | BK32: 2º quadri | BL32: 2º quadri | BM32: 3º quadri | BN32: 3º quadri | BO32: 3º quadri | BP32: 3º quadri | BQ32: 3º quadri | BR32: 3º quadri | BS32: 3º quadri | BT32: 3º quadri | BU32: 3º quadri | BV32: 3º quadri | BW32: 3º quadri | BX32: 3º quadri | BY32: 3º quadri | BZ32: 3º quadri | CA32: 3º quadri | CB32: 3º quadri | CC32: 3º quadri | CD32: 3º quadri | CE32: 3º quadri | CF32: 3º quadri | CG32: TOTAL | CH32: TOTAL | CI32: TOTAL | CJ32: TOTAL | CK32: TOTAL | CL32: TOTAL | CM32: TOTAL | CN32: TOTAL | CO32: TOTAL | CP32: TOTAL | CQ32: TOTAL | CR32: TOTAL | CS32: TOTAL | CT32: TOTAL | CU32: TOTAL | CV32: TOTAL | CW32: TOTAL | CX32: TOTAL | CY32: TOTAL | CZ32: TOTAL
A35: 1 | B35: 2 | C35: 3 | D35: 4 | E35: 5 | F35: 6 | G35: 7 | H35: 8 | I35: 9 | J35: 10 | K35: 11 | L35: 12 | M35: 13 | N35: 14 | O35: 15 | P35: 16 | Q35: 17 | R35: 18 | S35: 19 | T35: 20 | U35: 21 | V35: 22 | W35: 23 | X35: 24 | Y35: 25 | Z35: 26 | AA35: 27 | AB35: 28 | AC35: 29 | AD35: 30 | AE35: 31 | AF35: 32 | AG35: 33 | AH35: 34 | AI35: 35 | AJ35: 36 | AK35: 37 | AL35: 38 | AM35: 39 | AN35: 40 | AO35: 41 | AP35: 42 | AQ35: 43 | AR35: 44 | AS35: 45 | AT35: 46 | AU35: 47 | AV35: 48 | AW35: 49 | AX35: 50 | AY35: 51 | AZ35: 52 | BA35: 53 | BB35: 54 | BC35: 55 | BD35: 56 | BE35: 57 | BF35: 58 | BG35: 59 | BH35: 60 | BI35: 61 | BJ35: 62 | BK35: 63 | BL35: 64 | BM35: 65 | BN35: 66 | BO35: 67 | BP35: 68 | BQ35: 69 | BR35: 70 | BS35: 71 | BT35: 72 | BU35: 73 | BV35: 74 | BW35: 75 | BX35: 76 | BY35: 77 | BZ35: 78 | CA35: 79 | CB35: 80 | CC35: 81 | CD35: 82 | CE35: 83 | CF35: 84 | CG35: 85 | CH35: 86 | CI35: 87 | CJ35: 88 | CK35: 89 | CL35: 90 | CM35: 91 | CN35: 92 | CO35: 93 | CP35: 94 | CQ35: 95 | CR35: 96 | CS35: 97 | CT35: 98 | CU35: 99 | CV35: 100 | CW35: 101 | CX35: 102 | CY35: 103 | CZ35: 104 | DA35: 105 | DB35: 106 | DC35: 107 | DD35: 108 | DE35: 109 | DF35: 110 | DG35: 111 | DH35: 112 | DI35: 113 | DJ35: 114 | DK35: 115 | DL35: 116 | DM35: 117 | DN35: 118 | DO35: 119 | DP35: 120 | DQ35: 121 | DR35: 122 | DS35: 123 | DT35: 124 | DU35: 125 | DV35: 126 | DW35: 127 | DX35: 128 | DY35: 129 | DZ35: 130 | EA35: 131 | EB35: 132 | EC35: 133 | ED35: 134 | EE35: 135 | EF35: 136 | EG35: 137 | EH35: 138 | EI35: 139 | EJ35: 140 | EK35: 141 | EL35: 142 | EM35: 143 | EN35: 144 | EO35: 145 | EP35: 146 | EQ35: 147 | ER35: 148 | ES35: 149 | ET35: 150 | EU35: 151 | EV35: 152 | EW35: 153 | EX35: 154 | EY35: 155 | EZ35: 156 | FA35: 157 | FB35: 158 | FC35: 159 | FD35: 160 | FE35: 161 | FF35: 162 | FG35: 163 | FH35: 164 | FI35: 165 | FJ35: 166 | FK35: 167 | FL35: 168 | FM35: 169 | FN35: 170 | FO35: 171 | FP35: 172 | FQ35: 173 | FR35: 174 | FS35: 175 | FT35: 176 | FU35: 177 | FV35: 178 | FW35: 179 | FX35: 180 | FY35: 181 | FZ35: 182 | GA35: 183 | GB35: 184 | GC35: 185 | GD35: 186 | GE35: 187 | GF35: 188 | GG35: 189 | GH35: 190 | GI35: 191 | GJ35: 192 | GK35: 193 | GL35: 194 | GM35: 195 | GN35: 196 | GO35: 197 | GP35: 198 | GQ35: 199 | GR35: 200 | GS35: 201 | GT35: 202 | GU35: 203 | GV35: 204 | GW35: 205 | GX35: 206 | GY35: 207 | GZ35: 208 | HA35: 209 | HB35: 210 | HC35: 211 | HD35: 212 | HE35: 213 | HF35: 214 | HG35: 215 | HH35: 216 | HI35: 217 | HJ35: 218 | HK35: 219 | HL35: 220 | HM35: 221 | HN35: 222 | HO35: 223 | HP35: 224 | HQ35: 225 | HR35: 226 | HS35: 227 | HT35: 228 | HU35: 229 | HV35: 230 | HW35: 231 | HX35: 232 | HY35: 233 | HZ35: 234 | IA35: 235 | IB35: 236 | IC35: 237 | ID35: 238 | IE35: 239 | IF35: 240 | IG35: 241 | IH35: 242 | II35: 243 | IJ35: 244 | IK35: 245 | IL35: 246 | IM35: 247 | IN35: 248 | IO35: 249 | IP35: 250 | IQ35: 251 | IR35: 252 | IS35: 253 | IT35: 254 | IU35: 255 | IV35: 256 | IW35: 257 | IX35: 258 | IY35: 259 | IZ35: 260 | JA35: 261 | JB35: 262 | JC35: 263 | JD35: 264 | JE35: 265 | JF35: 266 | JG35: 267 | JH35: 268 | JI35: 269 | JJ35: 270 | JK35: 271 | JL35: 272 | JM35: 273 | JN35: 274 | JO35: 275 | JP35: 276 | JQ35: 277 | JR35: 278 | JS35: 279 | JT35: 280 | JU35: 281 | JV35: 282 | JW35: 283 | JX35: 284 | JY35: 285 | JZ35: 286 | KA35: 287 | KB35: 288 | KC35: 289 | KD35: 290 | KE35: 291 | KF35: 292 | KG35: 293 | KH35: 294 | KI35: 295 | KJ35: 296 | KK35: 297 | KL35: 298 | KM35: 299 | KN35: 300 | KO35: 301 | KP35: 302 | KQ35: 303 | KR35: 304 | KS35: 305 | KT35: 306 | KU35: 307 | KV35: 308 | KW35: 309 | KX35: 310 | KY35: 311 | KZ35: 312 | LA35: 313 | LB35: 314 | LC35: 315 | LD35: 316 | LE35: 317 | LF35: 318 | LG35: 319 | LH35: 320 | LI35: 321 | LJ35: 322 | LK35: 323 | LL35: 324 | LM35: 325 | LN35: 326 | LO35: 327 | LP35: 328 | LQ35: 329 | LR35: 330 | LS35: 331 | LT35: 332 | LU35: 333 | LV35: 334 | LW35: 335 | LX35: 336 | LY35: 337 | LZ35: 338 | MA35: 339 | MB35: 340 | MC35: 341 | MD35: 342 | ME35: 343 | MF35: 344 | MG35: 345 | MH35: 346 | MI35: 347 | MJ35: 348 | MK35: 349 | ML35: 350 | MM35: 351 | MN35: 352 | MO35: 353 | MP35: 354 | MQ35: 355 | MR35: 356 | MS35: 357 | MT35: 358 | MU35: 359 | MV35: 360 | MW35: 361 | MX35: 362 | MY35: 363 | MZ35: 364 | NA35: 365 | NB35: 366 | NC35: 367 | ND35: 368 | NE35: 369 | NF35: 370 | NG35: 371 | NH35: 372 | NI35: 373 | NJ35: 374 | NK35: 375 | NL35: 376 | NM35: 377 | NN35: 378 | NO35: 379 | NP35: 380 | NQ35: 381 | NR35: 382 | NS35: 383 | NT35: 384 | NU35: 385 | NV35: 386 | NW35: 387 | NX35: 388 | NY35: 389 | NZ35: 390 | OA35: 391 | OB35: 392 | OC35: 393 | OD35: 394 | OE35: 395 | OF35: 396 | OG35: 397 | OH35: 398 | OI35: 399 | OJ35: 400 | OK35: 401 | OL35: 402 | OM35: 403 | ON35: 404 | OO35: 405 | OP35: 406 | OQ35: 407 | OR35: 408 | OS35: 409 | OT35: 410 | OU35: 411 | OV35: 412 | OW35: 413 | OX35: 414 | OY35: 415 | OZ35: 416 | PA35: 417 | PB35: 418 | PC35: 419 | PD35: 420 | PE35: 421 | PF35: 422 | PG35: 423 | PH35: 424 | PI35: 425
A199: =TODAY() -> 2020-10-03
A200: =IF(A199>=A201,2,1) -> 2
A201: 2020-06-30

Sheet 1º quadrimestre.19
A1: Organização da Sociedade Civil: | D1: ='BD 2019'!$A$29 -> Sociedade "Fraternitas" de São Bernardo do Campo
A2: Endereço: | D2: =VLOOKUP($D$1,Dados_2019,15)&" - "&VLOOKUP($D$1,Dados_2019,16)&" - "&VLOOKUP($D$1,Dados_2019,17)&" - SP - CEP: "&VLOOKUP($D$1,Dados_2019,18) -> Rua Giacinto Tognato, nº 293 - Baeta Neves - S.B.Campo - SP - CEP: 09760-370
A3: RELATÓRIO DE PRESTAÇÃO DE CONTAS
A4: PROCESSOS: | C4: ="TERMO "&VLOOKUP($D$1,Dados_2019,7) -> TERMO SB 058871/2016-32 | F4: ="/ PREST. CONTAS "&VLOOKUP($D$1,Dados_2019,9) -> / PREST. CONTAS SB 076954/2018-72 | J4: ="Termo de Colaboração nº "&VLOOKUP($D$1,Dados_2019,10) -> Termo de Colaboração nº 22/2017-SE | N4: 1º QUADRIMESTRE DE 2019 | Q4: =IF($N$4="1º QUADRIMESTRE DE 2019","(JANEIRO/ FEVEREIRO/ MARÇO/ABRIL)",IF($N$4="2º QUADRIMESTRE DE 2019","(MAIO/ JUNHO/ JULHO/AGOSTO)","(SETEMBRO/OUTUBRO/ NOVEMBRO/ DEZEMBRO)")) -> (JANEIRO/ FEVEREIRO/ MARÇO/ABRIL)
A6: RESUMO DO QUADRIMESTRE
A7: SEGMENTO: | D7: SALDO ANTERIOR: | F7: VALOR REPASSADO: | H7: RENTABILIDADE: | J7: REMANEJAMENTO | L7: VALOR UTILIZADO: | N7: SALDO REMANESCENTE: | P7: DESPESAS GLOSADAS: | R7: SALDO TOTAL: | AJ7: Seguro de Vida | AK7: Vale-transporte | AL7: Encargos trabalhistas | AM7: Pensão alimentícia | AN7: Vale-refeição | AO7: Bolsa-estágio
A8: Despesas com pessoal: | D8: 29385.8 | F8: =VLOOKUP($D$1,Dados_2019,25) -> 252722.17 | L8: =SUMIF(Finalidade,$AJ7,Valor_doc)+SUMIF(Finalidade,$AJ8,Valor_doc)+SUMIF(Finalidade,$AK7,Valor_doc)+SUMIF(Finalidade,$AK8,Valor_doc)+SUMIF(Finalidade,$AL7,Valor_doc)+SUMIF(Finalidade,$AL8,Valor_doc)+SUMIF(Finalidade,$AM7,Valor_doc)+SUMIF(Finalidade,$AM8,Valor_doc)+SUMIF(Finalidade,$AN7,Valor_doc)+SUMIF(Finalidade,$AN8,Valor_doc)++SUMIF(Finalidade,$AO7,Valor_doc)+SUMIF(Finalidade,$AO8,Valor_doc)+SUMIF(Finalidade,$AP8,Valor_doc) -> 168637.42 | N8: =D8+F8+H8+J8-L8 -> 113470.55 | P8: =SUMIF(Finalidade_Total,$AJ7,Valor_Total)+SUMIF(Finalidade_Parcial,$AJ7,Valor_Parcial)+SUMIF(Finalidade_Total,$AJ8,Valor_Total)+SUMIF(Finalidade_Parcial,$AJ8,Valor_Parcial)+SUMIF(Finalidade_Total,$AK7,Valor_Total)+SUMIF(Finalidade_Parcial,$AK7,Valor_Parcial)+SUMIF(Finalidade_Total,$AK8,Valor_Total)+SUMIF(Finalidade_Parcial,$AK8,Valor_Parcial)+SUMIF(Finalidade_Total,$AL7,Valor_Total)+SUMIF(Finalidade_Parcial,$AL7,Valor_Parcial)+SUMIF(Finalidade_Total,$AL8,Valor_Total)+SUMIF(Finalidade_Parcial,$AL8,Valor_Parcial)+SUMIF(Finalidade_Total,$AM7,Valor_Total)+SUMIF(Finalidade_Parcial,$AM7,Valor_Parcial)+SUMIF(Finalidade_Total,$AM8,Valor_Total)+SUMIF(Finalidade_Parcial,$AM8,Valor_Parcial)+SUMIF(Finalidade_Total,$AN7,Valor_Total)+SUMIF(Finalidade_Parcial,$AN7,Valor_Parcial)+SUMIF(Finalidade_Total,$AN8,Valor_Total)+SUMIF(Finalidade_Parcial,$AN8,Valor_Parcial)+SUMIF(Finalidade_Total,$AO8,Valor_Total)+SUMIF(Finalidade_Parcial,$AO8,Valor_Parcial)+SUMIF(Finalidade_Total,$AP8,Valor_Total)+SUMIF(Finalidade_Parcial,$AP8,Valor_Parcial)+SUMIF(Finalidade_Total,$AO7,Valor_Total)+SUMIF(Finalidade_Parcial,$AO7,Valor_Parcial) -> 0 | R8: =N8+P8 -> 113470.55 | AJ8: 13º salário | AK8: Assistência Médica | AL8: Cesta Básica | AM8: Contribuição Sindical | AN8: Férias | AO8: Pagamento mensal | AP8: Rescisão de Trabalho
A9: Despesas mensais e de consumo: | D9: 0 | F9: =VLOOKUP($D$1,Dados_2019,26) -> 7600 | L9: =SUMIF(Finalidade,$AJ9,Valor_doc)+SUMIF(Finalidade,$AK9,Valor_doc)+SUMIF(Finalidade,$AL9,Valor_doc)+SUMIF(Finalidade,$AM9,Valor_doc)+SUMIF(Finalidade,$AN9,Valor_doc)+SUMIF(Finalidade,$AO9,Valor_doc)+SUMIF(Finalidade,$AP9,Valor_doc)+SUMIF(Finalidade,$AQ9,Valor_doc) -> 4737.99 | N9: =D9+F9+H9+J9-L9 -> 2862.01 | P9: =SUMIF(Finalidade_Total,$AJ9,Valor_Total)+SUMIF(Finalidade_Parcial,$AJ9,Valor_Parcial)+SUMIF(Finalidade_Total,$AK9,Valor_Total)+SUMIF(Finalidade_Parcial,$AK9,Valor_Parcial)+SUMIF(Finalidade_Total,$AL9,Valor_Total)+SUMIF(Finalidade_Parcial,$AL9,Valor_Parcial)+SUMIF(Finalidade_Total,$AM9,Valor_Total)+SUMIF(Finalidade_Parcial,$AM9,Valor_Parcial)+SUMIF(Finalidade_Total,$AN9,Valor_Total)+SUMIF(Finalidade_Parcial,$AN9,Valor_Parcial)+SUMIF(Finalidade_Total,$AO9,Valor_Total)+SUMIF(Finalidade_Parcial,$AO9,Valor_Parcial)+SUMIF(Finalidade_Total,$AP9,Valor_Total)+SUMIF(Finalidade_Parcial,$AP9,Valor_Parcial)+SUMIF(Finalidade_Total,$AQ9,Valor_Total)+SUMIF(Finalidade_Parcial,$AQ9,Valor_Parcial) -> 0 | R9: =N9+P9 -> 2862.01 | AJ9: Consumo de água | AK9: Consumo de energia elétrica | AL9: Consumo de gás | AM9: Conta de telefone/internet | AN9: Outros serviços contratados | AO9: Tributos | AP9: Locação de copiadora
A10: EPIs e exames médicos: | D10: 0 | F10: =VLOOKUP($D$1,Dados_2019,27) -> 400 | L10: =SUMIF(Finalidade,$AJ10,Valor_doc)+SUMIF(Finalidade,$AK10,Valor_doc) -> 0 | N10: 400 | P10: =SUMIF(Finalidade_Total,$AJ10,Valor_Total)+SUMIF(Finalidade_Parcial,$AJ10,Valor_Parcial)+SUMIF(Finalidade_Total,$AK10,Valor_Total)+SUMIF(Finalidade_Parcial,$AK10,Valor_Parcial) -> 0 | R10: 400 | AJ10: Despesas de vestuário | AK10: Exames médicos
A11: Materiais didáticos: | D11: 0 | F11: =VLOOKUP($D$1,Dados_2019,28) -> 2800 | H11: 137.68 | L11: =SUMIF(Finalidade,$AJ11,Valor_doc) -> 730.45 | N11: 2207.23 | P11: =SUMIF(Finalidade_Total,$AJ11,Valor_Total)+SUMIF(Finalidade_Parcial,$AJ11,Valor_Parcial) -> 0 | R11: 2207.23 | AJ11: Materiais didáticos
A12: Materiais de escritório: | D12: 7.6 | F12: =VLOOKUP($D$1,Dados_2019,29) -> 2592.04 | H12: 737.83 | L12: =SUMIF(Finalidade,$AJ12,Valor_doc)+SUMIF(Finalidade,$AK12,Valor_doc)+SUMIF(Finalidade,$AL12,Valor_doc)+SUMIF(Finalidade,$AM12,Valor_doc)+SUMIF(Finalidade,$AN12,Valor_doc)+SUMIF(Finalidade,$AO12,Valor_doc)+SUMIF(Finalidade,$AP12,Valor_doc) -> 2512.34 | N12: 825.13 | P12: =SUMIF(Finalidade_Total,$AJ12,Valor_Total)+SUMIF(Finalidade_Parcial,$AJ12,Valor_Parcial)+SUMIF(Finalidade_Total,$AK12,Valor_Total)+SUMIF(Finalidade_Parcial,$AK12,Valor_Parcial)+SUMIF(Finalidade_Total,$AL12,Valor_Total)+SUMIF(Finalidade_Parcial,$AL12,Valor_Parcial)+SUMIF(Finalidade_Total,$AM12,Valor_Total)+SUMIF(Finalidade_Parcial,$AM12,Valor_Parcial)+SUMIF(Finalidade_Total,$AN12,Valor_Total)+SUMIF(Finalidade_Parcial,$AN12,Valor_Parcial)+SUMIF(Finalidade_Total,$AO12,Valor_Total)+SUMIF(Finalidade_Parcial,$AO12,Valor_Parcial)+SUMIF(Finalidade_Total,$AP12,Valor_Total)+SUMIF(Finalidade_Parcial,$AP12,Valor_Parcial) -> 0 | R12: 825.13 | AJ12: Materiais de escritório | AK12: INSS ou ISS - Prest. Serv. | AL12: INSS ref. RPA - Prest. Serv. | AM12: Mat. p/ manutenção de equip. | AN12: ISS ref. RPA - Prest. Serv. | AO12: Prest. de Serviços - PJ | AP12: Prest. de Serviços - RPA
A13: Materiais para biblioteca: | D13: 0 | F13: =VLOOKUP($D$1,Dados_2019,30) -> 1700 | L13: =SUMIF(Finalidade,$AJ13,Valor_doc) -> 0 | N13: 1700 | P13: =SUMIF(Finalidade_Total,$AJ13,Valor_Total)+SUMIF(Finalidade_Parcial,$AJ13,Valor_Parcial) -> 0 | R13: 1700 | AJ13: Materiais para biblioteca
A14: Materiais para educação física e recreação: | D14: 0 | F14: =VLOOKUP($D$1,Dados_2019,31) -> 800 | L14: =SUMIF(Finalidade,$AJ14,Valor_doc) -> 0 | N14: 800 | P14: =SUMIF(Finalidade_Total,$AJ14,Valor_Total)+SUMIF(Finalidade_Parcial,$AJ14,Valor_Parcial) -> 0 | R14: 800 | AJ14: Mat. Ed. Física e recreação
A15: Material de limpeza e higiene: | D15: 0 | F15: =VLOOKUP($D$1,Dados_2019,32) -> 3093.98 | H15: 343.17 | L15: =SUMIF(Finalidade,$AJ15,Valor_doc)+SUMIF(Finalidade,$AK15,Valor_doc) -> 929.95 | N15: 2507.2 | P15: =SUMIF(Finalidade_Total,$AJ15,Valor_Total)+SUMIF(Finalidade_Parcial,$AJ15,Valor_Parcial)+SUMIF(Finalidade_Total,$AK15,Valor_Total)+SUMIF(Finalidade_Parcial,$AK15,Valor_Parcial) -> 0 | R15: 2507.2 | AJ15: Mat. Limpeza/ Higiene/ Primeiros Socorros | AK15: Itens de cama/mesa/banho
A16: Estudo do meio/ Transporte em passeios pedagógicos: | D16: 0 | F16: =VLOOKUP($D$1,Dados_2019,33) -> 700 | L16: =SUMIF(Finalidade,$AJ16,Valor_doc) -> 0 | N16: 700 | P16: =SUMIF(Finalidade_Total,$AJ16,Valor_Total)+SUMIF(Finalidade_Parcial,$AJ16,Valor_Parcial) -> 0 | R16: 700 | AJ16: Transporte em passeios
A17: Manutenção do Imóvel: | D17: =D18+D19 -> 2709.65 | F17: =F18+F19 -> 17100 | H17: =H18+H19 -> 0 | J17: =J18+J19 -> 0 | L17: =L18+L19 -> 3517.23 | N17: =N18+N19 -> 16292.42 | P17: =P18+P19 -> 7.92 | R17: =N17+P17 -> 16300.34
A18: - Pequenas despesas com manutenção do imóvel: | D18: 2709.65 | F18: =VLOOKUP($D$1,Dados_2019,34) -> 2100 | L18: =SUMIF(Finalidade,$AJ18,Valor_doc)+SUMIF(Finalidade,$AK18,Valor_doc)+SUMIF(Finalidade,$AL18,Valor_doc)+SUMIF(Finalidade,$AM18,Valor_doc)+SUMIF(Finalidade,$AN18,Valor_doc)+SUMIF(Finalidade,$AO18,Valor_doc)+SUMIF(Finalidade,$AP18,Valor_doc)+SUMIF(Finalidade,$AQ18,Valor_doc)-L19 -> 0 | N18: 4809.65 | P18: =SUMIF(Finalidade_Total,$AJ19,Valor_Total)+SUMIF(Finalidade_Parcial,$AJ19,Valor_Parcial)+SUMIF(Finalidade_Total,$AK19,Valor_Total)+SUMIF(Finalidade_Parcial,$AK19,Valor_Parcial)+SUMIF(Finalidade_Total,$AL19,Valor_Total)+SUMIF(Finalidade_Parcial,$AL19,Valor_Parcial)+SUMIF(Finalidade_Total,$AM19,Valor_Total)+SUMIF(Finalidade_Parcial,$AM19,Valor_Parcial)+SUMIF(Finalidade_Total,$AN19,Valor_Total)+SUMIF(Finalidade_Parcial,$AN19,Valor_Parcial)+SUMIF(Finalidade_Total,$AO19,Valor_Total)+SUMIF(Finalidade_Parcial,$AO19,Valor_Parcial)+SUMIF(Finalidade_Total,$AP19,Valor_Total)+SUMIF(Finalidade_Parcial,$AP19,Valor_Parcial)+SUMIF(Finalidade_Total,$AQ19,Valor_Total)+SUMIF(Finalidade_Parcial,$AQ19,Valor_Parcial) -> 7.92 | R18: 4817.57 | AJ18: Aquisição de material | AK18: INSS ref. NFS de manutenção | AL18: INSS ref. RPA de manutenção | AM18: ISS ref. NFS de manutenção | AN18: ISS ref. RPA de manutenção | AO18: Seguro predial | AP18: Serviços de manutenção - PJ | AQ18: Serviços de manutenção - RPA
A19: - Programa Escola Linda | D19: 0 | F19: =VLOOKUP($D$1,Dados_2019,35) -> 15000 | L19: =IF((SUMIF(Finalidade,$AJ19,Valor_doc)+SUMIF(Finalidade,$AK19,Valor_doc)+SUMIF(Finalidade,$AL19,Valor_doc)+SUMIF(Finalidade,$AM19,Valor_doc)+SUMIF(Finalidade,$AN19,Valor_doc)+SUMIF(Finalidade,$AO19,Valor_doc)+SUMIF(Finalidade,$AP19,Valor_doc)+SUMIF(Finalidade,$AQ19,Valor_doc))<=D19+F19+H19,(SUMIF(Finalidade,$AJ19,Valor_doc)+SUMIF(Finalidade,$AK19,Valor_doc)+SUMIF(Finalidade,$AL19,Valor_doc)+SUMIF(Finalidade,$AM19,Valor_doc)+SUMIF(Finalidade,$AN19,Valor_doc)+SUMIF(Finalidade,$AO19,Valor_doc)+SUMIF(Finalidade,$AP19,Valor_doc)+SUMIF(Finalidade,$AQ19,Valor_doc)),D19+F19+H19) -> 3517.23 | N19: 11482.77 | P19: 0 | R19: 11482.77 | AJ19: Aquisição de material | AK19: INSS ref. NFS de manutenção | AL19: INSS ref. RPA de manutenção | AM19: ISS ref. NFS de manutenção | AN19: ISS ref. RPA de manutenção | AO19: Seguro predial | AP19: Serviços de manutenção - PJ | AQ19: Serviços de manutenção - RPA
A20: Contador: | D20: 0 | F20: =VLOOKUP($D$1,Dados_2019,36) -> 4008 | L20: =SUMIF(Finalidade,$AJ20,Valor_doc) -> 2994 | N20: 1014 | P20: =SUMIF(Finalidade_Total,$AJ20,Valor_Total)+SUMIF(Finalidade_Parcial,$AJ20,Valor_Parcial) -> 0 | R20: 1014 | AJ20: Contador
A21: Combustível para deslocamentos à SE: | D21: 0 | F21: =VLOOKUP($D$1,Dados_2019,37) -> 0 | L21: =SUMIF(Finalidade,$AJ21,Valor_doc) -> 0 | N21: =D21+F21+H21+J21-L21 -> 0 | P21: =SUMIF(Finalidade_Total,$AJ21,Valor_Total)+SUMIF(Finalidade_Parcial,$AJ21,Valor_Parcial) -> 0 | R21: =N21+P21 -> 0 | AJ21: Combustível
A22: Locação de imóvel: | D22: 0 | F22: =VLOOKUP($D$1,Dados_2019,38) -> 0 | L22: =SUMIF(Finalidade,$AJ22,Valor_doc)+SUMIF(Finalidade,$AK22,Valor_doc) -> 0 | N22: =D22+F22+H22+J22-L22 -> 0 | P22: =SUMIF(Finalidade_Total,$AJ22,Valor_Total)+SUMIF(Finalidade_Parcial,$AJ22,Valor_Parcial)+SUMIF(Finalidade_Total,$AK22,Valor_Total)+SUMIF(Finalidade_Parcial,$AK22,Valor_Parcial) -> 0 | R22: =N22+P22 -> 0 | AJ22: Aluguel | AK22: IPTU
A23: Educação Maker - Custeio: | D23: 0 | F23: =VLOOKUP($D$1,Dados_2019,39) -> 3000 | L23: =SUMIF(Finalidade,$AJ23,Valor_doc)+SUMIF(Finalidade,$AK23,Valor_doc)+SUMIF(Finalidade,$AL23,Valor_doc)+SUMIF(Finalidade,$AM23,Valor_doc)+SUMIF(Finalidade,$AN23,Valor_doc) -> 0 | N23: =D23+F23+H23+J23-L23 -> 3000 | P23: =SUMIF(Finalidade_Total,$AJ23,Valor_Total)+SUMIF(Finalidade_Parcial,$AJ23,Valor_Parcial)+SUMIF(Finalidade_Total,$AK23,Valor_Total)+SUMIF(Finalidade_Parcial,$AK23,Valor_Parcial)+SUMIF(Finalidade_Total,$AL23,Valor_Total)+SUMIF(Finalidade_Parcial,$AL23,Valor_Parcial)+SUMIF(Finalidade_Total,$AM23,Valor_Total)+SUMIF(Finalidade_Parcial,$AM23,Valor_Parcial)+SUMIF(Finalidade_Total,$AN23,Valor_Total)+SUMIF(Finalidade_Parcial,$AN23,Valor_Parcial) -> 0 | R23: =N23+P23 -> 3000 | X23: Capital Negativo | Y23: Custeio Negativo | AJ23: Material para Educação Maker | AK23: Prest. de Serviços Ed. Maker - PJ | AL23: Prest. de Serviços Ed. Maker - RPA | AM23: INSS/ISS ref. NFS - Ed. Maker | AN23: INSS/ISS ref. RPA - Ed. Maker
A24: TOTAL CUSTEIO: | D24: =SUM(D8:E17,D20:E23) -> 32103.05 | F24: =SUM(F8:G17,F20:G23) -> 296516.19 | H24: =SUM(H8:I17,H20:I23) -> 1218.68 | J24: =SUM(J8:K17,J20:K23) -> 0 | L24: =SUM(L8:M17,L20:M23) -> 184059.38 | N24: =SUM(N8:O17,N20:O23) -> 145778.54 | P24: =SUM(P8:Q17,P20:Q23) -> 7.92 | R24: =SUM(R8:S17,R20:S23) -> 145786.46 | X24: =IF(AND($R$24>0,$R$27<0),2,1) -> 1 | Y24: =IF(AND($R$24<0,$R$27>0),2,1) -> 1
A25: Educação Maker - Capital: | D25: 0 | F25: =VLOOKUP($D$1,Dados_2019,40) -> 5000 | L25: =SUMIF(Finalidade,$AJ25,Valor_doc) -> 0 | N25: =D25+F25+H25+J25-L25 -> 5000 | P25: =SUMIF(Finalidade_Total,$AJ25,Valor_Total)+SUMIF(Finalidade_Parcial,$AJ25,Valor_Parcial) -> 0 | R25: =N25+P25 -> 5000 | AJ25: Equip./mobiliário - Educação Maker
A26: Bem Permanente: | D26: 0 | F26: =VLOOKUP($D$1,Dados_2019,41) -> 10150 | L26: =SUMIF(Finalidade,$AJ26,Valor_doc) -> 2279.05 | N26: =D26+F26+H26+J26-L26 -> 7870.95 | P26: =SUMIF(Finalidade_Total,$AJ26,Valor_Total)+SUMIF(Finalidade_Parcial,$AJ26,Valor_Parcial) -> 0 | R26: =N26+P26 -> 7870.95 | AJ26: Aquisição de equip./mobiliário
A27: TOTAL CAPITAL: | D27: =SUM(D25:E26) -> 0 | F27: =SUM(F25:G26) -> 15150 | H27: =SUM(H25:I26) -> 0 | J27: =SUM(J25:K26) -> 0 | L27: =SUM(L25:M26) -> 2279.05 | N27: =SUM(N25:O26) -> 12870.95 | P27: =SUM(P25:Q26) -> 0 | R27: =SUM(R25:S26) -> 12870.95 | X27: =R28-F45+F46-F47+J45+J46+J47-N45-N46-N47+R45-R46 -> 159490.54
A28: TOTAL: | D28: =D24+D27 -> 32103.05 | F28: =F24+F27 -> 311666.19 | H28: =H24+H27 -> 1218.68 | J28: =J24+J27 -> 0 | L28: =L24+L27 -> 186338.43 | N28: =N24+N27 -> 158649.49 | P28: =P24+P27 -> 7.92 | R28: =R24+R27 -> 158657.41 | X28: =IF(X27=R32,1,2) -> 1 | Y28: =IF(Z28>0,Z28,-Z28) -> 0 | Z28: =X27-R32 -> 0
A30: CONCILIAÇÃO BANCÁRIA | AL30: Tipo de Documento
A31: Nome da Instituição Financeira: | E31: =IF(VLOOKUP($D$1,Dados_2019,21)=0,"",VLOOKUP($D$1,Dados_2019,21)) -> Caixa Econômica Federal | H31: Agência: | I31: =IF(VLOOKUP($D$1,Dados_2019,22)=0,"",VLOOKUP($D$1,Dados_2019,22)) -> 2901 | K31: Conta Corrente nº | M31: =IF(VLOOKUP($D$1,Dados_2019,23)=0,"",VLOOKUP($D$1,Dados_2019,23)) -> 00001789-0 | O31: Poupança/ Aplicação Financeira: | R31: =IF(VLOOKUP($D$1,Dados_2019,24)=0,"",VLOOKUP($D$1,Dados_2019,24)) ->  | X31: =R32+F45-F46+F47-J45-J46-J47+N45+N46+N47-R45+R46 -> 158657.41 | AL31: Boleto Bancário
A32: ="SALDO DE CONTA CORRENTE EM "&IF($N$4="1º QUADRIMESTRE DE 2019","30/04/2019:",IF($N$4="2º QUADRIMESTRE DE 2019","31/08/2019:","31/12/2019:")) -> SALDO DE CONTA CORRENTE EM 30/04/2019: | E32: 80727.71 | G32: ="SALDO DE POUPANÇA/ APL. FINANCEIRA EM "&IF($N$4="1º QUADRIMESTRE DE 2019","30/04/2019:",IF($N$4="2º QUADRIMESTRE DE 2019","31/08/2019:","31/12/2019:")) -> SALDO DE POUPANÇA/ APL. FINANCEIRA EM 30/04/2019: | L32: 78762.83 | N32: ="SALDO EM "&IF($N$4="1º QUADRIMESTRE DE 2019","30/04/2019:",IF($N$4="2º QUADRIMESTRE DE 2019","31/08/2019:","31/12/2019:"))&" (C. Corrente + Poupança/Aplicação Financeira)" -> SALDO EM 30/04/2019: (C. Corrente + Poupança/Aplicação Financeira) | R32: =E32+L32 -> 159490.54 | AL32: CF-e | AN32: JANEIRO | AO32: 43466 | AP32: 43496
A33: Ocorrências: | D33: Ref. ao Documento Fiscal: | E33: Nº do Cheque: | F33: Valor: | H33: Ocorrências: | J33: Ref. ao Documento Fiscal: | K33: Nº do Cheque: | L33: Valor: | N33: Ocorrências: | P33: Ref. ao Documento Fiscal: | Q33: Nº do Cheque: | R33: Valor: | X33: Ocorrências | AL33: DANFE | AN33: FEVEREIRO | AO33: 43497 | AP33: 43524
A34: Pagamento a menor | D34: Saldo Remanescente 2018 | F34: 743.6 | X34: Pagamento a maior | AL34: Fatura | AN34: MARÇO | AO34: 43525 | AP34: 43555
A35: Juros / Multas | D35: 23/01/2019-item 27 | E35: 241228 | F35: 23 | X35: Pagamento a menor | AL35: FGTS | AN35: ABRIL | AO35: 43556 | AP35: 43585
A36: Despesa bancária indevida | D36: 04,05,19,25/02/2019 | E36: Tarifas-fevereiro | F36: =20+1+18+42 -> 81 | X36: Pagamento em Trânsito | AL36: GPS | AN36: MAIO | AO36: 43586 | AP36: 43616
A37: Depósito recursos próprios | D37: 26/02/2019-res.Tarifas | E37: 0 | F37: 81 | X37: Pagamento indevido | AL37: Holerite | AN37: JUNHO | AO37: 43617 | AP37: 43646
A38: Juros / Multas | D38: 05/02/2019-item 63 | E38: 466249 | F38: 6.83 | X38: Ressarcimento/ Estorno | AL38: ISS | AN38: JULHO | AO38: 43647 | AP38: 43677
A39: Pagamento indevido | D39: 18/03/2019 | E39: 177880 | F39: 85.96 | X39: Depósito recursos próprios | AL39: Nota Fiscal | AN39: AGOSTO | AO39: 43678 | AP39: 43708
A40: Depósito recursos próprios | D40: item 128 | E40: à vista | F40: 215.6 | X40: Despesa bancária indevida | AL40: NF de Serviço | AN40: SETEMBRO | AO40: 43709 | AP40: 43738
A41: Juros / Multas | D41: 09/04/2019-item 193 | E41: 392747 | F41: 2.36 | X41: Despesa indevida | AL41: NF-e | AN41: OUTUBRO | AO41: 43739 | AP41: 43769
X42: Juros / Multas | AL42: NFS-e | AN42: NOVEMBRO | AO42: 43770 | AP42: 43799
AL43: Recibo | AN43: DEZEMBRO | AO43: 43800 | AP43: 43861
A45: TOTAL POR OCORRÊNCIA: | D45: Pagamento a maior | F45: =SUMIF(Ocorrencias1,$D$45,_Vl1)+SUMIF(Ocorrencias2,$D$45,_Vl2)+SUMIF(Ocorrencias3,$D$45,_Vl3) -> 0 | G45: Pagamento em trânsito | J45: =SUMIF(Ocorrencias1,$G$45,_Vl1)+SUMIF(Ocorrencias2,$G$45,_Vl2)+SUMIF(Ocorrencias3,$G$45,_Vl3) -> 0 | K45: Despesa bancária indevida | N45: =SUMIF(Ocorrencias1,$K$45,_Vl1)+SUMIF(Ocorrencias2,$K$45,_Vl2)+SUMIF(Ocorrencias3,$K$45,_Vl3) -> 81 | R45: =SUMIF(Ocorrencias1,$O$45,_Vl1)+SUMIF(Ocorrencias2,$O$45,_Vl2)+SUMIF(Ocorrencias3,$O$45,_Vl3) -> 0
D46: Pagamento a menor | F46: =SUMIF(Ocorrencias1,$D$46,_Vl1)+SUMIF(Ocorrencias2,$D$46,_Vl2)+SUMIF(Ocorrencias3,$D$46,_Vl3) -> 743.6 | G46: Ressarcimento/ Estorno | J46: =SUMIF(Ocorrencias1,$G$46,_Vl1)+SUMIF(Ocorrencias2,$G$46,_Vl2)+SUMIF(Ocorrencias3,$G$46,_Vl3) -> 0 | K46: Despesa indevida | N46: =SUMIF(Ocorrencias1,$K$46,_Vl1)+SUMIF(Ocorrencias2,$K$46,_Vl2)+SUMIF(Ocorrencias3,$K$46,_Vl3) -> 0 | O46: Despesas Glosadas | R46: =$P$28 -> 7.92
D47: Pagamento indevido | F47: =SUMIF(Ocorrencias1,$D$47,_Vl1)+SUMIF(Ocorrencias2,$D$47,_Vl2)+SUMIF(Ocorrencias3,$D$47,_Vl3) -> 85.96 | G47: Depósito recursos próprios | J47: =SUMIF(Ocorrencias1,$G$47,_Vl1)+SUMIF(Ocorrencias2,$G$47,_Vl2)+SUMIF(Ocorrencias3,$G$47,_Vl3) -> 296.6 | K47: Juros / Multas | N47: =SUMIF(Ocorrencias1,$K$47,_Vl1)+SUMIF(Ocorrencias2,$K$47,_Vl2)+SUMIF(Ocorrencias3,$K$47,_Vl3) -> 32.19 | O47: =IF(R47<0,"Valor pertencente a entidade:","Total a ressarcir:") -> Valor pertencente a entidade: | R47: =$F$45-$F$46+$F$47-$J$46-$J$47+$N$45+$N$46+$N$47+$R$46 -> -833.13 | AH47: FALTA | AI47: FALSE
A49: RELATÓRIO CIRCUNSTANCIADO | T49: DESPESAS GLOSADAS | W49: Documento Fiscal lançado em duplicidade Identificação do Ajuste: | AH49: =IF(OR(EXACT($AH$47,$AH$51:$AH$650))=FALSE,1,2) -> 1 | AI49: =IF(OR(EXACT($AI$47,$AI$51:$AI$650))=FALSE,1,2) -> 1
A50: NC: | B50: Categoria da Despesa: | E50: Finalidade da Despesa: | G50: Data | H50: Tipo de Documento: | I50: Nº do documento: | J50: Fornecedor/ Empresa: | M50: Nº do Cheque: | N50: Valor Total: | P50: Justificativa: | T50: Glosa Total | U50: Glosa Parcial | V50: Valor Glosa Parcial | X50: ITEM TCESP | Y50: EXIBIÇÃO | Z50: Número da despesa | AA50: Número da despesa | AB50: Glosa Total | AC50: Finalidade Total | AD50: Valor Total | AE50: Glosa Parcial | AF50: Finalidade Parcial | AG50: Valor Parcial | AH50: não preenchido | AI50: preenchido errado | AJ50: Custeio Geral | AK50: Despesas com pessoal | AL50: Despesas mensais | AM50: Manutenção do imóvel | AN50: Locação de imóvel | AO50: Bens Permanentes | AP50: Educação Maker | AQ50: ERRO | AR50: COMPETENCIA
A51: =AA51 -> 1 | B51: Despesas com pessoal | E51: Pagamento mensal | G51: 2018-12-24 | H51: Boleto Bancário | I51: 1091-F 01 | J51: Febes Federação Entidades Bem e Social | M51: 99356 | N51: 166 | P51: Contribuição mensal á Entidade de Classe ref. 01/2019 | X51: =IF($N51=0,"vazio",VLOOKUP($E51,Item_TCESP,2)) -> Item AA | Y51: =IF(N51=0,"Ocultar","Exibir") -> Exibir | Z51: =IF($N51>0,1,"") -> 1 | AA51: =IF(Z51="","",Z51) -> 1 | AB51: FALSE | AC51: =IF($AB51=TRUE,$E51,"") ->  | AD51: =IF($AB51=TRUE,$N51,0) -> 0 | AE51: FALSE | AF51: =IF($AE51=TRUE,$E51,"") ->  | AG51: =IF($AE51=TRUE,$V51,0) -> 0 | AH51: =IF(B51=0,IF(E51=0,"vazio","FALTA"),IF(E51=0,"FALTA","vazio")) -> vazio | AI51: =IF(AH51="Falta",TRUE,IF(B51=0,TRUE,IF(B51=$AJ$50,OR(EXACT(E51,$AJ$51:$AJ$80)),IF(B51=$AK$50,OR(EXACT(E51,$AK$51:$AK$78)),IF(B51=$AL$50,OR(EXACT(E51,$AL$51:$AL$66)),IF(B51=$AM$50,OR(EXACT(E51,$AM$51:$AM$66)),IF(B51=$AN$50,OR(EXACT(E51,$AN$51:$AN$54)),IF(B51=$AO$50,OR(EXACT(E51,$AO$51:$AO$52)),OR(EXACT(E51,$AP$51:$AP$62)))))))))) -> TRUE | AJ51: Combustível | AK51: 13º salário | AL51: Consumo de água | AM51: Aquisição de material | AN51: Aluguel | AO51: Aquisição de equip./mobiliário | AP51: Equip./mobiliário - Educação Maker | AQ51: =IF(N51=0,"OK",IF(AND(N51>0,B51=0),FALSE,IF(AH51="FALTA",FALSE,IF(AI51=FALSE,FALSE,"OK")))) -> OK | AR51: =IF(AND($G51>=$AO$32,$G51<=$AP$32),$AN$32,IF(AND($G51>=$AO$33,$G51<=$AP$33),$AN$33,IF(AND($G51>=$AO$34,$G51<=$AP$34),$AN$34,IF(AND($G51>=$AO$35,$G51<=$AP$35),$AN$35,IF(AND($G51>=$AO$36,$G51<=$AP$36),$AN$36,IF(AND($G51>=$AO$37,$G51<=$AP$37),$AN$37,IF(AND($G51>=$AO$38,$G51<=$AP$38),$AN$38,IF(AND($G51>=$AO$39,$G51<=$AP$39),$AN$39,IF(AND($G51>=$AO$40,$G51<=$AP$40),$AN$40,IF(AND($G51>=$AO$41,$G51<=$AP$41),$AN$41,IF(AND($G51>=$AO$42,$G51<=$AP$42),$AN$42,IF(AND($G51>=$AO$43,$G51<=$AP$43),$AN$43,"")))))))))))) -> 
A52: =AA52 -> 2 | B52: Despesas mensais | E52: Conta de telefone/internet | G52: 2019-01-02 | H52: Boleto Bancário | I52: 7149188 | J52: Terra Networks Brasil S/A | M52: 100549 | N52: 88.36 | P52: Internet conf. Faturas 53055163 e 83989522 - contrato CRTR 04350454 | X52: Item KK | Y52: =IF(N52=0,"Ocultar","Exibir") -> Exibir | Z52: =IF($N52>0,1,"") -> 1 | AA52: =IF(Z52="","",COUNT(Z$52:Z52)+AA51) -> 2 | AB52: FALSE | AC52: =IF($AB52=TRUE,$E52,"") ->  | AD52: =IF($AB52=TRUE,$N52,0) -> 0 | AE52: FALSE | AF52: =IF($AE52=TRUE,$E52,"") ->  | AG52: =IF($AE52=TRUE,$V52,0) -> 0 | AH52: =IF(B52=0,IF(E52=0,"vazio","FALTA"),IF(E52=0,"FALTA","vazio")) -> vazio | AI52: =IF(AH52="Falta",TRUE,IF(B52=0,TRUE,IF(B52=$AJ$50,OR(EXACT(E52,$AJ$51:$AJ$80)),IF(B52=$AK$50,OR(EXACT(E52,$AK$51:$AK$78)),IF(B52=$AL$50,OR(EXACT(E52,$AL$51:$AL$66)),IF(B52=$AM$50,OR(EXACT(E52,$AM$51:$AM$66)),IF(B52=$AN$50,OR(EXACT(E52,$AN$51:$AN$54)),IF(B52=$AO$50,OR(EXACT(E52,$AO$51:$AO$52)),OR(EXACT(E52,$AP$51:$AP$62)))))))))) -> TRUE | AJ52: Despesas de vestuário | AK52: Assistência Médica | AL52: Consumo de energia elétrica | AM52: INSS ref. NFS de manutenção | AN52: IPTU | AO52: =LOWER(AO51) -> aquisição de equip./mobiliário | AP52: INSS/ISS ref. NFS - Ed. Maker | AQ52: OK | AR52: =IF(AND($G52>=$AO$32,$G52<=$AP$32),$AN$32,IF(AND($G52>=$AO$33,$G52<=$AP$33),$AN$33,IF(AND($G52>=$AO$34,$G52<=$AP$34),$AN$34,IF(AND($G52>=$AO$35,$G52<=$AP$35),$AN$35,IF(AND($G52>=$AO$36,$G52<=$AP$36),$AN$36,IF(AND($G52>=$AO$37,$G52<=$AP$37),$AN$37,IF(AND($G52>=$AO$38,$G52<=$AP$38),$AN$38,IF(AND($G52>=$AO$39,$G52<=$AP$39),$AN$39,IF(AND($G52>=$AO$40,$G52<=$AP$40),$AN$40,IF(AND($G52>=$AO$41,$G52<=$AP$41),$AN$41,IF(AND($G52>=$AO$42,$G52<=$AP$42),$AN$42,IF(AND($G52>=$AO$43,$G52<=$AP$43),$AN$43,"")))))))))))) -> JANEIRO
A53: 3 | B53: Despesas mensais | E53: Consumo de água | G53: 2018-12-21 | H53: Fatura | I53: 102251 | J53: SABESP | M53: 39654 | N53: 1048.84 | P53: Água - ref. 12/2018 | X53: Item KK | Y53: Exibir | Z53: 1 | AA53: =IF(Z53="","",COUNT(Z$52:Z53)+Z53) -> 3 | AB53: FALSE | AD53: 0 | AG53: 0 | AH53: vazio | AI53: =IF(AH53="Falta",TRUE,IF(B53=0,TRUE,IF(B53=$AJ$50,OR(EXACT(E53,$AJ$51:$AJ$80)),IF(B53=$AK$50,OR(EXACT(E53,$AK$51:$AK$78)),IF(B53=$AL$50,OR(EXACT(E53,$AL$51:$AL$66)),IF(B53=$AM$50,OR(EXACT(E53,$AM$51:$AM$66)),IF(B53=$AN$50,OR(EXACT(E53,$AN$51:$AN$54)),IF(B53=$AO$50,OR(EXACT(E53,$AO$51:$AO$52)),OR(EXACT(E53,$AP$51:$AP$62)))))))))) -> TRUE | AJ53: INSS ou ISS - Prest. Serv. | AK53: Bolsa-estágio | AL53: Consumo de gás | AM53: INSS ref. RPA de manutenção | AN53: =LOWER(AN51) -> aluguel | AP53: INSS/ISS ref. RPA - Ed. Maker | AQ53: OK
A54: 4 | B54: Custeio Geral | E54: Prest. de Serviços - PJ | G54: 2019-01-02 | H54: ISS ref. NFS-e | I54: 4824 | J54: Prefeitura do Município de São Bernardo do Campo | M54: 17204 | N54: 3.68 | P54: ISS ref. NFS-e 4824 de 10/12/2018 - Qualy | X54: Item HH | Y54: Exibir | Z54: 1 | AA54: =IF(Z54="","",COUNT(Z$52:Z54)+Z54) -> 4 | AB54: FALSE | AD54: 0 | AE54: FALSE | AG54: 0 | AH54: vazio | AI54: =IF(AH54="Falta",TRUE,IF(B54=0,TRUE,IF(B54=$AJ$50,OR(EXACT(E54,$AJ$51:$AJ$80)),IF(B54=$AK$50,OR(EXACT(E54,$AK$51:$AK$78)),IF(B54=$AL$50,OR(EXACT(E54,$AL$51:$AL$66)),IF(B54=$AM$50,OR(EXACT(E54,$AM$51:$AM$66)),IF(B54=$AN$50,OR(EXACT(E54,$AN$51:$AN$54)),IF(B54=$AO$50,OR(EXACT(E54,$AO$51:$AO$52)),OR(EXACT(E54,$AP$51:$AP$62)))))))))) -> TRUE | AJ54: INSS ref. RPA - Prest. Serv. | AK54: Cesta Básica | AL54: Conta de telefone/internet | AM54: ISS ref. NFS de manutenção | AN54: =LOWER(AN52) -> iptu | AP54: Material para Educação Maker | AQ54: OK | AR54: JANEIRO
A55: 5 | B55: Despesas com pessoal | E55: Assistência Médica | G55: 2019-01-07 | H55: NFS-e | I55: 5984487 | J55: Santa Helena Assistência Médica S/A | M55: 377524 | N55: 2169.17 | P55: Assistência Médica ref. 01/2019 | X55: Item AA | Y55: Exibir | Z55: 1 | AA55: =IF(Z55="","",COUNT(Z$52:Z55)+Z55) -> 5 | AB55: FALSE | AD55: 0 | AG55: 0 | AH55: vazio | AI55: =IF(AH55="Falta",TRUE,IF(B55=0,TRUE,IF(B55=$AJ$50,OR(EXACT(E55,$AJ$51:$AJ$80)),IF(B55=$AK$50,OR(EXACT(E55,$AK$51:$AK$78)),IF(B55=$AL$50,OR(EXACT(E55,$AL$51:$AL$66)),IF(B55=$AM$50,OR(EXACT(E55,$AM$51:$AM$66)),IF(B55=$AN$50,OR(EXACT(E55,$AN$51:$AN$54)),IF(B55=$AO$50,OR(EXACT(E55,$AO$51:$AO$52)),OR(EXACT(E55,$AP$51:$AP$62)))))))))) -> TRUE | AJ55: ISS ref. RPA - Prest. Serv. | AK55: Contribuição Sindical | AL55: Contador | AM55: ISS ref. RPA de manutenção | AP55: Prest. de Serviços Ed. Maker - PJ | AQ55: OK | AR55: JANEIRO
A56: 6 | B56: Despesas mensais | E56: Conta de telefone/internet | G56: 2018-12-19 | H56: Fatura | I56: 46754-0 | J56: Vivo Telefônica Brasil S/A | M56: 159165 | N56: 302.18 | P56: Telefone / internet - ref. 12/2018 | X56: Item KK | Y56: Exibir | Z56: 1 | AA56: =IF(Z56="","",COUNT(Z$52:Z56)+Z56) -> 6 | AB56: FALSE | AD56: 0 | AG56: 0 | AH56: vazio | AI56: =IF(AH56="Falta",TRUE,IF(B56=0,TRUE,IF(B56=$AJ$50,OR(EXACT(E56,$AJ$51:$AJ$80)),IF(B56=$AK$50,OR(EXACT(E56,$AK$51:$AK$78)),IF(B56=$AL$50,OR(EXACT(E56,$AL$51:$AL$66)),IF(B56=$AM$50,OR(EXACT(E56,$AM$51:$AM$66)),IF(B56=$AN$50,OR(EXACT(E56,$AN$51:$AN$54)),IF(B56=$AO$50,OR(EXACT(E56,$AO$51:$AO$52)),OR(EXACT(E56,$AP$51:$AP$62)))))))))) -> TRUE | AJ56: Itens de cama/mesa/banho | AK56: Encargos trabalhistas | AL56: Locação de copiadora | AM56: Seguro predial | AP56: Prest. de Serviços Ed. Maker - RPA | AQ56: OK
A57: 7 | B57: Despesas com pessoal | E57: Pagamento mensal | G57: 2019-01-18 | H57: Holerite | J57: Mírian Vieira Alves | M57: 22035 | N57: 294 | P57: Adiantamento - ref. 01/2019 - Auxiliar de Sala | X57: Item AA | Y57: Exibir | Z57: 1 | AA57: =IF(Z57="","",COUNT(Z$52:Z57)+Z57) -> 7 | AB57: FALSE | AD57: 0 | AG57: 0 | AH57: vazio | AI57: =IF(AH57="Falta",TRUE,IF(B57=0,TRUE,IF(B57=$AJ$50,OR(EXACT(E57,$AJ$51:$AJ$80)),IF(B57=$AK$50,OR(EXACT(E57,$AK$51:$AK$78)),IF(B57=$AL$50,OR(EXACT(E57,$AL$51:$AL$66)),IF(B57=$AM$50,OR(EXACT(E57,$AM$51:$AM$66)),IF(B57=$AN$50,OR(EXACT(E57,$AN$51:$AN$54)),IF(B57=$AO$50,OR(EXACT(E57,$AO$51:$AO$52)),OR(EXACT(E57,$AP$51:$AP$62)))))))))) -> TRUE | AJ57: Mat. Ed. Física e recreação | AK57: Exames médicos | AL57: Outros serviços contratados | AM57: Serviços de manutenção - PJ | AP57: =LOWER(AP51) -> equip./mobiliário - educação maker | AQ57: OK | AR57: JANEIRO
A58: 8 | B58: Despesas com pessoal | E58: Pagamento mensal | G58: 2019-01-18 | H58: Holerite | J58: Fernanda Godói Barbosa | M58: 22154 | N58: 455 | P58: Adiantamento - ref. 01/2019 - Prof. Desenv. Infantil | X58: Item AA | Y58: Exibir | Z58: 1 | AA58: =IF(Z58="","",COUNT(Z$52:Z58)+Z58) -> 8 | AB58: FALSE | AD58: 0 | AE58: FALSE | AG58: 0 | AH58: vazio | AI58: =IF(AH58="Falta",TRUE,IF(B58=0,TRUE,IF(B58=$AJ$50,OR(EXACT(E58,$AJ$51:$AJ$80)),IF(B58=$AK$50,OR(EXACT(E58,$AK$51:$AK$78)),IF(B58=$AL$50,OR(EXACT(E58,$AL$51:$AL$66)),IF(B58=$AM$50,OR(EXACT(E58,$AM$51:$AM$66)),IF(B58=$AN$50,OR(EXACT(E58,$AN$51:$AN$54)),IF(B58=$AO$50,OR(EXACT(E58,$AO$51:$AO$52)),OR(EXACT(E58,$AP$51:$AP$62)))))))))) -> TRUE | AJ58: Mat. Limpeza/ Higiene/ Primeiros Socorros | AK58: Férias | AL58: Tributos | AM58: Serviços de manutenção - RPA | AP58: =LOWER(AP52) -> inss/iss ref. nfs - ed. maker | AQ58: OK | AR58: JANEIRO
A59: 9 | B59: Despesas com pessoal | E59: Pagamento mensal | G59: 2019-01-18 | H59: Holerite | J59: Deuseli Aparecida Franciscon Rodrigues | M59: 22221 | N59: 251 | P59: Adiantamento - ref. 01/2019 - Auxiliar de Serviços Gerais | X59: Item AA | Y59: Exibir | Z59: 1 | AA59: =IF(Z59="","",COUNT(Z$52:Z59)+Z59) -> 9 | AB59: FALSE | AD59: 0 | AE59: FALSE | AG59: 0 | AH59: vazio | AI59: =IF(AH59="Falta",TRUE,IF(B59=0,TRUE,IF(B59=$AJ$50,OR(EXACT(E59,$AJ$51:$AJ$80)),IF(B59=$AK$50,OR(EXACT(E59,$AK$51:$AK$78)),IF(B59=$AL$50,OR(EXACT(E59,$AL$51:$AL$66)),IF(B59=$AM$50,OR(EXACT(E59,$AM$51:$AM$66)),IF(B59=$AN$50,OR(EXACT(E59,$AN$51:$AN$54)),IF(B59=$AO$50,OR(EXACT(E59,$AO$51:$AO$52)),OR(EXACT(E59,$AP$51:$AP$62)))))))))) -> TRUE | AJ59: Mat. p/ manutenção de equip. | AK59: Pagamento mensal | AL59: =LOWER(AL51) -> consumo de água | AM59: =LOWER(AM51) -> aquisição de material | AP59: inss/iss ref. rpa - ed. maker | AQ59: OK | AR59: JANEIRO
A60: 10 | B60: Despesas com pessoal | E60: Pagamento mensal | G60: 2019-01-18 | H60: Holerite | J60: Michelle Tinti | M60: 22283 | N60: 294 | P60: Adiantamento - ref. 01/2019 - Auxiliar de Sala | X60: Item AA | Y60: Exibir | Z60: 1 | AA60: =IF(Z60="","",COUNT(Z$52:Z60)+Z60) -> 10 | AB60: FALSE | AD60: 0 | AG60: 0 | AH60: vazio | AI60: =IF(AH60="Falta",TRUE,IF(B60=0,TRUE,IF(B60=$AJ$50,OR(EXACT(E60,$AJ$51:$AJ$80)),IF(B60=$AK$50,OR(EXACT(E60,$AK$51:$AK$78)),IF(B60=$AL$50,OR(EXACT(E60,$AL$51:$AL$66)),IF(B60=$AM$50,OR(EXACT(E60,$AM$51:$AM$66)),IF(B60=$AN$50,OR(EXACT(E60,$AN$51:$AN$54)),IF(B60=$AO$50,OR(EXACT(E60,$AO$51:$AO$52)),OR(EXACT(E60,$AP$51:$AP$62)))))))))) -> TRUE | AJ60: Materiais de escritório | AK60: Pensão alimentícia | AL60: consumo de energia elétrica | AM60: inss ref. nfs de manutenção | AP60: material para educação maker | AQ60: OK | AR60: JANEIRO
A61: 11 | B61: Despesas com pessoal | E61: Pagamento mensal | G61: 2019-01-18 | H61: Holerite | J61: Ana Maria Ciconello Ribeiro | M61: 22351 | N61: 417 | P61: Adiantamento - ref. 01/2019 - Auxiliar Administrativo | X61: Item AA | Y61: Exibir | Z61: 1 | AA61: =IF(Z61="","",COUNT(Z$52:Z61)+Z61) -> 11 | AB61: FALSE | AD61: 0 | AG61: 0 | AH61: vazio | AI61: =IF(AH61="Falta",TRUE,IF(B61=0,TRUE,IF(B61=$AJ$50,OR(EXACT(E61,$AJ$51:$AJ$80)),IF(B61=$AK$50,OR(EXACT(E61,$AK$51:$AK$78)),IF(B61=$AL$50,OR(EXACT(E61,$AL$51:$AL$66)),IF(B61=$AM$50,OR(EXACT(E61,$AM$51:$AM$66)),IF(B61=$AN$50,OR(EXACT(E61,$AN$51:$AN$54)),IF(B61=$AO$50,OR(EXACT(E61,$AO$51:$AO$52)),OR(EXACT(E61,$AP$51:$AP$62)))))))))) -> TRUE | AJ61: Materiais didáticos | AK61: Rescisão de Trabalho | AL61: consumo de gás | AM61: inss ref. rpa de manutenção | AP61: prest. de serviços ed. maker - pj | AQ61: OK | AR61: JANEIRO
A62: 12 | B62: Despesas com pessoal | E62: Pagamento mensal | G62: 2019-01-18 | H62: Holerite | J62: Dominique Mirella do Amaral Jesus | M62: 22426 | N62: 455 | P62: Adiantamento - ref. 01/2019 - Prof. Desenv. Infantil | X62: Item AA | Y62: Exibir | Z62: 1 | AA62: =IF(Z62="","",COUNT(Z$52:Z62)+Z62) -> 12 | AB62: FALSE | AD62: 0 | AG62: 0 | AH62: vazio | AI62: =IF(AH62="Falta",TRUE,IF(B62=0,TRUE,IF(B62=$AJ$50,OR(EXACT(E62,$AJ$51:$AJ$80)),IF(B62=$AK$50,OR(EXACT(E62,$AK$51:$AK$78)),IF(B62=$AL$50,OR(EXACT(E62,$AL$51:$AL$66)),IF(B62=$AM$50,OR(EXACT(E62,$AM$51:$AM$66)),IF(B62=$AN$50,OR(EXACT(E62,$AN$51:$AN$54)),IF(B62=$AO$50,OR(EXACT(E62,$AO$51:$AO$52)),OR(EXACT(E62,$AP$51:$AP$62)))))))))) -> TRUE | AJ62: Materiais para biblioteca | AK62: Seguro de Vida | AL62: conta de telefone/internet | AM62: iss ref. nfs de manutenção | AP62: prest. de serviços ed. maker - rpa | AQ62: OK | AR62: JANEIRO
A63: 13 | B63: Despesas com pessoal | E63: Pagamento mensal | G63: 2019-01-18 | H63: Holerite | J63: Cláudia Zanutto Nobre | M63: 22491 | N63: 294 | P63: Adiantamento - ref. 01/2019 - Auxiliar de Sala | X63: Item AA | Y63: Exibir | Z63: 1 | AA63: =IF(Z63="","",COUNT(Z$52:Z63)+Z63) -> 13 | AB63: FALSE | AD63: 0 | AG63: 0 | AH63: vazio | AI63: =IF(AH63="Falta",TRUE,IF(B63=0,TRUE,IF(B63=$AJ$50,OR(EXACT(E63,$AJ$51:$AJ$80)),IF(B63=$AK$50,OR(EXACT(E63,$AK$51:$AK$78)),IF(B63=$AL$50,OR(EXACT(E63,$AL$51:$AL$66)),IF(B63=$AM$50,OR(EXACT(E63,$AM$51:$AM$66)),IF(B63=$AN$50,OR(EXACT(E63,$AN$51:$AN$54)),IF(B63=$AO$50,OR(EXACT(E63,$AO$51:$AO$52)),OR(EXACT(E63,$AP$51:$AP$62)))))))))) -> TRUE | AJ63: Prest. de Serviços - PJ | AK63: Vale-refeição | AL63: contador | AM63: iss ref. rpa de manutenção | AQ63: OK | AR63: JANEIRO
A64: 14 | B64: Despesas com pessoal | E64: Pagamento mensal | G64: 2019-01-18 | H64: Holerite | J64: Creuza Maria dos Santos Pessoni | M64: 22568 | N64: 949 | P64: Adiantamento - ref. 01/2019 - Diretora | X64: Item AA | Y64: Exibir | Z64: 1 | AA64: =IF(Z64="","",COUNT(Z$52:Z64)+Z64) -> 14 | AB64: FALSE | AD64: 0 | AG64: 0 | AH64: vazio | AI64: =IF(AH64="Falta",TRUE,IF(B64=0,TRUE,IF(B64=$AJ$50,OR(EXACT(E64,$AJ$51:$AJ$80)),IF(B64=$AK$50,OR(EXACT(E64,$AK$51:$AK$78)),IF(B64=$AL$50,OR(EXACT(E64,$AL$51:$AL$66)),IF(B64=$AM$50,OR(EXACT(E64,$AM$51:$AM$66)),IF(B64=$AN$50,OR(EXACT(E64,$AN$51:$AN$54)),IF(B64=$AO$50,OR(EXACT(E64,$AO$51:$AO$52)),OR(EXACT(E64,$AP$51:$AP$62)))))))))) -> TRUE | AJ64: Prest. de Serviços - RPA | AK64: Vale-transporte | AL64: locação de copiadora | AM64: seguro predial | AQ64: OK | AR64: JANEIRO
A65: 15 | B65: Despesas com pessoal | E65: Pagamento mensal | G65: 2019-01-18 | H65: Holerite | J65: Marleide Monteiro de Freitas | M65: 22640 | N65: 455 | P65: Adiantamento - ref. 01/2019 - Prof. Desenv. Infantil | X65: Item AA | Y65: Exibir | Z65: 1 | AA65: =IF(Z65="","",COUNT(Z$52:Z65)+Z65) -> 15 | AB65: FALSE | AD65: 0 | AG65: 0 | AH65: vazio | AI65: =IF(AH65="Falta",TRUE,IF(B65=0,TRUE,IF(B65=$AJ$50,OR(EXACT(E65,$AJ$51:$AJ$80)),IF(B65=$AK$50,OR(EXACT(E65,$AK$51:$AK$78)),IF(B65=$AL$50,OR(EXACT(E65,$AL$51:$AL$66)),IF(B65=$AM$50,OR(EXACT(E65,$AM$51:$AM$66)),IF(B65=$AN$50,OR(EXACT(E65,$AN$51:$AN$54)),IF(B65=$AO$50,OR(EXACT(E65,$AO$51:$AO$52)),OR(EXACT(E65,$AP$51:$AP$62)))))))))) -> TRUE | AJ65: Transporte em passeios | AK65: =LOWER(AK51) -> 13º salário | AL65: outros serviços contratados | AM65: serviços de manutenção - pj | AQ65: OK | AR65: JANEIRO
A66: 16 | B66: Despesas com pessoal | E66: Pagamento mensal | G66: 2019-01-18 | H66: Holerite | J66: Geane da Silva Sousa | M66: 22720 | N66: 455 | P66: Adiantamento - ref. 01/2019 - Prof. Desenv. Infantil | X66: Item AA | Y66: Exibir | Z66: 1 | AA66: =IF(Z66="","",COUNT(Z$52:Z66)+Z66) -> 16 | AB66: FALSE | AD66: 0 | AG66: 0 | AH66: vazio | AI66: =IF(AH66="Falta",TRUE,IF(B66=0,TRUE,IF(B66=$AJ$50,OR(EXACT(E66,$AJ$51:$AJ$80)),IF(B66=$AK$50,OR(EXACT(E66,$AK$51:$AK$78)),IF(B66=$AL$50,OR(EXACT(E66,$AL$51:$AL$66)),IF(B66=$AM$50,OR(EXACT(E66,$AM$51:$AM$66)),IF(B66=$AN$50,OR(EXACT(E66,$AN$51:$AN$54)),IF(B66=$AO$50,OR(EXACT(E66,$AO$51:$AO$52)),OR(EXACT(E66,$AP$51:$AP$62)))))))))) -> TRUE | AJ66: =LOWER(AJ51) -> combustível | AK66: =LOWER(AK52) -> assistência médica | AL66: tributos | AM66: serviços de manutenção - rpa | AQ66: OK | AR66: JANEIRO
A67: 17 | B67: Despesas com pessoal | E67: Pagamento mensal | G67: 2019-01-18 | H67: Holerite | J67: Rosiane Sousa Pereira | M67: 22794 | N67: 295 | P67: Adiantamento - ref. 01/2019 - Merendeira | X67: Item AA | Y67: Exibir | Z67: 1 | AA67: =IF(Z67="","",COUNT(Z$52:Z67)+Z67) -> 17 | AB67: FALSE | AD67: 0 | AG67: 0 | AH67: vazio | AI67: =IF(AH67="Falta",TRUE,IF(B67=0,TRUE,IF(B67=$AJ$50,OR(EXACT(E67,$AJ$51:$AJ$80)),IF(B67=$AK$50,OR(EXACT(E67,$AK$51:$AK$78)),IF(B67=$AL$50,OR(EXACT(E67,$AL$51:$AL$66)),IF(B67=$AM$50,OR(EXACT(E67,$AM$51:$AM$66)),IF(B67=$AN$50,OR(EXACT(E67,$AN$51:$AN$54)),IF(B67=$AO$50,OR(EXACT(E67,$AO$51:$AO$52)),OR(EXACT(E67,$AP$51:$AP$62)))))))))) -> TRUE | AJ67: =LOWER(AJ52) -> despesas de vestuário | AK67: bolsa-estágio | AQ67: OK | AR67: JANEIRO
A68: 18 | B68: Despesas com pessoal | E68: Pagamento mensal | G68: 2019-01-18 | H68: Holerite | J68: Sandra Octaviano da Costa | M68: 22864 | N68: 674 | P68: Adiantamento - ref. 01/2019 - Coordenadora Pedagógica | X68: Item AA | Y68: Exibir | Z68: 1 | AA68: =IF(Z68="","",COUNT(Z$52:Z68)+Z68) -> 18 | AB68: FALSE | AD68: 0 | AG68: 0 | AH68: vazio | AI68: =IF(AH68="Falta",TRUE,IF(B68=0,TRUE,IF(B68=$AJ$50,OR(EXACT(E68,$AJ$51:$AJ$80)),IF(B68=$AK$50,OR(EXACT(E68,$AK$51:$AK$78)),IF(B68=$AL$50,OR(EXACT(E68,$AL$51:$AL$66)),IF(B68=$AM$50,OR(EXACT(E68,$AM$51:$AM$66)),IF(B68=$AN$50,OR(EXACT(E68,$AN$51:$AN$54)),IF(B68=$AO$50,OR(EXACT(E68,$AO$51:$AO$52)),OR(EXACT(E68,$AP$51:$AP$62)))))))))) -> TRUE | AJ68: inss ou iss - prest. serv. | AK68: cesta básica | AQ68: OK | AR68: JANEIRO
A69: 19 | B69: Despesas com pessoal | E69: Pagamento mensal | G69: 2019-01-18 | H69: Holerite | J69: Eliane Novais da Silva | M69: 22962 | N69: 455 | P69: Adiantamento - ref. 01/2019 - Prof. Desenv. Infantil | X69: Item AA | Y69: Exibir | Z69: 1 | AA69: =IF(Z69="","",COUNT(Z$52:Z69)+Z69) -> 19 | AB69: FALSE | AD69: 0 | AG69: 0 | AH69: vazio | AI69: =IF(AH69="Falta",TRUE,IF(B69=0,TRUE,IF(B69=$AJ$50,OR(EXACT(E69,$AJ$51:$AJ$80)),IF(B69=$AK$50,OR(EXACT(E69,$AK$51:$AK$78)),IF(B69=$AL$50,OR(EXACT(E69,$AL$51:$AL$66)),IF(B69=$AM$50,OR(EXACT(E69,$AM$51:$AM$66)),IF(B69=$AN$50,OR(EXACT(E69,$AN$51:$AN$54)),IF(B69=$AO$50,OR(EXACT(E69,$AO$51:$AO$52)),OR(EXACT(E69,$AP$51:$AP$62)))))))))) -> TRUE | AJ69: inss ref. rpa - prest. serv. | AK69: contribuição sindical | AQ69: OK | AR69: JANEIRO
A70: 20 | B70: Despesas com pessoal | E70: Pagamento mensal | G70: 2019-01-18 | H70: Holerite | J70: Célia Maria dos Santos Casa | M70: 23048 | N70: 295 | P70: Adiantamento - ref. 01/2019 - Merendeira | X70: Item AA | Y70: Exibir | Z70: 1 | AA70: =IF(Z70="","",COUNT(Z$52:Z70)+Z70) -> 20 | AB70: FALSE | AD70: 0 | AG70: 0 | AH70: vazio | AI70: =IF(AH70="Falta",TRUE,IF(B70=0,TRUE,IF(B70=$AJ$50,OR(EXACT(E70,$AJ$51:$AJ$80)),IF(B70=$AK$50,OR(EXACT(E70,$AK$51:$AK$78)),IF(B70=$AL$50,OR(EXACT(E70,$AL$51:$AL$66)),IF(B70=$AM$50,OR(EXACT(E70,$AM$51:$AM$66)),IF(B70=$AN$50,OR(EXACT(E70,$AN$51:$AN$54)),IF(B70=$AO$50,OR(EXACT(E70,$AO$51:$AO$52)),OR(EXACT(E70,$AP$51:$AP$62)))))))))) -> TRUE | AJ70: iss ref. rpa - prest. serv. | AK70: encargos trabalhistas | AQ70: OK | AR70: JANEIRO
A71: 21 | B71: Despesas com pessoal | E71: Pagamento mensal | G71: 2019-01-18 | H71: Holerite | J71: Adriana Rodrigues de Sousa | M71: 23120 | N71: 294 | P71: Adiantamento - ref. 01/2019 - Auxiliar de Sala | X71: Item AA | Y71: Exibir | Z71: 1 | AA71: =IF(Z71="","",COUNT(Z$52:Z71)+Z71) -> 21 | AB71: FALSE | AD71: 0 | AG71: 0 | AH71: vazio | AI71: =IF(AH71="Falta",TRUE,IF(B71=0,TRUE,IF(B71=$AJ$50,OR(EXACT(E71,$AJ$51:$AJ$80)),IF(B71=$AK$50,OR(EXACT(E71,$AK$51:$AK$78)),IF(B71=$AL$50,OR(EXACT(E71,$AL$51:$AL$66)),IF(B71=$AM$50,OR(EXACT(E71,$AM$51:$AM$66)),IF(B71=$AN$50,OR(EXACT(E71,$AN$51:$AN$54)),IF(B71=$AO$50,OR(EXACT(E71,$AO$51:$AO$52)),OR(EXACT(E71,$AP$51:$AP$62)))))))))) -> TRUE | AJ71: itens de cama/mesa/banho | AK71: exames médicos | AQ71: OK | AR71: JANEIRO
A72: 22 | B72: Despesas com pessoal | E72: Pagamento mensal | G72: 2019-01-18 | H72: Holerite | J72: Luíza Natália Fernandes Cândido | M72: 23182 | N72: 294 | P72: Adiantamento - ref. 01/2019 - Auxiliar de Sala | X72: Item AA | Y72: Exibir | Z72: 1 | AA72: =IF(Z72="","",COUNT(Z$52:Z72)+Z72) -> 22 | AB72: FALSE | AD72: 0 | AG72: 0 | AH72: vazio | AI72: =IF(AH72="Falta",TRUE,IF(B72=0,TRUE,IF(B72=$AJ$50,OR(EXACT(E72,$AJ$51:$AJ$80)),IF(B72=$AK$50,OR(EXACT(E72,$AK$51:$AK$78)),IF(B72=$AL$50,OR(EXACT(E72,$AL$51:$AL$66)),IF(B72=$AM$50,OR(EXACT(E72,$AM$51:$AM$66)),IF(B72=$AN$50,OR(EXACT(E72,$AN$51:$AN$54)),IF(B72=$AO$50,OR(EXACT(E72,$AO$51:$AO$52)),OR(EXACT(E72,$AP$51:$AP$62)))))))))) -> TRUE | AJ72: mat. ed. física e recreação | AK72: férias | AQ72: OK | AR72: JANEIRO
A73: 23 | B73: Despesas com pessoal | E73: Pagamento mensal | G73: 2019-01-18 | H73: Holerite | J73: Valdinez Vieira Bezerra | M73: 23255 | N73: 455 | P73: Adiantamento - ref. 01/2019 - Prof. Desenv. Infantil | X73: Item AA | Y73: Exibir | Z73: 1 | AA73: =IF(Z73="","",COUNT(Z$52:Z73)+Z73) -> 23 | AB73: FALSE | AD73: 0 | AG73: 0 | AH73: vazio | AI73: =IF(AH73="Falta",TRUE,IF(B73=0,TRUE,IF(B73=$AJ$50,OR(EXACT(E73,$AJ$51:$AJ$80)),IF(B73=$AK$50,OR(EXACT(E73,$AK$51:$AK$78)),IF(B73=$AL$50,OR(EXACT(E73,$AL$51:$AL$66)),IF(B73=$AM$50,OR(EXACT(E73,$AM$51:$AM$66)),IF(B73=$AN$50,OR(EXACT(E73,$AN$51:$AN$54)),IF(B73=$AO$50,OR(EXACT(E73,$AO$51:$AO$52)),OR(EXACT(E73,$AP$51:$AP$62)))))))))) -> TRUE | AJ73: mat. limpeza/ higiene/ primeiros socorros | AK73: pagamento mensal | AQ73: OK | AR73: JANEIRO
A74: 24 | B74: Despesas com pessoal | E74: Pagamento mensal | G74: 2019-01-18 | H74: Holerite | J74: Maria Silveira de Sousa | M74: 23323 | N74: 324 | P74: Adiantamento - ref. 01/2019 - Auxiliar de Serviços Gerais | X74: Item AA | Y74: Exibir | Z74: 1 | AA74: =IF(Z74="","",COUNT(Z$52:Z74)+Z74) -> 24 | AB74: FALSE | AD74: 0 | AG74: 0 | AH74: vazio | AI74: =IF(AH74="Falta",TRUE,IF(B74=0,TRUE,IF(B74=$AJ$50,OR(EXACT(E74,$AJ$51:$AJ$80)),IF(B74=$AK$50,OR(EXACT(E74,$AK$51:$AK$78)),IF(B74=$AL$50,OR(EXACT(E74,$AL$51:$AL$66)),IF(B74=$AM$50,OR(EXACT(E74,$AM$51:$AM$66)),IF(B74=$AN$50,OR(EXACT(E74,$AN$51:$AN$54)),IF(B74=$AO$50,OR(EXACT(E74,$AO$51:$AO$52)),OR(EXACT(E74,$AP$51:$AP$62)))))))))) -> TRUE | AJ74: mat. p/ manutenção de equip. | AK74: pensão alimentícia | AQ74: OK | AR74: JANEIRO
A75: 25 | B75: Manutenção do imóvel | E75: Seguro predial | G75: 2019-01-07 | H75: Boleto Bancário | I75: 1008316 | J75: Tókio Marine Seguradora S/A | M75: 129123 | N75: 2044.44 | P75: Pagamento de seguro do prédio - Apólice 180 00108316 - Título 0000036269786 | X75: Item HH | Y75: Exibir | Z75: 1 | AA75: =IF(Z75="","",COUNT(Z$52:Z75)+Z75) -> 25 | AB75: FALSE | AD75: 0 | AG75: 0 | AH75: vazio | AI75: =IF(AH75="Falta",TRUE,IF(B75=0,TRUE,IF(B75=$AJ$50,OR(EXACT(E75,$AJ$51:$AJ$80)),IF(B75=$AK$50,OR(EXACT(E75,$AK$51:$AK$78)),IF(B75=$AL$50,OR(EXACT(E75,$AL$51:$AL$66)),IF(B75=$AM$50,OR(EXACT(E75,$AM$51:$AM$66)),IF(B75=$AN$50,OR(EXACT(E75,$AN$51:$AN$54)),IF(B75=$AO$50,OR(EXACT(E75,$AO$51:$AO$52)),OR(EXACT(E75,$AP$51:$AP$62)))))))))) -> TRUE | AJ75: materiais de escritório | AK75: rescisão de trabalho | AQ75: OK | AR75: JANEIRO
A76: 26 | B76: Despesas com pessoal | E76: Seguro de Vida | G76: 2019-01-17 | H76: Fatura | I76: 3949600 | J76: MetLife - Clube Pasi de Seguros | M76: 130012 | N76: 177.4 | P76: Seguro de vida - 20 vidas - ref. 01/2019 | X76: Item AA | Y76: Exibir | Z76: 1 | AA76: =IF(Z76="","",COUNT(Z$52:Z76)+Z76) -> 26 | AB76: FALSE | AD76: 0 | AG76: 0 | AH76: vazio | AI76: =IF(AH76="Falta",TRUE,IF(B76=0,TRUE,IF(B76=$AJ$50,OR(EXACT(E76,$AJ$51:$AJ$80)),IF(B76=$AK$50,OR(EXACT(E76,$AK$51:$AK$78)),IF(B76=$AL$50,OR(EXACT(E76,$AL$51:$AL$66)),IF(B76=$AM$50,OR(EXACT(E76,$AM$51:$AM$66)),IF(B76=$AN$50,OR(EXACT(E76,$AN$51:$AN$54)),IF(B76=$AO$50,OR(EXACT(E76,$AO$51:$AO$52)),OR(EXACT(E76,$AP$51:$AP$62)))))))))) -> TRUE | AJ76: materiais didáticos | AK76: seguro de vida | AQ76: OK | AR76: JANEIRO
A77: 27 | B77: Despesas mensais | E77: Consumo de água | G77: 2019-01-21 | H77: Fatura | I77: 102251 | J77: SABESP | M77: 241228 | N77: 50.53 | P77: Água - ref. 01/2019 | X77: Item KK | Y77: Exibir | Z77: 1 | AA77: =IF(Z77="","",COUNT(Z$52:Z77)+Z77) -> 27 | AB77: FALSE | AD77: 0 | AG77: 0 | AH77: vazio | AI77: =IF(AH77="Falta",TRUE,IF(B77=0,TRUE,IF(B77=$AJ$50,OR(EXACT(E77,$AJ$51:$AJ$80)),IF(B77=$AK$50,OR(EXACT(E77,$AK$51:$AK$78)),IF(B77=$AL$50,OR(EXACT(E77,$AL$51:$AL$66)),IF(B77=$AM$50,OR(EXACT(E77,$AM$51:$AM$66)),IF(B77=$AN$50,OR(EXACT(E77,$AN$51:$AN$54)),IF(B77=$AO$50,OR(EXACT(E77,$AO$51:$AO$52)),OR(EXACT(E77,$AP$51:$AP$62)))))))))) -> TRUE | AJ77: materiais para biblioteca | AK77: vale-refeição | AM77: =IF($B51=$AJ$50,$AJ$51:$AJ$65,IF($B51=$AK$50,$AK$51:$AK$64,IF($B51=$AL$50,$AL$51:$AL$58,IF($B51=$AM$50,$AM$51:$AM$58,IF($B51=$AN$50,$AN$51:$AN$52,IF($B51=$AO$50,$AO$51,IF($B51=$AP$50,$AP$51:$AP$56,0))))))) ->  | AQ77: OK | AR77: JANEIRO
A78: 28 | B78: Despesas com pessoal | E78: Vale-transporte | G78: 2019-01-24 | H78: Recibo | I78: 9210833 | J78: Promobom Autopass S.A. | M78: 388300 | N78: 408.51 | P78: Vale transporte - ref. 02/2019 | X78: Item AA | Y78: Exibir | Z78: 1 | AA78: =IF(Z78="","",COUNT(Z$52:Z78)+Z78) -> 28 | AB78: FALSE | AD78: 0 | AG78: 0 | AH78: vazio | AI78: =IF(AH78="Falta",TRUE,IF(B78=0,TRUE,IF(B78=$AJ$50,OR(EXACT(E78,$AJ$51:$AJ$80)),IF(B78=$AK$50,OR(EXACT(E78,$AK$51:$AK$78)),IF(B78=$AL$50,OR(EXACT(E78,$AL$51:$AL$66)),IF(B78=$AM$50,OR(EXACT(E78,$AM$51:$AM$66)),IF(B78=$AN$50,OR(EXACT(E78,$AN$51:$AN$54)),IF(B78=$AO$50,OR(EXACT(E78,$AO$51:$AO$52)),OR(EXACT(E78,$AP$51:$AP$62)))))))))) -> TRUE | AJ78: prest. de serviços - pj | AK78: vale-transporte | AQ78: OK | AR78: JANEIRO
A79: 29 | B79: Custeio Geral | E79: Mat. p/ manutenção de equip. | G79: 2019-01-29 | H79: DANFE | I79: 5.972 | J79: G. C. L. Carrinhos Ltda. - ME | M79: 438091 | N79: 155.14 | P79: Pedal para complemento dos carrinhos "Gari" | X79: Item FF | Y79: Exibir | Z79: 1 | AA79: =IF(Z79="","",COUNT(Z$52:Z79)+Z79) -> 29 | AB79: FALSE | AD79: 0 | AG79: 0 | AH79: vazio | AI79: =IF(AH79="Falta",TRUE,IF(B79=0,TRUE,IF(B79=$AJ$50,OR(EXACT(E79,$AJ$51:$AJ$80)),IF(B79=$AK$50,OR(EXACT(E79,$AK$51:$AK$78)),IF(B79=$AL$50,OR(EXACT(E79,$AL$51:$AL$66)),IF(B79=$AM$50,OR(EXACT(E79,$AM$51:$AM$66)),IF(B79=$AN$50,OR(EXACT(E79,$AN$51:$AN$54)),IF(B79=$AO$50,OR(EXACT(E79,$AO$51:$AO$52)),OR(EXACT(E79,$AP$51:$AP$62)))))))))) -> TRUE | AJ79: prest. de serviços - rpa | AQ79: OK | AR79: JANEIRO
A80: 30 | B80: Despesas com pessoal | E80: Vale-transporte | G80: 2019-01-24 | H80: Recibo | I80: 773641 | J80: Cartão Legal | M80: 454558 | N80: 1893.4 | P80: Vale transporte - ref. 02/2019 | X80: Item AA | Y80: Exibir | Z80: 1 | AA80: =IF(Z80="","",COUNT(Z$52:Z80)+Z80) -> 30 | AB80: FALSE | AD80: 0 | AG80: 0 | AH80: vazio | AI80: =IF(AH80="Falta",TRUE,IF(B80=0,TRUE,IF(B80=$AJ$50,OR(EXACT(E80,$AJ$51:$AJ$80)),IF(B80=$AK$50,OR(EXACT(E80,$AK$51:$AK$78)),IF(B80=$AL$50,OR(EXACT(E80,$AL$51:$AL$66)),IF(B80=$AM$50,OR(EXACT(E80,$AM$51:$AM$66)),IF(B80=$AN$50,OR(EXACT(E80,$AN$51:$AN$54)),IF(B80=$AO$50,OR(EXACT(E80,$AO$51:$AO$52)),OR(EXACT(E80,$AP$51:$AP$62)))))))))) -> TRUE | AJ80: transporte em passeios | AQ80: OK | AR80: JANEIRO
A81: 31 | B81: Despesas com pessoal | E81: Cesta Básica | G81: 2019-01-27 | H81: NFS-e | I81: 70149 | J81: Sodexo Pass Brasil Serviços e Comércio S/A | M81: 456570 | N81: 2858.5 | P81: Cesta Básica - ref. 02/2019 | X81: Item AA | Y81: Exibir | Z81: 1 | AA81: =IF(Z81="","",COUNT(Z$52:Z81)+Z81) -> 31 | AB81: FALSE | AD81: 0 | AG81: 0 | AH81: vazio | AI81: =IF(AH81="Falta",TRUE,IF(B81=0,TRUE,IF(B81=$AJ$50,OR(EXACT(E81,$AJ$51:$AJ$80)),IF(B81=$AK$50,OR(EXACT(E81,$AK$51:$AK$78)),IF(B81=$AL$50,OR(EXACT(E81,$AL$51:$AL$66)),IF(B81=$AM$50,OR(EXACT(E81,$AM$51:$AM$66)),IF(B81=$AN$50,OR(EXACT(E81,$AN$51:$AN$54)),IF(B81=$AO$50,OR(EXACT(E81,$AO$51:$AO$52)),OR(EXACT(E81,$AP$51:$AP$62)))))))))) -> TRUE | AQ81: OK | AR81: JANEIRO
A82: 32 | B82: Despesas mensais | E82: Conta de telefone/internet | G82: 2019-01-29 | H82: Boleto Bancário | I82: 7157201 | J82: Terra Networks Brasil S/A | M82: 19016 | N82: 88.36 | P82: Internet conf. Faturas 53314660 e 8415072 de 22/01/2019 - contrato CRTR 04350454 | X82: Item KK | Y82: Exibir | Z82: 1 | AA82: =IF(Z82="","",COUNT(Z$52:Z82)+Z82) -> 32 | AB82: FALSE | AD82: 0 | AG82: 0 | AH82: vazio | AI82: =IF(AH82="Falta",TRUE,IF(B82=0,TRUE,IF(B82=$AJ$50,OR(EXACT(E82,$AJ$51:$AJ$80)),IF(B82=$AK$50,OR(EXACT(E82,$AK$51:$AK$78)),IF(B82=$AL$50,OR(EXACT(E82,$AL$51:$AL$66)),IF(B82=$AM$50,OR(EXACT(E82,$AM$51:$AM$66)),IF(B82=$AN$50,OR(EXACT(E82,$AN$51:$AN$54)),IF(B82=$AO$50,OR(EXACT(E82,$AO$51:$AO$52)),OR(EXACT(E82,$AP$51:$AP$62)))))))))) -> TRUE | AJ82: 13º salário | AK82: Item AA | AQ82: OK | AR82: JANEIRO
A83: 33 | B83: Despesas com pessoal | E83: Pagamento mensal | G83: 2019-01-25 | H83: Boleto Bancário | I83: 1110-F 02 | J83: Febes Federação Entidades Bem e Social | M83: 19729 | N83: 166 | P83: Contribuição mensal á Entidade de Classe ref. 02/2019 | X83: Item AA | Y83: Exibir | Z83: 1 | AA83: =IF(Z83="","",COUNT(Z$52:Z83)+Z83) -> 33 | AB83: FALSE | AD83: 0 | AG83: 0 | AH83: vazio | AI83: =IF(AH83="Falta",TRUE,IF(B83=0,TRUE,IF(B83=$AJ$50,OR(EXACT(E83,$AJ$51:$AJ$80)),IF(B83=$AK$50,OR(EXACT(E83,$AK$51:$AK$78)),IF(B83=$AL$50,OR(EXACT(E83,$AL$51:$AL$66)),IF(B83=$AM$50,OR(EXACT(E83,$AM$51:$AM$66)),IF(B83=$AN$50,OR(EXACT(E83,$AN$51:$AN$54)),IF(B83=$AO$50,OR(EXACT(E83,$AO$51:$AO$52)),OR(EXACT(E83,$AP$51:$AP$62)))))))))) -> TRUE | AJ83: Aluguel | AK83: Item II | AQ83: OK | AR83: JANEIRO
A84: 34 | B84: Despesas com pessoal | E84: Contribuição Sindical | G84: 2019-01-28 | H84: Boleto Bancário | I84: 91514 | J84: SINDBENEFICENTE | M84: 462215 | N84: 360 | P84: Contribuição Associativa - ref. 01/2019 | X84: Item AA | Y84: Exibir | Z84: 1 | AA84: =IF(Z84="","",COUNT(Z$52:Z84)+Z84) -> 34 | AB84: FALSE | AD84: 0 | AG84: 0 | AH84: vazio | AI84: =IF(AH84="Falta",TRUE,IF(B84=0,TRUE,IF(B84=$AJ$50,OR(EXACT(E84,$AJ$51:$AJ$80)),IF(B84=$AK$50,OR(EXACT(E84,$AK$51:$AK$78)),IF(B84=$AL$50,OR(EXACT(E84,$AL$51:$AL$66)),IF(B84=$AM$50,OR(EXACT(E84,$AM$51:$AM$66)),IF(B84=$AN$50,OR(EXACT(E84,$AN$51:$AN$54)),IF(B84=$AO$50,OR(EXACT(E84,$AO$51:$AO$52)),OR(EXACT(E84,$AP$51:$AP$62)))))))))) -> TRUE | AJ84: Aquisição de equip./mobiliário | AK84: Item MM | AQ84: OK | AR84: JANEIRO
A85: 35 | B85: Despesas mensais | E85: Contador | G85: 2019-01-29 | H85: NFS-e | I85: 16113 | J85: Real Assessoria Contábil Informatizada S/S Ltda. | M85: 464023 | N85: 998 | P85: Honorários contábeis - ref. 01/2019 | X85: Item HH | Y85: Exibir | Z85: 1 | AA85: =IF(Z85="","",COUNT(Z$52:Z85)+Z85) -> 35 | AB85: FALSE | AD85: 0 | AG85: 0 | AH85: vazio | AI85: =IF(AH85="Falta",TRUE,IF(B85=0,TRUE,IF(B85=$AJ$50,OR(EXACT(E85,$AJ$51:$AJ$80)),IF(B85=$AK$50,OR(EXACT(E85,$AK$51:$AK$78)),IF(B85=$AL$50,OR(EXACT(E85,$AL$51:$AL$66)),IF(B85=$AM$50,OR(EXACT(E85,$AM$51:$AM$66)),IF(B85=$AN$50,OR(EXACT(E85,$AN$51:$AN$54)),IF(B85=$AO$50,OR(EXACT(E85,$AO$51:$AO$52)),OR(EXACT(E85,$AP$51:$AP$62)))))))))) -> TRUE | AJ85: Aquisição de material | AK85: Item FF | AQ85: OK | AR85: JANEIRO
A86: 36 | B86: Despesas com pessoal | E86: Encargos trabalhistas | G86: 2019-01-31 | H86: Darf | I86: IRRF | J86: Secretaria da Receita Federal | M86: 483786 | N86: 62.15 | P86: IRRF - ref. 01/2019 | X86: Item AA | Y86: Exibir | Z86: 1 | AA86: =IF(Z86="","",COUNT(Z$52:Z86)+Z86) -> 36 | AB86: FALSE | AD86: 0 | AG86: 0 | AH86: vazio | AI86: =IF(AH86="Falta",TRUE,IF(B86=0,TRUE,IF(B86=$AJ$50,OR(EXACT(E86,$AJ$51:$AJ$80)),IF(B86=$AK$50,OR(EXACT(E86,$AK$51:$AK$78)),IF(B86=$AL$50,OR(EXACT(E86,$AL$51:$AL$66)),IF(B86=$AM$50,OR(EXACT(E86,$AM$51:$AM$66)),IF(B86=$AN$50,OR(EXACT(E86,$AN$51:$AN$54)),IF(B86=$AO$50,OR(EXACT(E86,$AO$51:$AO$52)),OR(EXACT(E86,$AP$51:$AP$62)))))))))) -> TRUE | AJ86: Assistência Médica | AK86: Item AA | AQ86: OK | AR86: JANEIRO
A87: 37 | B87: Despesas com pessoal | E87: Encargos trabalhistas | G87: 2019-01-31 | H87: Darf | I87: PIS | J87: Secretaria da Receita Federal | M87: 484095 | N87: 421.38 | P87: PIS - ref. 01/2019 | X87: Item AA | Y87: Exibir | Z87: 1 | AA87: =IF(Z87="","",COUNT(Z$52:Z87)+Z87) -> 37 | AB87: FALSE | AD87: 0 | AG87: 0 | AH87: vazio | AI87: =IF(AH87="Falta",TRUE,IF(B87=0,TRUE,IF(B87=$AJ$50,OR(EXACT(E87,$AJ$51:$AJ$80)),IF(B87=$AK$50,OR(EXACT(E87,$AK$51:$AK$78)),IF(B87=$AL$50,OR(EXACT(E87,$AL$51:$AL$66)),IF(B87=$AM$50,OR(EXACT(E87,$AM$51:$AM$66)),IF(B87=$AN$50,OR(EXACT(E87,$AN$51:$AN$54)),IF(B87=$AO$50,OR(EXACT(E87,$AO$51:$AO$52)),OR(EXACT(E87,$AP$51:$AP$62)))))))))) -> TRUE | AJ87: Bolsa-estágio | AK87: Item BB | AQ87: OK | AR87: JANEIRO
A88: 38 | B88: Despesas com pessoal | E88: Encargos trabalhistas | G88: 2019-01-31 | H88: GFIP | I88: FGTS | J88: Caixa Econômica Federal | M88: 581859 | N88: 3371.05 | P88: GFIP / FGTS - ref. 01/2019 | X88: Item AA | Y88: Exibir | Z88: 1 | AA88: =IF(Z88="","",COUNT(Z$52:Z88)+Z88) -> 38 | AB88: FALSE | AD88: 0 | AG88: 0 | AH88: vazio | AI88: =IF(AH88="Falta",TRUE,IF(B88=0,TRUE,IF(B88=$AJ$50,OR(EXACT(E88,$AJ$51:$AJ$80)),IF(B88=$AK$50,OR(EXACT(E88,$AK$51:$AK$78)),IF(B88=$AL$50,OR(EXACT(E88,$AL$51:$AL$66)),IF(B88=$AM$50,OR(EXACT(E88,$AM$51:$AM$66)),IF(B88=$AN$50,OR(EXACT(E88,$AN$51:$AN$54)),IF(B88=$AO$50,OR(EXACT(E88,$AO$51:$AO$52)),OR(EXACT(E88,$AP$51:$AP$62)))))))))) -> TRUE | AJ88: Cesta Básica | AK88: Item AA | AQ88: OK | AR88: JANEIRO
A89: 39 | B89: Despesas com pessoal | E89: Encargos trabalhistas | G89: 2019-01-31 | H89: GPS | I89: INSS | J89: Previdência Social | M89: 881994 | N89: 13336.84 | P89: GPS / INSS - ref. 01/2019 | X89: Item AA | Y89: Exibir | Z89: 1 | AA89: =IF(Z89="","",COUNT(Z$52:Z89)+Z89) -> 39 | AB89: FALSE | AD89: 0 | AG89: 0 | AH89: vazio | AI89: =IF(AH89="Falta",TRUE,IF(B89=0,TRUE,IF(B89=$AJ$50,OR(EXACT(E89,$AJ$51:$AJ$80)),IF(B89=$AK$50,OR(EXACT(E89,$AK$51:$AK$78)),IF(B89=$AL$50,OR(EXACT(E89,$AL$51:$AL$66)),IF(B89=$AM$50,OR(EXACT(E89,$AM$51:$AM$66)),IF(B89=$AN$50,OR(EXACT(E89,$AN$51:$AN$54)),IF(B89=$AO$50,OR(EXACT(E89,$AO$51:$AO$52)),OR(EXACT(E89,$AP$51:$AP$62)))))))))) -> TRUE | AJ89: Combustível | AK89: Item LL | AQ89: OK | AR89: JANEIRO
A90: 40 | B90: Despesas com pessoal | E90: Pagamento mensal | G90: 2019-01-31 | H90: Holerite | J90: Mírian Vieira Alves | M90: 146665 | N90: 337 | P90: Salário Mensal - ref. 01/2019 | X90: Item AA | Y90: Exibir | Z90: 1 | AA90: =IF(Z90="","",COUNT(Z$52:Z90)+Z90) -> 40 | AB90: FALSE | AD90: 0 | AG90: 0 | AH90: vazio | AI90: =IF(AH90="Falta",TRUE,IF(B90=0,TRUE,IF(B90=$AJ$50,OR(EXACT(E90,$AJ$51:$AJ$80)),IF(B90=$AK$50,OR(EXACT(E90,$AK$51:$AK$78)),IF(B90=$AL$50,OR(EXACT(E90,$AL$51:$AL$66)),IF(B90=$AM$50,OR(EXACT(E90,$AM$51:$AM$66)),IF(B90=$AN$50,OR(EXACT(E90,$AN$51:$AN$54)),IF(B90=$AO$50,OR(EXACT(E90,$AO$51:$AO$52)),OR(EXACT(E90,$AP$51:$AP$62)))))))))) -> TRUE | AJ90: Consumo de água | AK90: Item KK | AQ90: OK | AR90: JANEIRO
A91: 41 | B91: Despesas com pessoal | E91: Pagamento mensal | G91: 2019-01-31 | H91: Holerite | J91: Fernanda Godói Barbosa | M91: 147358 | N91: 412 | P91: Salário Mensal - ref. 01/2019 | X91: Item AA | Y91: Exibir | Z91: 1 | AA91: =IF(Z91="","",COUNT(Z$52:Z91)+Z91) -> 41 | AB91: FALSE | AD91: 0 | AG91: 0 | AH91: vazio | AI91: =IF(AH91="Falta",TRUE,IF(B91=0,TRUE,IF(B91=$AJ$50,OR(EXACT(E91,$AJ$51:$AJ$80)),IF(B91=$AK$50,OR(EXACT(E91,$AK$51:$AK$78)),IF(B91=$AL$50,OR(EXACT(E91,$AL$51:$AL$66)),IF(B91=$AM$50,OR(EXACT(E91,$AM$51:$AM$66)),IF(B91=$AN$50,OR(EXACT(E91,$AN$51:$AN$54)),IF(B91=$AO$50,OR(EXACT(E91,$AO$51:$AO$52)),OR(EXACT(E91,$AP$51:$AP$62)))))))))) -> TRUE | AJ91: Consumo de energia elétrica | AK91: Item KK | AQ91: OK | AR91: JANEIRO
A92: 42 | B92: Despesas com pessoal | E92: Pagamento mensal | G92: 2019-01-31 | H92: Holerite | J92: Deuseli Aparecida Franciscon Rodrigues | M92: 147684 | N92: 331 | P92: Salário Mensal - ref. 01/2019 | X92: Item AA | Y92: Exibir | Z92: 1 | AA92: =IF(Z92="","",COUNT(Z$52:Z92)+Z92) -> 42 | AB92: FALSE | AD92: 0 | AG92: 0 | AH92: vazio | AI92: =IF(AH92="Falta",TRUE,IF(B92=0,TRUE,IF(B92=$AJ$50,OR(EXACT(E92,$AJ$51:$AJ$80)),IF(B92=$AK$50,OR(EXACT(E92,$AK$51:$AK$78)),IF(B92=$AL$50,OR(EXACT(E92,$AL$51:$AL$66)),IF(B92=$AM$50,OR(EXACT(E92,$AM$51:$AM$66)),IF(B92=$AN$50,OR(EXACT(E92,$AN$51:$AN$54)),IF(B92=$AO$50,OR(EXACT(E92,$AO$51:$AO$52)),OR(EXACT(E92,$AP$51:$AP$62)))))))))) -> TRUE | AJ92: Consumo de gás | AK92: Item KK | AQ92: OK | AR92: JANEIRO
A93: 43 | B93: Despesas com pessoal | E93: Pagamento mensal | G93: 2019-01-31 | H93: Holerite | J93: Michelle Tinti | M93: 147913 | N93: 253 | P93: Salário Mensal - ref. 01/2019 | X93: Item AA | Y93: Exibir | Z93: 1 | AA93: =IF(Z93="","",COUNT(Z$52:Z93)+Z93) -> 43 | AB93: FALSE | AD93: 0 | AG93: 0 | AH93: vazio | AI93: =IF(AH93="Falta",TRUE,IF(B93=0,TRUE,IF(B93=$AJ$50,OR(EXACT(E93,$AJ$51:$AJ$80)),IF(B93=$AK$50,OR(EXACT(E93,$AK$51:$AK$78)),IF(B93=$AL$50,OR(EXACT(E93,$AL$51:$AL$66)),IF(B93=$AM$50,OR(EXACT(E93,$AM$51:$AM$66)),IF(B93=$AN$50,OR(EXACT(E93,$AN$51:$AN$54)),IF(B93=$AO$50,OR(EXACT(E93,$AO$51:$AO$52)),OR(EXACT(E93,$AP$51:$AP$62)))))))))) -> TRUE | AJ93: Conta de telefone/internet | AK93: Item KK | AQ93: OK | AR93: JANEIRO
A94: 44 | B94: Despesas com pessoal | E94: Pagamento mensal | G94: 2019-01-31 | H94: Holerite | J94: Jéssica de Jesus Soares | M94: 148187 | N94: 1119 | P94: Salário Mensal - ref. 01/2019 | X94: Item AA | Y94: Exibir | Z94: 1 | AA94: =IF(Z94="","",COUNT(Z$52:Z94)+Z94) -> 44 | AB94: FALSE | AD94: 0 | AG94: 0 | AH94: vazio | AI94: =IF(AH94="Falta",TRUE,IF(B94=0,TRUE,IF(B94=$AJ$50,OR(EXACT(E94,$AJ$51:$AJ$80)),IF(B94=$AK$50,OR(EXACT(E94,$AK$51:$AK$78)),IF(B94=$AL$50,OR(EXACT(E94,$AL$51:$AL$66)),IF(B94=$AM$50,OR(EXACT(E94,$AM$51:$AM$66)),IF(B94=$AN$50,OR(EXACT(E94,$AN$51:$AN$54)),IF(B94=$AO$50,OR(EXACT(E94,$AO$51:$AO$52)),OR(EXACT(E94,$AP$51:$AP$62)))))))))) -> TRUE | AJ94: Contador | AK94: Item HH | AQ94: OK | AR94: JANEIRO
A95: 45 | B95: Despesas com pessoal | E95: Pagamento mensal | G95: 2019-01-31 | H95: Holerite | J95: Ana Maria Ciconello Ribeiro | M95: 148413 | N95: 618 | P95: Salário Mensal - ref. 01/2019 | X95: Item AA | Y95: Exibir | Z95: 1 | AA95: =IF(Z95="","",COUNT(Z$52:Z95)+Z95) -> 45 | AB95: FALSE | AD95: 0 | AG95: 0 | AH95: vazio | AI95: =IF(AH95="Falta",TRUE,IF(B95=0,TRUE,IF(B95=$AJ$50,OR(EXACT(E95,$AJ$51:$AJ$80)),IF(B95=$AK$50,OR(EXACT(E95,$AK$51:$AK$78)),IF(B95=$AL$50,OR(EXACT(E95,$AL$51:$AL$66)),IF(B95=$AM$50,OR(EXACT(E95,$AM$51:$AM$66)),IF(B95=$AN$50,OR(EXACT(E95,$AN$51:$AN$54)),IF(B95=$AO$50,OR(EXACT(E95,$AO$51:$AO$52)),OR(EXACT(E95,$AP$51:$AP$62)))))))))) -> TRUE | AJ95: Contribuição Sindical | AK95: Item AA | AQ95: OK | AR95: JANEIRO
A96: 46 | B96: Despesas com pessoal | E96: Pagamento mensal | G96: 2019-01-31 | H96: Holerite | J96: Dominique Mirella do Amaral Jesus | M96: 148650 | N96: 430 | P96: Salário Mensal - ref. 01/2019 | X96: Item AA | Y96: Exibir | Z96: 1 | AA96: =IF(Z96="","",COUNT(Z$52:Z96)+Z96) -> 46 | AB96: FALSE | AD96: 0 | AE96: FALSE | AG96: 0 | AH96: vazio | AI96: =IF(AH96="Falta",TRUE,IF(B96=0,TRUE,IF(B96=$AJ$50,OR(EXACT(E96,$AJ$51:$AJ$80)),IF(B96=$AK$50,OR(EXACT(E96,$AK$51:$AK$78)),IF(B96=$AL$50,OR(EXACT(E96,$AL$51:$AL$66)),IF(B96=$AM$50,OR(EXACT(E96,$AM$51:$AM$66)),IF(B96=$AN$50,OR(EXACT(E96,$AN$51:$AN$54)),IF(B96=$AO$50,OR(EXACT(E96,$AO$51:$AO$52)),OR(EXACT(E96,$AP$51:$AP$62)))))))))) -> TRUE | AJ96: Despesas de vestuário | AK96: Item FF | AQ96: OK | AR96: JANEIRO
A97: 47 | B97: Despesas com pessoal | E97: Pagamento mensal | G97: 2019-01-31 | H97: Holerite | J97: Cláudia Zanutto Nobre | M97: 148872 | N97: 701 | P97: Salário Mensal - ref. 01/2019 | X97: Item AA | Y97: Exibir | Z97: 1 | AA97: =IF(Z97="","",COUNT(Z$52:Z97)+Z97) -> 47 | AB97: FALSE | AD97: 0 | AG97: 0 | AH97: vazio | AI97: =IF(AH97="Falta",TRUE,IF(B97=0,TRUE,IF(B97=$AJ$50,OR(EXACT(E97,$AJ$51:$AJ$80)),IF(B97=$AK$50,OR(EXACT(E97,$AK$51:$AK$78)),IF(B97=$AL$50,OR(EXACT(E97,$AL$51:$AL$66)),IF(B97=$AM$50,OR(EXACT(E97,$AM$51:$AM$66)),IF(B97=$AN$50,OR(EXACT(E97,$AN$51:$AN$54)),IF(B97=$AO$50,OR(EXACT(E97,$AO$51:$AO$52)),OR(EXACT(E97,$AP$51:$AP$62)))))))))) -> TRUE | AJ97: Encargos trabalhistas | AK97: Item AA | AQ97: OK | AR97: JANEIRO
A98: 48 | B98: Despesas com pessoal | E98: Pagamento mensal | G98: 2019-01-31 | H98: Holerite | J98: Creuza Maria dos Santos Pessoni | M98: 149048 | N98: 717 | P98: Salário Mensal - ref. 01/2019 | X98: Item AA | Y98: Exibir | Z98: 1 | AA98: =IF(Z98="","",COUNT(Z$52:Z98)+Z98) -> 48 | AB98: FALSE | AD98: 0 | AG98: 0 | AH98: vazio | AI98: =IF(AH98="Falta",TRUE,IF(B98=0,TRUE,IF(B98=$AJ$50,OR(EXACT(E98,$AJ$51:$AJ$80)),IF(B98=$AK$50,OR(EXACT(E98,$AK$51:$AK$78)),IF(B98=$AL$50,OR(EXACT(E98,$AL$51:$AL$66)),IF(B98=$AM$50,OR(EXACT(E98,$AM$51:$AM$66)),IF(B98=$AN$50,OR(EXACT(E98,$AN$51:$AN$54)),IF(B98=$AO$50,OR(EXACT(E98,$AO$51:$AO$52)),OR(EXACT(E98,$AP$51:$AP$62)))))))))) -> TRUE | AJ98: Equip./mobiliário - Educação Maker | AK98: Item MM | AQ98: OK | AR98: JANEIRO
A99: 49 | B99: Despesas com pessoal | E99: Pagamento mensal | G99: 2019-01-31 | H99: Holerite | J99: Marleide Monteiro de Freitas | M99: 149355 | N99: 357 | P99: Salário Mensal - ref. 01/2019 | X99: Item AA | Y99: Exibir | Z99: 1 | AA99: =IF(Z99="","",COUNT(Z$52:Z99)+Z99) -> 49 | AB99: FALSE | AD99: 0 | AG99: 0 | AH99: vazio | AI99: =IF(AH99="Falta",TRUE,IF(B99=0,TRUE,IF(B99=$AJ$50,OR(EXACT(E99,$AJ$51:$AJ$80)),IF(B99=$AK$50,OR(EXACT(E99,$AK$51:$AK$78)),IF(B99=$AL$50,OR(EXACT(E99,$AL$51:$AL$66)),IF(B99=$AM$50,OR(EXACT(E99,$AM$51:$AM$66)),IF(B99=$AN$50,OR(EXACT(E99,$AN$51:$AN$54)),IF(B99=$AO$50,OR(EXACT(E99,$AO$51:$AO$52)),OR(EXACT(E99,$AP$51:$AP$62)))))))))) -> TRUE | AJ99: Exames médicos | AK99: Item AA | AQ99: OK | AR99: JANEIRO
A100: 50 | B100: Despesas com pessoal | E100: Pagamento mensal | G100: 2019-01-31 | H100: Holerite | J100: Geane da Silva Sousa | M100: 149756 | N100: 621 | P100: Salário Mensal - ref. 01/2019 | X100: Item AA | Y100: Exibir | Z100: 1 | AA100: =IF(Z100="","",COUNT(Z$52:Z100)+Z100) -> 50 | AB100: FALSE | AD100: 0 | AG100: 0 | AH100: vazio | AI100: =IF(AH100="Falta",TRUE,IF(B100=0,TRUE,IF(B100=$AJ$50,OR(EXACT(E100,$AJ$51:$AJ$80)),IF(B100=$AK$50,OR(EXACT(E100,$AK$51:$AK$78)),IF(B100=$AL$50,OR(EXACT(E100,$AL$51:$AL$66)),IF(B100=$AM$50,OR(EXACT(E100,$AM$51:$AM$66)),IF(B100=$AN$50,OR(EXACT(E100,$AN$51:$AN$54)),IF(B100=$AO$50,OR(EXACT(E100,$AO$51:$AO$52)),OR(EXACT(E100,$AP$51:$AP$62)))))))))) -> TRUE | AJ100: Férias | AK100: Item AA | AQ100: OK | AR100: JANEIRO
A101: 51 | B101: Despesas com pessoal | E101: Pagamento mensal | G101: 2019-01-31 | H101: Holerite | J101: Rosiane Sousa Pereira | M101: 150340 | N101: 401 | P101: Salário Mensal - ref. 01/2019 | X101: Item AA | Y101: Exibir | Z101: 1 | AA101: =IF(Z101="","",COUNT(Z$52:Z101)+Z101) -> 51 | AB101: FALSE | AD101: 0 | AG101: 0 | AH101: vazio | AI101: =IF(AH101="Falta",TRUE,IF(B101=0,TRUE,IF(B101=$AJ$50,OR(EXACT(E101,$AJ$51:$AJ$80)),IF(B101=$AK$50,OR(EXACT(E101,$AK$51:$AK$78)),IF(B101=$AL$50,OR(EXACT(E101,$AL$51:$AL$66)),IF(B101=$AM$50,OR(EXACT(E101,$AM$51:$AM$66)),IF(B101=$AN$50,OR(EXACT(E101,$AN$51:$AN$54)),IF(B101=$AO$50,OR(EXACT(E101,$AO$51:$AO$52)),OR(EXACT(E101,$AP$51:$AP$62)))))))))) -> TRUE | AJ101: INSS ou ISS - Prest. Serv. | AK101: Item HH | AQ101: OK | AR101: JANEIRO
A102: 52 | B102: Despesas com pessoal | E102: Pagamento mensal | G102: 2019-01-31 | H102: Holerite | J102: Sandra Octaviano da Costa | M102: 150630 | N102: 708 | P102: Salário Mensal - ref. 01/2019 | X102: Item AA | Y102: Exibir | Z102: 1 | AA102: =IF(Z102="","",COUNT(Z$52:Z102)+Z102) -> 52 | AB102: FALSE | AD102: 0 | AG102: 0 | AH102: vazio | AI102: =IF(AH102="Falta",TRUE,IF(B102=0,TRUE,IF(B102=$AJ$50,OR(EXACT(E102,$AJ$51:$AJ$80)),IF(B102=$AK$50,OR(EXACT(E102,$AK$51:$AK$78)),IF(B102=$AL$50,OR(EXACT(E102,$AL$51:$AL$66)),IF(B102=$AM$50,OR(EXACT(E102,$AM$51:$AM$66)),IF(B102=$AN$50,OR(EXACT(E102,$AN$51:$AN$54)),IF(B102=$AO$50,OR(EXACT(E102,$AO$51:$AO$52)),OR(EXACT(E102,$AP$51:$AP$62)))))))))) -> TRUE | AJ102: INSS ref. NFS de manutenção | AK102: Item HH | AQ102: OK | AR102: JANEIRO
A103: 53 | B103: Despesas com pessoal | E103: Pagamento mensal | G103: 2019-01-31 | H103: Holerite | J103: Eliane Novais da Silva | M103: 151172 | N103: 533 | P103: Salário Mensal - ref. 01/2019 | X103: Item AA | Y103: Exibir | Z103: 1 | AA103: =IF(Z103="","",COUNT(Z$52:Z103)+Z103) -> 53 | AB103: FALSE | AD103: 0 | AG103: 0 | AH103: vazio | AI103: =IF(AH103="Falta",TRUE,IF(B103=0,TRUE,IF(B103=$AJ$50,OR(EXACT(E103,$AJ$51:$AJ$80)),IF(B103=$AK$50,OR(EXACT(E103,$AK$51:$AK$78)),IF(B103=$AL$50,OR(EXACT(E103,$AL$51:$AL$66)),IF(B103=$AM$50,OR(EXACT(E103,$AM$51:$AM$66)),IF(B103=$AN$50,OR(EXACT(E103,$AN$51:$AN$54)),IF(B103=$AO$50,OR(EXACT(E103,$AO$51:$AO$52)),OR(EXACT(E103,$AP$51:$AP$62)))))))))) -> TRUE | AJ103: INSS ref. RPA - Prest. Serv. | AK103: Item BB | AQ103: OK | AR103: JANEIRO
A104: 54 | B104: Despesas com pessoal | E104: Pagamento mensal | G104: 2019-01-31 | H104: Holerite | J104: Célia Maria dos Santos Casa | M104: 151893 | N104: 331 | P104: Salário Mensal - ref. 01/2019 | X104: Item AA | Y104: Exibir | Z104: 1 | AA104: =IF(Z104="","",COUNT(Z$52:Z104)+Z104) -> 54 | AB104: FALSE | AD104: 0 | AG104: 0 | AH104: vazio | AI104: =IF(AH104="Falta",TRUE,IF(B104=0,TRUE,IF(B104=$AJ$50,OR(EXACT(E104,$AJ$51:$AJ$80)),IF(B104=$AK$50,OR(EXACT(E104,$AK$51:$AK$78)),IF(B104=$AL$50,OR(EXACT(E104,$AL$51:$AL$66)),IF(B104=$AM$50,OR(EXACT(E104,$AM$51:$AM$66)),IF(B104=$AN$50,OR(EXACT(E104,$AN$51:$AN$54)),IF(B104=$AO$50,OR(EXACT(E104,$AO$51:$AO$52)),OR(EXACT(E104,$AP$51:$AP$62)))))))))) -> TRUE | AJ104: INSS ref. RPA de manutenção | AK104: Item BB | AQ104: OK | AR104: JANEIRO
A105: 55 | B105: Despesas com pessoal | E105: Pagamento mensal | G105: 2019-01-31 | H105: Holerite | J105: Adriana Rodrigues de Sousa | M105: 152153 | N105: 383 | P105: Salário Mensal - ref. 01/2019 | X105: Item AA | Y105: Exibir | Z105: 1 | AA105: =IF(Z105="","",COUNT(Z$52:Z105)+Z105) -> 55 | AB105: FALSE | AD105: 0 | AG105: 0 | AH105: vazio | AI105: =IF(AH105="Falta",TRUE,IF(B105=0,TRUE,IF(B105=$AJ$50,OR(EXACT(E105,$AJ$51:$AJ$80)),IF(B105=$AK$50,OR(EXACT(E105,$AK$51:$AK$78)),IF(B105=$AL$50,OR(EXACT(E105,$AL$51:$AL$66)),IF(B105=$AM$50,OR(EXACT(E105,$AM$51:$AM$66)),IF(B105=$AN$50,OR(EXACT(E105,$AN$51:$AN$54)),IF(B105=$AO$50,OR(EXACT(E105,$AO$51:$AO$52)),OR(EXACT(E105,$AP$51:$AP$62)))))))))) -> TRUE | AJ105: INSS/ISS ref. NFS - Ed. Maker | AK105: Item HH | AQ105: OK | AR105: JANEIRO
A106: 56 | B106: Despesas com pessoal | E106: Pagamento mensal | G106: 2019-01-31 | H106: Holerite | J106: Luíza Natália Fernandes Cândido | M106: 152449 | N106: 317 | P106: Salário Mensal - ref. 01/2019 | X106: Item AA | Y106: Exibir | Z106: 1 | AA106: =IF(Z106="","",COUNT(Z$52:Z106)+Z106) -> 56 | AB106: FALSE | AD106: 0 | AG106: 0 | AH106: vazio | AI106: =IF(AH106="Falta",TRUE,IF(B106=0,TRUE,IF(B106=$AJ$50,OR(EXACT(E106,$AJ$51:$AJ$80)),IF(B106=$AK$50,OR(EXACT(E106,$AK$51:$AK$78)),IF(B106=$AL$50,OR(EXACT(E106,$AL$51:$AL$66)),IF(B106=$AM$50,OR(EXACT(E106,$AM$51:$AM$66)),IF(B106=$AN$50,OR(EXACT(E106,$AN$51:$AN$54)),IF(B106=$AO$50,OR(EXACT(E106,$AO$51:$AO$52)),OR(EXACT(E106,$AP$51:$AP$62)))))))))) -> TRUE | AJ106: INSS/ISS ref. RPA - Ed. Maker | AK106: Item BB | AQ106: OK | AR106: JANEIRO
A107: 57 | B107: Despesas com pessoal | E107: Pagamento mensal | G107: 2019-01-31 | H107: Holerite | J107: Valdinez Vieira Bezerra | M107: 152655 | N107: 362 | P107: Salário Mensal - ref. 01/2019 | X107: Item AA | Y107: Exibir | Z107: 1 | AA107: =IF(Z107="","",COUNT(Z$52:Z107)+Z107) -> 57 | AB107: FALSE | AD107: 0 | AG107: 0 | AH107: vazio | AI107: =IF(AH107="Falta",TRUE,IF(B107=0,TRUE,IF(B107=$AJ$50,OR(EXACT(E107,$AJ$51:$AJ$80)),IF(B107=$AK$50,OR(EXACT(E107,$AK$51:$AK$78)),IF(B107=$AL$50,OR(EXACT(E107,$AL$51:$AL$66)),IF(B107=$AM$50,OR(EXACT(E107,$AM$51:$AM$66)),IF(B107=$AN$50,OR(EXACT(E107,$AN$51:$AN$54)),IF(B107=$AO$50,OR(EXACT(E107,$AO$51:$AO$52)),OR(EXACT(E107,$AP$51:$AP$62)))))))))) -> TRUE | AJ107: IPTU | AK107: Item KK | AQ107: OK | AR107: JANEIRO
A108: 58 | B108: Despesas com pessoal | E108: Pagamento mensal | G108: 2019-01-31 | H108: Holerite | J108: Maria Silveira de Sousa | M108: 152831 | N108: 329 | P108: Salário Mensal - ref. 01/2019 | X108: Item AA | Y108: Exibir | Z108: 1 | AA108: =IF(Z108="","",COUNT(Z$52:Z108)+Z108) -> 58 | AB108: FALSE | AD108: 0 | AG108: 0 | AH108: vazio | AI108: =IF(AH108="Falta",TRUE,IF(B108=0,TRUE,IF(B108=$AJ$50,OR(EXACT(E108,$AJ$51:$AJ$80)),IF(B108=$AK$50,OR(EXACT(E108,$AK$51:$AK$78)),IF(B108=$AL$50,OR(EXACT(E108,$AL$51:$AL$66)),IF(B108=$AM$50,OR(EXACT(E108,$AM$51:$AM$66)),IF(B108=$AN$50,OR(EXACT(E108,$AN$51:$AN$54)),IF(B108=$AO$50,OR(EXACT(E108,$AO$51:$AO$52)),OR(EXACT(E108,$AP$51:$AP$62)))))))))) -> TRUE | AJ108: ISS ref. NFS de manutenção | AK108: Item HH | AQ108: OK | AR108: JANEIRO
A109: 59 | B109: Despesas com pessoal | E109: Pagamento mensal | G109: 2019-01-31 | H109: Holerite | J109: Michele Gaspar de Souza | M109: 153082 | N109: 386 | P109: Salário Mensal - ref. 01/2019 | X109: Item AA | Y109: Exibir | Z109: 1 | AA109: =IF(Z109="","",COUNT(Z$52:Z109)+Z109) -> 59 | AB109: FALSE | AD109: 0 | AG109: 0 | AH109: vazio | AI109: =IF(AH109="Falta",TRUE,IF(B109=0,TRUE,IF(B109=$AJ$50,OR(EXACT(E109,$AJ$51:$AJ$80)),IF(B109=$AK$50,OR(EXACT(E109,$AK$51:$AK$78)),IF(B109=$AL$50,OR(EXACT(E109,$AL$51:$AL$66)),IF(B109=$AM$50,OR(EXACT(E109,$AM$51:$AM$66)),IF(B109=$AN$50,OR(EXACT(E109,$AN$51:$AN$54)),IF(B109=$AO$50,OR(EXACT(E109,$AO$51:$AO$52)),OR(EXACT(E109,$AP$51:$AP$62)))))))))) -> TRUE | AJ109: ISS ref. RPA - Prest. Serv. | AK109: Item BB | AQ109: OK | AR109: JANEIRO
A110: 60 | B110: Despesas mensais | E110: Consumo de gás | G110: 2019-01-30 | H110: Fatura | I110: 434.403 | J110: COMGÁS - Companhia de Gás de São Paulo | M110: 212586 | N110: 187.19 | P110: Gás - ref. 01/2019 | X110: Item KK | Y110: Exibir | Z110: 1 | AA110: =IF(Z110="","",COUNT(Z$52:Z110)+Z110) -> 60 | AB110: FALSE | AD110: 0 | AE110: FALSE | AG110: 0 | AH110: vazio | AI110: =IF(AH110="Falta",TRUE,IF(B110=0,TRUE,IF(B110=$AJ$50,OR(EXACT(E110,$AJ$51:$AJ$80)),IF(B110=$AK$50,OR(EXACT(E110,$AK$51:$AK$78)),IF(B110=$AL$50,OR(EXACT(E110,$AL$51:$AL$66)),IF(B110=$AM$50,OR(EXACT(E110,$AM$51:$AM$66)),IF(B110=$AN$50,OR(EXACT(E110,$AN$51:$AN$54)),IF(B110=$AO$50,OR(EXACT(E110,$AO$51:$AO$52)),OR(EXACT(E110,$AP$51:$AP$62)))))))))) -> TRUE | AJ110: ISS ref. RPA de manutenção | AK110: Item BB | AQ110: OK | AR110: JANEIRO
A111: 61 | B111: Custeio Geral | E111: Prest. de Serviços - PJ | G111: 2019-02-01 | H111: NFS-e | I111: 2163 | J111: Printer UP Com. de Supr. de Informática Eireli | M111: 331533 | N111: 313.6 | P111: Manutenção da impressora | X111: Item HH | Y111: Exibir | Z111: 1 | AA111: =IF(Z111="","",COUNT(Z$52:Z111)+Z111) -> 61 | AB111: FALSE | AD111: 0 | AG111: 0 | AH111: vazio | AI111: =IF(AH111="Falta",TRUE,IF(B111=0,TRUE,IF(B111=$AJ$50,OR(EXACT(E111,$AJ$51:$AJ$80)),IF(B111=$AK$50,OR(EXACT(E111,$AK$51:$AK$78)),IF(B111=$AL$50,OR(EXACT(E111,$AL$51:$AL$66)),IF(B111=$AM$50,OR(EXACT(E111,$AM$51:$AM$66)),IF(B111=$AN$50,OR(EXACT(E111,$AN$51:$AN$54)),IF(B111=$AO$50,OR(EXACT(E111,$AO$51:$AO$52)),OR(EXACT(E111,$AP$51:$AP$62)))))))))) -> TRUE | AJ111: Itens de cama/mesa/banho | AK111: Item FF | AQ111: OK | AR111: FEVEREIRO
A112: 62 | B112: Manutenção do imóvel | E112: Aquisição de material | G112: 2019-02-04 | H112: DANFE | I112: 10474 | J112: Materiais para construção Lua Cruz Ltda. -ME | M112: 333607 | N112: 277.22 | P112: Material para pequena manuteção da creche | X112: Item FF | Y112: Exibir | Z112: 1 | AA112: =IF(Z112="","",COUNT(Z$52:Z112)+Z112) -> 62 | AB112: FALSE | AD112: 0 | AG112: 0 | AH112: vazio | AI112: =IF(AH112="Falta",TRUE,IF(B112=0,TRUE,IF(B112=$AJ$50,OR(EXACT(E112,$AJ$51:$AJ$80)),IF(B112=$AK$50,OR(EXACT(E112,$AK$51:$AK$78)),IF(B112=$AL$50,OR(EXACT(E112,$AL$51:$AL$66)),IF(B112=$AM$50,OR(EXACT(E112,$AM$51:$AM$66)),IF(B112=$AN$50,OR(EXACT(E112,$AN$51:$AN$54)),IF(B112=$AO$50,OR(EXACT(E112,$AO$51:$AO$52)),OR(EXACT(E112,$AP$51:$AP$62)))))))))) -> TRUE | AJ112: Locação de copiadora | AK112: Item JJ | AQ112: OK | AR112: FEVEREIRO
A113: 63 | B113: Despesas mensais | E113: Conta de telefone/internet | G113: 2019-01-19 | H113: Fatura | I113: 18486-0 | J113: Vivo Telefônica Brasil S/A | M113: 466249 | N113: 186.51 | P113: Telefone / internet - ref. 01/2019 | X113: Item KK | Y113: Exibir | Z113: 1 | AA113: =IF(Z113="","",COUNT(Z$52:Z113)+Z113) -> 63 | AB113: FALSE | AD113: 0 | AG113: 0 | AH113: vazio | AI113: =IF(AH113="Falta",TRUE,IF(B113=0,TRUE,IF(B113=$AJ$50,OR(EXACT(E113,$AJ$51:$AJ$80)),IF(B113=$AK$50,OR(EXACT(E113,$AK$51:$AK$78)),IF(B113=$AL$50,OR(EXACT(E113,$AL$51:$AL$66)),IF(B113=$AM$50,OR(EXACT(E113,$AM$51:$AM$66)),IF(B113=$AN$50,OR(EXACT(E113,$AN$51:$AN$54)),IF(B113=$AO$50,OR(EXACT(E113,$AO$51:$AO$52)),OR(EXACT(E113,$AP$51:$AP$62)))))))))) -> TRUE | AJ113: Mat. Ed. Física e recreação | AK113: Item FF | AQ113: OK | AR113: JANEIRO
A114: 64 | B114: Despesas com pessoal | E114: Rescisão de Trabalho | G114: 2019-02-05 | H114: Ter.Rescisão | J114: Michele Gaspar de Souza | M114: 113126 | N114: 45.05 | P114: Termo de Rescisão Contratual | X114: Item AA | Y114: Exibir | Z114: 1 | AA114: =IF(Z114="","",COUNT(Z$52:Z114)+Z114) -> 64 | AB114: FALSE | AD114: 0 | AG114: 0 | AH114: vazio | AI114: =IF(AH114="Falta",TRUE,IF(B114=0,TRUE,IF(B114=$AJ$50,OR(EXACT(E114,$AJ$51:$AJ$80)),IF(B114=$AK$50,OR(EXACT(E114,$AK$51:$AK$78)),IF(B114=$AL$50,OR(EXACT(E114,$AL$51:$AL$66)),IF(B114=$AM$50,OR(EXACT(E114,$AM$51:$AM$66)),IF(B114=$AN$50,OR(EXACT(E114,$AN$51:$AN$54)),IF(B114=$AO$50,OR(EXACT(E114,$AO$51:$AO$52)),OR(EXACT(E114,$AP$51:$AP$62)))))))))) -> TRUE | AJ114: Mat. Limpeza/ Higiene/ Primeiros Socorros | AK114: Item FF | AQ114: OK | AR114: FEVEREIRO
A115: 65 | B115: Custeio Geral | E115: Materiais de escritório | G115: 2019-02-06 | H115: DANFE | I115: 1.498 | J115: Leila de Fátima Zimmerer Vilas Boas - ME | M115: 773885 | N115: 255.4 | P115: Cartucho HP 662 XL, corretivo caneta e caderno Broch CD | X115: =IF($N115=0,"vazio",VLOOKUP($E115,Item_TCESP,2)) -> Item FF | Y115: Exibir | Z115: 1 | AA115: =IF(Z115="","",COUNT(Z$52:Z115)+Z115) -> 65 | AB115: FALSE | AD115: 0 | AG115: 0 | AH115: vazio | AI115: =IF(AH115="Falta",TRUE,IF(B115=0,TRUE,IF(B115=$AJ$50,OR(EXACT(E115,$AJ$51:$AJ$80)),IF(B115=$AK$50,OR(EXACT(E115,$AK$51:$AK$78)),IF(B115=$AL$50,OR(EXACT(E115,$AL$51:$AL$66)),IF(B115=$AM$50,OR(EXACT(E115,$AM$51:$AM$66)),IF(B115=$AN$50,OR(EXACT(E115,$AN$51:$AN$54)),IF(B115=$AO$50,OR(EXACT(E115,$AO$51:$AO$52)),OR(EXACT(E115,$AP$51:$AP$62)))))))))) -> TRUE | AJ115: Mat. p/ manutenção de equip. | AK115: Item FF | AQ115: =IF(N115=0,"OK",IF(AND(N115>0,B115=0),FALSE,IF(AH115="FALTA",FALSE,IF(AI115=FALSE,FALSE,"OK")))) -> OK | AR115: FEVEREIRO
A116: =AA116 -> 66 | B116: Custeio Geral | E116: Materiais didáticos | G116: 2019-02-05 | H116: DANFE | I116: 4.920 | J116: Leandro Ferrarezi - ME | M116: 775369 | N116: 274.05 | P116: Material didático / pedagógico | X116: Item FF | Y116: =IF(N116=0,"Ocultar","Exibir") -> Exibir | Z116: =IF($N116>0,1,"") -> 1 | AA116: =IF(Z116="","",COUNT(Z$52:Z116)+Z116) -> 66 | AB116: FALSE | AC116: =IF($AB116=TRUE,$E116,"") ->  | AD116: =IF($AB116=TRUE,$N116,0) -> 0 | AF116: =IF($AE116=TRUE,$E116,"") ->  | AG116: =IF($AE116=TRUE,$V116,0) -> 0 | AH116: =IF(B116=0,IF(E116=0,"vazio","FALTA"),IF(E116=0,"FALTA","vazio")) -> vazio | AI116: =IF(AH116="Falta",TRUE,IF(B116=0,TRUE,IF(B116=$AJ$50,OR(EXACT(E116,$AJ$51:$AJ$80)),IF(B116=$AK$50,OR(EXACT(E116,$AK$51:$AK$78)),IF(B116=$AL$50,OR(EXACT(E116,$AL$51:$AL$66)),IF(B116=$AM$50,OR(EXACT(E116,$AM$51:$AM$66)),IF(B116=$AN$50,OR(EXACT(E116,$AN$51:$AN$54)),IF(B116=$AO$50,OR(EXACT(E116,$AO$51:$AO$52)),OR(EXACT(E116,$AP$51:$AP$62)))))))))) -> TRUE | AJ116: Materiais de escritório | AK116: Item FF | AQ116: OK | AR116: =IF(AND($G116>=$AO$32,$G116<=$AP$32),$AN$32,IF(AND($G116>=$AO$33,$G116<=$AP$33),$AN$33,IF(AND($G116>=$AO$34,$G116<=$AP$34),$AN$34,IF(AND($G116>=$AO$35,$G116<=$AP$35),$AN$35,IF(AND($G116>=$AO$36,$G116<=$AP$36),$AN$36,IF(AND($G116>=$AO$37,$G116<=$AP$37),$AN$37,IF(AND($G116>=$AO$38,$G116<=$AP$38),$AN$38,IF(AND($G116>=$AO$39,$G116<=$AP$39),$AN$39,IF(AND($G116>=$AO$40,$G116<=$AP$40),$AN$40,IF(AND($G116>=$AO$41,$G116<=$AP$41),$AN$41,IF(AND($G116>=$AO$42,$G116<=$AP$42),$AN$42,IF(AND($G116>=$AO$43,$G116<=$AP$43),$AN$43,"")))))))))))) -> FEVEREIRO
A117: 67 | B117: Despesas com pessoal | E117: Assistência Médica | G117: 2019-02-05 | H117: NFS-e | I117: 6104846 | J117: Santa Helena Assistência Médica S/A | M117: 499770 | N117: 2169.17 | P117: Assistência Médica ref. 02/2019 | X117: Item AA | Y117: Exibir | Z117: 1 | AA117: =IF(Z117="","",COUNT(Z$52:Z117)+Z117) -> 67 | AB117: FALSE | AD117: 0 | AG117: 0 | AH117: vazio | AI117: =IF(AH117="Falta",TRUE,IF(B117=0,TRUE,IF(B117=$AJ$50,OR(EXACT(E117,$AJ$51:$AJ$80)),IF(B117=$AK$50,OR(EXACT(E117,$AK$51:$AK$78)),IF(B117=$AL$50,OR(EXACT(E117,$AL$51:$AL$66)),IF(B117=$AM$50,OR(EXACT(E117,$AM$51:$AM$66)),IF(B117=$AN$50,OR(EXACT(E117,$AN$51:$AN$54)),IF(B117=$AO$50,OR(EXACT(E117,$AO$51:$AO$52)),OR(EXACT(E117,$AP$51:$AP$62)))))))))) -> TRUE | AJ117: Materiais didáticos | AK117: Item FF | AQ117: OK | AR117: FEVEREIRO
A118: 68 | B118: Despesas com pessoal | E118: Seguro de Vida | G118: 2019-02-13 | H118: Fatura | I118: 4011660 | J118: MetLife - Clube Pasi de Seguros | M118: 227360 | N118: 177.4 | P118: Seguro de vida - 20 vidas - ref. 02/2019 | X118: Item AA | Y118: Exibir | Z118: 1 | AA118: =IF(Z118="","",COUNT(Z$52:Z118)+Z118) -> 68 | AB118: FALSE | AD118: 0 | AG118: 0 | AH118: vazio | AI118: =IF(AH118="Falta",TRUE,IF(B118=0,TRUE,IF(B118=$AJ$50,OR(EXACT(E118,$AJ$51:$AJ$80)),IF(B118=$AK$50,OR(EXACT(E118,$AK$51:$AK$78)),IF(B118=$AL$50,OR(EXACT(E118,$AL$51:$AL$66)),IF(B118=$AM$50,OR(EXACT(E118,$AM$51:$AM$66)),IF(B118=$AN$50,OR(EXACT(E118,$AN$51:$AN$54)),IF(B118=$AO$50,OR(EXACT(E118,$AO$51:$AO$52)),OR(EXACT(E118,$AP$51:$AP$62)))))))))) -> TRUE | AJ118: Materiais para biblioteca | AK118: Item FF | AQ118: OK | AR118: FEVEREIRO
A119: 69 | B119: Despesas com pessoal | E119: Pagamento mensal | G119: 2019-02-19 | H119: Holerite | J119: Mírian Vieira Alves | M119: 81198 | N119: 536 | P119: Adiantamento - ref. 02/2019 | X119: Item AA | Y119: Exibir | Z119: 1 | AA119: =IF(Z119="","",COUNT(Z$52:Z119)+Z119) -> 69 | AB119: FALSE | AD119: 0 | AG119: 0 | AH119: vazio | AI119: =IF(AH119="Falta",TRUE,IF(B119=0,TRUE,IF(B119=$AJ$50,OR(EXACT(E119,$AJ$51:$AJ$80)),IF(B119=$AK$50,OR(EXACT(E119,$AK$51:$AK$78)),IF(B119=$AL$50,OR(EXACT(E119,$AL$51:$AL$66)),IF(B119=$AM$50,OR(EXACT(E119,$AM$51:$AM$66)),IF(B119=$AN$50,OR(EXACT(E119,$AN$51:$AN$54)),IF(B119=$AO$50,OR(EXACT(E119,$AO$51:$AO$52)),OR(EXACT(E119,$AP$51:$AP$62)))))))))) -> TRUE | AJ119: Material para Educação Maker | AK119: Item FF | AQ119: OK | AR119: FEVEREIRO
A120: 70 | B120: Despesas com pessoal | E120: Pagamento mensal | G120: 2019-02-19 | H120: Holerite | J120: Fernanda Godói Barbosa | M120: 81371 | N120: 830 | P120: Adiantamento - ref. 02/2019 | X120: Item AA | Y120: Exibir | Z120: 1 | AA120: =IF(Z120="","",COUNT(Z$52:Z120)+Z120) -> 70 | AB120: FALSE | AD120: 0 | AG120: 0 | AH120: vazio | AI120: =IF(AH120="Falta",TRUE,IF(B120=0,TRUE,IF(B120=$AJ$50,OR(EXACT(E120,$AJ$51:$AJ$80)),IF(B120=$AK$50,OR(EXACT(E120,$AK$51:$AK$78)),IF(B120=$AL$50,OR(EXACT(E120,$AL$51:$AL$66)),IF(B120=$AM$50,OR(EXACT(E120,$AM$51:$AM$66)),IF(B120=$AN$50,OR(EXACT(E120,$AN$51:$AN$54)),IF(B120=$AO$50,OR(EXACT(E120,$AO$51:$AO$52)),OR(EXACT(E120,$AP$51:$AP$62)))))))))) -> TRUE | AJ120: Outros serviços contratados | AK120: Item OO | AQ120: OK | AR120: FEVEREIRO
A121: 71 | B121: Despesas com pessoal | E121: Pagamento mensal | G121: 2019-02-19 | H121: Holerite | J121: Deuseli Aparecida Franciscon Rodrigues | M121: 81473 | N121: 457 | P121: Adiantamento - ref. 02/2019 | X121: Item AA | Y121: Exibir | Z121: 1 | AA121: =IF(Z121="","",COUNT(Z$52:Z121)+Z121) -> 71 | AB121: FALSE | AD121: 0 | AG121: 0 | AH121: vazio | AI121: =IF(AH121="Falta",TRUE,IF(B121=0,TRUE,IF(B121=$AJ$50,OR(EXACT(E121,$AJ$51:$AJ$80)),IF(B121=$AK$50,OR(EXACT(E121,$AK$51:$AK$78)),IF(B121=$AL$50,OR(EXACT(E121,$AL$51:$AL$66)),IF(B121=$AM$50,OR(EXACT(E121,$AM$51:$AM$66)),IF(B121=$AN$50,OR(EXACT(E121,$AN$51:$AN$54)),IF(B121=$AO$50,OR(EXACT(E121,$AO$51:$AO$52)),OR(EXACT(E121,$AP$51:$AP$62)))))))))) -> TRUE | AJ121: Pagamento mensal | AK121: Item AA | AQ121: OK | AR121: FEVEREIRO
A122: 72 | B122: Despesas com pessoal | E122: Pagamento mensal | G122: 2019-02-19 | H122: Holerite | J122: Michelle Tinti | M122: 81582 | N122: 536 | P122: Adiantamento - ref. 02/2019 | X122: Item AA | Y122: Exibir | Z122: 1 | AA122: =IF(Z122="","",COUNT(Z$52:Z122)+Z122) -> 72 | AB122: FALSE | AD122: 0 | AG122: 0 | AH122: vazio | AI122: =IF(AH122="Falta",TRUE,IF(B122=0,TRUE,IF(B122=$AJ$50,OR(EXACT(E122,$AJ$51:$AJ$80)),IF(B122=$AK$50,OR(EXACT(E122,$AK$51:$AK$78)),IF(B122=$AL$50,OR(EXACT(E122,$AL$51:$AL$66)),IF(B122=$AM$50,OR(EXACT(E122,$AM$51:$AM$66)),IF(B122=$AN$50,OR(EXACT(E122,$AN$51:$AN$54)),IF(B122=$AO$50,OR(EXACT(E122,$AO$51:$AO$52)),OR(EXACT(E122,$AP$51:$AP$62)))))))))) -> TRUE | AJ122: Pensão alimentícia | AK122: Item AA | AQ122: OK | AR122: FEVEREIRO
A123: 73 | B123: Despesas com pessoal | E123: Pagamento mensal | G123: 2019-02-19 | H123: Holerite | J123: Jéssica de Jesus Soares | M123: 81710 | N123: 536 | P123: Adiantamento - ref. 02/2019 | X123: Item AA | Y123: Exibir | Z123: 1 | AA123: =IF(Z123="","",COUNT(Z$52:Z123)+Z123) -> 73 | AB123: FALSE | AD123: 0 | AG123: 0 | AH123: vazio | AI123: =IF(AH123="Falta",TRUE,IF(B123=0,TRUE,IF(B123=$AJ$50,OR(EXACT(E123,$AJ$51:$AJ$80)),IF(B123=$AK$50,OR(EXACT(E123,$AK$51:$AK$78)),IF(B123=$AL$50,OR(EXACT(E123,$AL$51:$AL$66)),IF(B123=$AM$50,OR(EXACT(E123,$AM$51:$AM$66)),IF(B123=$AN$50,OR(EXACT(E123,$AN$51:$AN$54)),IF(B123=$AO$50,OR(EXACT(E123,$AO$51:$AO$52)),OR(EXACT(E123,$AP$51:$AP$62)))))))))) -> TRUE | AJ123: Prest. de Serviços - PJ | AK123: Item HH | AQ123: OK | AR123: FEVEREIRO
A124: 74 | B124: Despesas com pessoal | E124: Pagamento mensal | G124: 2019-02-19 | H124: Holerite | J124: Cláudia Zanutto Nobre | M124: 81809 | N124: 536 | P124: Adiantamento - ref. 02/2019 | X124: Item AA | Y124: Exibir | Z124: 1 | AA124: =IF(Z124="","",COUNT(Z$52:Z124)+Z124) -> 74 | AB124: FALSE | AD124: 0 | AG124: 0 | AH124: vazio | AI124: =IF(AH124="Falta",TRUE,IF(B124=0,TRUE,IF(B124=$AJ$50,OR(EXACT(E124,$AJ$51:$AJ$80)),IF(B124=$AK$50,OR(EXACT(E124,$AK$51:$AK$78)),IF(B124=$AL$50,OR(EXACT(E124,$AL$51:$AL$66)),IF(B124=$AM$50,OR(EXACT(E124,$AM$51:$AM$66)),IF(B124=$AN$50,OR(EXACT(E124,$AN$51:$AN$54)),IF(B124=$AO$50,OR(EXACT(E124,$AO$51:$AO$52)),OR(EXACT(E124,$AP$51:$AP$62)))))))))) -> TRUE | AJ124: Prest. de Serviços - RPA | AK124: Item BB | AQ124: OK | AR124: FEVEREIRO
A125: 75 | B125: Despesas com pessoal | E125: Pagamento mensal | G125: 2019-02-19 | H125: Holerite | J125: Creuza Maria dos Santos Pessoni | M125: 81936 | N125: 1727 | P125: Adiantamento - ref. 02/2019 | X125: Item AA | Y125: Exibir | Z125: 1 | AA125: =IF(Z125="","",COUNT(Z$52:Z125)+Z125) -> 75 | AB125: FALSE | AD125: 0 | AG125: 0 | AH125: vazio | AI125: =IF(AH125="Falta",TRUE,IF(B125=0,TRUE,IF(B125=$AJ$50,OR(EXACT(E125,$AJ$51:$AJ$80)),IF(B125=$AK$50,OR(EXACT(E125,$AK$51:$AK$78)),IF(B125=$AL$50,OR(EXACT(E125,$AL$51:$AL$66)),IF(B125=$AM$50,OR(EXACT(E125,$AM$51:$AM$66)),IF(B125=$AN$50,OR(EXACT(E125,$AN$51:$AN$54)),IF(B125=$AO$50,OR(EXACT(E125,$AO$51:$AO$52)),OR(EXACT(E125,$AP$51:$AP$62)))))))))) -> TRUE | AJ125: Prest. de Serviços Ed. Maker - PJ | AK125: Item HH | AQ125: OK | AR125: FEVEREIRO
A126: 76 | B126: Despesas com pessoal | E126: Pagamento mensal | G126: 2019-02-19 | H126: Holerite | J126: Marleide Monteiro de Freitas | M126: 82033 | N126: 830 | P126: Adiantamento - ref. 02/2019 | X126: Item AA | Y126: Exibir | Z126: 1 | AA126: =IF(Z126="","",COUNT(Z$52:Z126)+Z126) -> 76 | AB126: FALSE | AD126: 0 | AG126: 0 | AH126: vazio | AI126: =IF(AH126="Falta",TRUE,IF(B126=0,TRUE,IF(B126=$AJ$50,OR(EXACT(E126,$AJ$51:$AJ$80)),IF(B126=$AK$50,OR(EXACT(E126,$AK$51:$AK$78)),IF(B126=$AL$50,OR(EXACT(E126,$AL$51:$AL$66)),IF(B126=$AM$50,OR(EXACT(E126,$AM$51:$AM$66)),IF(B126=$AN$50,OR(EXACT(E126,$AN$51:$AN$54)),IF(B126=$AO$50,OR(EXACT(E126,$AO$51:$AO$52)),OR(EXACT(E126,$AP$51:$AP$62)))))))))) -> TRUE | AJ126: Prest. de Serviços Ed. Maker - RPA | AK126: Item BB | AQ126: OK | AR126: FEVEREIRO
A127: 77 | B127: Despesas com pessoal | E127: Pagamento mensal | G127: 2019-02-19 | H127: Holerite | J127: Geane da Silva Sousa | M127: 82133 | N127: 830 | P127: Adiantamento - ref. 02/2019 | X127: Item AA | Y127: Exibir | Z127: 1 | AA127: =IF(Z127="","",COUNT(Z$52:Z127)+Z127) -> 77 | AB127: FALSE | AD127: 0 | AG127: 0 | AH127: vazio | AI127: =IF(AH127="Falta",TRUE,IF(B127=0,TRUE,IF(B127=$AJ$50,OR(EXACT(E127,$AJ$51:$AJ$80)),IF(B127=$AK$50,OR(EXACT(E127,$AK$51:$AK$78)),IF(B127=$AL$50,OR(EXACT(E127,$AL$51:$AL$66)),IF(B127=$AM$50,OR(EXACT(E127,$AM$51:$AM$66)),IF(B127=$AN$50,OR(EXACT(E127,$AN$51:$AN$54)),IF(B127=$AO$50,OR(EXACT(E127,$AO$51:$AO$52)),OR(EXACT(E127,$AP$51:$AP$62)))))))))) -> TRUE | AJ127: Rescisão de Trabalho | AK127: Item AA | AQ127: OK | AR127: FEVEREIRO
A128: 78 | B128: Despesas com pessoal | E128: Pagamento mensal | G128: 2019-02-19 | H128: Holerite | J128: Rosiane Sousa Pereira | M128: 82220 | N128: 537 | P128: Adiantamento - ref. 02/2019 | X128: Item AA | Y128: Exibir | Z128: 1 | AA128: =IF(Z128="","",COUNT(Z$52:Z128)+Z128) -> 78 | AB128: FALSE | AD128: 0 | AG128: 0 | AH128: vazio | AI128: =IF(AH128="Falta",TRUE,IF(B128=0,TRUE,IF(B128=$AJ$50,OR(EXACT(E128,$AJ$51:$AJ$80)),IF(B128=$AK$50,OR(EXACT(E128,$AK$51:$AK$78)),IF(B128=$AL$50,OR(EXACT(E128,$AL$51:$AL$66)),IF(B128=$AM$50,OR(EXACT(E128,$AM$51:$AM$66)),IF(B128=$AN$50,OR(EXACT(E128,$AN$51:$AN$54)),IF(B128=$AO$50,OR(EXACT(E128,$AO$51:$AO$52)),OR(EXACT(E128,$AP$51:$AP$62)))))))))) -> TRUE | AJ128: Seguro de Vida | AK128: Item AA | AQ128: OK | AR128: FEVEREIRO
A129: 79 | B129: Despesas com pessoal | E129: Pagamento mensal | G129: 2019-02-19 | H129: Holerite | J129: Sandra Octaviano da Costa | M129: 82344 | N129: 1228 | P129: Adiantamento - ref. 02/2019 | X129: Item AA | Y129: Exibir | Z129: 1 | AA129: =IF(Z129="","",COUNT(Z$52:Z129)+Z129) -> 79 | AB129: FALSE | AD129: 0 | AG129: 0 | AH129: vazio | AI129: =IF(AH129="Falta",TRUE,IF(B129=0,TRUE,IF(B129=$AJ$50,OR(EXACT(E129,$AJ$51:$AJ$80)),IF(B129=$AK$50,OR(EXACT(E129,$AK$51:$AK$78)),IF(B129=$AL$50,OR(EXACT(E129,$AL$51:$AL$66)),IF(B129=$AM$50,OR(EXACT(E129,$AM$51:$AM$66)),IF(B129=$AN$50,OR(EXACT(E129,$AN$51:$AN$54)),IF(B129=$AO$50,OR(EXACT(E129,$AO$51:$AO$52)),OR(EXACT(E129,$AP$51:$AP$62)))))))))) -> TRUE | AJ129: Seguro predial | AK129: Item HH | AQ129: OK | AR129: FEVEREIRO
A130: 80 | B130: Despesas com pessoal | E130: Pagamento mensal | G130: 2019-02-19 | H130: Holerite | J130: Eliane Novais da Silva | M130: 82479 | N130: 830 | P130: Adiantamento - ref. 02/2019 | X130: Item AA | Y130: Exibir | Z130: 1 | AA130: =IF(Z130="","",COUNT(Z$52:Z130)+Z130) -> 80 | AB130: FALSE | AD130: 0 | AG130: 0 | AH130: vazio | AI130: =IF(AH130="Falta",TRUE,IF(B130=0,TRUE,IF(B130=$AJ$50,OR(EXACT(E130,$AJ$51:$AJ$80)),IF(B130=$AK$50,OR(EXACT(E130,$AK$51:$AK$78)),IF(B130=$AL$50,OR(EXACT(E130,$AL$51:$AL$66)),IF(B130=$AM$50,OR(EXACT(E130,$AM$51:$AM$66)),IF(B130=$AN$50,OR(EXACT(E130,$AN$51:$AN$54)),IF(B130=$AO$50,OR(EXACT(E130,$AO$51:$AO$52)),OR(EXACT(E130,$AP$51:$AP$62)))))))))) -> TRUE | AJ130: Serviços de manutenção - PJ | AK130: Item HH | AQ130: OK | AR130: FEVEREIRO
A131: 81 | B131: Despesas com pessoal | E131: Pagamento mensal | G131: 2019-02-19 | H131: Holerite | J131: Célia Maria dos Santos Casa | M131: 82569 | N131: 537 | P131: Adiantamento - ref. 02/2019 | X131: Item AA | Y131: Exibir | Z131: 1 | AA131: =IF(Z131="","",COUNT(Z$52:Z131)+Z131) -> 81 | AB131: FALSE | AD131: 0 | AG131: 0 | AH131: vazio | AI131: =IF(AH131="Falta",TRUE,IF(B131=0,TRUE,IF(B131=$AJ$50,OR(EXACT(E131,$AJ$51:$AJ$80)),IF(B131=$AK$50,OR(EXACT(E131,$AK$51:$AK$78)),IF(B131=$AL$50,OR(EXACT(E131,$AL$51:$AL$66)),IF(B131=$AM$50,OR(EXACT(E131,$AM$51:$AM$66)),IF(B131=$AN$50,OR(EXACT(E131,$AN$51:$AN$54)),IF(B131=$AO$50,OR(EXACT(E131,$AO$51:$AO$52)),OR(EXACT(E131,$AP$51:$AP$62)))))))))) -> TRUE | AJ131: Serviços de manutenção - RPA | AK131: Item BB | AQ131: OK | AR131: FEVEREIRO
A132: 82 | B132: Despesas com pessoal | E132: Pagamento mensal | G132: 2019-02-19 | H132: Holerite | J132: Adriana Rodrigues de Sousa | M132: 82662 | N132: 536 | P132: Adiantamento - ref. 02/2019 | X132: Item AA | Y132: Exibir | Z132: 1 | AA132: =IF(Z132="","",COUNT(Z$52:Z132)+Z132) -> 82 | AB132: FALSE | AD132: 0 | AG132: 0 | AH132: vazio | AI132: =IF(AH132="Falta",TRUE,IF(B132=0,TRUE,IF(B132=$AJ$50,OR(EXACT(E132,$AJ$51:$AJ$80)),IF(B132=$AK$50,OR(EXACT(E132,$AK$51:$AK$78)),IF(B132=$AL$50,OR(EXACT(E132,$AL$51:$AL$66)),IF(B132=$AM$50,OR(EXACT(E132,$AM$51:$AM$66)),IF(B132=$AN$50,OR(EXACT(E132,$AN$51:$AN$54)),IF(B132=$AO$50,OR(EXACT(E132,$AO$51:$AO$52)),OR(EXACT(E132,$AP$51:$AP$62)))))))))) -> TRUE | AJ132: Transporte em passeios | AK132: Item HH | AQ132: OK | AR132: FEVEREIRO
A133: 83 | B133: Despesas com pessoal | E133: Pagamento mensal | G133: 2019-02-19 | H133: Holerite | J133: Luíza Natália Fernandes Cândido | M133: 82783 | N133: 536 | P133: Adiantamento - ref. 02/2019 | X133: Item AA | Y133: Exibir | Z133: 1 | AA133: =IF(Z133="","",COUNT(Z$52:Z133)+Z133) -> 83 | AB133: FALSE | AD133: 0 | AG133: 0 | AH133: vazio | AI133: =IF(AH133="Falta",TRUE,IF(B133=0,TRUE,IF(B133=$AJ$50,OR(EXACT(E133,$AJ$51:$AJ$80)),IF(B133=$AK$50,OR(EXACT(E133,$AK$51:$AK$78)),IF(B133=$AL$50,OR(EXACT(E133,$AL$51:$AL$66)),IF(B133=$AM$50,OR(EXACT(E133,$AM$51:$AM$66)),IF(B133=$AN$50,OR(EXACT(E133,$AN$51:$AN$54)),IF(B133=$AO$50,OR(EXACT(E133,$AO$51:$AO$52)),OR(EXACT(E133,$AP$51:$AP$62)))))))))) -> TRUE | AJ133: Tributos | AK133: Item KK | AQ133: OK | AR133: FEVEREIRO
A134: 84 | B134: Despesas com pessoal | E134: Pagamento mensal | G134: 2019-02-19 | H134: Holerite | J134: Valdinez Vieira Bezerra | M134: 82874 | N134: 830 | P134: Adiantamento - ref. 02/2019 | X134: Item AA | Y134: Exibir | Z134: 1 | AA134: =IF(Z134="","",COUNT(Z$52:Z134)+Z134) -> 84 | AB134: FALSE | AD134: 0 | AG134: 0 | AH134: vazio | AI134: =IF(AH134="Falta",TRUE,IF(B134=0,TRUE,IF(B134=$AJ$50,OR(EXACT(E134,$AJ$51:$AJ$80)),IF(B134=$AK$50,OR(EXACT(E134,$AK$51:$AK$78)),IF(B134=$AL$50,OR(EXACT(E134,$AL$51:$AL$66)),IF(B134=$AM$50,OR(EXACT(E134,$AM$51:$AM$66)),IF(B134=$AN$50,OR(EXACT(E134,$AN$51:$AN$54)),IF(B134=$AO$50,OR(EXACT(E134,$AO$51:$AO$52)),OR(EXACT(E134,$AP$51:$AP$62)))))))))) -> TRUE | AJ134: Vale-refeição | AK134: Item AA | AQ134: OK | AR134: FEVEREIRO
A135: 85 | B135: Despesas com pessoal | E135: Pagamento mensal | G135: 2019-02-19 | H135: Holerite | J135: Maria Silveira de Sousa | M135: 82971 | N135: 457 | P135: Adiantamento - ref. 02/2019 | X135: Item AA | Y135: Exibir | Z135: 1 | AA135: =IF(Z135="","",COUNT(Z$52:Z135)+Z135) -> 85 | AB135: FALSE | AD135: 0 | AG135: 0 | AH135: vazio | AI135: =IF(AH135="Falta",TRUE,IF(B135=0,TRUE,IF(B135=$AJ$50,OR(EXACT(E135,$AJ$51:$AJ$80)),IF(B135=$AK$50,OR(EXACT(E135,$AK$51:$AK$78)),IF(B135=$AL$50,OR(EXACT(E135,$AL$51:$AL$66)),IF(B135=$AM$50,OR(EXACT(E135,$AM$51:$AM$66)),IF(B135=$AN$50,OR(EXACT(E135,$AN$51:$AN$54)),IF(B135=$AO$50,OR(EXACT(E135,$AO$51:$AO$52)),OR(EXACT(E135,$AP$51:$AP$62)))))))))) -> TRUE | AJ135: Vale-transporte | AK135: Item AA | AQ135: OK | AR135: FEVEREIRO
A136: 86 | B136: Despesas com pessoal | E136: Pagamento mensal | G136: 2019-02-19 | H136: Holerite | J136: Bruna Prado da Silva | M136: 83068 | N136: 306 | P136: Adiantamento - ref. 02/2019 | X136: Item AA | Y136: Exibir | Z136: 1 | AA136: =IF(Z136="","",COUNT(Z$52:Z136)+Z136) -> 86 | AB136: FALSE | AD136: 0 | AG136: 0 | AH136: vazio | AI136: =IF(AH136="Falta",TRUE,IF(B136=0,TRUE,IF(B136=$AJ$50,OR(EXACT(E136,$AJ$51:$AJ$80)),IF(B136=$AK$50,OR(EXACT(E136,$AK$51:$AK$78)),IF(B136=$AL$50,OR(EXACT(E136,$AL$51:$AL$66)),IF(B136=$AM$50,OR(EXACT(E136,$AM$51:$AM$66)),IF(B136=$AN$50,OR(EXACT(E136,$AN$51:$AN$54)),IF(B136=$AO$50,OR(EXACT(E136,$AO$51:$AO$52)),OR(EXACT(E136,$AP$51:$AP$62)))))))))) -> TRUE | AQ136: OK | AR136: FEVEREIRO
A137: 87 | B137: Custeio Geral | E137: Mat. Limpeza/ Higiene/ Primeiros Socorros | G137: 2019-02-20 | H137: DANFE | I137: 9697 | J137: Luna Plast Embalagens Ltda. ME | M137: 194727 | N137: 288.6 | P137: Material de higine e limpeza | X137: Item FF | Y137: Exibir | Z137: 1 | AA137: =IF(Z137="","",COUNT(Z$52:Z137)+Z137) -> 87 | AB137: FALSE | AD137: 0 | AG137: 0 | AH137: vazio | AI137: =IF(AH137="Falta",TRUE,IF(B137=0,TRUE,IF(B137=$AJ$50,OR(EXACT(E137,$AJ$51:$AJ$80)),IF(B137=$AK$50,OR(EXACT(E137,$AK$51:$AK$78)),IF(B137=$AL$50,OR(EXACT(E137,$AL$51:$AL$66)),IF(B137=$AM$50,OR(EXACT(E137,$AM$51:$AM$66)),IF(B137=$AN$50,OR(EXACT(E137,$AN$51:$AN$54)),IF(B137=$AO$50,OR(EXACT(E137,$AO$51:$AO$52)),OR(EXACT(E137,$AP$51:$AP$62)))))))))) -> TRUE | AK137: Item AA | AL137: =SUMIF($X$51:$X$650,$AK137,Valor_doc)-SUMIF($X$51:$X$650,$AK137,Valor_Parcial)-SUMIF($X$51:$X$650,$AK137,Valor_Total) -> 168637.42 | AQ137: OK | AR137: FEVEREIRO
A138: 88 | B138: Despesas com pessoal | E138: Vale-transporte | G138: 2019-02-25 | H138: Recibo | I138: 9342484 | J138: Promobom Autopass S.A. | M138: 112002 | N138: 344.45 | P138: Vale transporte - ref. 03/2019 | X138: Item AA | Y138: Exibir | Z138: 1 | AA138: =IF(Z138="","",COUNT(Z$52:Z138)+Z138) -> 88 | AB138: FALSE | AD138: 0 | AG138: 0 | AH138: vazio | AI138: =IF(AH138="Falta",TRUE,IF(B138=0,TRUE,IF(B138=$AJ$50,OR(EXACT(E138,$AJ$51:$AJ$80)),IF(B138=$AK$50,OR(EXACT(E138,$AK$51:$AK$78)),IF(B138=$AL$50,OR(EXACT(E138,$AL$51:$AL$66)),IF(B138=$AM$50,OR(EXACT(E138,$AM$51:$AM$66)),IF(B138=$AN$50,OR(EXACT(E138,$AN$51:$AN$54)),IF(B138=$AO$50,OR(EXACT(E138,$AO$51:$AO$52)),OR(EXACT(E138,$AP$51:$AP$62)))))))))) -> TRUE | AK138: Item BB | AL138: 0 | AQ138: OK | AR138: FEVEREIRO
A139: 89 | B139: Despesas com pessoal | E139: Vale-transporte | G139: 2019-02-25 | H139: Recibo | I139: 784442 | J139: Cartão Legal | M139: 112652 | N139: 1511.9 | P139: Vale transporte - ref. 03/2019 | X139: Item AA | Y139: Exibir | Z139: 1 | AA139: =IF(Z139="","",COUNT(Z$52:Z139)+Z139) -> 89 | AB139: FALSE | AD139: 0 | AG139: 0 | AH139: vazio | AI139: =IF(AH139="Falta",TRUE,IF(B139=0,TRUE,IF(B139=$AJ$50,OR(EXACT(E139,$AJ$51:$AJ$80)),IF(B139=$AK$50,OR(EXACT(E139,$AK$51:$AK$78)),IF(B139=$AL$50,OR(EXACT(E139,$AL$51:$AL$66)),IF(B139=$AM$50,OR(EXACT(E139,$AM$51:$AM$66)),IF(B139=$AN$50,OR(EXACT(E139,$AN$51:$AN$54)),IF(B139=$AO$50,OR(EXACT(E139,$AO$51:$AO$52)),OR(EXACT(E139,$AP$51:$AP$62)))))))))) -> TRUE | AK139: Item CC | AL139: 0 | AQ139: OK | AR139: FEVEREIRO
A140: 90 | B140: Despesas com pessoal | E140: Cesta Básica | G140: 2019-02-28 | H140: NFS-e | I140: 328040 | J140: Sodexo Pass Brasil Serviços e Comércio S/A | M140: 113844 | N140: 2858.5 | P140: Cesta Básica - ref. 03/2019 | X140: Item AA | Y140: Exibir | Z140: 1 | AA140: =IF(Z140="","",COUNT(Z$52:Z140)+Z140) -> 90 | AB140: FALSE | AD140: 0 | AG140: 0 | AH140: vazio | AI140: =IF(AH140="Falta",TRUE,IF(B140=0,TRUE,IF(B140=$AJ$50,OR(EXACT(E140,$AJ$51:$AJ$80)),IF(B140=$AK$50,OR(EXACT(E140,$AK$51:$AK$78)),IF(B140=$AL$50,OR(EXACT(E140,$AL$51:$AL$66)),IF(B140=$AM$50,OR(EXACT(E140,$AM$51:$AM$66)),IF(B140=$AN$50,OR(EXACT(E140,$AN$51:$AN$54)),IF(B140=$AO$50,OR(EXACT(E140,$AO$51:$AO$52)),OR(EXACT(E140,$AP$51:$AP$62)))))))))) -> TRUE | AK140: Item DD | AL140: 0 | AQ140: OK | AR140: FEVEREIRO
A141: 91 | B141: Custeio Geral | E141: Prest. de Serviços - PJ | G141: 2019-02-25 | H141: NFS-e | I141: 4941 | J141: Qualy Copiadora e Papelaria Ltda. - ME | M141: 114526 | N141: 309.96 | P141: Serviço de impressão e encadernação | X141: Item HH | Y141: Exibir | Z141: 1 | AA141: =IF(Z141="","",COUNT(Z$52:Z141)+Z141) -> 91 | AB141: FALSE | AD141: 0 | AG141: 0 | AH141: vazio | AI141: =IF(AH141="Falta",TRUE,IF(B141=0,TRUE,IF(B141=$AJ$50,OR(EXACT(E141,$AJ$51:$AJ$80)),IF(B141=$AK$50,OR(EXACT(E141,$AK$51:$AK$78)),IF(B141=$AL$50,OR(EXACT(E141,$AL$51:$AL$66)),IF(B141=$AM$50,OR(EXACT(E141,$AM$51:$AM$66)),IF(B141=$AN$50,OR(EXACT(E141,$AN$51:$AN$54)),IF(B141=$AO$50,OR(EXACT(E141,$AO$51:$AO$52)),OR(EXACT(E141,$AP$51:$AP$62)))))))))) -> TRUE | AK141: Item EE | AL141: 0 | AQ141: OK | AR141: FEVEREIRO
A142: 92 | B142: Despesas mensais | E142: Consumo de água | G142: 2019-02-21 | H142: Fatura | I142: 102251 | J142: SABESP | M142: 563978 | N142: 658.65 | P142: Água - ref. 02/2019 | X142: Item KK | Y142: Exibir | Z142: 1 | AA142: =IF(Z142="","",COUNT(Z$52:Z142)+Z142) -> 92 | AB142: FALSE | AD142: 0 | AG142: 0 | AH142: vazio | AI142: =IF(AH142="Falta",TRUE,IF(B142=0,TRUE,IF(B142=$AJ$50,OR(EXACT(E142,$AJ$51:$AJ$80)),IF(B142=$AK$50,OR(EXACT(E142,$AK$51:$AK$78)),IF(B142=$AL$50,OR(EXACT(E142,$AL$51:$AL$66)),IF(B142=$AM$50,OR(EXACT(E142,$AM$51:$AM$66)),IF(B142=$AN$50,OR(EXACT(E142,$AN$51:$AN$54)),IF(B142=$AO$50,OR(EXACT(E142,$AO$51:$AO$52)),OR(EXACT(E142,$AP$51:$AP$62)))))))))) -> TRUE | AK142: Item FF | AL142: 3846.61 | AQ142: OK | AR142: FEVEREIRO
A143: 93 | B143: Despesas mensais | E143: Conta de telefone/internet | G143: 2019-02-19 | H143: Fatura | I143: 94454-0 | J143: Vivo Telefônica Brasil S/A | M143: 168818 | N143: 318.03 | P143: Telefone / Internet - ref. 02/2019 | X143: Item KK | Y143: Exibir | Z143: 1 | AA143: =IF(Z143="","",COUNT(Z$52:Z143)+Z143) -> 93 | AB143: FALSE | AD143: 0 | AG143: 0 | AH143: vazio | AI143: =IF(AH143="Falta",TRUE,IF(B143=0,TRUE,IF(B143=$AJ$50,OR(EXACT(E143,$AJ$51:$AJ$80)),IF(B143=$AK$50,OR(EXACT(E143,$AK$51:$AK$78)),IF(B143=$AL$50,OR(EXACT(E143,$AL$51:$AL$66)),IF(B143=$AM$50,OR(EXACT(E143,$AM$51:$AM$66)),IF(B143=$AN$50,OR(EXACT(E143,$AN$51:$AN$54)),IF(B143=$AO$50,OR(EXACT(E143,$AO$51:$AO$52)),OR(EXACT(E143,$AP$51:$AP$62)))))))))) -> TRUE | AK143: Item GG | AL143: 0 | AQ143: OK | AR143: FEVEREIRO
A144: 94 | B144: Despesas com pessoal | E144: Contribuição Sindical | G144: 2019-02-27 | H144: Boleto Bancário | I144: 91834 | J144: SINDBENEFICENTE | M144: 277549 | N144: 300 | P144: Contribuição Associativa - ref. 02/2019 | X144: Item AA | Y144: Exibir | Z144: 1 | AA144: =IF(Z144="","",COUNT(Z$52:Z144)+Z144) -> 94 | AB144: FALSE | AD144: 0 | AG144: 0 | AH144: vazio | AI144: =IF(AH144="Falta",TRUE,IF(B144=0,TRUE,IF(B144=$AJ$50,OR(EXACT(E144,$AJ$51:$AJ$80)),IF(B144=$AK$50,OR(EXACT(E144,$AK$51:$AK$78)),IF(B144=$AL$50,OR(EXACT(E144,$AL$51:$AL$66)),IF(B144=$AM$50,OR(EXACT(E144,$AM$51:$AM$66)),IF(B144=$AN$50,OR(EXACT(E144,$AN$51:$AN$54)),IF(B144=$AO$50,OR(EXACT(E144,$AO$51:$AO$52)),OR(EXACT(E144,$AP$51:$AP$62)))))))))) -> TRUE | AK144: Item HH | AL144: 6829.44 | AQ144: OK | AR144: FEVEREIRO
A145: 95 | B145: Manutenção do imóvel | E145: Serviços de manutenção - PJ | G145: 2019-02-27 | H145: NFS-e | I145: 9180 | J145: Special Fire Comércio e Manutenção de Extintores Eireli EPP | M145: 278433 | N145: 285 | P145: Manuteção dos extintores | X145: Item HH | Y145: Exibir | Z145: 1 | AA145: =IF(Z145="","",COUNT(Z$52:Z145)+Z145) -> 95 | AB145: FALSE | AD145: 0 | AG145: 0 | AH145: vazio | AI145: =IF(AH145="Falta",TRUE,IF(B145=0,TRUE,IF(B145=$AJ$50,OR(EXACT(E145,$AJ$51:$AJ$80)),IF(B145=$AK$50,OR(EXACT(E145,$AK$51:$AK$78)),IF(B145=$AL$50,OR(EXACT(E145,$AL$51:$AL$66)),IF(B145=$AM$50,OR(EXACT(E145,$AM$51:$AM$66)),IF(B145=$AN$50,OR(EXACT(E145,$AN$51:$AN$54)),IF(B145=$AO$50,OR(EXACT(E145,$AO$51:$AO$52)),OR(EXACT(E145,$AP$51:$AP$62)))))))))) -> TRUE | AK145: Item II | AL145: 0 | AQ145: OK | AR145: FEVEREIRO
A146: 96 | B146: Despesas mensais | E146: Conta de telefone/internet | G146: 2019-02-22 | H146: Boleto Bancário | I146: 84419449 | J146: Terra Networks Brasil S/A | M146: 279268 | N146: 50.33 | P146: Internet - Divulga fácil e suporte | X146: Item KK | Y146: Exibir | Z146: 1 | AA146: =IF(Z146="","",COUNT(Z$52:Z146)+Z146) -> 96 | AB146: FALSE | AD146: 0 | AG146: 0 | AH146: vazio | AI146: =IF(AH146="Falta",TRUE,IF(B146=0,TRUE,IF(B146=$AJ$50,OR(EXACT(E146,$AJ$51:$AJ$80)),IF(B146=$AK$50,OR(EXACT(E146,$AK$51:$AK$78)),IF(B146=$AL$50,OR(EXACT(E146,$AL$51:$AL$66)),IF(B146=$AM$50,OR(EXACT(E146,$AM$51:$AM$66)),IF(B146=$AN$50,OR(EXACT(E146,$AN$51:$AN$54)),IF(B146=$AO$50,OR(EXACT(E146,$AO$51:$AO$52)),OR(EXACT(E146,$AP$51:$AP$62)))))))))) -> TRUE | AK146: Item JJ | AL146: 0 | AQ146: OK | AR146: FEVEREIRO
A147: 97 | B147: Despesas mensais | E147: Conta de telefone/internet | G147: 2019-02-22 | H147: Boleto Bancário | I147: 53706476 | J147: Terra Networks Brasil S/A | M147: 279268 | N147: 38.03 | P147: Internet - e-mail e acesso unificado | X147: Item KK | Y147: Exibir | Z147: 1 | AA147: =IF(Z147="","",COUNT(Z$52:Z147)+Z147) -> 97 | AB147: FALSE | AD147: 0 | AG147: 0 | AH147: vazio | AI147: =IF(AH147="Falta",TRUE,IF(B147=0,TRUE,IF(B147=$AJ$50,OR(EXACT(E147,$AJ$51:$AJ$80)),IF(B147=$AK$50,OR(EXACT(E147,$AK$51:$AK$78)),IF(B147=$AL$50,OR(EXACT(E147,$AL$51:$AL$66)),IF(B147=$AM$50,OR(EXACT(E147,$AM$51:$AM$66)),IF(B147=$AN$50,OR(EXACT(E147,$AN$51:$AN$54)),IF(B147=$AO$50,OR(EXACT(E147,$AO$51:$AO$52)),OR(EXACT(E147,$AP$51:$AP$62)))))))))) -> TRUE | AK147: Item KK | AL147: 4737.99 | AQ147: OK | AR147: FEVEREIRO
A148: 98 | B148: Despesas com pessoal | E148: Pagamento mensal | G148: 2019-02-26 | H148: Boleto Bancário | I148: 1129-F-03 | J148: Febes Federação Entidades Bem e Social | M148: 342023 | N148: 166 | P148: Contribuição mensal à entidade de classe - ref. 03/2019 | X148: Item AA | Y148: Exibir | Z148: 1 | AA148: =IF(Z148="","",COUNT(Z$52:Z148)+Z148) -> 98 | AB148: FALSE | AD148: 0 | AG148: 0 | AH148: vazio | AI148: =IF(AH148="Falta",TRUE,IF(B148=0,TRUE,IF(B148=$AJ$50,OR(EXACT(E148,$AJ$51:$AJ$80)),IF(B148=$AK$50,OR(EXACT(E148,$AK$51:$AK$78)),IF(B148=$AL$50,OR(EXACT(E148,$AL$51:$AL$66)),IF(B148=$AM$50,OR(EXACT(E148,$AM$51:$AM$66)),IF(B148=$AN$50,OR(EXACT(E148,$AN$51:$AN$54)),IF(B148=$AO$50,OR(EXACT(E148,$AO$51:$AO$52)),OR(EXACT(E148,$AP$51:$AP$62)))))))))) -> TRUE | AK148: Item LL | AL148: 0 | AQ148: OK | AR148: FEVEREIRO
A149: 99 | B149: Despesas com pessoal | E149: Encargos trabalhistas | G149: 2019-02-28 | H149: GFIP | I149: FGTS | J149: Caixa Econômica Federal | M149: 569430 | N149: 2824.49 | P149: GFIP / FGTS - ref. 02/2019 | X149: Item AA | Y149: Exibir | Z149: 1 | AA149: =IF(Z149="","",COUNT(Z$52:Z149)+Z149) -> 99 | AB149: FALSE | AD149: 0 | AG149: 0 | AH149: vazio | AI149: =IF(AH149="Falta",TRUE,IF(B149=0,TRUE,IF(B149=$AJ$50,OR(EXACT(E149,$AJ$51:$AJ$80)),IF(B149=$AK$50,OR(EXACT(E149,$AK$51:$AK$78)),IF(B149=$AL$50,OR(EXACT(E149,$AL$51:$AL$66)),IF(B149=$AM$50,OR(EXACT(E149,$AM$51:$AM$66)),IF(B149=$AN$50,OR(EXACT(E149,$AN$51:$AN$54)),IF(B149=$AO$50,OR(EXACT(E149,$AO$51:$AO$52)),OR(EXACT(E149,$AP$51:$AP$62)))))))))) -> TRUE | AK149: Item MM | AL149: 2279.05 | AQ149: OK | AR149: FEVEREIRO
A150: 100 | B150: Despesas com pessoal | E150: Pagamento mensal | G150: 2019-02-28 | H150: Holerite | J150: Mírian Vieira Alves | M150: 137453 | N150: 654 | P150: Salário Mensal - ref. 02/2019 | X150: Item AA | Y150: Exibir | Z150: 1 | AA150: =IF(Z150="","",COUNT(Z$52:Z150)+Z150) -> 100 | AB150: FALSE | AD150: 0 | AG150: 0 | AH150: vazio | AI150: =IF(AH150="Falta",TRUE,IF(B150=0,TRUE,IF(B150=$AJ$50,OR(EXACT(E150,$AJ$51:$AJ$80)),IF(B150=$AK$50,OR(EXACT(E150,$AK$51:$AK$78)),IF(B150=$AL$50,OR(EXACT(E150,$AL$51:$AL$66)),IF(B150=$AM$50,OR(EXACT(E150,$AM$51:$AM$66)),IF(B150=$AN$50,OR(EXACT(E150,$AN$51:$AN$54)),IF(B150=$AO$50,OR(EXACT(E150,$AO$51:$AO$52)),OR(EXACT(E150,$AP$51:$AP$62)))))))))) -> TRUE | AK150: Item NN | AL150: 0 | AQ150: OK | AR150: FEVEREIRO
A151: 101 | B151: Despesas com pessoal | E151: Pagamento mensal | G151: 2019-02-28 | H151: Holerite | J151: Fernanda Godói Barbosa | M151: 138617 | N151: 841 | P151: Salário Mensal - ref. 02/2019 | X151: Item AA | Y151: Exibir | Z151: 1 | AA151: =IF(Z151="","",COUNT(Z$52:Z151)+Z151) -> 101 | AB151: FALSE | AD151: 0 | AG151: 0 | AH151: vazio | AI151: =IF(AH151="Falta",TRUE,IF(B151=0,TRUE,IF(B151=$AJ$50,OR(EXACT(E151,$AJ$51:$AJ$80)),IF(B151=$AK$50,OR(EXACT(E151,$AK$51:$AK$78)),IF(B151=$AL$50,OR(EXACT(E151,$AL$51:$AL$66)),IF(B151=$AM$50,OR(EXACT(E151,$AM$51:$AM$66)),IF(B151=$AN$50,OR(EXACT(E151,$AN$51:$AN$54)),IF(B151=$AO$50,OR(EXACT(E151,$AO$51:$AO$52)),OR(EXACT(E151,$AP$51:$AP$62)))))))))) -> TRUE | AK151: Item OO | AL151: 0 | AQ151: OK | AR151: FEVEREIRO
A152: 102 | B152: Despesas com pessoal | E152: Pagamento mensal | G152: 2019-02-28 | H152: Holerite | J152: Deuseli Aparecida Franciscon Rodrigues | M152: 138983 | N152: 615 | P152: Salário Mensal - ref. 02/2019 | X152: Item AA | Y152: Exibir | Z152: 1 | AA152: =IF(Z152="","",COUNT(Z$52:Z152)+Z152) -> 102 | AB152: FALSE | AD152: 0 | AG152: 0 | AH152: vazio | AI152: =IF(AH152="Falta",TRUE,IF(B152=0,TRUE,IF(B152=$AJ$50,OR(EXACT(E152,$AJ$51:$AJ$80)),IF(B152=$AK$50,OR(EXACT(E152,$AK$51:$AK$78)),IF(B152=$AL$50,OR(EXACT(E152,$AL$51:$AL$66)),IF(B152=$AM$50,OR(EXACT(E152,$AM$51:$AM$66)),IF(B152=$AN$50,OR(EXACT(E152,$AN$51:$AN$54)),IF(B152=$AO$50,OR(EXACT(E152,$AO$51:$AO$52)),OR(EXACT(E152,$AP$51:$AP$62)))))))))) -> TRUE | AK152: Item PP | AL152: 0 | AQ152: OK | AR152: FEVEREIRO
A153: 103 | B153: Despesas com pessoal | E153: Pagamento mensal | G153: 2019-02-28 | H153: Holerite | J153: Michelle Tinti | M153: 139445 | N153: 591 | P153: Salário Mensal - ref. 02/2019 | X153: Item AA | Y153: Exibir | Z153: 1 | AA153: =IF(Z153="","",COUNT(Z$52:Z153)+Z153) -> 103 | AB153: FALSE | AD153: 0 | AG153: 0 | AH153: vazio | AI153: =IF(AH153="Falta",TRUE,IF(B153=0,TRUE,IF(B153=$AJ$50,OR(EXACT(E153,$AJ$51:$AJ$80)),IF(B153=$AK$50,OR(EXACT(E153,$AK$51:$AK$78)),IF(B153=$AL$50,OR(EXACT(E153,$AL$51:$AL$66)),IF(B153=$AM$50,OR(EXACT(E153,$AM$51:$AM$66)),IF(B153=$AN$50,OR(EXACT(E153,$AN$51:$AN$54)),IF(B153=$AO$50,OR(EXACT(E153,$AO$51:$AO$52)),OR(EXACT(E153,$AP$51:$AP$62)))))))))) -> TRUE | AL153: =SUM(AL137:AL152) -> 186330.51 | AQ153: OK | AR153: FEVEREIRO
A154: 104 | B154: Despesas com pessoal | E154: Pagamento mensal | G154: 2019-02-28 | H154: Holerite | J154: Jéssica de Jesus Soares | M154: 139853 | N154: 694 | P154: Salário Mensal - ref. 02/2019 | X154: Item AA | Y154: Exibir | Z154: 1 | AA154: =IF(Z154="","",COUNT(Z$52:Z154)+Z154) -> 104 | AB154: FALSE | AD154: 0 | AG154: 0 | AH154: vazio | AI154: =IF(AH154="Falta",TRUE,IF(B154=0,TRUE,IF(B154=$AJ$50,OR(EXACT(E154,$AJ$51:$AJ$80)),IF(B154=$AK$50,OR(EXACT(E154,$AK$51:$AK$78)),IF(B154=$AL$50,OR(EXACT(E154,$AL$51:$AL$66)),IF(B154=$AM$50,OR(EXACT(E154,$AM$51:$AM$66)),IF(B154=$AN$50,OR(EXACT(E154,$AN$51:$AN$54)),IF(B154=$AO$50,OR(EXACT(E154,$AO$51:$AO$52)),OR(EXACT(E154,$AP$51:$AP$62)))))))))) -> TRUE | AQ154: OK | AR154: FEVEREIRO
A155: 105 | B155: Despesas com pessoal | E155: Pagamento mensal | G155: 2019-02-28 | H155: Holerite | J155: Dominique Mirella do Amaral Jesus | M155: 140278 | N155: 1689 | P155: Salário Mensal - ref. 02/2019 | X155: Item AA | Y155: Exibir | Z155: 1 | AA155: =IF(Z155="","",COUNT(Z$52:Z155)+Z155) -> 105 | AB155: FALSE | AD155: 0 | AG155: 0 | AH155: vazio | AI155: =IF(AH155="Falta",TRUE,IF(B155=0,TRUE,IF(B155=$AJ$50,OR(EXACT(E155,$AJ$51:$AJ$80)),IF(B155=$AK$50,OR(EXACT(E155,$AK$51:$AK$78)),IF(B155=$AL$50,OR(EXACT(E155,$AL$51:$AL$66)),IF(B155=$AM$50,OR(EXACT(E155,$AM$51:$AM$66)),IF(B155=$AN$50,OR(EXACT(E155,$AN$51:$AN$54)),IF(B155=$AO$50,OR(EXACT(E155,$AO$51:$AO$52)),OR(EXACT(E155,$AP$51:$AP$62)))))))))) -> TRUE | AK155: Custeio | AL155: =SUM($AL$137:$AL$152)-$AL$149 -> 184051.46 | AQ155: OK | AR155: FEVEREIRO
A156: 106 | B156: Despesas com pessoal | E156: Pagamento mensal | G156: 2019-02-28 | H156: Holerite | J156: Cláudia Zanutto Nobre | M156: 140608 | N156: 1275 | P156: Salário Mensal - ref. 02/2019 | X156: Item AA | Y156: Exibir | Z156: 1 | AA156: =IF(Z156="","",COUNT(Z$52:Z156)+Z156) -> 106 | AB156: FALSE | AD156: 0 | AG156: 0 | AH156: vazio | AI156: =IF(AH156="Falta",TRUE,IF(B156=0,TRUE,IF(B156=$AJ$50,OR(EXACT(E156,$AJ$51:$AJ$80)),IF(B156=$AK$50,OR(EXACT(E156,$AK$51:$AK$78)),IF(B156=$AL$50,OR(EXACT(E156,$AL$51:$AL$66)),IF(B156=$AM$50,OR(EXACT(E156,$AM$51:$AM$66)),IF(B156=$AN$50,OR(EXACT(E156,$AN$51:$AN$54)),IF(B156=$AO$50,OR(EXACT(E156,$AO$51:$AO$52)),OR(EXACT(E156,$AP$51:$AP$62)))))))))) -> TRUE | AK156: Capital | AL156: =$AL$149 -> 2279.05 | AQ156: OK | AR156: FEVEREIRO
A157: 107 | B157: Despesas com pessoal | E157: Pagamento mensal | G157: 2019-02-28 | H157: Holerite | J157: Creuza Maria dos Santos Pessoni | M157: 140973 | N157: 1544 | P157: Salário Mensal - ref. 02/2019 | X157: Item AA | Y157: Exibir | Z157: 1 | AA157: =IF(Z157="","",COUNT(Z$52:Z157)+Z157) -> 107 | AB157: FALSE | AD157: 0 | AG157: 0 | AH157: vazio | AI157: =IF(AH157="Falta",TRUE,IF(B157=0,TRUE,IF(B157=$AJ$50,OR(EXACT(E157,$AJ$51:$AJ$80)),IF(B157=$AK$50,OR(EXACT(E157,$AK$51:$AK$78)),IF(B157=$AL$50,OR(EXACT(E157,$AL$51:$AL$66)),IF(B157=$AM$50,OR(EXACT(E157,$AM$51:$AM$66)),IF(B157=$AN$50,OR(EXACT(E157,$AN$51:$AN$54)),IF(B157=$AO$50,OR(EXACT(E157,$AO$51:$AO$52)),OR(EXACT(E157,$AP$51:$AP$62)))))))))) -> TRUE | AQ157: OK | AR157: FEVEREIRO
A158: 108 | B158: Despesas com pessoal | E158: Pagamento mensal | G158: 2019-02-28 | H158: Holerite | J158: Marleide Monteiro de Freitas | M158: 141311 | N158: 906 | P158: Salário Mensal - ref. 02/2019 | X158: Item AA | Y158: Exibir | Z158: 1 | AA158: =IF(Z158="","",COUNT(Z$52:Z158)+Z158) -> 108 | AB158: FALSE | AD158: 0 | AG158: 0 | AH158: vazio | AI158: =IF(AH158="Falta",TRUE,IF(B158=0,TRUE,IF(B158=$AJ$50,OR(EXACT(E158,$AJ$51:$AJ$80)),IF(B158=$AK$50,OR(EXACT(E158,$AK$51:$AK$78)),IF(B158=$AL$50,OR(EXACT(E158,$AL$51:$AL$66)),IF(B158=$AM$50,OR(EXACT(E158,$AM$51:$AM$66)),IF(B158=$AN$50,OR(EXACT(E158,$AN$51:$AN$54)),IF(B158=$AO$50,OR(EXACT(E158,$AO$51:$AO$52)),OR(EXACT(E158,$AP$51:$AP$62)))))))))) -> TRUE | AQ158: OK | AR158: FEVEREIRO
A159: 109 | B159: Despesas com pessoal | E159: Pagamento mensal | G159: 2019-02-28 | H159: Holerite | J159: Geane da Silva Sousa | M159: 141704 | N159: 1113 | P159: Salário Mensal - ref. 02/2019 | X159: Item AA | Y159: Exibir | Z159: 1 | AA159: =IF(Z159="","",COUNT(Z$52:Z159)+Z159) -> 109 | AB159: FALSE | AD159: 0 | AG159: 0 | AH159: vazio | AI159: =IF(AH159="Falta",TRUE,IF(B159=0,TRUE,IF(B159=$AJ$50,OR(EXACT(E159,$AJ$51:$AJ$80)),IF(B159=$AK$50,OR(EXACT(E159,$AK$51:$AK$78)),IF(B159=$AL$50,OR(EXACT(E159,$AL$51:$AL$66)),IF(B159=$AM$50,OR(EXACT(E159,$AM$51:$AM$66)),IF(B159=$AN$50,OR(EXACT(E159,$AN$51:$AN$54)),IF(B159=$AO$50,OR(EXACT(E159,$AO$51:$AO$52)),OR(EXACT(E159,$AP$51:$AP$62)))))))))) -> TRUE | AQ159: OK | AR159: FEVEREIRO
A160: 110 | B160: Despesas com pessoal | E160: Pagamento mensal | G160: 2019-02-28 | H160: Holerite | J160: Rosiane Sousa Pereira | M160: 142075 | N160: 688 | P160: Salário Mensal - ref. 02/2019 | X160: Item AA | Y160: Exibir | Z160: 1 | AA160: =IF(Z160="","",COUNT(Z$52:Z160)+Z160) -> 110 | AB160: FALSE | AD160: 0 | AG160: 0 | AH160: vazio | AI160: =IF(AH160="Falta",TRUE,IF(B160=0,TRUE,IF(B160=$AJ$50,OR(EXACT(E160,$AJ$51:$AJ$80)),IF(B160=$AK$50,OR(EXACT(E160,$AK$51:$AK$78)),IF(B160=$AL$50,OR(EXACT(E160,$AL$51:$AL$66)),IF(B160=$AM$50,OR(EXACT(E160,$AM$51:$AM$66)),IF(B160=$AN$50,OR(EXACT(E160,$AN$51:$AN$54)),IF(B160=$AO$50,OR(EXACT(E160,$AO$51:$AO$52)),OR(EXACT(E160,$AP$51:$AP$62)))))))))) -> TRUE | AQ160: OK | AR160: FEVEREIRO
A161: 111 | B161: Despesas com pessoal | E161: Pagamento mensal | G161: 2019-02-28 | H161: Holerite | J161: Sandra Octaviano da Costa | M161: 142455 | N161: 1259 | P161: Salário Mensal - ref. 02/2019 | X161: Item AA | Y161: Exibir | Z161: 1 | AA161: =IF(Z161="","",COUNT(Z$52:Z161)+Z161) -> 111 | AB161: FALSE | AD161: 0 | AG161: 0 | AH161: vazio | AI161: =IF(AH161="Falta",TRUE,IF(B161=0,TRUE,IF(B161=$AJ$50,OR(EXACT(E161,$AJ$51:$AJ$80)),IF(B161=$AK$50,OR(EXACT(E161,$AK$51:$AK$78)),IF(B161=$AL$50,OR(EXACT(E161,$AL$51:$AL$66)),IF(B161=$AM$50,OR(EXACT(E161,$AM$51:$AM$66)),IF(B161=$AN$50,OR(EXACT(E161,$AN$51:$AN$54)),IF(B161=$AO$50,OR(EXACT(E161,$AO$51:$AO$52)),OR(EXACT(E161,$AP$51:$AP$62)))))))))) -> TRUE | AQ161: OK | AR161: FEVEREIRO
A162: 112 | B162: Despesas com pessoal | E162: Pagamento mensal | G162: 2019-02-28 | H162: Holerite | J162: Eliane Novais da Silva | M162: 142784 | N162: 970 | P162: Salário Mensal - ref. 02/2019 | X162: Item AA | Y162: Exibir | Z162: 1 | AA162: =IF(Z162="","",COUNT(Z$52:Z162)+Z162) -> 112 | AB162: FALSE | AD162: 0 | AG162: 0 | AH162: vazio | AI162: =IF(AH162="Falta",TRUE,IF(B162=0,TRUE,IF(B162=$AJ$50,OR(EXACT(E162,$AJ$51:$AJ$80)),IF(B162=$AK$50,OR(EXACT(E162,$AK$51:$AK$78)),IF(B162=$AL$50,OR(EXACT(E162,$AL$51:$AL$66)),IF(B162=$AM$50,OR(EXACT(E162,$AM$51:$AM$66)),IF(B162=$AN$50,OR(EXACT(E162,$AN$51:$AN$54)),IF(B162=$AO$50,OR(EXACT(E162,$AO$51:$AO$52)),OR(EXACT(E162,$AP$51:$AP$62)))))))))) -> TRUE | AQ162: OK | AR162: FEVEREIRO
A163: 113 | B163: Despesas com pessoal | E163: Pagamento mensal | G163: 2019-02-28 | H163: Holerite | J163: Célia Maria dos Santos Casa | M163: 143176 | N163: 602 | P163: Salário Mensal - ref. 02/2019 | X163: Item AA | Y163: Exibir | Z163: 1 | AA163: =IF(Z163="","",COUNT(Z$52:Z163)+Z163) -> 113 | AB163: FALSE | AD163: 0 | AG163: 0 | AH163: vazio | AI163: =IF(AH163="Falta",TRUE,IF(B163=0,TRUE,IF(B163=$AJ$50,OR(EXACT(E163,$AJ$51:$AJ$80)),IF(B163=$AK$50,OR(EXACT(E163,$AK$51:$AK$78)),IF(B163=$AL$50,OR(EXACT(E163,$AL$51:$AL$66)),IF(B163=$AM$50,OR(EXACT(E163,$AM$51:$AM$66)),IF(B163=$AN$50,OR(EXACT(E163,$AN$51:$AN$54)),IF(B163=$AO$50,OR(EXACT(E163,$AO$51:$AO$52)),OR(EXACT(E163,$AP$51:$AP$62)))))))))) -> TRUE | AQ163: OK | AR163: FEVEREIRO
A164: 114 | B164: Despesas com pessoal | E164: Pagamento mensal | G164: 2019-02-28 | H164: Holerite | J164: Adriana Rodrigues de Sousa | M164: 143534 | N164: 660 | P164: Salário Mensal - ref. 02/2019 | X164: Item AA | Y164: Exibir | Z164: 1 | AA164: =IF(Z164="","",COUNT(Z$52:Z164)+Z164) -> 114 | AB164: FALSE | AD164: 0 | AG164: 0 | AH164: vazio | AI164: =IF(AH164="Falta",TRUE,IF(B164=0,TRUE,IF(B164=$AJ$50,OR(EXACT(E164,$AJ$51:$AJ$80)),IF(B164=$AK$50,OR(EXACT(E164,$AK$51:$AK$78)),IF(B164=$AL$50,OR(EXACT(E164,$AL$51:$AL$66)),IF(B164=$AM$50,OR(EXACT(E164,$AM$51:$AM$66)),IF(B164=$AN$50,OR(EXACT(E164,$AN$51:$AN$54)),IF(B164=$AO$50,OR(EXACT(E164,$AO$51:$AO$52)),OR(EXACT(E164,$AP$51:$AP$62)))))))))) -> TRUE | AQ164: OK | AR164: FEVEREIRO
A165: 115 | B165: Despesas com pessoal | E165: Pagamento mensal | G165: 2019-02-28 | H165: Holerite | J165: Luíza Natália Fernandes Cândido | M165: 143877 | N165: 594 | P165: Salário Mensal - ref. 02/2019 | X165: Item AA | Y165: Exibir | Z165: 1 | AA165: =IF(Z165="","",COUNT(Z$52:Z165)+Z165) -> 115 | AB165: FALSE | AD165: 0 | AG165: 0 | AH165: vazio | AI165: =IF(AH165="Falta",TRUE,IF(B165=0,TRUE,IF(B165=$AJ$50,OR(EXACT(E165,$AJ$51:$AJ$80)),IF(B165=$AK$50,OR(EXACT(E165,$AK$51:$AK$78)),IF(B165=$AL$50,OR(EXACT(E165,$AL$51:$AL$66)),IF(B165=$AM$50,OR(EXACT(E165,$AM$51:$AM$66)),IF(B165=$AN$50,OR(EXACT(E165,$AN$51:$AN$54)),IF(B165=$AO$50,OR(EXACT(E165,$AO$51:$AO$52)),OR(EXACT(E165,$AP$51:$AP$62)))))))))) -> TRUE | AQ165: OK | AR165: FEVEREIRO
A166: 116 | B166: Despesas com pessoal | E166: Pagamento mensal | G166: 2019-02-28 | H166: Holerite | J166: Valdinez Vieira Bezerra | M166: 144247 | N166: 880 | P166: Salário Mensal - ref. 02/2019 | X166: Item AA | Y166: Exibir | Z166: 1 | AA166: =IF(Z166="","",COUNT(Z$52:Z166)+Z166) -> 116 | AB166: FALSE | AD166: 0 | AG166: 0 | AH166: vazio | AI166: =IF(AH166="Falta",TRUE,IF(B166=0,TRUE,IF(B166=$AJ$50,OR(EXACT(E166,$AJ$51:$AJ$80)),IF(B166=$AK$50,OR(EXACT(E166,$AK$51:$AK$78)),IF(B166=$AL$50,OR(EXACT(E166,$AL$51:$AL$66)),IF(B166=$AM$50,OR(EXACT(E166,$AM$51:$AM$66)),IF(B166=$AN$50,OR(EXACT(E166,$AN$51:$AN$54)),IF(B166=$AO$50,OR(EXACT(E166,$AO$51:$AO$52)),OR(EXACT(E166,$AP$51:$AP$62)))))))))) -> TRUE | AQ166: OK | AR166: FEVEREIRO
A167: 117 | B167: Despesas com pessoal | E167: Pagamento mensal | G167: 2019-02-28 | H167: Holerite | J167: Maria Silveira de Sousa | M167: 144603 | N167: 505 | P167: Salário Mensal - ref. 02/2019 | X167: Item AA | Y167: Exibir | Z167: 1 | AA167: =IF(Z167="","",COUNT(Z$52:Z167)+Z167) -> 117 | AB167: FALSE | AD167: 0 | AG167: 0 | AH167: vazio | AI167: =IF(AH167="Falta",TRUE,IF(B167=0,TRUE,IF(B167=$AJ$50,OR(EXACT(E167,$AJ$51:$AJ$80)),IF(B167=$AK$50,OR(EXACT(E167,$AK$51:$AK$78)),IF(B167=$AL$50,OR(EXACT(E167,$AL$51:$AL$66)),IF(B167=$AM$50,OR(EXACT(E167,$AM$51:$AM$66)),IF(B167=$AN$50,OR(EXACT(E167,$AN$51:$AN$54)),IF(B167=$AO$50,OR(EXACT(E167,$AO$51:$AO$52)),OR(EXACT(E167,$AP$51:$AP$62)))))))))) -> TRUE | AQ167: OK | AR167: FEVEREIRO
A168: 118 | B168: Despesas com pessoal | E168: Pagamento mensal | G168: 2019-02-28 | H168: Holerite | J168: Bruna Prado da Silva | M168: 144971 | N168: 398 | P168: Salário Mensal - ref. 02/2019 | X168: Item AA | Y168: Exibir | Z168: 1 | AA168: =IF(Z168="","",COUNT(Z$52:Z168)+Z168) -> 118 | AB168: FALSE | AD168: 0 | AG168: 0 | AH168: vazio | AI168: =IF(AH168="Falta",TRUE,IF(B168=0,TRUE,IF(B168=$AJ$50,OR(EXACT(E168,$AJ$51:$AJ$80)),IF(B168=$AK$50,OR(EXACT(E168,$AK$51:$AK$78)),IF(B168=$AL$50,OR(EXACT(E168,$AL$51:$AL$66)),IF(B168=$AM$50,OR(EXACT(E168,$AM$51:$AM$66)),IF(B168=$AN$50,OR(EXACT(E168,$AN$51:$AN$54)),IF(B168=$AO$50,OR(EXACT(E168,$AO$51:$AO$52)),OR(EXACT(E168,$AP$51:$AP$62)))))))))) -> TRUE | AQ168: OK | AR168: FEVEREIRO
A169: 119 | B169: Despesas com pessoal | E169: Encargos trabalhistas | G169: 2019-02-28 | H169: Darf | I169: IRRF | J169: Secretaria da Receita Federal | M169: 478933 | N169: 116.55 | P169: IRRF - ref. 02/2019 | X169: Item AA | Y169: Exibir | Z169: 1 | AA169: =IF(Z169="","",COUNT(Z$52:Z169)+Z169) -> 119 | AB169: FALSE | AD169: 0 | AG169: 0 | AH169: vazio | AI169: =IF(AH169="Falta",TRUE,IF(B169=0,TRUE,IF(B169=$AJ$50,OR(EXACT(E169,$AJ$51:$AJ$80)),IF(B169=$AK$50,OR(EXACT(E169,$AK$51:$AK$78)),IF(B169=$AL$50,OR(EXACT(E169,$AL$51:$AL$66)),IF(B169=$AM$50,OR(EXACT(E169,$AM$51:$AM$66)),IF(B169=$AN$50,OR(EXACT(E169,$AN$51:$AN$54)),IF(B169=$AO$50,OR(EXACT(E169,$AO$51:$AO$52)),OR(EXACT(E169,$AP$51:$AP$62)))))))))) -> TRUE | AQ169: OK | AR169: FEVEREIRO
A170: 120 | B170: Despesas com pessoal | E170: Encargos trabalhistas | G170: 2019-02-28 | H170: Darf | I170: PIS | J170: Secretaria da Receita Federal | M170: 479222 | N170: 353.06 | P170: PIS - ref. 02/2019 | X170: Item AA | Y170: Exibir | Z170: 1 | AA170: =IF(Z170="","",COUNT(Z$52:Z170)+Z170) -> 120 | AB170: FALSE | AD170: 0 | AG170: 0 | AH170: vazio | AI170: =IF(AH170="Falta",TRUE,IF(B170=0,TRUE,IF(B170=$AJ$50,OR(EXACT(E170,$AJ$51:$AJ$80)),IF(B170=$AK$50,OR(EXACT(E170,$AK$51:$AK$78)),IF(B170=$AL$50,OR(EXACT(E170,$AL$51:$AL$66)),IF(B170=$AM$50,OR(EXACT(E170,$AM$51:$AM$66)),IF(B170=$AN$50,OR(EXACT(E170,$AN$51:$AN$54)),IF(B170=$AO$50,OR(EXACT(E170,$AO$51:$AO$52)),OR(EXACT(E170,$AP$51:$AP$62)))))))))) -> TRUE | AQ170: OK | AR170: FEVEREIRO
A171: 121 | B171: Despesas mensais | E171: Contador | G171: 2019-02-25 | H171: NFS-e | I171: 16270 | J171: Real Assessoria Contábil Informatizada S/S Ltda. | M171: 523270 | N171: 998 | P171: Honorários contábeis - ref. 02/2019 | X171: Item HH | Y171: Exibir | Z171: 1 | AA171: =IF(Z171="","",COUNT(Z$52:Z171)+Z171) -> 121 | AB171: FALSE | AD171: 0 | AG171: 0 | AH171: vazio | AI171: =IF(AH171="Falta",TRUE,IF(B171=0,TRUE,IF(B171=$AJ$50,OR(EXACT(E171,$AJ$51:$AJ$80)),IF(B171=$AK$50,OR(EXACT(E171,$AK$51:$AK$78)),IF(B171=$AL$50,OR(EXACT(E171,$AL$51:$AL$66)),IF(B171=$AM$50,OR(EXACT(E171,$AM$51:$AM$66)),IF(B171=$AN$50,OR(EXACT(E171,$AN$51:$AN$54)),IF(B171=$AO$50,OR(EXACT(E171,$AO$51:$AO$52)),OR(EXACT(E171,$AP$51:$AP$62)))))))))) -> TRUE | AQ171: OK | AR171: FEVEREIRO
A172: 122 | B172: Despesas mensais | E172: Consumo de gás | G172: 2019-02-28 | H172: Fatura | I172: 674.839 | J172: COMGÁS - Companhia de Gás de São Paulo | M172: 620353 | N172: 332.09 | P172: Gás - ref. 02/2019 | X172: Item KK | Y172: Exibir | Z172: 1 | AA172: =IF(Z172="","",COUNT(Z$52:Z172)+Z172) -> 122 | AB172: FALSE | AD172: 0 | AG172: 0 | AH172: vazio | AI172: =IF(AH172="Falta",TRUE,IF(B172=0,TRUE,IF(B172=$AJ$50,OR(EXACT(E172,$AJ$51:$AJ$80)),IF(B172=$AK$50,OR(EXACT(E172,$AK$51:$AK$78)),IF(B172=$AL$50,OR(EXACT(E172,$AL$51:$AL$66)),IF(B172=$AM$50,OR(EXACT(E172,$AM$51:$AM$66)),IF(B172=$AN$50,OR(EXACT(E172,$AN$51:$AN$54)),IF(B172=$AO$50,OR(EXACT(E172,$AO$51:$AO$52)),OR(EXACT(E172,$AP$51:$AP$62)))))))))) -> TRUE | AQ172: OK | AR172: FEVEREIRO
